Workbook

Sheet RESUMO MODULO MÍNIMO
E1: Ministério da Integração e do Desenvolvimento Regional
E2: Companhia de Desenvolvimento dos Vales do São Francisco e do Parnaíba
B5: OBRA: | C5: =B62 -> SERVIÇOS DE IMPLANTAÇÃO DE PAVIMENTAÇÃO EM TRATAMENTO SUPERFICIAL DUPLO (TSD), EM VIAS URBANAS E RURAIS INSERIDAS NA ÁREA DE ATUAÇÃO DA CODEVASF, NO ESTADO DO CEARÁ | I5: BDI Serviços (%): | L5: =BDI!C13 -> 0.2206
B6: DATA: | C6: 2025-07-01 | I6: BDI Diferenciado Serviços (%): | L6: =BDI!C64 -> 0.15
B7: PRAZO DE EXECUÇÃO: | G7: R$/m² | H7: =L59/H24 -> 191.8667598 | I7: BDI Fornecimentos (%): | L7: =L6 -> 0.15
B8: PLANILHA DE ORÇAMENTAÇÃO
B9: ITEM | C9: CÓDIGO | D9: FONTE | E9: DISCRIMINAÇÃO | F9: TIPO | G9: UNID. | H9: QUANT. | I9: VR.UNIT.S/BDI | J9: PR. UNIT.C/BDI | K9: C. TOT.S/BDI | L9: P. TOT.C/BDI | M9: =L59 -> 1500000
B10: 1 | E10: SERVIÇOS PRELIMINARES | K10: =SUM(K11:K12) -> 94.6 | L10: =SUM(L11:L12) -> 111.5 | M10: =L10/$L$59 -> 7.433333333e-05
B11: =[241]MEMÓRIA!B11 -> 1.1 | C11: CPU.1 | D11: Codevasf | E11: Mobilização | F11: SERV | G11: kmxfrente | H11: 214.4345232 | I11: =Mob!B63 -> 0.2206 | J11: =TRUNC(_xlfn.IFS(F11="SERV",I11*(1+$L$5),F11="SERV DIF",I11*(1+$L$6),F11="FORN",I11*(1+$L$7)),2) -> 0.26 | K11: =TRUNC(H11*I11,2) -> 47.3 | L11: =TRUNC(H11*J11,2) -> 55.75 | M11: 3.716666667e-05 | N11: INCC | O11: =H11*$L$65 -> 214.4345232 | P11: TERRAPLENAGEM | Q11: =(SUMIF(N:N,"TERRAPLENAGEM",L:L)/$L$59) -> 0.02147844 | R11: =(SUMIF(N:N,"TERRAPLENAGEM",L:L)) -> 32217.66
B12: =[241]MEMÓRIA!B14 -> 1.2 | C12: CPU.2 | D12: Codevasf | E12: Desmobilização | F12: SERV | G12: kmxfrente | H12: 214.4345232 | I12: =Mob!B63 -> 0.2206 | J12: =TRUNC(_xlfn.IFS(F12="SERV",I12*(1+$L$5),F12="SERV DIF",I12*(1+$L$6),F12="FORN",I12*(1+$L$7)),2) -> 0.26 | K12: =TRUNC(H12*I12,2) -> 47.3 | L12: =TRUNC(H12*J12,2) -> 55.75 | M12: 3.716666667e-05 | N12: INCC | O12: =H12*$L$65 -> 214.4345232 | P12: PAVIMENTAÇÃO | Q12: =SUMIF(N:N,"PAVIMENTAÇÃO",L:L)/$L$59 -> 0.6968001267 | R12: =(SUMIF(N:N,"PAVIMENTAÇÃO",L:L)) -> 1045200.19
B13: =[241]MEMÓRIA!B34 -> 2 | E13: INSTALAÇÃO DE CANTEIRO | K13: =SUM(K14:K16) -> 181605.21 | L13: =SUM(L14:L16) -> 221667.3 | M13: 0.1477782 | O13: 0 | P13: CONSULTORIA | R13: =(SUMIF(N:N,"CONSULTORIA",M:M)) -> 0
B14: =[241]MEMÓRIA!B36 -> 2.1 | C14: Canteiro | D14: Codevasf | E14: Canteiro de Obras | F14: SERV | G14: und | H14: 1.116846475 | I14: =' Canteiro'!F11 -> 34499.88 | J14: =TRUNC(_xlfn.IFS(F14="SERV",I14*(1+$L$5),F14="SERV DIF",I14*(1+$L$6),F14="FORN",I14*(1+$L$7)),2) -> 42110.55 | K14: =TRUNC(H14*I14,2) -> 38531.06 | L14: =TRUNC(H14*J14,2) -> 47031.01 | M14: 0.03135400667 | N14: INCC | O14: 1.116846475 | P14: DRENAGEM | Q14: =SUMIF(N:N,"DRENAGEM",L:L)/$L$59 -> 0.04954330667 | R14: =(SUMIF(N:N,"DRENAGEM",L:L)) -> 74314.96
B15: =[241]MEMÓRIA!B48 -> 2.2 | C15: 903808 | D15: SICRO | E15: Instalação da usina misturadora de solos com capacidade de 300 t/h | F15: SERV | G15: und | H15: 1.116846475 | I15: =VLOOKUP(C15,'SINTÉTICO SICRO'!A:D,4,FALSE) -> 120628.37 | J15: =TRUNC(_xlfn.IFS(F15="SERV",I15*(1+$L$5),F15="SERV DIF",I15*(1+$L$6),F15="FORN",I15*(1+$L$7)),2) -> 147238.98 | K15: 134723.36 | L15: 164443.33 | M15: 0.1096288867 | N15: INCC | O15: 1.116846475
B16: =[241]MEMÓRIA!B61 -> 2.3 | C16: 103689 | D16: SINAPI | E16: Fornecimento e instalação de placa de obra com chapa galvanizada e estrutura de madeira. af_03/2022_ps | F16: SERV | G16: m² | H16: 17.8695436 | I16: =VLOOKUP(C16,'COMP Sint. Sinapi'!$A:$E,4,0) -> 467.32 | J16: =TRUNC(_xlfn.IFS(F16="SERV",I16*(1+$L$5),F16="SERV DIF",I16*(1+$L$6),F16="FORN",I16*(1+$L$7)),2) -> 570.41 | K16: 8350.79 | L16: 10192.96 | M16: 0.006795306667 | N16: INCC | O16: 17.8695436 | P16: ADMINISTRAÇÃO LOCAL | R16: =(SUMIF(N:N,"ADMINISTRAÇÃO LOCAL",M:M)) -> 0
B17: =[241]MEMÓRIA!B128 -> 3 | E17: ADMINISTRAÇÃO LOCAL DA OBRA | K17: =SUM(K18:K18) -> 63432.87 | L17: =SUM(L18:L18) -> 77426.17 | M17: 0.05161744667 | O17: 0 | P17: SINALIZAÇÃO VERTICAL | R17: =(SUMIF(N:N,"SINALIZAÇÃO VERTICAL",M:M)) -> 0
B18: =[241]MEMÓRIA!B130 -> 3.1 | C18: Adm Local | D18: Codevasf | E18: Administração Local da Obra | F18: SERV | G18: und | H18: 0.05878139341 | I18: ='Adm Local'!I249 -> 1079131.916 | J18: =TRUNC(_xlfn.IFS(F18="SERV",I18*(1+$L$5),F18="SERV DIF",I18*(1+$L$6),F18="FORN",I18*(1+$L$7)),2) -> 1317188.41 | K18: =TRUNC(H18*I18,2) -> 63432.87 | L18: =TRUNC(H18*J18,2) -> 77426.17 | M18: 0.05161744667 | N18: INCC | O18: 0.05878139341 | P18: SINALIZAÇÃO HORIZONTAL | R18: =(SUMIF(N:N,"SINALIZAÇÃO HORIZONTAL",M:M)) -> 0
B19: =[241]MEMÓRIA!B156 -> 4 | E19: TERRAPLANAGEM | K19: =SUM(K20:K21) -> 26424.57 | L19: =SUM(L20:L21) -> 32217.66 | M19: 0.02147844 | O19: 0 | P19: CAP | R19: =(SUMIF(N:N,"CAP",M:M)) -> 0
B20: =[241]MEMÓRIA!B158 -> 4.1 | C20: 5502114 | D20: SICRO | E20: Escavação, carga e transporte de material de 1ª categoria - DMT de 1.000 a 1.200 m - caminho de serviço em leito natural - com escavadeira e caminhão basculante de 14 m³ | F20: SERV | G20: m³ | H20: 2540.82573 | I20: =ROUND(IF(D20="CODEVASF",VLOOKUP(C20,'CPU CODEVASF'!E:I,5,FALSE),VLOOKUP(C20,'SINTÉTICO SICRO'!A:D,4,FALSE)),6) -> 8.38 | J20: =TRUNC(_xlfn.IFS(F20="SERV",I20*(1+$L$5),F20="SERV DIF",I20*(1+$L$6),F20="FORN",I20*(1+$L$7)),2) -> 10.22 | K20: =TRUNC(H20*I20,2) -> 21292.11 | L20: =TRUNC(H20*J20,2) -> 25967.23 | M20: 0.01731148667 | N20: TERRAPLENAGEM | O20: 2540.82573 | P20: IMPRIMAÇÃO | R20: =(SUMIF(N:N,"IMPRIMAÇÃO",M:M)) -> 0
B21: =[241]MEMÓRIA!B170 -> 4.2 | C21: 4413942 | D21: SICRO | E21: Espalhamento de material em bota-fora | F21: SERV | G21: m³ | H21: 2540.82573 | I21: =ROUND(IF(D21="CODEVASF",VLOOKUP(C21,'CPU CODEVASF'!E:I,5,FALSE),VLOOKUP(C21,'SINTÉTICO SICRO'!A:D,4,FALSE)),6) -> 2.02 | J21: =TRUNC(_xlfn.IFS(F21="SERV",I21*(1+$L$5),F21="SERV DIF",I21*(1+$L$6),F21="FORN",I21*(1+$L$7)),2) -> 2.46 | K21: 5132.46 | L21: 6250.43 | M21: 0.004166953333 | N21: TERRAPLENAGEM | O21: 2540.82573 | P21: EMULSÃO ASFÁLTICA | R21: =(SUMIF(N:N,"EMULSÃO ASFÁLTICA",M:M)) -> 0
B22: =[241]MEMÓRIA!B363 -> 5 | E22: PAVIMENTAÇÃO | K22: =SUM(K23:K28) -> 273009.74 | L22: =SUM(L23:L28) -> 333067.04 | M22: 0.2220446933 | O22: 0 | P22: OBRAS COMPLEMENTARES | R22: =(SUMIF(N:N,"OBRAS COMPLEMENTARES",M:M)) -> 0
B23: 5.1 | C23: 4915637 | D23: SICRO | E23: =VLOOKUP(C23,'SINTÉTICO SICRO'!A:D,2,0) -> Capa selante - areia comercial | F23: SERV | G23: m² | H23: 7817.925324 | I23: =ROUND(IF(D23="CODEVASF",VLOOKUP(C23,'CPU CODEVASF'!E:I,5,FALSE),VLOOKUP(C23,'SINTÉTICO SICRO'!A:D,4,FALSE)),6) -> 0.99 | J23: =TRUNC(_xlfn.IFS(F23="SERV",I23*(1+$L$5),F23="SERV DIF",I23*(1+$L$6),F23="FORN",I23*(1+$L$7)),2) -> 1.2 | K23: =TRUNC(H23*I23,2) -> 7739.74 | L23: =TRUNC(H23*J23,2) -> 9381.51 | M23: 0.00625434 | N23: PAVIMENTAÇÃO | O23: 7817.925324 | P23: MOBILIZAÇÃO | R23: =(SUMIF(N:N,"MOBILIZAÇÃO",M:M)) -> 0
B24: 5.2 | C24: 4011370 | D24: SICRO | E24: =VLOOKUP(C24,'SINTÉTICO SICRO'!A:D,2,0) -> Tratamento superficial duplo com emulsão - brita comercial | F24: SERV | G24: m² | H24: 7817.925324 | I24: =ROUND(IF(D24="CODEVASF",VLOOKUP(C24,'CPU CODEVASF'!E:I,5,FALSE),VLOOKUP(C24,'SINTÉTICO SICRO'!A:D,4,FALSE)),6) -> 5.61 | J24: =TRUNC(_xlfn.IFS(F24="SERV",I24*(1+$L$5),F24="SERV DIF",I24*(1+$L$6),F24="FORN",I24*(1+$L$7)),2) -> 6.84 | K24: 43858.56 | L24: 53474.6 | M24: 0.03564973333 | N24: PAVIMENTAÇÃO | O24: 7817.925324 | P24: INCC | Q24: =(SUMIF(N:N,"INCC",L:L))/$L$59 -> 0.2321781267 | R24: =(SUMIF(N:N,"INCC",L:L)) -> 348267.19
B25: 5.3 | C25: 4011352 | D25: SICRO | E25: =VLOOKUP(C25,'SINTÉTICO SICRO'!A:D,2,0) -> Imprimação com emulsão asfáltica | F25: SERV | G25: m² | H25: 7817.925324 | I25: =ROUND(IF(D25="CODEVASF",VLOOKUP(C25,'CPU CODEVASF'!E:I,5,FALSE),VLOOKUP(C25,'SINTÉTICO SICRO'!A:D,4,FALSE)),6) -> 0.43 | J25: =TRUNC(_xlfn.IFS(F25="SERV",I25*(1+$L$5),F25="SERV DIF",I25*(1+$L$6),F25="FORN",I25*(1+$L$7)),2) -> 0.52 | K25: 3361.7 | L25: 4065.32 | M25: 0.002710213333 | N25: PAVIMENTAÇÃO | O25: 7817.925324
B26: 5.4 | C26: 4011318 | D26: SICRO | E26: =VLOOKUP(C26,'SINTÉTICO SICRO'!A:D,2,0) -> Base ou sub-base estabilizada granulometricamente com mistura solo brita (70% - 30%) em usina com material de jazida e brita comercial - 100% Proctor modificado | F26: SERV | G26: m³ | H26: 1172.688799 | I26: =ROUND(IF(D26="CODEVASF",VLOOKUP(C26,'CPU CODEVASF'!E:I,5,FALSE),VLOOKUP(C26,'SINTÉTICO SICRO'!A:D,4,FALSE)),6) -> 87.67 | J26: =TRUNC(_xlfn.IFS(F26="SERV",I26*(1+$L$5),F26="SERV DIF",I26*(1+$L$6),F26="FORN",I26*(1+$L$7)),2) -> 107.01 | K26: 102809.62 | L26: 125489.42 | M26: 0.08365961333 | N26: PAVIMENTAÇÃO | O26: 1172.688799
B27: 5.5 | C27: 4011318 | D27: SICRO | E27: =VLOOKUP(C27,'SINTÉTICO SICRO'!A:D,2,0) -> Base ou sub-base estabilizada granulometricamente com mistura solo brita (70% - 30%) em usina com material de jazida e brita comercial - 100% Proctor modificado | F27: SERV | G27: m³ | H27: 1172.688799 | I27: =ROUND(IF(D27="CODEVASF",VLOOKUP(C27,'CPU CODEVASF'!E:I,5,FALSE),VLOOKUP(C27,'SINTÉTICO SICRO'!A:D,4,FALSE)),6) -> 87.67 | J27: =TRUNC(_xlfn.IFS(F27="SERV",I27*(1+$L$5),F27="SERV DIF",I27*(1+$L$6),F27="FORN",I27*(1+$L$7)),2) -> 107.01 | K27: 102809.62 | L27: 125489.42 | M27: 0.08365961333 | N27: PAVIMENTAÇÃO | O27: 1172.688799
B28: 5.6 | C28: 4011209 | D28: SICRO | E28: =VLOOKUP(C28,'SINTÉTICO SICRO'!A:D,2,0) -> Regularização do subleito - 100% Proctor intermediário | F28: SERV | G28: m² | H28: 7817.925324 | I28: =ROUND(IF(D28="CODEVASF",VLOOKUP(C28,'CPU CODEVASF'!E:I,5,FALSE),VLOOKUP(C28,'SINTÉTICO SICRO'!A:D,4,FALSE)),6) -> 1.59 | J28: =TRUNC(_xlfn.IFS(F28="SERV",I28*(1+$L$5),F28="SERV DIF",I28*(1+$L$6),F28="FORN",I28*(1+$L$7)),2) -> 1.94 | K28: 12430.5 | L28: 15166.77 | M28: 0.01011118 | N28: PAVIMENTAÇÃO | O28: 7817.925324
B29: 6 | E29: AQUISIÇÃO E TRANSPORTE DO MATERIAL BETUMINOSO | K29: =SUM(K30:K33) -> 151869.03 | L29: =SUM(L30:L33) -> 174649.03 | M29: 0.1164326867 | O29: 0 | P29: OBRAS COMPLEMENTARES | R29: =(SUMIF(N:N,"OBRAS COMPLEMENTARES",M:M)) -> 0
B30: 6.1 | C30: CPU-14 | D30: CODEVASF | E30: AQUISIÇÃO DE EAI | F30: FORN | G30: t | H30: 9.381510388 | I30: =ROUND(IF(D30="CODEVASF",VLOOKUP(C30,'CPU CODEVASF'!E:I,5,FALSE),VLOOKUP(C30,'SINTÉTICO SICRO'!A:D,4,FALSE)),6) -> 2811.545353 | J30: =TRUNC(_xlfn.IFS(F30="SERV",I30*(1+$L$5),F30="SERV DIF",I30*(1+$L$6),F30="FORN",I30*(1+$L$7)),2) -> 3233.27 | K30: =TRUNC(H30*I30,2) -> 26376.54 | L30: =TRUNC(H30*J30,2) -> 30332.95 | M30: 0.02022196667 | N30: PAVIMENTAÇÃO | O30: 9.381510388 | P30: MOBILIZAÇÃO | R30: =(SUMIF(N:N,"MOBILIZAÇÃO",M:M)) -> 0
B31: 6.2 | C31: CPU-18 | D31: CODEVASF | E31: TRANSPORTE DE EAI | F31: FORN | G31: t | H31: 9.381510388 | I31: =ROUND(IF(D31="CODEVASF",VLOOKUP(C31,'CPU CODEVASF'!E:I,5,FALSE),VLOOKUP(C31,'SINTÉTICO SICRO'!A:D,4,FALSE)),6) -> 1388.146692 | J31: =TRUNC(_xlfn.IFS(F31="SERV",I31*(1+$L$5),F31="SERV DIF",I31*(1+$L$6),F31="FORN",I31*(1+$L$7)),2) -> 1596.36 | K31: 13022.91 | L31: 14976.26 | M31: 0.009984173333 | N31: PAVIMENTAÇÃO | O31: 9.381510388 | P31: INCC | Q31: =(SUMIF(N:N,"INCC",L:L))/$L$59 -> 0.2321781267 | R31: =(SUMIF(N:N,"INCC",L:L)) -> 348267.19
B32: 6.3 | C32: CPU-15 | D32: CODEVASF | E32: AQUISIÇÃO DE EMULSÃO ASFÁLTICA RR-2C | F32: FORN | G32: t | H32: 23.45377597 | I32: =ROUND(IF(D32="CODEVASF",VLOOKUP(C32,'CPU CODEVASF'!E:I,5,FALSE),VLOOKUP(C32,'SINTÉTICO SICRO'!A:D,4,FALSE)),6) -> 3778.762422 | J32: =TRUNC(_xlfn.IFS(F32="SERV",I32*(1+$L$5),F32="SERV DIF",I32*(1+$L$6),F32="FORN",I32*(1+$L$7)),2) -> 4345.57 | K32: 88626.24 | L32: 101920.02 | M32: 0.06794668 | N32: PAVIMENTAÇÃO | O32: 23.45377597
B33: 6.4 | C33: CPU-19 | D33: CODEVASF | E33: TRANSPORTE RR-2C | F33: FORN | G33: t | H33: 23.45377597 | I33: =ROUND(IF(D33="CODEVASF",VLOOKUP(C33,'CPU CODEVASF'!E:I,5,FALSE),VLOOKUP(C33,'SINTÉTICO SICRO'!A:D,4,FALSE)),6) -> 1016.61 | J33: =TRUNC(_xlfn.IFS(F33="SERV",I33*(1+$L$5),F33="SERV DIF",I33*(1+$L$6),F33="FORN",I33*(1+$L$7)),2) -> 1169.1 | K33: 23843.34 | L33: 27419.8 | M33: 0.01827986667 | N33: PAVIMENTAÇÃO | O33: 23.45377597
B34: 6 | E34: SINALIZAÇÃO | K34: =SUM(K35:K38) -> 10696.78 | L34: =SUM(L35:L38) -> 13054.66 | M34: 0.008703106667 | O34: 0
B35: 6.1 | C35: 5213440 | D35: SICRO | E35: Placa de regulamentação em aço D = 0,60 m - película retrorrefletiva tipo I + SI - fornecimento e implantação | F35: SERV | G35: und | H35: 3.350539424 | I35: =ROUND(IF(D35="CODEVASF",VLOOKUP(C35,'CPU CODEVASF'!E:I,5,FALSE),VLOOKUP(C35,'SINTÉTICO SICRO'!A:D,4,FALSE)),6) -> 285.72 | J35: =TRUNC(_xlfn.IFS(F35="SERV",I35*(1+$L$5),F35="SERV DIF",I35*(1+$L$6),F35="FORN",I35*(1+$L$7)),2) -> 348.74 | K35: =TRUNC(H35*I35,2) -> 957.31 | L35: =TRUNC(H35*J35,2) -> 1168.46 | M35: 0.0007789733333 | N35: INCC | O35: 3.350539424
B36: 6.2 | C36: 5213464 | D36: SICRO | E36: Placa de advertência em aço, lado de 0,60 m - película retrorrefletiva tipo I + SI - fornecimento e implantação | F36: SERV | G36: und | H36: 3.350539424 | I36: =ROUND(IF(D36="CODEVASF",VLOOKUP(C36,'CPU CODEVASF'!E:I,5,FALSE),VLOOKUP(C36,'SINTÉTICO SICRO'!A:D,4,FALSE)),6) -> 285.76 | J36: =TRUNC(_xlfn.IFS(F36="SERV",I36*(1+$L$5),F36="SERV DIF",I36*(1+$L$6),F36="FORN",I36*(1+$L$7)),2) -> 348.79 | K36: 957.45 | L36: 1168.63 | M36: 0.0007790866667 | N36: INCC | O36: 3.350539424
B37: 6.3 | C37: 5213863 | D37: SICRO | E37: Suporte metálico galvanizado para placa de advertência ou regulamentação - lado ou diâmetro de 0,60 m - fornecimento e implantação | F37: SERV | G37: und | H37: 6.701078849 | I37: =ROUND(IF(D37="CODEVASF",VLOOKUP(C37,'CPU CODEVASF'!E:I,5,FALSE),VLOOKUP(C37,'SINTÉTICO SICRO'!A:D,4,FALSE)),6) -> 458.94 | J37: =TRUNC(_xlfn.IFS(F37="SERV",I37*(1+$L$5),F37="SERV DIF",I37*(1+$L$6),F37="FORN",I37*(1+$L$7)),2) -> 560.18 | K37: 3075.39 | L37: 3753.81 | M37: 0.00250254 | N37: INCC | O37: 6.701078849
B38: 6.4 | C38: 5213400 | D38: SICRO | E38: Pintura de faixa com tinta acrílica - espessura de 0,4 mm | F38: SERV | G38: m² | H38: 268.043154 | I38: =ROUND(IF(D38="CODEVASF",VLOOKUP(C38,'CPU CODEVASF'!E:I,5,FALSE),VLOOKUP(C38,'SINTÉTICO SICRO'!A:D,4,FALSE)),6) -> 21.29 | J38: =TRUNC(_xlfn.IFS(F38="SERV",I38*(1+$L$5),F38="SERV DIF",I38*(1+$L$6),F38="FORN",I38*(1+$L$7)),2) -> 25.98 | K38: 5706.63 | L38: 6963.76 | M38: 0.004642506667 | N38: INCC | O38: 268.043154
B39: 7 | E39: DRENAGEM | K39: =SUM(K40:K41) -> 61431.9 | L39: =SUM(L40:L41) -> 74974.34 | M39: 0.04998289333 | O39: 0
B40: 7.1 | C40: 2003943 | D40: SICRO | E40: Meio-fio de concreto - MFC 03 moldado no local com extrusora e concreto usinado - areia e brita comerciais | F40: SERV | G40: m | H40: 2233.69295 | I40: =ROUND(IF(D40="CODEVASF",VLOOKUP(C40,'CPU CODEVASF'!E:I,5,FALSE),VLOOKUP(C40,'SINTÉTICO SICRO'!A:D,4,FALSE)),6) -> 27.26 | J40: =TRUNC(_xlfn.IFS(F40="SERV",I40*(1+$L$5),F40="SERV DIF",I40*(1+$L$6),F40="FORN",I40*(1+$L$7)),2) -> 33.27 | K40: =TRUNC(H40*I40,2) -> 60890.46 | L40: =TRUNC(H40*J40,2) -> 74314.96 | M40: 0.04954330667 | N40: DRENAGEM | O40: 2233.69295
B41: 7.2 | C41: 4915724 | D41: SICRO | E41: Caiação mecanizada com fixador de cal | F41: SERV | G41: m² | H41: 268.043154 | I41: =ROUND(IF(D41="CODEVASF",VLOOKUP(C41,'CPU CODEVASF'!E:I,5,FALSE),VLOOKUP(C41,'SINTÉTICO SICRO'!A:D,4,FALSE)),6) -> 2.02 | J41: =TRUNC(_xlfn.IFS(F41="SERV",I41*(1+$L$5),F41="SERV DIF",I41*(1+$L$6),F41="FORN",I41*(1+$L$7)),2) -> 2.46 | K41: 541.44 | L41: 659.38 | M41: 0.0004395866667 | N41: INCC | O41: 268.043154
B42: 8 | E42: SERVIÇOS COMPLEMENTARES | K42: =SUM(K43:K43) -> 1738.98 | L42: =SUM(L43:L43) -> 2122 | M42: 0.001414666667 | O42: 0
B43: 8.1 | C43: CPU-12 | D43: Codevasf | E43: Conserto de quebra no ramal na rua sem pavimento com fornecimento de material hidráulico | F43: SERV | G43: m | H43: 111.6846475 | I43: =ROUND(IF(D43="CODEVASF",VLOOKUP(C43,'CPU CODEVASF'!E:I,5,FALSE),VLOOKUP(C43,'SINTÉTICO SICRO'!A:D,4,FALSE)),6) -> 15.57049 | J43: =TRUNC(_xlfn.IFS(F43="SERV",I43*(1+$L$5),F43="SERV DIF",I43*(1+$L$6),F43="FORN",I43*(1+$L$7)),2) -> 19 | K43: =TRUNC(H43*I43,2) -> 1738.98 | L43: =TRUNC(H43*J43,2) -> 2122 | M43: 0.001414666667 | N43: INCC | O43: 111.6846475
B44: 9 | E44: PROJETO EXECUTIVO | K44: =SUM(K45:K45) -> 27226.76 | L44: =SUM(L45:L45) -> 33226.18 | M44: 0.02215078667 | O44: 0
B45: 9.1 | C45: CPU.7 | D45: Codevasf | E45: Projeto Executivo | F45: SERV | G45: m² | H45: 7817.925324 | I45: =ROUND(('Projeto Executivo'!G29)/(1+$L$5),6) -> 3.482608 | J45: =TRUNC(_xlfn.IFS(F45="SERV",I45*(1+$L$5),F45="SERV DIF",I45*(1+$L$6),F45="FORN",I45*(1+$L$7)),2) -> 4.25 | K45: =TRUNC(H45*I45,2) -> 27226.76 | L45: =TRUNC(H45*J45,2) -> 33226.18 | M45: 0.02215078667 | N45: INCC | O45: 7817.925324
B46: 10 | E46: MOMENTO DE TRANSPORTE | K46: =SUM(K47:K58) -> 444045.39 | L46: =SUM(L47:L58) -> 537484.12 | M46: 0.3583227467 | O46: 0
B47: 10.1 | C47: 5914359 | D47: SICRO | E47: =VLOOKUP(C47,'SINTÉTICO SICRO'!A:D,2,0) -> Transporte com caminhão basculante de 10 m³ - rodovia em leito natural | F47: SERV | G47: tkm | H47: 15864.59968 | I47: =ROUND(IF(D47="CODEVASF",VLOOKUP(C47,'CPU CODEVASF'!E:I,5,FALSE),VLOOKUP(C47,'SINTÉTICO SICRO'!A:D,4,FALSE)),6) -> 1.23 | J47: =TRUNC(_xlfn.IFS(F47="SERV",I47*(1+$L$5),F47="SERV DIF",I47*(1+$L$6),F47="FORN",I47*(1+$L$7)),2) -> 1.5 | K47: =TRUNC(H47*I47,2) -> 19513.45 | L47: =TRUNC(H47*J47,2) -> 23796.89 | M47: 0.01586459333 | N47: PAVIMENTAÇÃO | O47: 15864.59968
B48: 10.2 | C48: 5914374 | D48: SICRO | E48: =VLOOKUP(C48,'SINTÉTICO SICRO'!A:D,2,0) -> Transporte com caminhão basculante de 10 m³ - rodovia em revestimento primário | F48: SERV | G48: tkm | H48: 21246.69228 | I48: =ROUND(IF(D48="CODEVASF",VLOOKUP(C48,'CPU CODEVASF'!E:I,5,FALSE),VLOOKUP(C48,'SINTÉTICO SICRO'!A:D,4,FALSE)),6) -> 0.99 | J48: =TRUNC(_xlfn.IFS(F48="SERV",I48*(1+$L$5),F48="SERV DIF",I48*(1+$L$6),F48="FORN",I48*(1+$L$7)),2) -> 1.2 | K48: 21034.22 | L48: 25496.03 | M48: 0.01699735333 | N48: PAVIMENTAÇÃO | O48: 21246.69228
B49: 10.3 | C49: 5914389 | D49: SICRO | E49: =VLOOKUP(C49,'SINTÉTICO SICRO'!A:D,2,0) -> Transporte com caminhão basculante de 10 m³ - rodovia pavimentada | F49: SERV | G49: tkm | H49: 493747.252 | I49: =ROUND(IF(D49="CODEVASF",VLOOKUP(C49,'CPU CODEVASF'!E:I,5,FALSE),VLOOKUP(C49,'SINTÉTICO SICRO'!A:D,4,FALSE)),6) -> 0.81 | J49: =TRUNC(_xlfn.IFS(F49="SERV",I49*(1+$L$5),F49="SERV DIF",I49*(1+$L$6),F49="FORN",I49*(1+$L$7)),2) -> 0.98 | K49: 399935.27 | L49: 483872.3 | M49: 0.3225815333 | N49: PAVIMENTAÇÃO | O49: 493747.252
B50: 10.4 | C50: 5914314 | D50: SICRO | E50: =VLOOKUP(C50,'SINTÉTICO SICRO'!A:D,2,0) -> Transporte com caminhão basculante de 6 m³ - rodovia em leito natural | F50: SERV | G50: tkm | H50: 34.00797516 | I50: =ROUND(IF(D50="CODEVASF",VLOOKUP(C50,'CPU CODEVASF'!E:I,5,FALSE),VLOOKUP(C50,'SINTÉTICO SICRO'!A:D,4,FALSE)),6) -> 1.31 | J50: =TRUNC(_xlfn.IFS(F50="SERV",I50*(1+$L$5),F50="SERV DIF",I50*(1+$L$6),F50="FORN",I50*(1+$L$7)),2) -> 1.59 | K50: 44.55 | L50: 54.07 | M50: 3.604666667e-05 | N50: PAVIMENTAÇÃO | O50: 34.00797516
B51: 10.5 | C51: 5914329 | D51: SICRO | E51: =VLOOKUP(C51,'SINTÉTICO SICRO'!A:D,2,0) -> Transporte com caminhão basculante de 6 m³ - rodovia em revestimento primário | F51: SERV | G51: tkm | H51: 34.00797516 | I51: =ROUND(IF(D51="CODEVASF",VLOOKUP(C51,'CPU CODEVASF'!E:I,5,FALSE),VLOOKUP(C51,'SINTÉTICO SICRO'!A:D,4,FALSE)),6) -> 1.05 | J51: =TRUNC(_xlfn.IFS(F51="SERV",I51*(1+$L$5),F51="SERV DIF",I51*(1+$L$6),F51="FORN",I51*(1+$L$7)),2) -> 1.28 | K51: 35.7 | L51: 43.53 | M51: 2.902e-05 | N51: PAVIMENTAÇÃO | O51: 34.00797516
B52: 10.6 | C52: 5914344 | D52: SICRO | E52: =VLOOKUP(C52,'SINTÉTICO SICRO'!A:D,2,0) -> Transporte com caminhão basculante de 6 m³ - rodovia pavimentada | F52: SERV | G52: tkm | H52: 272.0638013 | I52: =ROUND(IF(D52="CODEVASF",VLOOKUP(C52,'CPU CODEVASF'!E:I,5,FALSE),VLOOKUP(C52,'SINTÉTICO SICRO'!A:D,4,FALSE)),6) -> 0.86 | J52: =TRUNC(_xlfn.IFS(F52="SERV",I52*(1+$L$5),F52="SERV DIF",I52*(1+$L$6),F52="FORN",I52*(1+$L$7)),2) -> 1.04 | K52: 233.97 | L52: 282.94 | M52: 0.0001886266667 | N52: PAVIMENTAÇÃO | O52: 272.0638013
B53: 10.7 | C53: 5914449 | D53: SICRO | E53: =VLOOKUP(C53,'SINTÉTICO SICRO'!A:D,2,0) -> Transporte com caminhão carroceria de 15 t - rodovia em leito natural | F53: SERV | G53: tkm | H53: 57.29306264 | I53: =ROUND(IF(D53="CODEVASF",VLOOKUP(C53,'CPU CODEVASF'!E:I,5,FALSE),VLOOKUP(C53,'SINTÉTICO SICRO'!A:D,4,FALSE)),6) -> 1.09 | J53: =TRUNC(_xlfn.IFS(F53="SERV",I53*(1+$L$5),F53="SERV DIF",I53*(1+$L$6),F53="FORN",I53*(1+$L$7)),2) -> 1.33 | K53: 62.44 | L53: 76.19 | M53: 5.079333333e-05 | N53: PAVIMENTAÇÃO | O53: 57.29306264
B54: 10.8 | C54: 5914464 | D54: SICRO | E54: =VLOOKUP(C54,'SINTÉTICO SICRO'!A:D,2,0) -> Transporte com caminhão carroceria de 15 t - rodovia em revestimento primário | F54: SERV | G54: tkm | H54: 86.1170779 | I54: =ROUND(IF(D54="CODEVASF",VLOOKUP(C54,'CPU CODEVASF'!E:I,5,FALSE),VLOOKUP(C54,'SINTÉTICO SICRO'!A:D,4,FALSE)),6) -> 0.88 | J54: =TRUNC(_xlfn.IFS(F54="SERV",I54*(1+$L$5),F54="SERV DIF",I54*(1+$L$6),F54="FORN",I54*(1+$L$7)),2) -> 1.07 | K54: 75.78 | L54: 92.14 | M54: 6.142666667e-05 | N54: PAVIMENTAÇÃO | O54: 86.1170779
B55: 10.9 | C55: 5914479 | D55: SICRO | E55: =VLOOKUP(C55,'SINTÉTICO SICRO'!A:D,2,0) -> Transporte com caminhão carroceria de 15 t - rodovia pavimentada | F55: SERV | G55: tkm | H55: 1833.378004 | I55: =ROUND(IF(D55="CODEVASF",VLOOKUP(C55,'CPU CODEVASF'!E:I,5,FALSE),VLOOKUP(C55,'SINTÉTICO SICRO'!A:D,4,FALSE)),6) -> 0.72 | J55: =TRUNC(_xlfn.IFS(F55="SERV",I55*(1+$L$5),F55="SERV DIF",I55*(1+$L$6),F55="FORN",I55*(1+$L$7)),2) -> 0.87 | K55: 1320.03 | L55: 1595.03 | M55: 0.001063353333 | N55: PAVIMENTAÇÃO | O55: 1833.378004
B56: 10.10 | C56: 5914539 | D56: SICRO | E56: =VLOOKUP(C56,'SINTÉTICO SICRO'!A:D,2,0) -> Transporte com caminhão betoneira - rodovia em leito natural | F56: SERV | G56: tkm | H56: 225.1562493 | I56: =ROUND(IF(D56="CODEVASF",VLOOKUP(C56,'CPU CODEVASF'!E:I,5,FALSE),VLOOKUP(C56,'SINTÉTICO SICRO'!A:D,4,FALSE)),6) -> 1.13 | J56: =TRUNC(_xlfn.IFS(F56="SERV",I56*(1+$L$5),F56="SERV DIF",I56*(1+$L$6),F56="FORN",I56*(1+$L$7)),2) -> 1.37 | K56: 254.42 | L56: 308.46 | M56: 0.00020564 | N56: PAVIMENTAÇÃO | O56: 225.1562493
B57: 10.11 | C57: 5914554 | D57: SICRO | E57: =VLOOKUP(C57,'SINTÉTICO SICRO'!A:D,2,0) -> Transporte com caminhão betoneira - rodovia em revestimento primário | F57: SERV | G57: tkm | H57: 225.1562493 | I57: =ROUND(IF(D57="CODEVASF",VLOOKUP(C57,'CPU CODEVASF'!E:I,5,FALSE),VLOOKUP(C57,'SINTÉTICO SICRO'!A:D,4,FALSE)),6) -> 0.9 | J57: =TRUNC(_xlfn.IFS(F57="SERV",I57*(1+$L$5),F57="SERV DIF",I57*(1+$L$6),F57="FORN",I57*(1+$L$7)),2) -> 1.09 | K57: 202.64 | L57: 245.42 | M57: 0.0001636133333 | N57: PAVIMENTAÇÃO | O57: 225.1562493
B58: 10.12 | C58: 5914569 | D58: SICRO | E58: =VLOOKUP(C58,'SINTÉTICO SICRO'!A:D,2,0) -> Transporte com caminhão betoneira - rodovia pavimentada | F58: SERV | G58: tkm | H58: 1801.249995 | I58: =ROUND(IF(D58="CODEVASF",VLOOKUP(C58,'CPU CODEVASF'!E:I,5,FALSE),VLOOKUP(C58,'SINTÉTICO SICRO'!A:D,4,FALSE)),6) -> 0.74 | J58: =TRUNC(_xlfn.IFS(F58="SERV",I58*(1+$L$5),F58="SERV DIF",I58*(1+$L$6),F58="FORN",I58*(1+$L$7)),2) -> 0.9 | K58: 1332.92 | L58: 1621.12 | M58: 0.001080746667 | N58: PAVIMENTAÇÃO | O58: 1801.249995
B59: TOTAL GERAL DA OBRA COM BDI | K59: =SUM(K10,K13,K17,K19,K22,K34,K39,K42,K44,K46) -> 1089706.8 | L59: =SUM(L10,L13,L17,L19,L22,L29,L34,L39,L42,L44,L46) -> 1500000
B62: SERVIÇOS DE IMPLANTAÇÃO DE PAVIMENTAÇÃO EM TRATAMENTO SUPERFICIAL DUPLO (TSD), EM VIAS URBANAS E RURAIS INSERIDAS NA ÁREA DE ATUAÇÃO DA CODEVASF, NO ESTADO DO CEARÁ
L64: 1500000
L65: =L64/L59 -> 1
L66: =L64-L59 -> 0

Sheet RESUMO MODULO TOTAL
E1: Ministério da Integração e do Desenvolvimento Regional
E2: Companhia de Desenvolvimento dos Vales do São Francisco e do Parnaíba
B5: OBRA: | C5: =B62 -> SERVIÇOS DE IMPLANTAÇÃO DE PAVIMENTAÇÃO EM TRATAMENTO SUPERFICIAL DUPLO (TSD), EM VIAS URBANAS E RURAIS INSERIDAS NA ÁREA DE ATUAÇÃO DA CODEVASF, NO ESTADO DO CEARÁ | I5: BDI Serviços (%): | L5: =BDI!C13 -> 0.2206
B6: DATA: | C6: 2025-07-01 | I6: BDI Diferenciado Serviços (%): | L6: =BDI!C64 -> 0.15
B7: PRAZO DE EXECUÇÃO: | G7: R$/m² | H7: =L59/H24 -> 191.8667598 | I7: BDI Fornecimentos (%): | L7: =L6 -> 0.15
B8: PLANILHA DE ORÇAMENTAÇÃO
B9: ITEM | C9: CÓDIGO | D9: FONTE | E9: DISCRIMINAÇÃO | F9: TIPO | G9: UNID. | H9: QUANT. | I9: VR.UNIT.S/BDI | J9: PR. UNIT.C/BDI | K9: C. TOT.S/BDI | L9: P. TOT.C/BDI | M9: =L59 -> 25518279.05
B10: 1 | E10: SERVIÇOS PRELIMINARES | K10: =SUM(K11:K12) -> 1609.48 | L10: =SUM(L11:L12) -> 1896.96 | M10: =L10/$L$59 -> 7.433730136e-05
B11: =[241]MEMÓRIA!B11 -> 1.1 | C11: CPU.1 | D11: Codevasf | E11: Mobilização | F11: SERV | G11: kmxfrente | H11: =Mob!B65*Mob!H6 -> 3648 | I11: =Mob!B63 -> 0.2206 | J11: =TRUNC(_xlfn.IFS(F11="SERV",I11*(1+$L$5),F11="SERV DIF",I11*(1+$L$6),F11="FORN",I11*(1+$L$7)),2) -> 0.26 | K11: =TRUNC(H11*I11,2) -> 804.74 | L11: =TRUNC(H11*J11,2) -> 948.48 | M11: 3.716865068e-05 | N11: INCC | P11: TERRAPLENAGEM | Q11: =(SUMIF(N:N,"TERRAPLENAGEM",L:L)/$L$59) -> 0.02147844684 | R11: =(SUMIF(N:N,"TERRAPLENAGEM",L:L)) -> 548093
B12: =[241]MEMÓRIA!B14 -> 1.2 | C12: CPU.2 | D12: Codevasf | E12: Desmobilização | F12: SERV | G12: kmxfrente | H12: =Mob!B65*Mob!H6 -> 3648 | I12: =Mob!B63 -> 0.2206 | J12: =TRUNC(_xlfn.IFS(F12="SERV",I12*(1+$L$5),F12="SERV DIF",I12*(1+$L$6),F12="FORN",I12*(1+$L$7)),2) -> 0.26 | K12: =TRUNC(H12*I12,2) -> 804.74 | L12: =TRUNC(H12*J12,2) -> 948.48 | M12: 3.716865068e-05 | N12: INCC | P12: PAVIMENTAÇÃO | Q12: =SUMIF(N:N,"PAVIMENTAÇÃO",L:L)/$L$59 -> 0.6968000783 | R12: =(SUMIF(N:N,"PAVIMENTAÇÃO",L:L)) -> 17781138.84
B13: =[241]MEMÓRIA!B34 -> 2 | E13: INSTALAÇÃO DE CANTEIRO | K13: =SUM(K14:K16) -> 3089502.03 | L13: =SUM(L14:L16) -> 3771045.71 | M13: 0.1477782143 | P13: CONSULTORIA | R13: =(SUMIF(N:N,"CONSULTORIA",M:M)) -> 0
B14: =[241]MEMÓRIA!B36 -> 2.1 | C14: Canteiro | D14: Codevasf | E14: Canteiro de Obras | F14: SERV | G14: und | H14: ='Memória de Cálculo'!D20 -> 19 | I14: =' Canteiro'!F11 -> 34499.88 | J14: =TRUNC(_xlfn.IFS(F14="SERV",I14*(1+$L$5),F14="SERV DIF",I14*(1+$L$6),F14="FORN",I14*(1+$L$7)),2) -> 42110.55 | K14: =TRUNC(H14*I14,2) -> 655497.72 | L14: =TRUNC(H14*J14,2) -> 800100.45 | M14: 0.03135401288 | N14: INCC | P14: DRENAGEM | Q14: =SUMIF(N:N,"DRENAGEM",L:L)/$L$59 -> 0.04954330962 | R14: =(SUMIF(N:N,"DRENAGEM",L:L)) -> 1264260
B15: =[241]MEMÓRIA!B48 -> 2.2 | C15: 903808 | D15: SICRO | E15: Instalação da usina misturadora de solos com capacidade de 300 t/h | F15: SERV | G15: und | H15: ='Memória de Cálculo'!D10 -> 19 | I15: =VLOOKUP(C15,'SINTÉTICO SICRO'!A:D,4,FALSE) -> 120628.37 | J15: =TRUNC(_xlfn.IFS(F15="SERV",I15*(1+$L$5),F15="SERV DIF",I15*(1+$L$6),F15="FORN",I15*(1+$L$7)),2) -> 147238.98 | K15: 2291939.03 | L15: 2797540.62 | M15: 0.1096288905 | N15: INCC
B16: =[241]MEMÓRIA!B61 -> 2.3 | C16: 103689 | D16: SINAPI | E16: Fornecimento e instalação de placa de obra com chapa galvanizada e estrutura de madeira. af_03/2022_ps | F16: SERV | G16: m² | H16: ='Memória de Cálculo'!H25 -> 304 | I16: =VLOOKUP(C16,'COMP Sint. Sinapi'!$A:$E,4,0) -> 467.32 | J16: =TRUNC(_xlfn.IFS(F16="SERV",I16*(1+$L$5),F16="SERV DIF",I16*(1+$L$6),F16="FORN",I16*(1+$L$7)),2) -> 570.41 | K16: 142065.28 | L16: 173404.64 | M16: 0.006795310909 | N16: INCC | P16: ADMINISTRAÇÃO LOCAL | R16: =(SUMIF(N:N,"ADMINISTRAÇÃO LOCAL",M:M)) -> 0
B17: =[241]MEMÓRIA!B128 -> 3 | E17: ADMINISTRAÇÃO LOCAL DA OBRA | K17: =SUM(K18:K18) -> 1079131.91 | L17: =SUM(L18:L18) -> 1317188.41 | M17: 0.05161744675 | P17: SINALIZAÇÃO VERTICAL | R17: =(SUMIF(N:N,"SINALIZAÇÃO VERTICAL",M:M)) -> 0
B18: =[241]MEMÓRIA!B130 -> 3.1 | C18: Adm Local | D18: Codevasf | E18: Administração Local da Obra | F18: SERV | G18: und | H18: 1 | I18: ='Adm Local'!I249 -> 1079131.916 | J18: =TRUNC(_xlfn.IFS(F18="SERV",I18*(1+$L$5),F18="SERV DIF",I18*(1+$L$6),F18="FORN",I18*(1+$L$7)),2) -> 1317188.41 | K18: =TRUNC(H18*I18,2) -> 1079131.91 | L18: =TRUNC(H18*J18,2) -> 1317188.41 | M18: 0.05161744675 | N18: INCC | P18: SINALIZAÇÃO HORIZONTAL | R18: =(SUMIF(N:N,"SINALIZAÇÃO HORIZONTAL",M:M)) -> 0
B19: =[241]MEMÓRIA!B156 -> 4 | E19: TERRAPLANAGEM | K19: =SUM(K20:K21) -> 449540 | L19: =SUM(L20:L21) -> 548093 | M19: 0.02147844684 | P19: CAP | R19: =(SUMIF(N:N,"CAP",M:M)) -> 0
B20: =[241]MEMÓRIA!B158 -> 4.1 | C20: 5502114 | D20: SICRO | E20: Escavação, carga e transporte de material de 1ª categoria - DMT de 1.000 a 1.200 m - caminho de serviço em leito natural - com escavadeira e caminhão basculante de 14 m³ | F20: SERV | G20: m³ | H20: ='Memória de Cálculo'!H37 -> 43225 | I20: =ROUND(IF(D20="CODEVASF",VLOOKUP(C20,'CPU CODEVASF'!E:I,5,FALSE),VLOOKUP(C20,'SINTÉTICO SICRO'!A:D,4,FALSE)),6) -> 8.38 | J20: =TRUNC(_xlfn.IFS(F20="SERV",I20*(1+$L$5),F20="SERV DIF",I20*(1+$L$6),F20="FORN",I20*(1+$L$7)),2) -> 10.22 | K20: =TRUNC(H20*I20,2) -> 362225.5 | L20: =TRUNC(H20*J20,2) -> 441759.5 | M20: 0.01731149264 | N20: TERRAPLENAGEM | P20: IMPRIMAÇÃO | R20: =(SUMIF(N:N,"IMPRIMAÇÃO",M:M)) -> 0
B21: =[241]MEMÓRIA!B170 -> 4.2 | C21: 4413942 | D21: SICRO | E21: Espalhamento de material em bota-fora | F21: SERV | G21: m³ | H21: ='Memória de Cálculo'!H44 -> 43225 | I21: =ROUND(IF(D21="CODEVASF",VLOOKUP(C21,'CPU CODEVASF'!E:I,5,FALSE),VLOOKUP(C21,'SINTÉTICO SICRO'!A:D,4,FALSE)),6) -> 2.02 | J21: =TRUNC(_xlfn.IFS(F21="SERV",I21*(1+$L$5),F21="SERV DIF",I21*(1+$L$6),F21="FORN",I21*(1+$L$7)),2) -> 2.46 | K21: 87314.5 | L21: 106333.5 | M21: 0.004166954197 | N21: TERRAPLENAGEM | P21: EMULSÃO ASFÁLTICA | R21: =(SUMIF(N:N,"EMULSÃO ASFÁLTICA",M:M)) -> 0
B22: =[241]MEMÓRIA!B363 -> 5 | E22: PAVIMENTAÇÃO | K22: =SUM(K23:K28) -> 4644493 | L22: =SUM(L23:L28) -> 5666199 | M22: 0.222044715 | P22: OBRAS COMPLEMENTARES | R22: =(SUMIF(N:N,"OBRAS COMPLEMENTARES",M:M)) -> 0
B23: 5.1 | C23: 4915637 | D23: SICRO | E23: =VLOOKUP(C23,'SINTÉTICO SICRO'!A:D,2,0) -> Capa selante - areia comercial | F23: SERV | G23: m² | H23: ='Memória de Cálculo'!H51 -> 133000 | I23: =ROUND(IF(D23="CODEVASF",VLOOKUP(C23,'CPU CODEVASF'!E:I,5,FALSE),VLOOKUP(C23,'SINTÉTICO SICRO'!A:D,4,FALSE)),6) -> 0.99 | J23: =TRUNC(_xlfn.IFS(F23="SERV",I23*(1+$L$5),F23="SERV DIF",I23*(1+$L$6),F23="FORN",I23*(1+$L$7)),2) -> 1.2 | K23: =TRUNC(H23*I23,2) -> 131670 | L23: =TRUNC(H23*J23,2) -> 159600 | M23: 0.006254340259 | N23: PAVIMENTAÇÃO | P23: MOBILIZAÇÃO | R23: =(SUMIF(N:N,"MOBILIZAÇÃO",M:M)) -> 0
B24: 5.2 | C24: 4011370 | D24: SICRO | E24: =VLOOKUP(C24,'SINTÉTICO SICRO'!A:D,2,0) -> Tratamento superficial duplo com emulsão - brita comercial | F24: SERV | G24: m² | H24: ='Memória de Cálculo'!H57 -> 133000 | I24: =ROUND(IF(D24="CODEVASF",VLOOKUP(C24,'CPU CODEVASF'!E:I,5,FALSE),VLOOKUP(C24,'SINTÉTICO SICRO'!A:D,4,FALSE)),6) -> 5.61 | J24: =TRUNC(_xlfn.IFS(F24="SERV",I24*(1+$L$5),F24="SERV DIF",I24*(1+$L$6),F24="FORN",I24*(1+$L$7)),2) -> 6.84 | K24: 746130 | L24: 909720 | M24: 0.03564973948 | N24: PAVIMENTAÇÃO | P24: INCC | Q24: =(SUMIF(N:N,"INCC",L:L))/$L$59 -> 0.2321781652 | R24: =(SUMIF(N:N,"INCC",L:L)) -> 5924787.21
B25: 5.3 | C25: 4011352 | D25: SICRO | E25: =VLOOKUP(C25,'SINTÉTICO SICRO'!A:D,2,0) -> Imprimação com emulsão asfáltica | F25: SERV | G25: m² | H25: ='Memória de Cálculo'!H63 -> 133000 | I25: =ROUND(IF(D25="CODEVASF",VLOOKUP(C25,'CPU CODEVASF'!E:I,5,FALSE),VLOOKUP(C25,'SINTÉTICO SICRO'!A:D,4,FALSE)),6) -> 0.43 | J25: =TRUNC(_xlfn.IFS(F25="SERV",I25*(1+$L$5),F25="SERV DIF",I25*(1+$L$6),F25="FORN",I25*(1+$L$7)),2) -> 0.52 | K25: 57190 | L25: 69160 | M25: 0.002710214112 | N25: PAVIMENTAÇÃO
B26: 5.4 | C26: 4011318 | D26: SICRO | E26: =VLOOKUP(C26,'SINTÉTICO SICRO'!A:D,2,0) -> Base ou sub-base estabilizada granulometricamente com mistura solo brita (70% - 30%) em usina com material de jazida e brita comercial - 100% Proctor modificado | F26: SERV | G26: m³ | H26: ='Memória de Cálculo'!H68 -> 19950 | I26: =ROUND(IF(D26="CODEVASF",VLOOKUP(C26,'CPU CODEVASF'!E:I,5,FALSE),VLOOKUP(C26,'SINTÉTICO SICRO'!A:D,4,FALSE)),6) -> 87.67 | J26: =TRUNC(_xlfn.IFS(F26="SERV",I26*(1+$L$5),F26="SERV DIF",I26*(1+$L$6),F26="FORN",I26*(1+$L$7)),2) -> 107.01 | K26: 1749016.5 | L26: 2134849.5 | M26: 0.08365961889 | N26: PAVIMENTAÇÃO
B27: 5.5 | C27: 4011318 | D27: SICRO | E27: =VLOOKUP(C27,'SINTÉTICO SICRO'!A:D,2,0) -> Base ou sub-base estabilizada granulometricamente com mistura solo brita (70% - 30%) em usina com material de jazida e brita comercial - 100% Proctor modificado | F27: SERV | G27: m³ | H27: ='Memória de Cálculo'!H74 -> 19950 | I27: =ROUND(IF(D27="CODEVASF",VLOOKUP(C27,'CPU CODEVASF'!E:I,5,FALSE),VLOOKUP(C27,'SINTÉTICO SICRO'!A:D,4,FALSE)),6) -> 87.67 | J27: =TRUNC(_xlfn.IFS(F27="SERV",I27*(1+$L$5),F27="SERV DIF",I27*(1+$L$6),F27="FORN",I27*(1+$L$7)),2) -> 107.01 | K27: 1749016.5 | L27: 2134849.5 | M27: 0.08365961889 | N27: PAVIMENTAÇÃO
B28: 5.6 | C28: 4011209 | D28: SICRO | E28: =VLOOKUP(C28,'SINTÉTICO SICRO'!A:D,2,0) -> Regularização do subleito - 100% Proctor intermediário | F28: SERV | G28: m² | H28: ='Memória de Cálculo'!H80 -> 133000 | I28: =ROUND(IF(D28="CODEVASF",VLOOKUP(C28,'CPU CODEVASF'!E:I,5,FALSE),VLOOKUP(C28,'SINTÉTICO SICRO'!A:D,4,FALSE)),6) -> 1.59 | J28: =TRUNC(_xlfn.IFS(F28="SERV",I28*(1+$L$5),F28="SERV DIF",I28*(1+$L$6),F28="FORN",I28*(1+$L$7)),2) -> 1.94 | K28: 211470 | L28: 258020 | M28: 0.01011118342 | N28: PAVIMENTAÇÃO
B29: 6 | E29: AQUISIÇÃO E TRANSPORTE DO MATERIAL BETUMINOSO | K29: =SUM(K30:K33) -> 2583624.43 | L29: =SUM(L30:L33) -> 2971162.27 | M29: 0.1164327055 | P29: OBRAS COMPLEMENTARES | R29: =(SUMIF(N:N,"OBRAS COMPLEMENTARES",M:M)) -> 0
B30: 6.1 | C30: CPU-14 | D30: CODEVASF | E30: AQUISIÇÃO DE EAI | F30: FORN | G30: t | H30: =' CONSUMO DE MAT. B TOTAL'!P11 -> 159.6 | I30: =ROUND(IF(D30="CODEVASF",VLOOKUP(C30,'CPU CODEVASF'!E:I,5,FALSE),VLOOKUP(C30,'SINTÉTICO SICRO'!A:D,4,FALSE)),6) -> 2811.545353 | J30: =TRUNC(_xlfn.IFS(F30="SERV",I30*(1+$L$5),F30="SERV DIF",I30*(1+$L$6),F30="FORN",I30*(1+$L$7)),2) -> 3233.27 | K30: =TRUNC(H30*I30,2) -> 448722.63 | L30: =TRUNC(H30*J30,2) -> 516029.89 | M30: 0.02022197065 | N30: PAVIMENTAÇÃO | P30: MOBILIZAÇÃO | R30: =(SUMIF(N:N,"MOBILIZAÇÃO",M:M)) -> 0
B31: 6.2 | C31: CPU-18 | D31: CODEVASF | E31: TRANSPORTE DE EAI | F31: FORN | G31: t | H31: =H30 -> 159.6 | I31: =ROUND(IF(D31="CODEVASF",VLOOKUP(C31,'CPU CODEVASF'!E:I,5,FALSE),VLOOKUP(C31,'SINTÉTICO SICRO'!A:D,4,FALSE)),6) -> 1388.146692 | J31: =TRUNC(_xlfn.IFS(F31="SERV",I31*(1+$L$5),F31="SERV DIF",I31*(1+$L$6),F31="FORN",I31*(1+$L$7)),2) -> 1596.36 | K31: 221548.21 | L31: 254779.05 | M31: 0.009984178381 | N31: PAVIMENTAÇÃO | P31: INCC | Q31: =(SUMIF(N:N,"INCC",L:L))/$L$59 -> 0.2321781652 | R31: =(SUMIF(N:N,"INCC",L:L)) -> 5924787.21
B32: 6.3 | C32: CPU-15 | D32: CODEVASF | E32: AQUISIÇÃO DE EMULSÃO ASFÁLTICA RR-2C | F32: FORN | G32: t | H32: =' CONSUMO DE MAT. B TOTAL'!P13+' CONSUMO DE MAT. B TOTAL'!P15+' CONSUMO DE MAT. B TOTAL'!P17 -> 399 | I32: =ROUND(IF(D32="CODEVASF",VLOOKUP(C32,'CPU CODEVASF'!E:I,5,FALSE),VLOOKUP(C32,'SINTÉTICO SICRO'!A:D,4,FALSE)),6) -> 3778.762422 | J32: =TRUNC(_xlfn.IFS(F32="SERV",I32*(1+$L$5),F32="SERV DIF",I32*(1+$L$6),F32="FORN",I32*(1+$L$7)),2) -> 4345.57 | K32: 1507726.2 | L32: 1733882.43 | M32: 0.0679466835 | N32: PAVIMENTAÇÃO
B33: 6.4 | C33: CPU-19 | D33: CODEVASF | E33: TRANSPORTE RR-2C | F33: FORN | G33: t | H33: =H32 -> 399 | I33: =ROUND(IF(D33="CODEVASF",VLOOKUP(C33,'CPU CODEVASF'!E:I,5,FALSE),VLOOKUP(C33,'SINTÉTICO SICRO'!A:D,4,FALSE)),6) -> 1016.61 | J33: =TRUNC(_xlfn.IFS(F33="SERV",I33*(1+$L$5),F33="SERV DIF",I33*(1+$L$6),F33="FORN",I33*(1+$L$7)),2) -> 1169.1 | K33: 405627.39 | L33: 466470.9 | M33: 0.01827987299 | N33: PAVIMENTAÇÃO
B34: 6 | E34: SINALIZAÇÃO | K34: =SUM(K35:K38) -> 181975.92 | L34: =SUM(L35:L38) -> 222088.53 | M34: 0.008703115503
B35: 6.1 | C35: 5213440 | D35: SICRO | E35: Placa de regulamentação em aço D = 0,60 m - película retrorrefletiva tipo I + SI - fornecimento e implantação | F35: SERV | G35: und | H35: ='Memória de Cálculo'!H87 -> 57 | I35: =ROUND(IF(D35="CODEVASF",VLOOKUP(C35,'CPU CODEVASF'!E:I,5,FALSE),VLOOKUP(C35,'SINTÉTICO SICRO'!A:D,4,FALSE)),6) -> 285.72 | J35: =TRUNC(_xlfn.IFS(F35="SERV",I35*(1+$L$5),F35="SERV DIF",I35*(1+$L$6),F35="FORN",I35*(1+$L$7)),2) -> 348.74 | K35: =TRUNC(H35*I35,2) -> 16286.04 | L35: =TRUNC(H35*J35,2) -> 19878.18 | M35: 0.0007789780792 | N35: INCC
B36: 6.2 | C36: 5213464 | D36: SICRO | E36: Placa de advertência em aço, lado de 0,60 m - película retrorrefletiva tipo I + SI - fornecimento e implantação | F36: SERV | G36: und | H36: ='Memória de Cálculo'!H92 -> 57 | I36: =ROUND(IF(D36="CODEVASF",VLOOKUP(C36,'CPU CODEVASF'!E:I,5,FALSE),VLOOKUP(C36,'SINTÉTICO SICRO'!A:D,4,FALSE)),6) -> 285.76 | J36: =TRUNC(_xlfn.IFS(F36="SERV",I36*(1+$L$5),F36="SERV DIF",I36*(1+$L$6),F36="FORN",I36*(1+$L$7)),2) -> 348.79 | K36: 16288.32 | L36: 19881.03 | M36: 0.0007790897639 | N36: INCC
B37: 6.3 | C37: 5213863 | D37: SICRO | E37: Suporte metálico galvanizado para placa de advertência ou regulamentação - lado ou diâmetro de 0,60 m - fornecimento e implantação | F37: SERV | G37: und | H37: ='Memória de Cálculo'!H98 -> 114 | I37: =ROUND(IF(D37="CODEVASF",VLOOKUP(C37,'CPU CODEVASF'!E:I,5,FALSE),VLOOKUP(C37,'SINTÉTICO SICRO'!A:D,4,FALSE)),6) -> 458.94 | J37: =TRUNC(_xlfn.IFS(F37="SERV",I37*(1+$L$5),F37="SERV DIF",I37*(1+$L$6),F37="FORN",I37*(1+$L$7)),2) -> 560.18 | K37: 52319.16 | L37: 63860.52 | M37: 0.002502540233 | N37: INCC
B38: 6.4 | C38: 5213400 | D38: SICRO | E38: Pintura de faixa com tinta acrílica - espessura de 0,4 mm | F38: SERV | G38: m² | H38: ='Memória de Cálculo'!H103+'Memória de Cálculo'!H108 -> 4560 | I38: =ROUND(IF(D38="CODEVASF",VLOOKUP(C38,'CPU CODEVASF'!E:I,5,FALSE),VLOOKUP(C38,'SINTÉTICO SICRO'!A:D,4,FALSE)),6) -> 21.29 | J38: =TRUNC(_xlfn.IFS(F38="SERV",I38*(1+$L$5),F38="SERV DIF",I38*(1+$L$6),F38="FORN",I38*(1+$L$7)),2) -> 25.98 | K38: 97082.4 | L38: 118468.8 | M38: 0.004642507426 | N38: INCC
B39: 7 | E39: DRENAGEM | K39: =SUM(K40:K41) -> 1045091.2 | L39: =SUM(L40:L41) -> 1275477.6 | M39: 0.04998290039
B40: 7.1 | C40: 2003943 | D40: SICRO | E40: Meio-fio de concreto - MFC 03 moldado no local com extrusora e concreto usinado - areia e brita comerciais | F40: SERV | G40: m | H40: ='Memória de Cálculo'!H132 -> 38000 | I40: =ROUND(IF(D40="CODEVASF",VLOOKUP(C40,'CPU CODEVASF'!E:I,5,FALSE),VLOOKUP(C40,'SINTÉTICO SICRO'!A:D,4,FALSE)),6) -> 27.26 | J40: =TRUNC(_xlfn.IFS(F40="SERV",I40*(1+$L$5),F40="SERV DIF",I40*(1+$L$6),F40="FORN",I40*(1+$L$7)),2) -> 33.27 | K40: =TRUNC(H40*I40,2) -> 1035880 | L40: =TRUNC(H40*J40,2) -> 1264260 | M40: 0.04954330962 | N40: DRENAGEM
B41: 7.2 | C41: 4915724 | D41: SICRO | E41: Caiação mecanizada com fixador de cal | F41: SERV | G41: m² | H41: ='Memória de Cálculo'!H137 -> 4560 | I41: =ROUND(IF(D41="CODEVASF",VLOOKUP(C41,'CPU CODEVASF'!E:I,5,FALSE),VLOOKUP(C41,'SINTÉTICO SICRO'!A:D,4,FALSE)),6) -> 2.02 | J41: =TRUNC(_xlfn.IFS(F41="SERV",I41*(1+$L$5),F41="SERV DIF",I41*(1+$L$6),F41="FORN",I41*(1+$L$7)),2) -> 2.46 | K41: 9211.2 | L41: 11217.6 | M41: 0.0004395907725 | N41: INCC
B42: 8 | E42: SERVIÇOS COMPLEMENTARES | K42: =SUM(K43:K43) -> 29583.93 | L42: =SUM(L43:L43) -> 36100 | M42: =L42/$L$59 -> 0.001414672201
B43: 8.1 | C43: CPU-12 | D43: Codevasf | E43: Conserto de quebra no ramal na rua sem pavimento com fornecimento de material hidráulico | F43: SERV | G43: m | H43: ='Memória de Cálculo'!H144 -> 1900 | I43: =ROUND(IF(D43="CODEVASF",VLOOKUP(C43,'CPU CODEVASF'!E:I,5,FALSE),VLOOKUP(C43,'SINTÉTICO SICRO'!A:D,4,FALSE)),6) -> 15.57049 | J43: =TRUNC(_xlfn.IFS(F43="SERV",I43*(1+$L$5),F43="SERV DIF",I43*(1+$L$6),F43="FORN",I43*(1+$L$7)),2) -> 19 | K43: =TRUNC(H43*I43,2) -> 29583.93 | L43: =TRUNC(H43*J43,2) -> 36100 | M43: 0.001414672201 | N43: INCC
B44: 9 | E44: PROJETO EXECUTIVO | K44: =SUM(K45:K45) -> 463186.86 | L44: =SUM(L45:L45) -> 565250 | M44: 0.02215078842
B45: 9.1 | C45: CPU.7 | D45: Codevasf | E45: Projeto Executivo | F45: SERV | G45: m² | H45: ='Memória de Cálculo'!H151 -> 133000 | I45: =ROUND(('Projeto Executivo'!G29)/(1+$L$5),6) -> 3.482608 | J45: =TRUNC(_xlfn.IFS(F45="SERV",I45*(1+$L$5),F45="SERV DIF",I45*(1+$L$6),F45="FORN",I45*(1+$L$7)),2) -> 4.25 | K45: =TRUNC(H45*I45,2) -> 463186.86 | L45: =TRUNC(H45*J45,2) -> 565250 | M45: 0.02215078842 | N45: INCC
B46: 10 | E46: MOMENTO DE TRANSPORTE | K46: =SUM(K47:K58) -> 7554181.06 | L46: =SUM(L47:L58) -> 9143777.57 | M46: 0.3583226577
B47: 10.1 | C47: 5914359 | D47: SICRO | E47: =VLOOKUP(C47,'SINTÉTICO SICRO'!A:D,2,0) -> Transporte com caminhão basculante de 10 m³ - rodovia em leito natural | F47: SERV | G47: tkm | H47: =SUMIF('MOMENTO DE TRANSPORTE - PRINC'!A:A,'RESUMO MODULO TOTAL'!C47,'MOMENTO DE TRANSPORTE - PRINC'!K:K)+SUMIF('MOMENTO DE TRANSPORTE - AUX'!A:A,'RESUMO MODULO TOTAL'!C47,'MOMENTO DE TRANSPORTE - AUX'!K:K) -> 269891.5211 | I47: =ROUND(IF(D47="CODEVASF",VLOOKUP(C47,'CPU CODEVASF'!E:I,5,FALSE),VLOOKUP(C47,'SINTÉTICO SICRO'!A:D,4,FALSE)),6) -> 1.23 | J47: =TRUNC(_xlfn.IFS(F47="SERV",I47*(1+$L$5),F47="SERV DIF",I47*(1+$L$6),F47="FORN",I47*(1+$L$7)),2) -> 1.5 | K47: =TRUNC(H47*I47,2) -> 331966.57 | L47: =TRUNC(H47*J47,2) -> 404837.28 | M47: 0.01586459962 | N47: PAVIMENTAÇÃO
B48: 10.2 | C48: 5914374 | D48: SICRO | E48: =VLOOKUP(C48,'SINTÉTICO SICRO'!A:D,2,0) -> Transporte com caminhão basculante de 10 m³ - rodovia em revestimento primário | F48: SERV | G48: tkm | H48: =SUMIF('MOMENTO DE TRANSPORTE - PRINC'!A:A,'RESUMO MODULO TOTAL'!C48,'MOMENTO DE TRANSPORTE - PRINC'!K:K)+SUMIF('MOMENTO DE TRANSPORTE - AUX'!A:A,'RESUMO MODULO TOTAL'!C48,'MOMENTO DE TRANSPORTE - AUX'!K:K) -> 361452.6816 | I48: =ROUND(IF(D48="CODEVASF",VLOOKUP(C48,'CPU CODEVASF'!E:I,5,FALSE),VLOOKUP(C48,'SINTÉTICO SICRO'!A:D,4,FALSE)),6) -> 0.99 | J48: =TRUNC(_xlfn.IFS(F48="SERV",I48*(1+$L$5),F48="SERV DIF",I48*(1+$L$6),F48="FORN",I48*(1+$L$7)),2) -> 1.2 | K48: 357838.15 | L48: 433743.21 | M48: 0.01699735351 | N48: PAVIMENTAÇÃO
B49: 10.3 | C49: 5914389 | D49: SICRO | E49: =VLOOKUP(C49,'SINTÉTICO SICRO'!A:D,2,0) -> Transporte com caminhão basculante de 10 m³ - rodovia pavimentada | F49: SERV | G49: tkm | H49: =SUMIF('MOMENTO DE TRANSPORTE - PRINC'!A:A,'RESUMO MODULO TOTAL'!C49,'MOMENTO DE TRANSPORTE - PRINC'!K:K)+SUMIF('MOMENTO DE TRANSPORTE - AUX'!A:A,'RESUMO MODULO TOTAL'!C49,'MOMENTO DE TRANSPORTE - AUX'!K:K) -> 8399720.105 | I49: =ROUND(IF(D49="CODEVASF",VLOOKUP(C49,'CPU CODEVASF'!E:I,5,FALSE),VLOOKUP(C49,'SINTÉTICO SICRO'!A:D,4,FALSE)),6) -> 0.81 | J49: =TRUNC(_xlfn.IFS(F49="SERV",I49*(1+$L$5),F49="SERV DIF",I49*(1+$L$6),F49="FORN",I49*(1+$L$7)),2) -> 0.98 | K49: =TRUNC(H49*I49,2) -> 6803773.28 | L49: =TRUNC(H49*J49,2) -> 8231725.7 | M49: 0.3225815379 | N49: PAVIMENTAÇÃO
B50: 10.4 | C50: 5914314 | D50: SICRO | E50: =VLOOKUP(C50,'SINTÉTICO SICRO'!A:D,2,0) -> Transporte com caminhão basculante de 6 m³ - rodovia em leito natural | F50: SERV | G50: tkm | H50: =SUMIF('MOMENTO DE TRANSPORTE - PRINC'!A:A,'RESUMO MODULO TOTAL'!C50,'MOMENTO DE TRANSPORTE - PRINC'!K:K)+SUMIF('MOMENTO DE TRANSPORTE - AUX'!A:A,'RESUMO MODULO TOTAL'!C50,'MOMENTO DE TRANSPORTE - AUX'!K:K) -> 578.55 | I50: =ROUND(IF(D50="CODEVASF",VLOOKUP(C50,'CPU CODEVASF'!E:I,5,FALSE),VLOOKUP(C50,'SINTÉTICO SICRO'!A:D,4,FALSE)),6) -> 1.31 | J50: =TRUNC(_xlfn.IFS(F50="SERV",I50*(1+$L$5),F50="SERV DIF",I50*(1+$L$6),F50="FORN",I50*(1+$L$7)),2) -> 1.59 | K50: 757.9 | L50: 919.89 | M50: 3.604827732e-05 | N50: PAVIMENTAÇÃO
B51: 10.5 | C51: 5914329 | D51: SICRO | E51: =VLOOKUP(C51,'SINTÉTICO SICRO'!A:D,2,0) -> Transporte com caminhão basculante de 6 m³ - rodovia em revestimento primário | F51: SERV | G51: tkm | H51: =SUMIF('MOMENTO DE TRANSPORTE - PRINC'!A:A,'RESUMO MODULO TOTAL'!C51,'MOMENTO DE TRANSPORTE - PRINC'!K:K)+SUMIF('MOMENTO DE TRANSPORTE - AUX'!A:A,'RESUMO MODULO TOTAL'!C51,'MOMENTO DE TRANSPORTE - AUX'!K:K) -> 578.55 | I51: =ROUND(IF(D51="CODEVASF",VLOOKUP(C51,'CPU CODEVASF'!E:I,5,FALSE),VLOOKUP(C51,'SINTÉTICO SICRO'!A:D,4,FALSE)),6) -> 1.05 | J51: =TRUNC(_xlfn.IFS(F51="SERV",I51*(1+$L$5),F51="SERV DIF",I51*(1+$L$6),F51="FORN",I51*(1+$L$7)),2) -> 1.28 | K51: 607.47 | L51: 740.54 | M51: 2.901998205e-05 | N51: PAVIMENTAÇÃO
B52: 10.6 | C52: 5914344 | D52: SICRO | E52: =VLOOKUP(C52,'SINTÉTICO SICRO'!A:D,2,0) -> Transporte com caminhão basculante de 6 m³ - rodovia pavimentada | F52: SERV | G52: tkm | H52: =SUMIF('MOMENTO DE TRANSPORTE - PRINC'!A:A,'RESUMO MODULO TOTAL'!C52,'MOMENTO DE TRANSPORTE - PRINC'!K:K)+SUMIF('MOMENTO DE TRANSPORTE - AUX'!A:A,'RESUMO MODULO TOTAL'!C52,'MOMENTO DE TRANSPORTE - AUX'!K:K) -> 4628.4 | I52: =ROUND(IF(D52="CODEVASF",VLOOKUP(C52,'CPU CODEVASF'!E:I,5,FALSE),VLOOKUP(C52,'SINTÉTICO SICRO'!A:D,4,FALSE)),6) -> 0.86 | J52: =TRUNC(_xlfn.IFS(F52="SERV",I52*(1+$L$5),F52="SERV DIF",I52*(1+$L$6),F52="FORN",I52*(1+$L$7)),2) -> 1.04 | K52: 3980.42 | L52: 4813.53 | M52: 0.0001886306671 | N52: PAVIMENTAÇÃO
B53: 10.7 | C53: 5914449 | D53: SICRO | E53: =VLOOKUP(C53,'SINTÉTICO SICRO'!A:D,2,0) -> Transporte com caminhão carroceria de 15 t - rodovia em leito natural | F53: SERV | G53: tkm | H53: =SUMIF('MOMENTO DE TRANSPORTE - PRINC'!A:A,'RESUMO MODULO TOTAL'!C53,'MOMENTO DE TRANSPORTE - PRINC'!K:K)+SUMIF('MOMENTO DE TRANSPORTE - AUX'!A:A,'RESUMO MODULO TOTAL'!C53,'MOMENTO DE TRANSPORTE - AUX'!K:K) -> 974.68024 | I53: =ROUND(IF(D53="CODEVASF",VLOOKUP(C53,'CPU CODEVASF'!E:I,5,FALSE),VLOOKUP(C53,'SINTÉTICO SICRO'!A:D,4,FALSE)),6) -> 1.09 | J53: =TRUNC(_xlfn.IFS(F53="SERV",I53*(1+$L$5),F53="SERV DIF",I53*(1+$L$6),F53="FORN",I53*(1+$L$7)),2) -> 1.33 | K53: 1062.4 | L53: 1296.32 | M53: 5.079966394e-05 | N53: PAVIMENTAÇÃO
B54: 10.8 | C54: 5914464 | D54: SICRO | E54: =VLOOKUP(C54,'SINTÉTICO SICRO'!A:D,2,0) -> Transporte com caminhão carroceria de 15 t - rodovia em revestimento primário | F54: SERV | G54: tkm | H54: =SUMIF('MOMENTO DE TRANSPORTE - PRINC'!A:A,'RESUMO MODULO TOTAL'!C54,'MOMENTO DE TRANSPORTE - PRINC'!K:K)+SUMIF('MOMENTO DE TRANSPORTE - AUX'!A:A,'RESUMO MODULO TOTAL'!C54,'MOMENTO DE TRANSPORTE - AUX'!K:K) -> 1462.02036 | I54: =ROUND(IF(D54="CODEVASF",VLOOKUP(C54,'CPU CODEVASF'!E:I,5,FALSE),VLOOKUP(C54,'SINTÉTICO SICRO'!A:D,4,FALSE)),6) -> 0.88 | J54: =TRUNC(_xlfn.IFS(F54="SERV",I54*(1+$L$5),F54="SERV DIF",I54*(1+$L$6),F54="FORN",I54*(1+$L$7)),2) -> 1.07 | K54: =TRUNC(H54*I54,2) -> 1286.57 | L54: =TRUNC(H54*J54,2) -> 1564.36 | M54: 6.130350706e-05 | N54: PAVIMENTAÇÃO
B55: 10.9 | C55: 5914479 | D55: SICRO | E55: =VLOOKUP(C55,'SINTÉTICO SICRO'!A:D,2,0) -> Transporte com caminhão carroceria de 15 t - rodovia pavimentada | F55: SERV | G55: tkm | H55: =SUMIF('MOMENTO DE TRANSPORTE - PRINC'!A:A,'RESUMO MODULO TOTAL'!C55,'MOMENTO DE TRANSPORTE - PRINC'!K:K)+SUMIF('MOMENTO DE TRANSPORTE - AUX'!A:A,'RESUMO MODULO TOTAL'!C55,'MOMENTO DE TRANSPORTE - AUX'!K:K) -> 31189.76768 | I55: =ROUND(IF(D55="CODEVASF",VLOOKUP(C55,'CPU CODEVASF'!E:I,5,FALSE),VLOOKUP(C55,'SINTÉTICO SICRO'!A:D,4,FALSE)),6) -> 0.72 | J55: =TRUNC(_xlfn.IFS(F55="SERV",I55*(1+$L$5),F55="SERV DIF",I55*(1+$L$6),F55="FORN",I55*(1+$L$7)),2) -> 0.87 | K55: 22456.63 | L55: 27135.09 | M55: 0.001063358934 | N55: PAVIMENTAÇÃO
B56: 10.10 | C56: 5914539 | D56: SICRO | E56: =VLOOKUP(C56,'SINTÉTICO SICRO'!A:D,2,0) -> Transporte com caminhão betoneira - rodovia em leito natural | F56: SERV | G56: tkm | H56: =SUMIF('MOMENTO DE TRANSPORTE - PRINC'!A:A,'RESUMO MODULO TOTAL'!C56,'MOMENTO DE TRANSPORTE - PRINC'!K:K)+SUMIF('MOMENTO DE TRANSPORTE - AUX'!A:A,'RESUMO MODULO TOTAL'!C56,'MOMENTO DE TRANSPORTE - AUX'!K:K) -> 3830.4 | I56: =ROUND(IF(D56="CODEVASF",VLOOKUP(C56,'CPU CODEVASF'!E:I,5,FALSE),VLOOKUP(C56,'SINTÉTICO SICRO'!A:D,4,FALSE)),6) -> 1.13 | J56: =TRUNC(_xlfn.IFS(F56="SERV",I56*(1+$L$5),F56="SERV DIF",I56*(1+$L$6),F56="FORN",I56*(1+$L$7)),2) -> 1.37 | K56: 4328.35 | L56: 5247.64 | M56: 0.0002056423942 | N56: PAVIMENTAÇÃO
B57: 10.11 | C57: 5914554 | D57: SICRO | E57: =VLOOKUP(C57,'SINTÉTICO SICRO'!A:D,2,0) -> Transporte com caminhão betoneira - rodovia em revestimento primário | F57: SERV | G57: tkm | H57: =SUMIF('MOMENTO DE TRANSPORTE - PRINC'!A:A,'RESUMO MODULO TOTAL'!C57,'MOMENTO DE TRANSPORTE - PRINC'!K:K)+SUMIF('MOMENTO DE TRANSPORTE - AUX'!A:A,'RESUMO MODULO TOTAL'!C57,'MOMENTO DE TRANSPORTE - AUX'!K:K) -> 3830.4 | I57: =ROUND(IF(D57="CODEVASF",VLOOKUP(C57,'CPU CODEVASF'!E:I,5,FALSE),VLOOKUP(C57,'SINTÉTICO SICRO'!A:D,4,FALSE)),6) -> 0.9 | J57: =TRUNC(_xlfn.IFS(F57="SERV",I57*(1+$L$5),F57="SERV DIF",I57*(1+$L$6),F57="FORN",I57*(1+$L$7)),2) -> 1.09 | K57: 3447.36 | L57: 4175.13 | M57: 0.000163613306 | N57: PAVIMENTAÇÃO
B58: 10.12 | C58: 5914569 | D58: SICRO | E58: =VLOOKUP(C58,'SINTÉTICO SICRO'!A:D,2,0) -> Transporte com caminhão betoneira - rodovia pavimentada | F58: SERV | G58: tkm | H58: =SUMIF('MOMENTO DE TRANSPORTE - PRINC'!A:A,'RESUMO MODULO TOTAL'!C58,'MOMENTO DE TRANSPORTE - PRINC'!K:K)+SUMIF('MOMENTO DE TRANSPORTE - AUX'!A:A,'RESUMO MODULO TOTAL'!C58,'MOMENTO DE TRANSPORTE - AUX'!K:K) -> 30643.2 | I58: =ROUND(IF(D58="CODEVASF",VLOOKUP(C58,'CPU CODEVASF'!E:I,5,FALSE),VLOOKUP(C58,'SINTÉTICO SICRO'!A:D,4,FALSE)),6) -> 0.74 | J58: =TRUNC(_xlfn.IFS(F58="SERV",I58*(1+$L$5),F58="SERV DIF",I58*(1+$L$6),F58="FORN",I58*(1+$L$7)),2) -> 0.9 | K58: 22675.96 | L58: 27578.88 | M58: 0.001080749997 | N58: PAVIMENTAÇÃO
B59: TOTAL GERAL DA OBRA COM BDI | K59: =SUM(K10,K13,K17,K19,K22,K34,K39,K42,K44,K46) -> 18538295.39 | L59: =SUM(L10,L13,L17,L19,L22,L29,L34,L39,L42,L44,L46) -> 25518279.05
B62: SERVIÇOS DE IMPLANTAÇÃO DE PAVIMENTAÇÃO EM TRATAMENTO SUPERFICIAL DUPLO (TSD), EM VIAS URBANAS E RURAIS INSERIDAS NA ÁREA DE ATUAÇÃO DA CODEVASF, NO ESTADO DO CEARÁ

Sheet CRONOGRAMA TOTAL
A2: ='RESUMO MODULO TOTAL'!B62 -> SERVIÇOS DE IMPLANTAÇÃO DE PAVIMENTAÇÃO EM TRATAMENTO SUPERFICIAL DUPLO (TSD), EM VIAS URBANAS E RURAIS INSERIDAS NA ÁREA DE ATUAÇÃO DA CODEVASF, NO ESTADO DO CEARÁ
A3: Cronograma Físico e Financeiro
A4: Item | B4: Descrição | C4: Total Por Etapa | D4: 30 DIAS | E4: 60 DIAS | F4: 90 DIAS | G4: 120 DIAS | H4: 150 DIAS | I4: 180 DIAS | J4: 210 DIAS | K4: 240 DIAS | L4: 270 DIAS | M4: 300 DIAS | N4: 330 DIAS | O4: 360 DIAS
A5: 1 | B5: ='RESUMO MODULO TOTAL'!E10 -> SERVIÇOS PRELIMINARES | C5: =SUM(D5:O5) -> 1 | D5: 0.5 | O5: 0.5
C6: ='RESUMO MODULO TOTAL'!L10 -> 1896.96 | D6: =$C$6*D5 -> 948.48 | O6: =$C$6*O5 -> 948.48 | P6: =SUM(D6:O6) -> 1896.96 | Q6: =IF(P6=C6,"OK","") -> OK
A7: 2 | B7: ='RESUMO MODULO TOTAL'!E13 -> INSTALAÇÃO DE CANTEIRO | C7: =SUM(D7:O7) -> 1 | D7: 0.1 | E7: 0.5 | F7: 0.4
C8: ='RESUMO MODULO TOTAL'!L13 -> 3771045.71 | D8: =$C$8*D7 -> 377104.571 | E8: =$C$8*E7 -> 1885522.855 | F8: 1508418.284 | G8: 0 | H8: 0 | I8: 0 | J8: 0 | K8: 0 | L8: 0 | M8: 0 | N8: 0 | O8: 0 | P8: =SUM(D8:O8) -> 3771045.71 | Q8: =IF(P8=C8,"OK","") -> OK
A9: 3 | B9: ='RESUMO MODULO TOTAL'!E17 -> ADMINISTRAÇÃO LOCAL DA OBRA | C9: =SUM(D9:O9) -> 1 | D9: =(D6+D8+D12+D14+D16+D18+D20+D22+D24+D26)/($O$33-$C$10) -> 0.03897770828 | E9: 0.0779106563 | F9: 0.1057728897 | G9: 0.04344436466 | H9: 0.04419019882 | I9: 0.1225647282 | J9: 0.09726578044 | K9: 0.09726578044 | L9: 0.09726578044 | M9: 0.09726578044 | N9: 0.1236174358 | O9: =(O6+O8+O12+O14+O16+O18+O20+O22+O24+O26)/($O$33-$C$10) -> 0.05445889642
C10: =SUM('RESUMO MODULO TOTAL'!L17) -> 1317188.41 | D10: =$C$10*D9 -> 51340.98559 | E10: =$C$10*E9 -> 102623.0135 | F10: =$C$10*F9 -> 139322.8244 | G10: 57224.41361 | H10: 58206.81772 | I10: 161440.8395 | J10: 128117.3587 | K10: 128117.3587 | L10: 128117.3587 | M10: 128117.3587 | N10: 162827.4537 | O10: 71732.62719 | P10: =SUM(D10:O10) -> 1317188.41 | Q10: =IF(P10=C10,"OK","") -> OK
A11: 4 | B11: ='RESUMO MODULO TOTAL'!E19 -> TERRAPLANAGEM | C11: =SUM(D11:O11) -> 1 | F11: =1/4 -> 0.25 | G11: =1/4 -> 0.25 | H11: =1/4 -> 0.25 | I11: =1/4 -> 0.25
C12: ='RESUMO MODULO TOTAL'!L19 -> 548093 | D12: =$C$14*D11 -> 0 | E12: =$C$12*E11 -> 0 | F12: 137023.25 | G12: 137023.25 | H12: 137023.25 | I12: 137023.25 | J12: 0 | K12: 0 | L12: 0 | M12: 0 | N12: 0 | O12: 0 | P12: =SUM(D12:O12) -> 548093 | Q12: =IF(P12=C12,"OK","") -> OK
A13: 5 | B13: ='RESUMO MODULO TOTAL'!E22 -> PAVIMENTAÇÃO | C13: =SUM(D13:O13) -> 1 | I13: =1/6 -> 0.1666666667 | J13: =1/6 -> 0.1666666667 | K13: 0.1666666667 | L13: 0.1666666667 | M13: 0.1666666667 | N13: 0.1666666667
C14: ='RESUMO MODULO TOTAL'!L22 -> 5666199 | D14: =$C$14*D13 -> 0 | E14: =$C$14*E13 -> 0 | F14: 0 | G14: 0 | H14: 0 | I14: 944366.5 | J14: 944366.5 | K14: 944366.5 | L14: 944366.5 | M14: 944366.5 | N14: 944366.5 | O14: 0 | P14: =SUM(D14:O14) -> 5666199 | Q14: =IF(P14=C14,"OK","") -> OK
A15: 6 | B15: ='RESUMO MODULO TOTAL'!E29 -> AQUISIÇÃO E TRANSPORTE DO MATERIAL BETUMINOSO | C15: =SUM(D15:O15) -> 1 | I15: =1/6 -> 0.1666666667 | J15: 0.1666666667 | K15: 0.1666666667 | L15: 0.1666666667 | M15: 0.1666666667 | N15: 0.1666666667
C16: ='RESUMO MODULO TOTAL'!L29 -> 2971162.27 | D16: =$C$16*D15 -> 0 | E16: =$C$16*E15 -> 0 | F16: 0 | G16: 0 | H16: 0 | I16: 495193.7117 | J16: 495193.7117 | K16: 495193.7117 | L16: 495193.7117 | M16: 495193.7117 | N16: 495193.7117 | O16: 0 | P16: =SUM(D16:O16) -> 2971162.27 | Q16: =IF(P16=C16,"OK","") -> OK
A17: 7 | B17: ='RESUMO MODULO TOTAL'!E34 -> SINALIZAÇÃO | C17: =SUM(D17:O17) -> 1 | O17: 1
C18: ='RESUMO MODULO TOTAL'!L34 -> 222088.53 | D18: =$C$18*D17 -> 0 | E18: =$C$18*E17 -> 0 | F18: 0 | G18: 0 | H18: 0 | I18: 0 | J18: 0 | K18: 0 | L18: 0 | M18: 0 | N18: 0 | O18: 222088.53 | P18: =SUM(D18:O18) -> 222088.53 | Q18: =IF(P18=C18,"OK","") -> OK
A19: 8 | B19: ='RESUMO MODULO TOTAL'!E39 -> DRENAGEM | C19: =SUM(D19:O19) -> 1 | N19: 0.5 | O19: 0.5
C20: ='RESUMO MODULO TOTAL'!L39 -> 1275477.6 | D20: =$C$20*D19 -> 0 | E20: =$C$20*E19 -> 0 | F20: 0 | G20: 0 | H20: 0 | I20: 0 | J20: 0 | K20: 0 | L20: 0 | M20: 0 | N20: 637738.8 | O20: 637738.8 | P20: =SUM(D20:O20) -> 1275477.6 | Q20: =IF(P20=C20,"OK","") -> OK
A21: 9 | B21: ='RESUMO MODULO TOTAL'!E42 -> SERVIÇOS COMPLEMENTARES | C21: =SUM(D21:O21) -> 1 | H21: 0.5 | I21: 0.5
C22: ='RESUMO MODULO TOTAL'!L42 -> 36100 | D22: =$C$22*D21 -> 0 | E22: =$C$22*E21 -> 0 | F22: 0 | G22: 0 | H22: 18050 | I22: 18050 | J22: 0 | K22: 0 | L22: 0 | M22: 0 | N22: 0 | O22: 0 | P22: =SUM(D22:O22) -> 36100 | Q22: =IF(P22=C22,"OK","") -> OK
A23: 10 | B23: ='RESUMO MODULO TOTAL'!E44 -> PROJETO EXECUTIVO | C23: =SUM(D23:O23) -> 1 | D23: 1
C24: ='RESUMO MODULO TOTAL'!L44 -> 565250 | D24: =$C$24*D23 -> 565250 | E24: =$C$24*E23 -> 0 | F24: 0 | G24: 0 | H24: 0 | I24: 0 | J24: 0 | K24: 0 | L24: 0 | M24: 0 | N24: 0 | O24: 0 | P24: =SUM(D24:O24) -> 565250 | Q24: =IF(P24=C24,"OK","") -> OK
A25: 11 | B25: ='RESUMO MODULO TOTAL'!E46 -> MOMENTO DE TRANSPORTE | C25: =SUM(D25:O25) -> 1 | F25: 0.1 | G25: 0.1 | H25: 0.1 | I25: 0.15 | J25: 0.1 | K25: 0.1 | L25: 0.1 | M25: 0.1 | N25: 0.1 | O25: 0.05
C26: ='RESUMO MODULO TOTAL'!L46 -> 9143777.57 | D26: =$C$26*D25 -> 0 | E26: =$C$26*E25 -> 0 | F26: 914377.757 | G26: 914377.757 | H26: 914377.757 | I26: 1371566.636 | J26: 914377.757 | K26: 914377.757 | L26: 914377.757 | M26: 914377.757 | N26: 914377.757 | O26: 457188.8785 | P26: =SUM(D26:O26) -> 9143777.57 | Q26: =IF(P26=C26,"OK","") -> OK
A28: Porcentagem | D28: =SUM(D6+D8+D10+D12+D14+D16+D18+D20+D22+D24+D26)/$O$33 -> 0.03897770828 | E28: =SUM(E6+E8+E10+E12+E14+E16+E18+E20+E22+E24+E26)/$O$33 -> 0.0779106563 | F28: 0.1057728897 | G28: 0.04344436466 | H28: 0.04419019882 | I28: 0.1225647282 | J28: 0.09726578044 | K28: 0.09726578044 | L28: 0.09726578044 | M28: 0.09726578044 | N28: 0.1236174358 | O28: =SUM(O6+O8+O10+O12+O14+O16+O18+O20+O22+O24+O26)/$O$33 -> 0.05445889642
A29: Custo | D29: =$O$33*D28 -> 994644.0366 | E29: =$O$33*E28 -> 1988145.868 | F29: =$O$33*F28 -> 2699142.115 | G29: 1108625.421 | H29: 1127657.825 | I29: 3127640.937 | J29: 2482055.327 | K29: 2482055.327 | L29: 2482055.327 | M29: 2482055.327 | N29: 3154504.222 | O29: 1389697.316
A30: Porcentagem Acumulado | D30: =D28 -> 0.03897770828 | E30: =D30+E28 -> 0.1168883646 | F30: =E30+F28 -> 0.2226612543 | G30: 0.2661056189 | H30: 0.3102958178 | I30: 0.432860546 | J30: 0.5301263264 | K30: 0.6273921069 | L30: 0.7246578873 | M30: 0.8219236678 | N30: 0.9455411036 | O30: =N30+O28 -> 1
A31: Custo Acumulado | D31: =D29 -> 994644.0366 | E31: =D31+E29 -> 2982789.905 | F31: 5681932.021 | G31: 6790557.441 | H31: 7918215.266 | I31: 11045856.2 | J31: 13527911.53 | K31: 16009966.86 | L31: 18492022.18 | M31: 20974077.51 | N31: 24128581.73 | O31: =SUM(N31+O29) -> 25518279.05
D33: Total Geral | N33: R$ | O33: =SUM(C6+C8+C10+C12+C14+C16+C18+C20+C22+C24+C26) -> 25518279.05
O36: =O31-O33 -> 0

Sheet MOMENTO DE TRANSPORTE - PRINC
B5: ='RESUMO MODULO TOTAL'!B62 -> SERVIÇOS DE IMPLANTAÇÃO DE PAVIMENTAÇÃO EM TRATAMENTO SUPERFICIAL DUPLO (TSD), EM VIAS URBANAS E RURAIS INSERIDAS NA ÁREA DE ATUAÇÃO DA CODEVASF, NO ESTADO DO CEARÁ
B6: DATA BASE: | C6: ='RESUMO MODULO TOTAL'!C6 -> 2025-07-01
C8: RESUMO DO TRANSPORTE PRINCIPAL
B9: CODIGO | C9: DESCRIÇÃO | D9: TKM
B10: 5914359 | C10: =VLOOKUP(B10,'SINTÉTICO SICRO'!$A:$D,2,0) -> Transporte com caminhão basculante de 10 m³ - rodovia em leito natural | D10: =ROUND(SUMIF('MOMENTO DE TRANSPORTE - PRINC'!A:A,B10,'MOMENTO DE TRANSPORTE - PRINC'!K:K),2) -> 86769.2
B11: 5914314 | C11: =VLOOKUP(B11,'SINTÉTICO SICRO'!$A:$D,2,0) -> Transporte com caminhão basculante de 6 m³ - rodovia em leito natural | D11: =ROUND(SUMIF('MOMENTO DE TRANSPORTE - PRINC'!A:A,B11,'MOMENTO DE TRANSPORTE - PRINC'!K:K),2) -> 578.55
B12: 5914329 | C12: =VLOOKUP(B12,'SINTÉTICO SICRO'!$A:$D,2,0) -> Transporte com caminhão basculante de 6 m³ - rodovia em revestimento primário | D12: =ROUND(SUMIF('MOMENTO DE TRANSPORTE - PRINC'!A:A,B12,'MOMENTO DE TRANSPORTE - PRINC'!K:K),2) -> 578.55
B13: 5914344 | C13: =VLOOKUP(B13,'SINTÉTICO SICRO'!$A:$D,2,0) -> Transporte com caminhão basculante de 6 m³ - rodovia pavimentada | D13: =ROUND(SUMIF('MOMENTO DE TRANSPORTE - PRINC'!A:A,B13,'MOMENTO DE TRANSPORTE - PRINC'!K:K),2) -> 4628.4
B14: 5914374 | C14: =VLOOKUP(B14,'SINTÉTICO SICRO'!$A:$D,2,0) -> Transporte com caminhão basculante de 10 m³ - rodovia em revestimento primário | D14: =ROUND(SUMIF('MOMENTO DE TRANSPORTE - PRINC'!A:A,B14,'MOMENTO DE TRANSPORTE - PRINC'!K:K),2) -> 86769.2
B15: 5914389 | C15: =VLOOKUP(B15,'SINTÉTICO SICRO'!$A:$D,2,0) -> Transporte com caminhão basculante de 10 m³ - rodovia pavimentada | D15: =ROUND(SUMIF('MOMENTO DE TRANSPORTE - PRINC'!A:A,B15,'MOMENTO DE TRANSPORTE - PRINC'!K:K),2) -> 694153.6
B16: 5914539 | C16: =VLOOKUP(B16,'SINTÉTICO SICRO'!$A:$D,2,0) -> Transporte com caminhão betoneira - rodovia em leito natural | D16: =ROUND(SUMIF('MOMENTO DE TRANSPORTE - PRINC'!A:A,B16,'MOMENTO DE TRANSPORTE - PRINC'!K:K),2) -> 3830.4
B17: 5914554 | C17: =VLOOKUP(B17,'SINTÉTICO SICRO'!$A:$D,2,0) -> Transporte com caminhão betoneira - rodovia em revestimento primário | D17: =ROUND(SUMIF('MOMENTO DE TRANSPORTE - PRINC'!A:A,B17,'MOMENTO DE TRANSPORTE - PRINC'!K:K),2) -> 3830.4
B18: 5914569 | C18: =VLOOKUP(B18,'SINTÉTICO SICRO'!$A:$D,2,0) -> Transporte com caminhão betoneira - rodovia pavimentada | D18: =ROUND(SUMIF('MOMENTO DE TRANSPORTE - PRINC'!A:A,B18,'MOMENTO DE TRANSPORTE - PRINC'!K:K),2) -> 30643.2
B20: TIPO (P, RP ou LN) | C20: DMT ESTIMADA (DISTRIBUIÇÃO DO ITEM NA PISTA
B21: P | C21: 10
B23: SISTEMA DE CUSTOS REFERENCIAIS DE OBRAS - SICRO
B24: Custo Unitário de Referência | I24: Quantitativo | K24: um
B25: 903808 | C25: =VLOOKUP(B25,'SINTÉTICO SICRO'!A:D,2,0) -> Instalação da usina misturadora de solos com capacidade de 300 t/h | I25: =SUMIF('RESUMO MODULO TOTAL'!C:C,B25,'RESUMO MODULO TOTAL'!H:H)*0.8 -> 15.2
B26: D - ATIVIDADES AUXILIARES | D26: Quantidade | E26: Unidade
B27: 3713608 | C27: =VLOOKUP(B27,'SINTÉTICO SICRO'!A:D,2,0) -> Cerca com 4 fios de arame farpado e mourão de madeira a cada 2,5 m e esticador a cada 50 m | D27: 302 | E27: m
B28: 5502986 | C28: =VLOOKUP(B28,'SINTÉTICO SICRO'!A:D,2,0) -> Expurgo de jazida | D28: 1402.5 | E28: m³
B29: 903845 | C29: =VLOOKUP(B29,'SINTÉTICO SICRO'!A:D,2,0) -> Lastro de brita comercial - espalhamento mecânico | D29: 110.12926 | E29: m³
B30: 5502985 | C30: =VLOOKUP(B30,'SINTÉTICO SICRO'!A:D,2,0) -> Limpeza mecanizada da camada vegetal | D30: 5610 | E30: m²
B31: 919012 | C31: =VLOOKUP(B31,'SINTÉTICO SICRO'!A:D,2,0) -> Montagem e desmontagem da usina misturadora de solos com capacidade de 300 t/h - inclusive construção e demolição de bases, rampas e depósitos de agregados | D31: 1 | E31: un
B32: 4011211 | C32: =VLOOKUP(B32,'SINTÉTICO SICRO'!A:D,2,0) -> Reforço do subleito com material de jazida - 100% Proctor intermediário | D32: 1122 | E32: m³
B33: 4011209 | C33: =VLOOKUP(B33,'SINTÉTICO SICRO'!A:D,2,0) -> Regularização do subleito - 100% Proctor intermediário | D33: 5610 | E33: m²
B35: F - MOMENTO DE TRANSPORTE | D35: Quantidade | E35: Unidade | F35: CÓDIGO TRANSPORTE
F36: LN | G36: RP | H36: P | I36: TIPO (P, RP ou LN) | J36: DMT ESTIMADA (km) | K36: QUANTITATIVO TOTAL DE TRANSPORTE (tkm)
B38: Obs.
B39: COMPOSIÇÕES PRINCIPAIS
B40: SISTEMA DE CUSTOS REFERENCIAIS DE OBRAS - SICRO
B41: Custo Unitário de Referência | E41: =$C$6 -> 2025-07-01 | I41: Quantitativo | K41: m²
B42: ='RESUMO MODULO TOTAL'!C23 -> 4915637 | C42: =VLOOKUP(B42,'SINTÉTICO SICRO'!$A$4:$D$1048576,2,0) -> Capa selante - areia comercial | I42: =(SUMIF('RESUMO MODULO TOTAL'!C:C,B42,'RESUMO MODULO TOTAL'!H:H))*0.8 -> 106400
B43: F - MOMENTO DE TRANSPORTE | D43: Quantidade | E43: Unidade | F43: CÓDIGO TRANSPORTE
F44: LN | G44: RP | H44: P | I44: TIPO (P, RP ou LN) | J44: DMT ESTIMADA (km) | K44: QUANTITATIVO TOTAL DE TRANSPORTE (tkm)
A45: =IF(I45="P",H45,IF(I45="RP",G45,IF(I45="LN",F45,""))) -> 5914344 | B45: M0028 | C45: Areia média - Caminhão basculante 6 m³ | D45: 0.00435 | E45: tkm | F45: 5914314 | G45: 5914329 | H45: 5914344 | I45: =$B$21 -> P | J45: =C21 -> 10 | K45: =IF(ISBLANK(J45),"",J45*D45)*I42 -> 4628.4
A46: =IF(I46="P",H46,IF(I46="RP",G46,IF(I46="LN",F46,""))) -> 
B47: Obs.
B48: SISTEMA DE CUSTOS REFERENCIAIS DE OBRAS - SICRO
B49: Custo Unitário de Referência | E49: =$C$6 -> 2025-07-01 | I49: Quantitativo | K49: m²
B50: ='RESUMO MODULO TOTAL'!C24 -> 4011370 | C50: =VLOOKUP(B50,'SINTÉTICO SICRO'!$A$4:$D$1048576,2,0) -> Tratamento superficial duplo com emulsão - brita comercial | I50: =(SUMIF('RESUMO MODULO TOTAL'!C:C,B50,'RESUMO MODULO TOTAL'!H:H))*0.8 -> 106400 | L50: 4011370
B51: F - MOMENTO DE TRANSPORTE | D51: Quantidade | E51: Unidade | F51: CÓDIGO TRANSPORTE
F52: LN | G52: RP | H52: P | I52: TIPO (P, RP ou LN) | J52: DMT ESTIMADA (km) | K52: QUANTITATIVO TOTAL DE TRANSPORTE (tkm)
A53: =IF(I53="P",H53,IF(I53="RP",G53,IF(I53="LN",F53,""))) -> 5914389 | B53: M0005 | C53: Brita 0 - Caminhão basculante 10 m³ | D53: 0.011 | E53: tkm | F53: 5914359 | G53: 5914374 | H53: 5914389 | I53: =$B$21 -> P | J53: =C21 -> 10 | K53: =IF(ISBLANK(J53),"",J53*D53)*I50 -> 11704
A54: =IF(I54="P",H54,IF(I54="RP",G54,IF(I54="LN",F54,""))) -> 5914389 | B54: M0191 | C54: Brita 1 - Caminhão basculante 10 m³ | D54: 0.0225 | E54: tkm | F54: 5914359 | G54: 5914374 | H54: 5914389 | I54: =$B$21 -> P | J54: =C21 -> 10 | K54: =IF(ISBLANK(J54),"",J54*D54)*I50 -> 23940
A55: =IF(I55="P",H55,IF(I55="RP",G55,IF(I55="LN",F55,""))) -> 
B58: SISTEMA DE CUSTOS REFERENCIAIS DE OBRAS - SICRO
B59: Custo Unitário de Referência | E59: =$C$6 -> 2025-07-01 | I59: Quantitativo | K59: un
B60: ='RESUMO MODULO TOTAL'!C26 -> 4011318 | C60: =VLOOKUP(B60,'SINTÉTICO SICRO'!$A$4:$D$1048576,2,0) -> Base ou sub-base estabilizada granulometricamente com mistura solo brita (70% - 30%) em usina com material de jazida e brita comercial - 100% Proctor modificado | I60: =(SUMIF('RESUMO MODULO TOTAL'!C:C,B60,'RESUMO MODULO TOTAL'!H:H))*0.8 -> 31920
B61: D - ATIVIDADES AUXILIARES | D61: Quantidade | E61: Unidade
B62: 6416030 | C62: =VLOOKUP(B62,'SINTÉTICO SICRO'!$A$4:$D$1048576,2,0) -> Usinagem de solo brita (70% - 30%) com material de jazida e brita comercial em usina de 300 t/h | D62: 1 | E62: m³
B64: F - MOMENTO DE TRANSPORTE | D64: Quantidade | E64: Unidade | F64: CÓDIGO TRANSPORTE
F65: LN | G65: RP | H65: P | I65: TIPO (P, RP ou LN) | J65: DMT ESTIMADA (km) | K65: QUANTITATIVO TOTAL DE TRANSPORTE (tkm)
A66: 5914389 | B66: 6416030 | C66: =VLOOKUP(B66,'SINTÉTICO SICRO'!$A$4:$D$1048576,2,0) -> Usinagem de solo brita (70% - 30%) com material de jazida e brita comercial em usina de 300 t/h | D66: 2.063 | E66: tkm | F66: 5914359 | G66: 5914374 | H66: 5914389 | I66: =$B$21 -> P | J66: =$C$21 -> 10 | K66: =IF(ISBLANK(J66),"",J66*D66)*I60 -> 658509.6
B68: Obs.
B70: SISTEMA DE CUSTOS REFERENCIAIS DE OBRAS - SICRO
B71: Custo Unitário de Referência | I71: Quantitativo | K71: m
B72: 2003943 | C72: =VLOOKUP(B72,'SINTÉTICO SICRO'!A:D,2,0) -> Meio-fio de concreto - MFC 03 moldado no local com extrusora e concreto usinado - areia e brita comerciais | I72: =SUMIF('RESUMO MODULO TOTAL'!C:C,B72,'RESUMO MODULO TOTAL'!H:H)*0.8 -> 30400
B73: D - ATIVIDADES AUXILIARES | D73: Quantidade | E73: Unidade
B74: 1107928 | C74: =VLOOKUP(B74,'SINTÉTICO SICRO'!A:D,2,0) -> Concreto fck = 20 MPa - confecção em central dosadora de 30 m³/h - areia e brita comerciais | D74: 0.042 | E74: m³
B75: 2003842 | C75: =VLOOKUP(B75,'SINTÉTICO SICRO'!A:D,2,0) -> Enchimento de junta de concreto com argamassa asfáltica de densidade 1.700 kg/m³ - espessura de 1 cm | D75: 0.0595 | E75: kg
B76: 4805750 | C76: =VLOOKUP(B76,'SINTÉTICO SICRO'!A:D,2,0) -> Escavação manual em material de 1ª categoria na profundidade de até 1 m | D76: 0.03 | E76: m³
B78: F - MOMENTO DE TRANSPORTE | D78: Quantidade | E78: Unidade | F78: CÓDIGO TRANSPORTE
F79: LN | G79: RP | H79: P | I79: TIPO (P, RP ou LN) | J79: DMT ESTIMADA (km) | K79: QUANTITATIVO TOTAL DE TRANSPORTE (tkm)
A80: =IF(I80="P",H80,IF(I80="RP",G80,IF(I80="LN",F80,""))) -> 5914569 | B80: 1107928 | C80: =VLOOKUP(B80,'SINTÉTICO SICRO'!A:D,2,0) -> Concreto fck = 20 MPa - confecção em central dosadora de 30 m³/h - areia e brita comerciais | D80: 0.1008 | E80: tkm | F80: 5914539 | G80: 5914554 | H80: 5914569 | I80: =$B$21 -> P | J80: =C21 -> 10 | K80: =IF(ISBLANK(J80),"",J80*D80)*I72 -> 30643.2
B81: Obs.
B82: TIPO (P, RP ou LN) | C82: DMT ESTIMADA (DISTRIBUIÇÃO DO ITEM NA PISTA
B83: LN | C83: 10
B85: SISTEMA DE CUSTOS REFERENCIAIS DE OBRAS - SICRO
B86: Custo Unitário de Referência | I86: Quantitativo | K86: um
B87: 903808 | C87: =VLOOKUP(B87,'SINTÉTICO SICRO'!A:D,2,0) -> Instalação da usina misturadora de solos com capacidade de 300 t/h | I87: =SUMIF('RESUMO MODULO TOTAL'!C:C,B87,'RESUMO MODULO TOTAL'!H:H)*0.1 -> 1.9
B88: D - ATIVIDADES AUXILIARES | D88: Quantidade | E88: Unidade
B89: 3713608 | C89: =VLOOKUP(B89,'SINTÉTICO SICRO'!A:D,2,0) -> Cerca com 4 fios de arame farpado e mourão de madeira a cada 2,5 m e esticador a cada 50 m | D89: 302 | E89: m
B90: 5502986 | C90: =VLOOKUP(B90,'SINTÉTICO SICRO'!A:D,2,0) -> Expurgo de jazida | D90: 1402.5 | E90: m³
B91: 903845 | C91: =VLOOKUP(B91,'SINTÉTICO SICRO'!A:D,2,0) -> Lastro de brita comercial - espalhamento mecânico | D91: 110.12926 | E91: m³
B92: 5502985 | C92: =VLOOKUP(B92,'SINTÉTICO SICRO'!A:D,2,0) -> Limpeza mecanizada da camada vegetal | D92: 5610 | E92: m²
B93: 919012 | C93: =VLOOKUP(B93,'SINTÉTICO SICRO'!A:D,2,0) -> Montagem e desmontagem da usina misturadora de solos com capacidade de 300 t/h - inclusive construção e demolição de bases, rampas e depósitos de agregados | D93: 1 | E93: un
B94: 4011211 | C94: =VLOOKUP(B94,'SINTÉTICO SICRO'!A:D,2,0) -> Reforço do subleito com material de jazida - 100% Proctor intermediário | D94: 1122 | E94: m³
B95: 4011209 | C95: =VLOOKUP(B95,'SINTÉTICO SICRO'!A:D,2,0) -> Regularização do subleito - 100% Proctor intermediário | D95: 5610 | E95: m²
B97: F - MOMENTO DE TRANSPORTE | D97: Quantidade | E97: Unidade | F97: CÓDIGO TRANSPORTE
F98: LN | G98: RP | H98: P | I98: TIPO (P, RP ou LN) | J98: DMT ESTIMADA (km) | K98: QUANTITATIVO TOTAL DE TRANSPORTE (tkm)
B100: Obs.
B102: COMPOSIÇÕES PRINCIPAIS
B103: SISTEMA DE CUSTOS REFERENCIAIS DE OBRAS - SICRO
B104: Custo Unitário de Referência | E104: =$C$6 -> 2025-07-01 | I104: Quantitativo | K104: m²
B105: ='RESUMO MODULO TOTAL'!C23 -> 4915637 | C105: =VLOOKUP(B105,'SINTÉTICO SICRO'!$A$4:$D$1048576,2,0) -> Capa selante - areia comercial | I105: =(SUMIF('RESUMO MODULO TOTAL'!C:C,B105,'RESUMO MODULO TOTAL'!H:H))*0.1 -> 13300
B106: F - MOMENTO DE TRANSPORTE | D106: Quantidade | E106: Unidade | F106: CÓDIGO TRANSPORTE
F107: LN | G107: RP | H107: P | I107: TIPO (P, RP ou LN) | J107: DMT ESTIMADA (km) | K107: QUANTITATIVO TOTAL DE TRANSPORTE (tkm)
A108: =IF(I108="P",H108,IF(I108="RP",G108,IF(I108="LN",F108,""))) -> 5914314 | B108: M0028 | C108: Areia média - Caminhão basculante 6 m³ | D108: 0.00435 | E108: tkm | F108: 5914314 | G108: 5914329 | H108: 5914344 | I108: =$B$83 -> LN | J108: =C83 -> 10 | K108: =IF(ISBLANK(J108),"",J108*D108)*I105 -> 578.55
A109: =IF(I109="P",H109,IF(I109="RP",G109,IF(I109="LN",F109,""))) -> 
B110: Obs.
B111: SISTEMA DE CUSTOS REFERENCIAIS DE OBRAS - SICRO
B112: Custo Unitário de Referência | E112: =$C$6 -> 2025-07-01 | I112: Quantitativo | K112: m²
B113: ='RESUMO MODULO TOTAL'!C24 -> 4011370 | C113: =VLOOKUP(B113,'SINTÉTICO SICRO'!$A$4:$D$1048576,2,0) -> Tratamento superficial duplo com emulsão - brita comercial | I113: =(SUMIF('RESUMO MODULO TOTAL'!C:C,B113,'RESUMO MODULO TOTAL'!H:H))*0.1 -> 13300
B114: F - MOMENTO DE TRANSPORTE | D114: Quantidade | E114: Unidade | F114: CÓDIGO TRANSPORTE
F115: LN | G115: RP | H115: P | I115: TIPO (P, RP ou LN) | J115: DMT ESTIMADA (km) | K115: QUANTITATIVO TOTAL DE TRANSPORTE (tkm)
A116: =IF(I116="P",H116,IF(I116="RP",G116,IF(I116="LN",F116,""))) -> 5914359 | B116: M0005 | C116: Brita 0 - Caminhão basculante 10 m³ | D116: 0.011 | E116: tkm | F116: 5914359 | G116: 5914374 | H116: 5914389 | I116: =$B$83 -> LN | J116: =C83 -> 10 | K116: =IF(ISBLANK(J116),"",J116*D116)*I113 -> 1463
A117: =IF(I117="P",H117,IF(I117="RP",G117,IF(I117="LN",F117,""))) -> 5914359 | B117: M0191 | C117: Brita 1 - Caminhão basculante 10 m³ | D117: 0.0225 | E117: tkm | F117: 5914359 | G117: 5914374 | H117: 5914389 | I117: LN | J117: =C83 -> 10 | K117: =IF(ISBLANK(J117),"",J117*D117)*I113 -> 2992.5
A118: =IF(I118="P",H118,IF(I118="RP",G118,IF(I118="LN",F118,""))) -> 
A120: =IF(I120="P",H120,IF(I120="RP",G120,IF(I120="LN",F120,""))) ->  | B120: SISTEMA DE CUSTOS REFERENCIAIS DE OBRAS - SICRO
B121: Custo Unitário de Referência | E121: =$C$6 -> 2025-07-01 | I121: Quantitativo | K121: un
B122: ='RESUMO MODULO TOTAL'!C26 -> 4011318 | C122: =VLOOKUP(B122,'SINTÉTICO SICRO'!$A$4:$D$1048576,2,0) -> Base ou sub-base estabilizada granulometricamente com mistura solo brita (70% - 30%) em usina com material de jazida e brita comercial - 100% Proctor modificado | I122: =(SUMIF('RESUMO MODULO TOTAL'!C:C,B122,'RESUMO MODULO TOTAL'!H:H))*0.1 -> 3990
B123: D - ATIVIDADES AUXILIARES | D123: Quantidade | E123: Unidade
B124: 6416030 | C124: Usinagem de solo brita (70% - 30%) com material de jazida e brita comercial em usina de 300 t/h | D124: 1 | E124: m³
B126: F - MOMENTO DE TRANSPORTE | D126: Quantidade | E126: Unidade | F126: CÓDIGO TRANSPORTE
F127: LN | G127: RP | H127: P | I127: TIPO (P, RP ou LN) | J127: DMT ESTIMADA (km) | K127: QUANTITATIVO TOTAL DE TRANSPORTE (tkm)
A128: 5914359 | B128: 6416030 | C128: =VLOOKUP(B128,'SINTÉTICO SICRO'!$A$4:$D$1048576,2,0) -> Usinagem de solo brita (70% - 30%) com material de jazida e brita comercial em usina de 300 t/h | D128: 2.063 | E128: tkm | F128: 5914359 | G128: 5914374 | H128: 5914389 | I128: =$B$83 -> LN | J128: =$C$83 -> 10 | K128: =IF(ISBLANK(J128),"",J128*D128)*I122 -> 82313.7
B130: Obs.
B132: SISTEMA DE CUSTOS REFERENCIAIS DE OBRAS - SICRO
B133: Custo Unitário de Referência | I133: Quantitativo | K133: m
B134: 2003943 | C134: =VLOOKUP(B134,'SINTÉTICO SICRO'!A:D,2,0) -> Meio-fio de concreto - MFC 03 moldado no local com extrusora e concreto usinado - areia e brita comerciais | I134: =SUMIF('RESUMO MODULO TOTAL'!C:C,B134,'RESUMO MODULO TOTAL'!H:H)*0.1 -> 3800
B135: D - ATIVIDADES AUXILIARES | D135: Quantidade | E135: Unidade
B136: 1107928 | C136: =VLOOKUP(B136,'SINTÉTICO SICRO'!A:D,2,0) -> Concreto fck = 20 MPa - confecção em central dosadora de 30 m³/h - areia e brita comerciais | D136: 0.042 | E136: m³
B137: 2003842 | C137: =VLOOKUP(B137,'SINTÉTICO SICRO'!A:D,2,0) -> Enchimento de junta de concreto com argamassa asfáltica de densidade 1.700 kg/m³ - espessura de 1 cm | D137: 0.0595 | E137: kg
B138: 4805750 | C138: =VLOOKUP(B138,'SINTÉTICO SICRO'!A:D,2,0) -> Escavação manual em material de 1ª categoria na profundidade de até 1 m | D138: 0.03 | E138: m³
B140: F - MOMENTO DE TRANSPORTE | D140: Quantidade | E140: Unidade | F140: CÓDIGO TRANSPORTE
F141: LN | G141: RP | H141: P | I141: TIPO (P, RP ou LN) | J141: DMT ESTIMADA (km) | K141: QUANTITATIVO TOTAL DE TRANSPORTE (tkm)
A142: =IF(I142="P",H142,IF(I142="RP",G142,IF(I142="LN",F142,""))) -> 5914539 | B142: 1107928 | C142: =VLOOKUP(B142,'SINTÉTICO SICRO'!A:D,2,0) -> Concreto fck = 20 MPa - confecção em central dosadora de 30 m³/h - areia e brita comerciais | D142: 0.1008 | E142: tkm | F142: 5914539 | G142: 5914554 | H142: 5914569 | I142: =$B$83 -> LN | J142: =C83 -> 10 | K142: =IF(ISBLANK(J142),"",J142*D142)*I134 -> 3830.4
B143: Obs.
B144: TIPO (P, RP ou LN) | C144: DMT ESTIMADA (DISTRIBUIÇÃO DO ITEM NA PISTA
B145: RP | C145: 10
B147: SISTEMA DE CUSTOS REFERENCIAIS DE OBRAS - SICRO
B148: Custo Unitário de Referência | I148: Quantitativo | K148: um
B149: 903808 | C149: =VLOOKUP(B149,'SINTÉTICO SICRO'!A:D,2,0) -> Instalação da usina misturadora de solos com capacidade de 300 t/h | I149: =SUMIF('RESUMO MODULO TOTAL'!C:C,B149,'RESUMO MODULO TOTAL'!H:H)*0.1 -> 1.9
B150: D - ATIVIDADES AUXILIARES | D150: Quantidade | E150: Unidade
B151: 3713608 | C151: =VLOOKUP(B151,'SINTÉTICO SICRO'!A:D,2,0) -> Cerca com 4 fios de arame farpado e mourão de madeira a cada 2,5 m e esticador a cada 50 m | D151: 302 | E151: m
B152: 5502986 | C152: =VLOOKUP(B152,'SINTÉTICO SICRO'!A:D,2,0) -> Expurgo de jazida | D152: 1402.5 | E152: m³
B153: 903845 | C153: =VLOOKUP(B153,'SINTÉTICO SICRO'!A:D,2,0) -> Lastro de brita comercial - espalhamento mecânico | D153: 110.12926 | E153: m³
B154: 5502985 | C154: =VLOOKUP(B154,'SINTÉTICO SICRO'!A:D,2,0) -> Limpeza mecanizada da camada vegetal | D154: 5610 | E154: m²
B155: 919012 | C155: =VLOOKUP(B155,'SINTÉTICO SICRO'!A:D,2,0) -> Montagem e desmontagem da usina misturadora de solos com capacidade de 300 t/h - inclusive construção e demolição de bases, rampas e depósitos de agregados | D155: 1 | E155: un
B156: 4011211 | C156: =VLOOKUP(B156,'SINTÉTICO SICRO'!A:D,2,0) -> Reforço do subleito com material de jazida - 100% Proctor intermediário | D156: 1122 | E156: m³
B157: 4011209 | C157: =VLOOKUP(B157,'SINTÉTICO SICRO'!A:D,2,0) -> Regularização do subleito - 100% Proctor intermediário | D157: 5610 | E157: m²
B159: F - MOMENTO DE TRANSPORTE | D159: Quantidade | E159: Unidade | F159: CÓDIGO TRANSPORTE
F160: LN | G160: RP | H160: P | I160: TIPO (P, RP ou LN) | J160: DMT ESTIMADA (km) | K160: QUANTITATIVO TOTAL DE TRANSPORTE (tkm)
B162: Obs.
B164: COMPOSIÇÕES PRINCIPAIS
B165: SISTEMA DE CUSTOS REFERENCIAIS DE OBRAS - SICRO
B166: Custo Unitário de Referência | E166: =$C$6 -> 2025-07-01 | I166: Quantitativo | K166: m²
B167: ='RESUMO MODULO TOTAL'!C23 -> 4915637 | C167: =VLOOKUP(B167,'SINTÉTICO SICRO'!$A$4:$D$1048576,2,0) -> Capa selante - areia comercial | I167: =(SUMIF('RESUMO MODULO TOTAL'!C:C,B167,'RESUMO MODULO TOTAL'!H:H))*0.1 -> 13300
B168: F - MOMENTO DE TRANSPORTE | D168: Quantidade | E168: Unidade | F168: CÓDIGO TRANSPORTE
F169: LN | G169: RP | H169: P | I169: TIPO (P, RP ou LN) | J169: DMT ESTIMADA (km) | K169: QUANTITATIVO TOTAL DE TRANSPORTE (tkm)
A170: =IF(I170="P",H170,IF(I170="RP",G170,IF(I170="LN",F170,""))) -> 5914329 | B170: M0028 | C170: Areia média - Caminhão basculante 6 m³ | D170: 0.00435 | E170: tkm | F170: 5914314 | G170: 5914329 | H170: 5914344 | I170: =$B$145 -> RP | J170: =C145 -> 10 | K170: =IF(ISBLANK(J170),"",J170*D170)*I167 -> 578.55
A171: =IF(I171="P",H171,IF(I171="RP",G171,IF(I171="LN",F171,""))) -> 
B172: Obs.
B173: SISTEMA DE CUSTOS REFERENCIAIS DE OBRAS - SICRO
B174: Custo Unitário de Referência | E174: =$C$6 -> 2025-07-01 | I174: Quantitativo | K174: m²
B175: ='RESUMO MODULO TOTAL'!C24 -> 4011370 | C175: =VLOOKUP(B175,'SINTÉTICO SICRO'!$A$4:$D$1048576,2,0) -> Tratamento superficial duplo com emulsão - brita comercial | I175: =(SUMIF('RESUMO MODULO TOTAL'!C:C,B175,'RESUMO MODULO TOTAL'!H:H))*0.1 -> 13300
B176: F - MOMENTO DE TRANSPORTE | D176: Quantidade | E176: Unidade | F176: CÓDIGO TRANSPORTE
F177: LN | G177: RP | H177: P | I177: TIPO (P, RP ou LN) | J177: DMT ESTIMADA (km) | K177: QUANTITATIVO TOTAL DE TRANSPORTE (tkm)
A178: =IF(I178="P",H178,IF(I178="RP",G178,IF(I178="LN",F178,""))) -> 5914374 | B178: M0005 | C178: Brita 0 - Caminhão basculante 10 m³ | D178: 0.011 | E178: tkm | F178: 5914359 | G178: 5914374 | H178: 5914389 | I178: =$B$145 -> RP | J178: =C145 -> 10 | K178: =IF(ISBLANK(J178),"",J178*D178)*I175 -> 1463
A179: =IF(I179="P",H179,IF(I179="RP",G179,IF(I179="LN",F179,""))) -> 5914374 | B179: M0191 | C179: Brita 1 - Caminhão basculante 10 m³ | D179: 0.0225 | E179: tkm | F179: 5914359 | G179: 5914374 | H179: 5914389 | I179: =$B$145 -> RP | J179: =C145 -> 10 | K179: =IF(ISBLANK(J179),"",J179*D179)*I175 -> 2992.5
A180: =IF(I180="P",H180,IF(I180="RP",G180,IF(I180="LN",F180,""))) -> 
A182: =IF(I182="P",H182,IF(I182="RP",G182,IF(I182="LN",F182,""))) ->  | B182: SISTEMA DE CUSTOS REFERENCIAIS DE OBRAS - SICRO
B183: Custo Unitário de Referência | E183: =$C$6 -> 2025-07-01 | I183: Quantitativo | K183: un
B184: ='RESUMO MODULO TOTAL'!C26 -> 4011318 | C184: =VLOOKUP(B184,'SINTÉTICO SICRO'!$A$4:$D$1048576,2,0) -> Base ou sub-base estabilizada granulometricamente com mistura solo brita (70% - 30%) em usina com material de jazida e brita comercial - 100% Proctor modificado | I184: =(SUMIF('RESUMO MODULO TOTAL'!C:C,B184,'RESUMO MODULO TOTAL'!H:H))*0.1 -> 3990
B185: D - ATIVIDADES AUXILIARES | D185: Quantidade | E185: Unidade
B186: 6416030 | C186: Usinagem de solo brita (70% - 30%) com material de jazida e brita comercial em usina de 300 t/h | D186: 1 | E186: m³
B188: F - MOMENTO DE TRANSPORTE | D188: Quantidade | E188: Unidade | F188: CÓDIGO TRANSPORTE
F189: LN | G189: RP | H189: P | I189: TIPO (P, RP ou LN) | J189: DMT ESTIMADA (km) | K189: QUANTITATIVO TOTAL DE TRANSPORTE (tkm)
A190: 5914374 | B190: 6416030 | C190: =VLOOKUP(B190,'SINTÉTICO SICRO'!$A$4:$D$1048576,2,0) -> Usinagem de solo brita (70% - 30%) com material de jazida e brita comercial em usina de 300 t/h | D190: 2.063 | E190: tkm | F190: 5914359 | G190: 5914374 | H190: 5914389 | I190: =$B$145 -> RP | J190: =$C$145 -> 10 | K190: =IF(ISBLANK(J190),"",J190*D190)*I184 -> 82313.7
B192: Obs.
B193: SISTEMA DE CUSTOS REFERENCIAIS DE OBRAS - SICRO
B194: Custo Unitário de Referência | I194: Quantitativo | K194: m
B195: 2003943 | C195: =VLOOKUP(B195,'SINTÉTICO SICRO'!A:D,2,0) -> Meio-fio de concreto - MFC 03 moldado no local com extrusora e concreto usinado - areia e brita comerciais | I195: =SUMIF('RESUMO MODULO TOTAL'!C:C,B195,'RESUMO MODULO TOTAL'!H:H)*0.1 -> 3800
B196: D - ATIVIDADES AUXILIARES | D196: Quantidade | E196: Unidade
B197: 1107928 | C197: =VLOOKUP(B197,'SINTÉTICO SICRO'!A:D,2,0) -> Concreto fck = 20 MPa - confecção em central dosadora de 30 m³/h - areia e brita comerciais | D197: 0.042 | E197: m³
B198: 2003842 | C198: =VLOOKUP(B198,'SINTÉTICO SICRO'!A:D,2,0) -> Enchimento de junta de concreto com argamassa asfáltica de densidade 1.700 kg/m³ - espessura de 1 cm | D198: 0.0595 | E198: kg
B199: 4805750 | C199: =VLOOKUP(B199,'SINTÉTICO SICRO'!A:D,2,0) -> Escavação manual em material de 1ª categoria na profundidade de até 1 m | D199: 0.03 | E199: m³
B201: F - MOMENTO DE TRANSPORTE | D201: Quantidade | E201: Unidade | F201: CÓDIGO TRANSPORTE
F202: LN | G202: RP | H202: P | I202: TIPO (P, RP ou LN) | J202: DMT ESTIMADA (km) | K202: QUANTITATIVO TOTAL DE TRANSPORTE (tkm)
A203: =IF(I203="P",H203,IF(I203="RP",G203,IF(I203="LN",F203,""))) -> 5914554 | B203: 1107928 | C203: =VLOOKUP(B203,'SINTÉTICO SICRO'!A:D,2,0) -> Concreto fck = 20 MPa - confecção em central dosadora de 30 m³/h - areia e brita comerciais | D203: 0.1008 | E203: tkm | F203: 5914539 | G203: 5914554 | H203: 5914569 | I203: =$B$145 -> RP | J203: =C145 -> 10 | K203: =IF(ISBLANK(J203),"",J203*D203)*I195 -> 3830.4
B204: Obs.

Sheet MOMENTO DE TRANSPORTE - AUX
B5: ='RESUMO MODULO TOTAL'!B62 -> SERVIÇOS DE IMPLANTAÇÃO DE PAVIMENTAÇÃO EM TRATAMENTO SUPERFICIAL DUPLO (TSD), EM VIAS URBANAS E RURAIS INSERIDAS NA ÁREA DE ATUAÇÃO DA CODEVASF, NO ESTADO DO CEARÁ
B6: DATA BASE: | C6: ='RESUMO MODULO TOTAL'!C6 -> 2025-07-01
C8: RESUMO DO TRANSPORTE AUXILIAR
B9: CODIGO | C9: DESCRIÇÃO | D9: TKM
B10: 5914359 | C10: =VLOOKUP(B10,'SINTÉTICO SICRO'!$A:$D,2,0) -> Transporte com caminhão basculante de 10 m³ - rodovia em leito natural | D10: =ROUND(SUMIF($A:$A,B10,$K:$K),2) -> 183122.32
B11: 5914374 | C11: =VLOOKUP(B11,'SINTÉTICO SICRO'!$A:$D,2,0) -> Transporte com caminhão basculante de 10 m³ - rodovia em revestimento primário | D11: 274683.48
B12: 5914389 | C12: =VLOOKUP(B12,'SINTÉTICO SICRO'!$A:$D,2,0) -> Transporte com caminhão basculante de 10 m³ - rodovia pavimentada | D12: 7705566.5
B13: 5914449 | C13: =VLOOKUP(B13,'SINTÉTICO SICRO'!$A:$D,2,0) -> Transporte com caminhão carroceria de 15 t - rodovia em leito natural | D13: 974.68
B14: 5914464 | C14: =VLOOKUP(B14,'SINTÉTICO SICRO'!$A:$D,2,0) -> Transporte com caminhão carroceria de 15 t - rodovia em revestimento primário | D14: 1462.02
B15: 5914479 | C15: =VLOOKUP(B15,'SINTÉTICO SICRO'!$A:$D,2,0) -> Transporte com caminhão carroceria de 15 t - rodovia pavimentada | D15: 31189.77
B16: 5914364 | C16: =VLOOKUP(B16,'SINTÉTICO SICRO'!$A:$D,2,0) -> Transporte de cimento ou cal hidratada a granel com caminhão silo de 30 m³ - rodovia em leito natural | D16: 0
B17: 5914365 | C17: =VLOOKUP(B17,'SINTÉTICO SICRO'!$A:$D,2,0) -> Transporte de cimento ou cal hidratada a granel com caminhão silo de 30 m³ - rodovia em revestimento primário | D17: 0
B18: 5914366 | C18: =VLOOKUP(B18,'SINTÉTICO SICRO'!$A:$D,2,0) -> Transporte de cimento ou cal hidratada a granel com caminhão silo de 30 m³ - rodovia pavimentada | D18: 0
B20: TIPO (P, RP ou LN) | C20: DMT ATÉ 50 KM NÃO DEVE SER PAGA | D20: SOMENTE DEVE SER ADICIONADO A DISTÂNCIA EXCEDENTE A 50 KM
B21: P | D21: 80
B23: SISTEMA DE CUSTOS REFERENCIAIS DE OBRAS - SICRO | I23: Quantitivo
B24: Custo Unitário de Referência | E24: =$C$6 -> 2025-07-01 | I24: (Coeficiente na composição principal) x (quantidade da principal no orçamento) | K24: t
B25: 3713608 | C25: =VLOOKUP(B25,'SINTÉTICO SICRO'!A:D,2,0) -> Cerca com 4 fios de arame farpado e mourão de madeira a cada 2,5 m e esticador a cada 50 m | I25: ='MOMENTO DE TRANSPORTE - PRINC'!D27*(VLOOKUP(C33,'RESUMO MODULO TOTAL'!$C$9:$J$58,6,FALSE))*0.8 -> 4590.4
B26: F - MOMENTO DE TRANSPORTE | D26: Quantidade | E26: Unidade | F26: DMT
F27: LN | G27: RP | H27: P | I27: TIPO (P, RP ou LN) | J27: DMT ESTIMADA (km) | K27: QUANTITATIVO TOTAL DE TRANSPORTE DE MATERIAL (tkm)
A28: =IF(I28="P",H28,IF(I28="RP",G28,IF(I28="LN",F28,""))) -> 5914479 | B28: M0069 | C28: Arame farpado em aço galvanizado - D = 1,60 mm - Caminhão carroceria 15 t | D28: 0.0002 | E28: tkm | F28: 5914449 | G28: 5914464 | H28: 5914479 | I28: =$B$21 -> P | J28: =$D$21 -> 80 | K28: =IF(ISBLANK(J28),"",J28*(D28*I$25)) -> 73.4464
A29: =IF(I29="P",H29,IF(I29="RP",G29,IF(I29="LN",F29,""))) -> 5914479 | B29: M0745 | C29: Grampo em aço galvanizado para cerca - C = 25,4 mm e E = 3,76 mm (1" x 9 BWG) - Caminhão carroceria 15 t | D29: 1e-05 | E29: tkm | F29: 5914449 | G29: 5914464 | H29: 5914479 | I29: =$B$21 -> P | J29: =$D$21 -> 80 | K29: =IF(ISBLANK(J29),"",J29*(D29*I$25)) -> 3.67232
A30: 5914479 | B30: M1638 | C30: Mourão de madeira - H = 2,10 m e D = 0,10 m - Caminhão carroceria 15 t | D30: 0.00693 | E30: tkm | F30: 5914449 | G30: 5914464 | H30: 5914479 | I30: P | J30: 80 | K30: 2544.91776
A31: 5914479 | B31: M1639 | C31: Mourão de madeira - H = 2,20 m e D = 0,15 m - Caminhão carroceria 15 t | D31: 0.00078 | E31: tkm | F31: 5914449 | G31: 5914464 | H31: 5914479 | I31: P | J31: 80 | K31: 286.44096
B33: PRINCIPAL: | C33: ='RESUMO MODULO TOTAL'!C15 -> 903808
B35: SISTEMA DE CUSTOS REFERENCIAIS DE OBRAS - SICRO | I35: Quantitivo
B36: Custo Unitário de Referência | E36: =$C$6 -> 2025-07-01 | I36: (Coeficiente na composição principal) x (quantidade da principal no orçamento) | K36: t
B37: 903845 | C37: =VLOOKUP(B37,'SINTÉTICO SICRO'!A:D,2,0) -> Lastro de brita comercial - espalhamento mecânico | I37: ='MOMENTO DE TRANSPORTE - PRINC'!D32*(VLOOKUP(C42,'RESUMO MODULO TOTAL'!$C$9:$J$58,6,FALSE))*0.8 -> 17054.4 | L37: ='MOMENTO DE TRANSPORTE - PRINC'!D32 -> 1122
B38: F - MOMENTO DE TRANSPORTE | D38: Quantidade | E38: Unidade | F38: DMT | L38: ='RESUMO MODULO TOTAL'!H15 -> 19
F39: LN | G39: RP | H39: P | I39: TIPO (P, RP ou LN) | J39: DMT ESTIMADA (km) | K39: QUANTITATIVO TOTAL DE TRANSPORTE DE MATERIAL (tkm)
A40: =IF(I40="P",H40,IF(I40="RP",G40,IF(I40="LN",F40,""))) -> 5914389 | B40: M0192 | C40: Brita 2 - Caminhão basculante 10 m³ | D40: 1.5 | E40: tkm | F40: 5914359 | G40: 5914374 | H40: 5914389 | I40: =$B$21 -> P | J40: =$D$21 -> 80 | K40: =IF(ISBLANK(J40),"",J40*(D40*$I$37)) -> 2046528
A41: =IF(I41="P",H41,IF(I41="RP",G41,IF(I41="LN",F41,""))) -> 
B42: PRINCIPAL: | C42: =C33 -> 903808
B44: SISTEMA DE CUSTOS REFERENCIAIS DE OBRAS - SICRO | I44: Quantitivo
B45: Custo Unitário de Referência | E45: =$C$6 -> 2025-07-01 | I45: (Coeficiente na composição principal) x (quantidade da principal no orçamento) | K45: t
B46: 4011211 | C46: =VLOOKUP(B46,'SINTÉTICO SICRO'!A:D,2,0) -> Reforço do subleito com material de jazida - 100% Proctor intermediário | I46: ='MOMENTO DE TRANSPORTE - PRINC'!D32*(VLOOKUP(C51,'RESUMO MODULO TOTAL'!$C$9:$J$58,6,FALSE))*0.8 -> 17054.4
B47: F - MOMENTO DE TRANSPORTE | D47: Quantidade | E47: Unidade | F47: DMT
F48: LN | G48: RP | H48: P | I48: TIPO (P, RP ou LN) | J48: DMT ESTIMADA (km) | K48: QUANTITATIVO TOTAL DE TRANSPORTE DE MATERIAL (tkm)
A49: =IF(I49="P",H49,IF(I49="RP",G49,IF(I49="LN",F49,""))) -> 5914389 | B49: 4016096 | C49: =VLOOKUP(B49,'SINTÉTICO SICRO'!A:D,2,0) -> Escavação e carga de material de jazida com escavadeira hidráulica de 1,56 m³ | D49: 2.06301 | E49: tkm | F49: 5914359 | G49: 5914374 | H49: 5914389 | I49: =$B$21 -> P | J49: =$D$21 -> 80 | K49: =IF(ISBLANK(J49),"",J49*(D49*$I$46)) -> 2814671.82
A50: =IF(I50="P",H50,IF(I50="RP",G50,IF(I50="LN",F50,""))) -> 
B51: PRINCIPAL: | C51: =C33 -> 903808
A53: =IF(I53="P",H53,IF(I53="RP",G53,IF(I53="LN",F53,""))) ->  | B53: SISTEMA DE CUSTOS REFERENCIAIS DE OBRAS - SICRO | I53: Quantitivo
B54: Custo Unitário de Referência | E54: =$C$6 -> 2025-07-01 | I54: (Coeficiente na composição principal) x (quantidade da principal no orçamento) | K54: m³
B55: 6416030 | C55: Usinagem de solo brita (70% - 30%) com material de jazida e brita comercial em usina de 300 t/h | I55: =('MOMENTO DE TRANSPORTE - PRINC'!D62*VLOOKUP(C61,'RESUMO MODULO TOTAL'!$C$9:$J$58,6,FALSE))*0.8 -> 15960
B56: F - MOMENTO DE TRANSPORTE | D56: Quantidade | E56: Unidade | F56: DMT
F57: LN | G57: RP | H57: P | I57: TIPO (P, RP ou LN) | J57: DMT ESTIMADA (km) | K57: QUANTITATIVO TOTAL DE TRANSPORTE DE MATERIAL (tkm)
A58: 5914389 | B58: 4016096 | C58: Escavação e carga de material de jazida com escavadeira hidráulica de 1,56 m³ - Caminhão basculante 10 m³ | D58: 1.44411 | E58: tkm | F58: 5914359 | G58: 5914374 | H58: 5914389 | I58: =$B$21 -> P | J58: =$D$21 -> 80 | K58: =IF(ISBLANK(J58),"",J58*(D58*$I$55)) -> 1843839.648
A59: 5914389 | B59: M0191 | C59: Brita 1 - Caminhão basculante 10 m³ | D59: 0.6189 | E59: tkm | F59: 5914359 | G59: 5914374 | H59: 5914389 | I59: P | J59: =$D$21 -> 80 | K59: =IF(ISBLANK(J59),"",J59*(D59*$I$55)) -> 790211.52
B61: PRINCIPAL: | C61: 4011318
B62: SISTEMA DE CUSTOS REFERENCIAIS DE OBRAS - SICRO | I62: Quantitivo
B63: Custo Unitário de Referência | E63: =$C$6 -> 2025-07-01 | I63: (Coeficiente na composição principal) x (quantidade da principal no orçamento) | K63: m³
B64: 1107892 | C64: Concreto fck = 20 MPa - confecção em betoneira e lançamento manual - areia e brita comerciais | I64: =('MOMENTO DE TRANSPORTE - PRINC'!D74*VLOOKUP(C73,'RESUMO MODULO TOTAL'!$C$9:$J$58,6,FALSE))*0.8 -> 1276.8
B65: F - MOMENTO DE TRANSPORTE | D65: Quantidade | E65: Unidade | F65: DMT
F66: LN | G66: RP | H66: P | I66: TIPO (P, RP ou LN) | J66: DMT ESTIMADA (km) | K66: QUANTITATIVO TOTAL DE TRANSPORTE DE MATERIAL (tkm)
A67: =IF(I67="P",H67,IF(I67="RP",G67,IF(I67="LN",F67,""))) -> 5914479 | B67: M0030 | C67: Aditivo plastificante e retardador de pega para concreto e argamassa - Caminhão carroceria 15 t | D67: 0.00082 | E67: tkm | F67: 5914449 | G67: 5914464 | H67: 5914479 | I67: =$B$21 -> P | J67: =$D$21 -> 80 | K67: =IF(ISBLANK(J67),"",J67*(D67*$I$64)) -> 83.75808
A68: 5914389 | B68: M0082 | C68: Areia média lavada - Caminhão basculante 10 m³ | D68: 0.95639 | E68: tkm | F68: 5914359 | G68: 5914374 | H68: 5914389 | I68: =$B$21 -> P | J68: =$D$21 -> 80 | K68: =IF(ISBLANK(J68),"",J68*(D68*$I$64)) -> 97689.50016
A69: 5914389 | B69: M0191 | C69: Brita 1 - Caminhão basculante 10 m³ | D69: 0.55131 | E69: tkm | F69: 5914359 | G69: 5914374 | H69: 5914389 | I69: P | J69: 80 | K69: =IF(ISBLANK(J69),"",J69*(D69*$I$64)) -> 56313.00864
A70: 5914389 | B70: M0192 | C70: Brita 2 - Caminhão basculante 10 m³ | D70: 0.55131 | E70: tkm | F70: 5914359 | G70: 5914374 | H70: 5914389 | I70: P | J70: 80 | K70: =IF(ISBLANK(J70),"",J70*(D70*$I$64)) -> 56313.00864
A71: 5914479 | B71: M0424 | C71: Cimento Portland CP II - 32 - saco - Caminhão carroceria 15 t | D71: 0.27464 | E71: tkm | F71: 5914449 | G71: 5914464 | H71: 5914479 | I71: P | J71: 80 | K71: =IF(ISBLANK(J71),"",J71*(D71*$I$64)) -> 28052.82816
B73: PRINCIPAL: | C73: 2003943
B74: SISTEMA DE CUSTOS REFERENCIAIS DE OBRAS - SICRO | I74: Quantitivo
B75: Custo Unitário de Referência | E75: =$C$6 -> 2025-07-01 | I75: (Coeficiente na composição principal) x (quantidade da principal no orçamento) | K75: kg
B76: 2003842 | C76: Enchimento de junta de concreto com argamassa asfáltica de densidade 1.700 kg/m³ - espessura de 1 cm | I76: =('MOMENTO DE TRANSPORTE - PRINC'!D75*VLOOKUP(C81,'RESUMO MODULO TOTAL'!$C$9:$J$58,6,FALSE))*0.8 -> 1808.8
B77: F - MOMENTO DE TRANSPORTE | D77: Quantidade | E77: Unidade | F77: DMT
F78: LN | G78: RP | H78: P | I78: TIPO (P, RP ou LN) | J78: DMT ESTIMADA (km) | K78: QUANTITATIVO TOTAL DE TRANSPORTE DE MATERIAL (tkm)
A79: 5914479 | B79: M2158 | C79: Argamassa asfáltica - Caminhão carroceria com capacidade de 15 t - 188 Kw | D79: 0.001 | E79: tkm | F79: 5914449 | G79: 5914464 | H79: 5914479 | I79: =$B$21 -> P | J79: =$D$21 -> 80 | K79: =IF(ISBLANK(J79),"",J79*(D79*$I$76)) -> 144.704
B81: PRINCIPAL: | C81: 2003943
B83: TIPO (P, RP ou LN) | C83: DMT ATÉ 50 KM NÃO DEVE SER PAGA | D83: SOMENTE DEVE SER ADICIONADO A DISTÂNCIA EXCEDENTE A 50 KM
B84: LN | D84: 20
B86: SISTEMA DE CUSTOS REFERENCIAIS DE OBRAS - SICRO | I86: Quantitivo
B87: Custo Unitário de Referência | E87: =$C$6 -> 2025-07-01 | I87: (Coeficiente na composição principal) x (quantidade da principal no orçamento) | K87: t
B88: 3713608 | C88: =VLOOKUP(B88,'SINTÉTICO SICRO'!A:D,2,0) -> Cerca com 4 fios de arame farpado e mourão de madeira a cada 2,5 m e esticador a cada 50 m | I88: ='MOMENTO DE TRANSPORTE - PRINC'!D27*(VLOOKUP(C96,'RESUMO MODULO TOTAL'!$C$9:$J$58,6,FALSE))*0.1 -> 573.8
B89: F - MOMENTO DE TRANSPORTE | D89: Quantidade | E89: Unidade | F89: DMT
F90: LN | G90: RP | H90: P | I90: TIPO (P, RP ou LN) | J90: DMT ESTIMADA (km) | K90: QUANTITATIVO TOTAL DE TRANSPORTE DE MATERIAL (tkm)
A91: =IF(I91="P",H91,IF(I91="RP",G91,IF(I91="LN",F91,""))) -> 5914449 | B91: M0069 | C91: Arame farpado em aço galvanizado - D = 1,60 mm - Caminhão carroceria 15 t | D91: 0.0002 | E91: tkm | F91: 5914449 | G91: 5914464 | H91: 5914479 | I91: =$B$84 -> LN | J91: =$D$84 -> 20 | K91: =IF(ISBLANK(J91),"",J91*(D91*I$88)) -> 2.2952
A92: =IF(I92="P",H92,IF(I92="RP",G92,IF(I92="LN",F92,""))) -> 5914449 | B92: M0745 | C92: Grampo em aço galvanizado para cerca - C = 25,4 mm e E = 3,76 mm (1" x 9 BWG) - Caminhão carroceria 15 t | D92: 1e-05 | E92: tkm | F92: 5914449 | G92: 5914464 | H92: 5914479 | I92: =$B$84 -> LN | J92: =$D$84 -> 20 | K92: =IF(ISBLANK(J92),"",J92*(D92*I$88)) -> 0.11476
A93: 5914449 | B93: M1638 | C93: Mourão de madeira - H = 2,10 m e D = 0,10 m - Caminhão carroceria 15 t | D93: 0.00693 | E93: tkm | F93: 5914449 | G93: 5914464 | H93: 5914479 | I93: LN | J93: 20 | K93: 79.52868
A94: 5914449 | B94: M1639 | C94: Mourão de madeira - H = 2,20 m e D = 0,15 m - Caminhão carroceria 15 t | D94: 0.00078 | E94: tkm | F94: 5914449 | G94: 5914464 | H94: 5914479 | I94: LN | J94: 20 | K94: 8.95128
B96: PRINCIPAL: | C96: ='RESUMO MODULO TOTAL'!C15 -> 903808
B98: SISTEMA DE CUSTOS REFERENCIAIS DE OBRAS - SICRO | I98: Quantitivo
B99: Custo Unitário de Referência | E99: =$C$6 -> 2025-07-01 | I99: (Coeficiente na composição principal) x (quantidade da principal no orçamento) | K99: t
B100: 903845 | C100: =VLOOKUP(B100,'SINTÉTICO SICRO'!A:D,2,0) -> Lastro de brita comercial - espalhamento mecânico | I100: ='MOMENTO DE TRANSPORTE - PRINC'!D29*(VLOOKUP(C105,'RESUMO MODULO TOTAL'!$C$9:$J$58,6,FALSE))*0.1 -> 209.245594
B101: F - MOMENTO DE TRANSPORTE | D101: Quantidade | E101: Unidade | F101: DMT
F102: LN | G102: RP | H102: P | I102: TIPO (P, RP ou LN) | J102: DMT ESTIMADA (km) | K102: QUANTITATIVO TOTAL DE TRANSPORTE DE MATERIAL (tkm)
A103: =IF(I103="P",H103,IF(I103="RP",G103,IF(I103="LN",F103,""))) -> 5914359 | B103: M0192 | C103: Brita 2 - Caminhão basculante 10 m³ | D103: 1.5 | E103: tkm | F103: 5914359 | G103: 5914374 | H103: 5914389 | I103: =$B$84 -> LN | J103: =$D$84 -> 20 | K103: =IF(ISBLANK(J103),"",J103*(D103*$I$100)) -> 6277.36782
A104: =IF(I104="P",H104,IF(I104="RP",G104,IF(I104="LN",F104,""))) -> 
B105: PRINCIPAL: | C105: =C96 -> 903808
B107: SISTEMA DE CUSTOS REFERENCIAIS DE OBRAS - SICRO | I107: Quantitivo
B108: Custo Unitário de Referência | E108: =$C$6 -> 2025-07-01 | I108: (Coeficiente na composição principal) x (quantidade da principal no orçamento) | K108: t
B109: 4011211 | C109: =VLOOKUP(B109,'SINTÉTICO SICRO'!A:D,2,0) -> Reforço do subleito com material de jazida - 100% Proctor intermediário | I109: ='MOMENTO DE TRANSPORTE - PRINC'!D32*(VLOOKUP(C114,'RESUMO MODULO TOTAL'!$C$9:$J$58,6,FALSE))*0.1 -> 2131.8
B110: F - MOMENTO DE TRANSPORTE | D110: Quantidade | E110: Unidade | F110: DMT
F111: LN | G111: RP | H111: P | I111: TIPO (P, RP ou LN) | J111: DMT ESTIMADA (km) | K111: QUANTITATIVO TOTAL DE TRANSPORTE DE MATERIAL (tkm)
A112: =IF(I112="P",H112,IF(I112="RP",G112,IF(I112="LN",F112,""))) -> 5914359 | B112: 4016096 | C112: =VLOOKUP(B112,'SINTÉTICO SICRO'!A:D,2,0) -> Escavação e carga de material de jazida com escavadeira hidráulica de 1,56 m³ | D112: 2.06301 | E112: tkm | F112: 5914359 | G112: 5914374 | H112: 5914389 | I112: =$B$84 -> LN | J112: =$D$84 -> 20 | K112: =IF(ISBLANK(J112),"",J112*(D112*$I$109)) -> 87958.49436
A113: =IF(I113="P",H113,IF(I113="RP",G113,IF(I113="LN",F113,""))) -> 
B114: PRINCIPAL: | C114: =C96 -> 903808
A115: =IF(I115="P",H115,IF(I115="RP",G115,IF(I115="LN",F115,""))) ->  | B115: SISTEMA DE CUSTOS REFERENCIAIS DE OBRAS - SICRO | I115: Quantitivo
B116: Custo Unitário de Referência | E116: =$C$6 -> 2025-07-01 | I116: (Coeficiente na composição principal) x (quantidade da principal no orçamento) | K116: m³
B117: 6416030 | C117: Usinagem de solo brita (70% - 30%) com material de jazida e brita comercial em usina de 300 t/h | I117: =('MOMENTO DE TRANSPORTE - PRINC'!D124*VLOOKUP(C123,'RESUMO MODULO TOTAL'!$C$9:$J$58,6,FALSE))*0.1 -> 1995
B118: F - MOMENTO DE TRANSPORTE | D118: Quantidade | E118: Unidade | F118: DMT
F119: LN | G119: RP | H119: P | I119: TIPO (P, RP ou LN) | J119: DMT ESTIMADA (km) | K119: QUANTITATIVO TOTAL DE TRANSPORTE DE MATERIAL (tkm)
A120: 5914359 | B120: 4016096 | C120: Escavação e carga de material de jazida com escavadeira hidráulica de 1,56 m³ - Caminhão basculante 10 m³ | D120: 1.44411 | E120: tkm | F120: 5914359 | G120: 5914374 | H120: 5914389 | I120: =$B$84 -> LN | J120: =D84 -> 20 | K120: =IF(ISBLANK(J120),"",J120*(D120*$I$117)) -> 57619.989
A121: 5914359 | B121: M0191 | C121: Brita 1 - Caminhão basculante 10 m³ | D121: 0.6189 | E121: tkm | F121: 5914359 | G121: 5914374 | H121: 5914389 | I121: =$B$84 -> LN | J121: =D84 -> 20 | K121: =IF(ISBLANK(J121),"",J121*(D121*$I$117)) -> 24694.11
B123: PRINCIPAL: | C123: 4011318
B124: SISTEMA DE CUSTOS REFERENCIAIS DE OBRAS - SICRO | I124: Quantitivo
B125: Custo Unitário de Referência | E125: =$C$6 -> 2025-07-01 | I125: (Coeficiente na composição principal) x (quantidade da principal no orçamento) | K125: m³
B126: 1107892 | C126: Concreto fck = 20 MPa - confecção em betoneira e lançamento manual - areia e brita comerciais | I126: =('MOMENTO DE TRANSPORTE - PRINC'!D136*VLOOKUP(C135,'RESUMO MODULO TOTAL'!$C$9:$J$58,6,FALSE))*0.1 -> 159.6
B127: F - MOMENTO DE TRANSPORTE | D127: Quantidade | E127: Unidade | F127: DMT
F128: LN | G128: RP | H128: P | I128: TIPO (P, RP ou LN) | J128: DMT ESTIMADA (km) | K128: QUANTITATIVO TOTAL DE TRANSPORTE DE MATERIAL (tkm)
A129: =IF(I129="P",H129,IF(I129="RP",G129,IF(I129="LN",F129,""))) -> 5914449 | B129: M0030 | C129: Aditivo plastificante e retardador de pega para concreto e argamassa - Caminhão carroceria 15 t | D129: 0.00082 | E129: tkm | F129: 5914449 | G129: 5914464 | H129: 5914479 | I129: =$B$84 -> LN | J129: =D84 -> 20 | K129: =IF(ISBLANK(J129),"",J129*(D129*$I$126)) -> 2.61744
A130: 5914359 | B130: M0082 | C130: Areia média lavada - Caminhão basculante 10 m³ | D130: 0.95639 | E130: tkm | F130: 5914359 | G130: 5914374 | H130: 5914389 | I130: =$B$84 -> LN | J130: =D84 -> 20 | K130: =IF(ISBLANK(J130),"",J130*(D130*$I$126)) -> 3052.79688
A131: 5914359 | B131: M0191 | C131: Brita 1 - Caminhão basculante 10 m³ | D131: 0.55131 | E131: tkm | F131: 5914359 | G131: 5914374 | H131: 5914389 | I131: =$B$84 -> LN | J131: =D84 -> 20 | K131: =IF(ISBLANK(J131),"",J131*(D131*$I$126)) -> 1759.78152
A132: 5914359 | B132: M0192 | C132: Brita 2 - Caminhão basculante 10 m³ | D132: 0.55131 | E132: tkm | F132: 5914359 | G132: 5914374 | H132: 5914389 | I132: =$B$84 -> LN | J132: =D84 -> 20 | K132: =IF(ISBLANK(J132),"",J132*(D132*$I$126)) -> 1759.78152
A133: 5914449 | B133: M0424 | C133: Cimento Portland CP II - 32 - saco - Caminhão carroceria 15 t | D133: 0.27464 | E133: tkm | F133: 5914449 | G133: 5914464 | H133: 5914479 | I133: =$B$84 -> LN | J133: =D84 -> 20 | K133: =IF(ISBLANK(J133),"",J133*(D133*$I$126)) -> 876.65088
B135: PRINCIPAL: | C135: 2003943
B136: SISTEMA DE CUSTOS REFERENCIAIS DE OBRAS - SICRO | I136: Quantitivo
B137: Custo Unitário de Referência | E137: =$C$6 -> 2025-07-01 | I137: (Coeficiente na composição principal) x (quantidade da principal no orçamento) | K137: kg
B138: 2003842 | C138: Enchimento de junta de concreto com argamassa asfáltica de densidade 1.700 kg/m³ - espessura de 1 cm | I138: =('MOMENTO DE TRANSPORTE - PRINC'!D137*VLOOKUP(C143,'RESUMO MODULO TOTAL'!$C$9:$J$58,6,FALSE))*0.1 -> 226.1
B139: F - MOMENTO DE TRANSPORTE | D139: Quantidade | E139: Unidade | F139: DMT
F140: LN | G140: RP | H140: P | I140: TIPO (P, RP ou LN) | J140: DMT ESTIMADA (km) | K140: QUANTITATIVO TOTAL DE TRANSPORTE DE MATERIAL (tkm)
A141: 5914449 | B141: M2158 | C141: Argamassa asfáltica - Caminhão carroceria com capacidade de 15 t - 188 Kw | D141: 0.001 | E141: tkm | F141: 5914449 | G141: 5914464 | H141: 5914479 | I141: =$B$84 -> LN | J141: =D84 -> 20 | K141: =IF(ISBLANK(J141),"",J141*(D141*$I$138)) -> 4.522
B143: PRINCIPAL: | C143: 2003943
B144: TIPO (P, RP ou LN) | C144: DMT ATÉ 50 KM NÃO DEVE SER PAGA | D144: SOMENTE DEVE SER ADICIONADO A DISTÂNCIA EXCEDENTE A 50 KM
B145: RP | D145: 30
B147: SISTEMA DE CUSTOS REFERENCIAIS DE OBRAS - SICRO | I147: Quantitivo
B148: Custo Unitário de Referência | E148: =$C$6 -> 2025-07-01 | I148: (Coeficiente na composição principal) x (quantidade da principal no orçamento) | K148: t
B149: 3713608 | C149: =VLOOKUP(B149,'SINTÉTICO SICRO'!A:D,2,0) -> Cerca com 4 fios de arame farpado e mourão de madeira a cada 2,5 m e esticador a cada 50 m | I149: ='MOMENTO DE TRANSPORTE - PRINC'!D89*(VLOOKUP(C157,'RESUMO MODULO TOTAL'!$C$9:$J$58,6,FALSE))*0.1 -> 573.8
B150: F - MOMENTO DE TRANSPORTE | D150: Quantidade | E150: Unidade | F150: DMT
F151: LN | G151: RP | H151: P | I151: TIPO (P, RP ou LN) | J151: DMT ESTIMADA (km) | K151: QUANTITATIVO TOTAL DE TRANSPORTE DE MATERIAL (tkm)
A152: =IF(I152="P",H152,IF(I152="RP",G152,IF(I152="LN",F152,""))) -> 5914464 | B152: M0069 | C152: Arame farpado em aço galvanizado - D = 1,60 mm - Caminhão carroceria 15 t | D152: 0.0002 | E152: tkm | F152: 5914449 | G152: 5914464 | H152: 5914479 | I152: =$B$145 -> RP | J152: =$D$145 -> 30 | K152: =IF(ISBLANK(J152),"",J152*(D152*I$149)) -> 3.4428
A153: =IF(I153="P",H153,IF(I153="RP",G153,IF(I153="LN",F153,""))) -> 5914464 | B153: M0745 | C153: Grampo em aço galvanizado para cerca - C = 25,4 mm e E = 3,76 mm (1" x 9 BWG) - Caminhão carroceria 15 t | D153: 1e-05 | E153: tkm | F153: 5914449 | G153: 5914464 | H153: 5914479 | I153: =$B$145 -> RP | J153: =$D$145 -> 30 | K153: =IF(ISBLANK(J153),"",J153*(D153*I$149)) -> 0.17214
A154: 5914464 | B154: M1638 | C154: Mourão de madeira - H = 2,10 m e D = 0,10 m - Caminhão carroceria 15 t | D154: 0.00693 | E154: tkm | F154: 5914449 | G154: 5914464 | H154: 5914479 | I154: RP | J154: 30 | K154: 119.29302
A155: 5914464 | B155: M1639 | C155: Mourão de madeira - H = 2,20 m e D = 0,15 m - Caminhão carroceria 15 t | D155: 0.00078 | E155: tkm | F155: 5914449 | G155: 5914464 | H155: 5914479 | I155: RP | J155: 30 | K155: 13.42692
B157: PRINCIPAL: | C157: ='RESUMO MODULO TOTAL'!C15 -> 903808
B159: SISTEMA DE CUSTOS REFERENCIAIS DE OBRAS - SICRO | I159: Quantitivo
B160: Custo Unitário de Referência | E160: =$C$6 -> 2025-07-01 | I160: (Coeficiente na composição principal) x (quantidade da principal no orçamento) | K160: t
B161: 903845 | C161: =VLOOKUP(B161,'SINTÉTICO SICRO'!A:D,2,0) -> Lastro de brita comercial - espalhamento mecânico | I161: ='MOMENTO DE TRANSPORTE - PRINC'!D91*(VLOOKUP(C166,'RESUMO MODULO TOTAL'!$C$9:$J$58,6,FALSE))*0.1 -> 209.245594
B162: F - MOMENTO DE TRANSPORTE | D162: Quantidade | E162: Unidade | F162: DMT
F163: LN | G163: RP | H163: P | I163: TIPO (P, RP ou LN) | J163: DMT ESTIMADA (km) | K163: QUANTITATIVO TOTAL DE TRANSPORTE DE MATERIAL (tkm)
A164: =IF(I164="P",H164,IF(I164="RP",G164,IF(I164="LN",F164,""))) -> 5914374 | B164: M0192 | C164: Brita 2 - Caminhão basculante 10 m³ | D164: 1.5 | E164: tkm | F164: 5914359 | G164: 5914374 | H164: 5914389 | I164: =$B$145 -> RP | J164: =$D$145 -> 30 | K164: =IF(ISBLANK(J164),"",J164*(D164*$I$161)) -> 9416.05173
A165: =IF(I165="P",H165,IF(I165="RP",G165,IF(I165="LN",F165,""))) -> 
B166: PRINCIPAL: | C166: =C157 -> 903808
B168: SISTEMA DE CUSTOS REFERENCIAIS DE OBRAS - SICRO | I168: Quantitivo
B169: Custo Unitário de Referência | E169: =$C$6 -> 2025-07-01 | I169: (Coeficiente na composição principal) x (quantidade da principal no orçamento) | K169: t
B170: 4011211 | C170: =VLOOKUP(B170,'SINTÉTICO SICRO'!A:D,2,0) -> Reforço do subleito com material de jazida - 100% Proctor intermediário | I170: ='MOMENTO DE TRANSPORTE - PRINC'!D94*(VLOOKUP(C175,'RESUMO MODULO TOTAL'!$C$9:$J$58,6,FALSE))*0.1 -> 2131.8
B171: F - MOMENTO DE TRANSPORTE | D171: Quantidade | E171: Unidade | F171: DMT
F172: LN | G172: RP | H172: P | I172: TIPO (P, RP ou LN) | J172: DMT ESTIMADA (km) | K172: QUANTITATIVO TOTAL DE TRANSPORTE DE MATERIAL (tkm)
A173: =IF(I173="P",H173,IF(I173="RP",G173,IF(I173="LN",F173,""))) -> 5914374 | B173: 4016096 | C173: =VLOOKUP(B173,'SINTÉTICO SICRO'!A:D,2,0) -> Escavação e carga de material de jazida com escavadeira hidráulica de 1,56 m³ | D173: 2.06301 | E173: tkm | F173: 5914359 | G173: 5914374 | H173: 5914389 | I173: =$B$145 -> RP | J173: =$D$145 -> 30 | K173: =IF(ISBLANK(J173),"",J173*(D173*$I$170)) -> 131937.7415
A174: =IF(I174="P",H174,IF(I174="RP",G174,IF(I174="LN",F174,""))) -> 
B175: PRINCIPAL: | C175: =C157 -> 903808
A176: =IF(I176="P",H176,IF(I176="RP",G176,IF(I176="LN",F176,""))) ->  | B176: SISTEMA DE CUSTOS REFERENCIAIS DE OBRAS - SICRO | I176: Quantitivo
B177: Custo Unitário de Referência | E177: =$C$6 -> 2025-07-01 | I177: (Coeficiente na composição principal) x (quantidade da principal no orçamento) | K177: m³
B178: 6416030 | C178: Usinagem de solo brita (70% - 30%) com material de jazida e brita comercial em usina de 300 t/h | I178: =('MOMENTO DE TRANSPORTE - PRINC'!D186*VLOOKUP(C184,'RESUMO MODULO TOTAL'!$C$9:$J$58,6,FALSE))*0.1 -> 1995
B179: F - MOMENTO DE TRANSPORTE | D179: Quantidade | E179: Unidade | F179: DMT
F180: LN | G180: RP | H180: P | I180: TIPO (P, RP ou LN) | J180: DMT ESTIMADA (km) | K180: QUANTITATIVO TOTAL DE TRANSPORTE DE MATERIAL (tkm)
A181: 5914374 | B181: 4016096 | C181: Escavação e carga de material de jazida com escavadeira hidráulica de 1,56 m³ - Caminhão basculante 10 m³ | D181: 1.44411 | E181: tkm | F181: 5914359 | G181: 5914374 | H181: 5914389 | I181: =$B$145 -> RP | J181: =$D$145 -> 30 | K181: =IF(ISBLANK(J181),"",J181*(D181*$I$178)) -> 86429.9835
A182: 5914374 | B182: M0191 | C182: Brita 1 - Caminhão basculante 10 m³ | D182: 0.6189 | E182: tkm | F182: 5914359 | G182: 5914374 | H182: 5914389 | I182: =$B$145 -> RP | J182: =$D$145 -> 30 | K182: =IF(ISBLANK(J182),"",J182*(D182*$I$178)) -> 37041.165
B184: PRINCIPAL: | C184: 4011318
B185: SISTEMA DE CUSTOS REFERENCIAIS DE OBRAS - SICRO | I185: Quantitivo
B186: Custo Unitário de Referência | E186: =$C$6 -> 2025-07-01 | I186: (Coeficiente na composição principal) x (quantidade da principal no orçamento) | K186: m³
B187: 1107892 | C187: Concreto fck = 20 MPa - confecção em betoneira e lançamento manual - areia e brita comerciais | I187: =('MOMENTO DE TRANSPORTE - PRINC'!D197*VLOOKUP(C196,'RESUMO MODULO TOTAL'!$C$9:$J$58,6,FALSE))*0.1 -> 159.6
B188: F - MOMENTO DE TRANSPORTE | D188: Quantidade | E188: Unidade | F188: DMT
F189: LN | G189: RP | H189: P | I189: TIPO (P, RP ou LN) | J189: DMT ESTIMADA (km) | K189: QUANTITATIVO TOTAL DE TRANSPORTE DE MATERIAL (tkm)
A190: =IF(I190="P",H190,IF(I190="RP",G190,IF(I190="LN",F190,""))) -> 5914464 | B190: M0030 | C190: Aditivo plastificante e retardador de pega para concreto e argamassa - Caminhão carroceria 15 t | D190: 0.00082 | E190: tkm | F190: 5914449 | G190: 5914464 | H190: 5914479 | I190: =$B$145 -> RP | J190: =$D$145 -> 30 | K190: =IF(ISBLANK(J190),"",J190*(D190*$I$187)) -> 3.92616
A191: 5914374 | B191: M0082 | C191: Areia média lavada - Caminhão basculante 10 m³ | D191: 0.95639 | E191: tkm | F191: 5914359 | G191: 5914374 | H191: 5914389 | I191: =$B$145 -> RP | J191: =$D$145 -> 30 | K191: =IF(ISBLANK(J191),"",J191*(D191*$I$187)) -> 4579.19532
A192: 5914374 | B192: M0191 | C192: Brita 1 - Caminhão basculante 10 m³ | D192: 0.55131 | E192: tkm | F192: 5914359 | G192: 5914374 | H192: 5914389 | I192: =$B$145 -> RP | J192: =$D$145 -> 30 | K192: =IF(ISBLANK(J192),"",J192*(D192*$I$187)) -> 2639.67228
A193: 5914374 | B193: M0192 | C193: Brita 2 - Caminhão basculante 10 m³ | D193: 0.55131 | E193: tkm | F193: 5914359 | G193: 5914374 | H193: 5914389 | I193: =$B$145 -> RP | J193: =$D$145 -> 30 | K193: =IF(ISBLANK(J193),"",J193*(D193*$I$187)) -> 2639.67228
A194: 5914464 | B194: M0424 | C194: Cimento Portland CP II - 32 - saco - Caminhão carroceria 15 t | D194: 0.27464 | E194: tkm | F194: 5914449 | G194: 5914464 | H194: 5914479 | I194: =$B$145 -> RP | J194: =$D$145 -> 30 | K194: =IF(ISBLANK(J194),"",J194*(D194*$I$187)) -> 1314.97632
B196: PRINCIPAL: | C196: 2003943
B197: SISTEMA DE CUSTOS REFERENCIAIS DE OBRAS - SICRO | I197: Quantitivo
B198: Custo Unitário de Referência | E198: =$C$6 -> 2025-07-01 | I198: (Coeficiente na composição principal) x (quantidade da principal no orçamento) | K198: kg
B199: 2003842 | C199: Enchimento de junta de concreto com argamassa asfáltica de densidade 1.700 kg/m³ - espessura de 1 cm | I199: =('MOMENTO DE TRANSPORTE - PRINC'!D198*VLOOKUP(C204,'RESUMO MODULO TOTAL'!$C$9:$J$58,6,FALSE))*0.1 -> 226.1
B200: F - MOMENTO DE TRANSPORTE | D200: Quantidade | E200: Unidade | F200: DMT
F201: LN | G201: RP | H201: P | I201: TIPO (P, RP ou LN) | J201: DMT ESTIMADA (km) | K201: QUANTITATIVO TOTAL DE TRANSPORTE DE MATERIAL (tkm)
A202: 5914464 | B202: M2158 | C202: Argamassa asfáltica - Caminhão carroceria com capacidade de 15 t - 188 Kw | D202: 0.001 | E202: tkm | F202: 5914449 | G202: 5914464 | H202: 5914479 | I202: =$B$145 -> RP | J202: =$D$145 -> 30 | K202: =IF(ISBLANK(J202),"",J202*(D202*$I$199)) -> 6.783
B204: PRINCIPAL: | C204: 2003943

Sheet Mob
A4: ='RESUMO MODULO TOTAL'!B62 -> SERVIÇOS DE IMPLANTAÇÃO DE PAVIMENTAÇÃO EM TRATAMENTO SUPERFICIAL DUPLO (TSD), EM VIAS URBANAS E RURAIS INSERIDAS NA ÁREA DE ATUAÇÃO DA CODEVASF, NO ESTADO DO CEARÁ
A5: MOBILIZAÇÃO/DESMOBILIZAÇÃO (MOB) | F5: Frentes de serviços | H5: ='Memória de Cálculo'!G1 -> 19
F6: Distância da Capital ao Canteiro: | H6: 192 | I6: Fica a cargo de cada SR colocar a distancia adequada de acordo com o historico de mobilização
F8: Velocidade média de transporte (pavim.): | H8: 60
A10: Transporte dos equipamentos
A11: CODIGO | B11: EQUIPAMENTO | C11: VEÍCULO TRANSPORTADOR | D11: QTDE | E11: K | F11: FU | G11: CUSTO DO TRANSPORTE
G12: (R$/h) | H12: (R$)/km
A13: E9524 | B13: =VLOOKUP(A13,Equipamentos!$A:$K,2,FALSE) -> Motoniveladora - 93 kW | C13: =IFERROR(INDEX('Tabelas 2 e 3 mob'!A:K,MATCH(A13,'Tabelas 2 e 3 mob'!A:A,0),9),"ERRO") -> E9665 | D13: 1 | E13: 2 | F13: 1 | G13: =IF(C13="Veículo(s) da própria frota.",0,INDEX(Equipamentos!B:K,MATCH(C13,Equipamentos!A:A,0),10)) -> 128.3686 | H13: =((D13*E13*F13)/$H$8)*G13 -> 4.278953333
A14: E9526 | B14: =VLOOKUP(A14,Equipamentos!$A:$K,2,FALSE) -> Retroescavadeira de pneus - capacidade da caçamba da pá-carregadeira de 0,76 m³ e da retroescavadeira de 0,29 m³ - 58 kW | C14: =IFERROR(INDEX('Tabelas 2 e 3 mob'!A:K,MATCH(A14,'Tabelas 2 e 3 mob'!A:A,0),9),"ERRO") -> E9665 | D14: 1 | E14: 2 | F14: 1 | G14: =IF(C14="Veículo(s) da própria frota.",0,INDEX(Equipamentos!B:K,MATCH(C14,Equipamentos!A:A,0),10)) -> 128.3686 | H14: =((D14*E14*F14)/$H$8)*G14 -> 4.278953333
A15: E9577 | B15: =VLOOKUP(A15,Equipamentos!$A:$K,2,FALSE) -> Trator agrícola sobre pneus - 77 kW | C15: =IFERROR(INDEX('Tabelas 2 e 3 mob'!A:K,MATCH(A15,'Tabelas 2 e 3 mob'!A:A,0),9),"ERRO") -> E9665 | D15: 1 | E15: 2 | F15: 0.5 | G15: =IF(C15="Veículo(s) da própria frota.",0,INDEX(Equipamentos!B:K,MATCH(C15,Equipamentos!A:A,0),10)) -> 128.3686 | H15: 2.139476667
A16: E9518 | B16: =VLOOKUP(A16,Equipamentos!$A:$K,2,FALSE) -> Grade de 24 discos rebocável de D = 60 cm (24") | C16: =IFERROR(INDEX('Tabelas 2 e 3 mob'!A:K,MATCH(A16,'Tabelas 2 e 3 mob'!A:A,0),9),"ERRO") -> Veículo(s) da própria frota. | D16: 1 | E16: 2 | F16: 0 | G16: =IF(C16="Veículo(s) da própria frota.",0,INDEX(Equipamentos!B:K,MATCH(C16,Equipamentos!A:A,0),10)) -> 0 | H16: 0
A17: E9615 | B17: =VLOOKUP(A17,Equipamentos!$A:$K,2,FALSE) -> Usina misturadora de solos com capacidade de 300 t/h - 44 kW | C17: =IFERROR(INDEX('Tabelas 2 e 3 mob'!A:K,MATCH(A17,'Tabelas 2 e 3 mob'!A:A,0),9),"ERRO") -> E9018 | D17: 1 | E17: 2 | F17: 2 | G17: =IF(C17="Veículo(s) da própria frota.",0,INDEX(Equipamentos!B:K,MATCH(C17,Equipamentos!A:A,0),10)) -> 162.4111 | H17: 10.82740667
A18: E9530 | B18: =VLOOKUP(A18,Equipamentos!$A:$K,2,FALSE) -> Rolo compactador liso vibratório autopropelido por pneus de 11 t - 97 kW | C18: =IFERROR(INDEX('Tabelas 2 e 3 mob'!A:K,MATCH(A18,'Tabelas 2 e 3 mob'!A:A,0),9),"ERRO") -> E9666 | D18: 1 | E18: 2 | F18: 0.5 | G18: =IF(C18="Veículo(s) da própria frota.",0,INDEX(Equipamentos!B:K,MATCH(C18,Equipamentos!A:A,0),10)) -> 140.9733 | H18: 2.349555
A19: E9558 | B19: =VLOOKUP(A19,Equipamentos!$A:$K,2,FALSE) -> Tanque de estocagem de asfalto com capacidade de 30.000 l | C19: =IFERROR(INDEX('Tabelas 2 e 3 mob'!A:K,MATCH(A19,'Tabelas 2 e 3 mob'!A:A,0),9),"ERRO") -> E9665 | D19: 1 | E19: 2 | F19: 1 | G19: =IF(C19="Veículo(s) da própria frota.",0,INDEX(Equipamentos!B:K,MATCH(C19,Equipamentos!A:A,0),10)) -> 128.3686 | H19: 4.278953333
A20: E9758 | B20: =VLOOKUP(A20,Equipamentos!$A:$K,2,FALSE) -> Vibroacabadora de asfalto sobre pneus - 97 kW | C20: =IFERROR(INDEX('Tabelas 2 e 3 mob'!A:K,MATCH(A20,'Tabelas 2 e 3 mob'!A:A,0),9),"ERRO") -> E9018 | D20: 1 | E20: 2 | F20: 0.5 | G20: =IF(C20="Veículo(s) da própria frota.",0,INDEX(Equipamentos!B:K,MATCH(C20,Equipamentos!A:A,0),10)) -> 162.4111 | H20: 2.706851667
A21: E9685 | B21: =VLOOKUP(A21,Equipamentos!$A:$K,2,FALSE) -> Rolo compactador pé de carneiro vibratório autopropelido por pneus de 11,6 t - 82 kW | C21: =IFERROR(INDEX('Tabelas 2 e 3 mob'!A:K,MATCH(A21,'Tabelas 2 e 3 mob'!A:A,0),9),"ERRO") -> E9666 | D21: 1 | E21: 2 | F21: 0.5 | G21: =IF(C21="Veículo(s) da própria frota.",0,INDEX(Equipamentos!B:K,MATCH(C21,Equipamentos!A:A,0),10)) -> 140.9733 | H21: 2.349555
A22: E9605 | B22: =VLOOKUP(A22,Equipamentos!$A:$K,2,FALSE) -> Caminhão tanque com capacidade de 6.000 l - 136 kW | C22: =IFERROR(INDEX('Tabelas 2 e 3 mob'!A:K,MATCH(A22,'Tabelas 2 e 3 mob'!A:A,0),9),"ERRO") -> E9605 | D22: 1 | E22: 1 | F22: 1 | G22: =IF(C22="Veículo(s) da própria frota.",0,INDEX(Equipamentos!B:K,MATCH(C22,Equipamentos!A:A,0),10)) -> 77.683 | H22: 1.294716667
A23: E9579 | B23: =VLOOKUP(A23,Equipamentos!$A:$K,2,FALSE) -> Caminhão basculante com capacidade de 10 m³ - 210 kW | C23: =IFERROR(INDEX('Tabelas 2 e 3 mob'!A:K,MATCH(A23,'Tabelas 2 e 3 mob'!A:A,0),9),"ERRO") -> E9579 | D23: 5 | E23: 1 | F23: 1 | G23: =IF(C23="Veículo(s) da própria frota.",0,INDEX(Equipamentos!B:K,MATCH(C23,Equipamentos!A:A,0),10)) -> 88.4993 | H23: 7.374941667
A24: E9509 | B24: =VLOOKUP(A24,Equipamentos!$A:$K,2,FALSE) -> Caminhão tanque distribuidor de asfalto com capacidade de 6.000 l - 7 kW/136 kW | C24: =IFERROR(INDEX('Tabelas 2 e 3 mob'!A:K,MATCH(A24,'Tabelas 2 e 3 mob'!A:A,0),9),"ERRO") -> E9509 | D24: 1 | E24: 1 | F24: 1 | G24: =IF(C24="Veículo(s) da própria frota.",0,INDEX(Equipamentos!B:K,MATCH(C24,Equipamentos!A:A,0),10)) -> 81.7147 | H24: 1.361911667
A25: E9762 | B25: =VLOOKUP(A25,Equipamentos!$A:$K,2,FALSE) -> Rolo compactador de pneus autopropelido de 27 t - 85 kW | C25: =IFERROR(INDEX('Tabelas 2 e 3 mob'!A:K,MATCH(A25,'Tabelas 2 e 3 mob'!A:A,0),9),"ERRO") -> E9666 | D25: 1 | E25: 2 | F25: 0.5 | G25: =IF(C25="Veículo(s) da própria frota.",0,INDEX(Equipamentos!B:K,MATCH(C25,Equipamentos!A:A,0),10)) -> 140.9733 | H25: 2.349555
A26: E9681 | B26: =VLOOKUP(A26,Equipamentos!$A:$K,2,FALSE) -> Rolo compactador liso tandem vibratório autopropelido de 10,4 t - 82 kW | C26: =IFERROR(INDEX('Tabelas 2 e 3 mob'!A:K,MATCH(A26,'Tabelas 2 e 3 mob'!A:A,0),9),"ERRO") -> E9666 | D26: 1 | E26: 2 | F26: 0.5 | G26: =IF(C26="Veículo(s) da própria frota.",0,INDEX(Equipamentos!B:K,MATCH(C26,Equipamentos!A:A,0),10)) -> 140.9733 | H26: 2.349555
A27: E9545 | B27: =VLOOKUP(A27,Equipamentos!$A:$K,2,FALSE) -> Vibroacabadora de asfalto sobre esteiras - 97 kW | C27: =IFERROR(INDEX('Tabelas 2 e 3 mob'!A:K,MATCH(A27,'Tabelas 2 e 3 mob'!A:A,0),9),"ERRO") -> E9018 | D27: 1 | E27: 2 | F27: 0.5 | G27: =IF(C27="Veículo(s) da própria frota.",0,INDEX(Equipamentos!B:K,MATCH(C27,Equipamentos!A:A,0),10)) -> 162.4111 | H27: 2.706851667
A28: E9571 | B28: =VLOOKUP(A28,Equipamentos!$A:$K,2,FALSE) -> Caminhão tanque com capacidade de 10.000 l - 188 kW | C28: =IFERROR(INDEX('Tabelas 2 e 3 mob'!A:K,MATCH(A28,'Tabelas 2 e 3 mob'!A:A,0),9),"ERRO") -> E9571 | D28: 1 | E28: 1 | F28: 1 | G28: =IF(C28="Veículo(s) da própria frota.",0,INDEX(Equipamentos!B:K,MATCH(C28,Equipamentos!A:A,0),10)) -> 90.5881 | H28: 1.509801667
A29: E9514 | B29: =VLOOKUP(A29,Equipamentos!$A:$K,2,FALSE) -> Distribuidor de agregados sobre pneus autopropelido - 130 kW | C29: =IFERROR(INDEX('Tabelas 2 e 3 mob'!A:K,MATCH(A29,'Tabelas 2 e 3 mob'!A:A,0),9),"ERRO") -> E9665 | D29: 1 | E29: 2 | F29: 0.5 | G29: =IF(C29="Veículo(s) da própria frota.",0,INDEX(Equipamentos!B:K,MATCH(C29,Equipamentos!A:A,0),10)) -> 128.3686 | H29: 2.139476667
A30: E9511 | B30: =VLOOKUP(A30,Equipamentos!$A:$K,2,FALSE) -> Carregadeira de pneus com capacidade de 3,40 m³ - 195 kW | C30: =IFERROR(INDEX('Tabelas 2 e 3 mob'!A:K,MATCH(A30,'Tabelas 2 e 3 mob'!A:A,0),9),"ERRO") -> E9665 | D30: 1 | E30: 2 | F30: 1 | G30: =IF(C30="Veículo(s) da própria frota.",0,INDEX(Equipamentos!B:K,MATCH(C30,Equipamentos!A:A,0),10)) -> 128.3686 | H30: 4.278953333
A31: E9779 | B31: =VLOOKUP(A31,Equipamentos!$A:$K,2,FALSE) -> Grupo gerador - 113 kVA | C31: =IFERROR(INDEX('Tabelas 2 e 3 mob'!A:K,MATCH(A31,'Tabelas 2 e 3 mob'!A:A,0),9),"ERRO") -> Veículo(s) da própria frota. | D31: 1 | E31: 2 | F31: 0 | G31: =IF(C31="Veículo(s) da própria frota.",0,INDEX(Equipamentos!B:K,MATCH(C31,Equipamentos!A:A,0),10)) -> 0 | H31: 0
A32: E9559 | B32: =VLOOKUP(A32,Equipamentos!$A:$K,2,FALSE) -> Aquecedor de fluido térmico - 12 kW | C32: =IFERROR(INDEX('Tabelas 2 e 3 mob'!A:K,MATCH(A32,'Tabelas 2 e 3 mob'!A:A,0),9),"ERRO") -> Veículo(s) da própria frota. | D32: 1 | E32: 2 | F32: 0 | G32: =IF(C32="Veículo(s) da própria frota.",0,INDEX(Equipamentos!B:K,MATCH(C32,Equipamentos!A:A,0),10)) -> 0 | H32: 0
A33: E9584 | B33: =VLOOKUP(A33,Equipamentos!$A:$K,2,FALSE) -> Carregadeira de pneus com capacidade de 1,72 m³ - 113 kW | C33: =IFERROR(INDEX('Tabelas 2 e 3 mob'!A:K,MATCH(A33,'Tabelas 2 e 3 mob'!A:A,0),9),"ERRO") -> E9665 | D33: 1 | E33: 2 | F33: 1 | G33: =IF(C33="Veículo(s) da própria frota.",0,INDEX(Equipamentos!B:K,MATCH(C33,Equipamentos!A:A,0),10)) -> 128.3686 | H33: 4.278953333
A34: E9021 | B34: =VLOOKUP(A34,Equipamentos!$A:$K,2,FALSE) -> Grupo gerador - 456 kVA | C34: =IFERROR(INDEX('Tabelas 2 e 3 mob'!A:K,MATCH(A34,'Tabelas 2 e 3 mob'!A:A,0),9),"ERRO") -> E9508 | D34: 1 | E34: 2 | F34: 1 | G34: =IF(C34="Veículo(s) da própria frota.",0,INDEX(Equipamentos!B:K,MATCH(C34,Equipamentos!A:A,0),10)) -> 77.1356 | H34: 2.571186667
A35: E9687 | B35: =VLOOKUP(A35,Equipamentos!$A:$K,2,FALSE) -> Caminhão carroceria com capacidade de 5 t - 120 kW | C35: =IFERROR(INDEX('Tabelas 2 e 3 mob'!A:K,MATCH(A35,'Tabelas 2 e 3 mob'!A:A,0),9),"ERRO") -> E9687 | D35: 1 | E35: 1 | F35: 1 | G35: =IF(C35="Veículo(s) da própria frota.",0,INDEX(Equipamentos!B:K,MATCH(C35,Equipamentos!A:A,0),10)) -> 66.8803 | H35: 1.114671667
A36: E9667 | B36: =VLOOKUP(A36,Equipamentos!$A:$K,2,FALSE) -> Caminhão basculante com capacidade de 14 m³ - 210 kW | C36: =IFERROR(INDEX('Tabelas 2 e 3 mob'!A:K,MATCH(A36,'Tabelas 2 e 3 mob'!A:A,0),9),"ERRO") -> E9667 | D36: 1 | E36: 1 | F36: 1 | G36: =IF(C36="Veículo(s) da própria frota.",0,INDEX(Equipamentos!B:K,MATCH(C36,Equipamentos!A:A,0),10)) -> 98.4031 | H36: 1.640051667
A37: E9644 | B37: =VLOOKUP(A37,Equipamentos!$A:$K,2,FALSE) -> Caminhão demarcador de faixas com sistema de pintura a frio - 28 kW/129 kW | C37: =IFERROR(INDEX('Tabelas 2 e 3 mob'!A:K,MATCH(A37,'Tabelas 2 e 3 mob'!A:A,0),9),"ERRO") -> E9644 | D37: 1 | E37: 1 | F37: 1 | G37: =IF(C37="Veículo(s) da própria frota.",0,INDEX(Equipamentos!B:K,MATCH(C37,Equipamentos!A:A,0),10)) -> 171.1495 | H37: 2.852491667
A38: E9592 | B38: =VLOOKUP(A38,Equipamentos!$A:$K,2,FALSE) -> Caminhão carroceria com capacidade de 15 t - 188 kW | C38: =IFERROR(INDEX('Tabelas 2 e 3 mob'!A:K,MATCH(A38,'Tabelas 2 e 3 mob'!A:A,0),9),"ERRO") -> E9592 | D38: 1 | E38: 1 | F38: 1 | G38: =IF(C38="Veículo(s) da própria frota.",0,INDEX(Equipamentos!B:K,MATCH(C38,Equipamentos!A:A,0),10)) -> 85.6114 | H38: 1.426856667
A39: E9540 | B39: =VLOOKUP(A39,Equipamentos!$A:$K,2,FALSE) -> Trator sobre esteiras com lâmina - 127 kW | C39: =IFERROR(INDEX('Tabelas 2 e 3 mob'!A:K,MATCH(A39,'Tabelas 2 e 3 mob'!A:A,0),9),"ERRO") -> E9018 | D39: 1 | E39: 2 | F39: 0.5 | G39: =IF(C39="Veículo(s) da própria frota.",0,INDEX(Equipamentos!B:K,MATCH(C39,Equipamentos!A:A,0),10)) -> 162.4111 | H39: 2.706851667
A40: E9515 | B40: =VLOOKUP(A40,Equipamentos!$A:$K,2,FALSE) -> Escavadeira hidráulica sobre esteiras com caçamba com capacidade de 1,56 m³ - 118 kW | C40: =IFERROR(INDEX('Tabelas 2 e 3 mob'!A:K,MATCH(A40,'Tabelas 2 e 3 mob'!A:A,0),9),"ERRO") -> E9666 | D40: 1 | E40: 2 | F40: 1 | G40: =IF(C40="Veículo(s) da própria frota.",0,INDEX(Equipamentos!B:K,MATCH(C40,Equipamentos!A:A,0),10)) -> 140.9733 | H40: 4.69911
A41: E9506 | B41: =VLOOKUP(A41,Equipamentos!$A:$K,2,FALSE) -> Caminhão basculante com capacidade de 6 m³ - 136 kW | C41: =IFERROR(INDEX('Tabelas 2 e 3 mob'!A:K,MATCH(A41,'Tabelas 2 e 3 mob'!A:A,0),9),"ERRO") -> E9506 | D41: 1 | E41: 1 | F41: 1 | G41: =IF(C41="Veículo(s) da própria frota.",0,INDEX(Equipamentos!B:K,MATCH(C41,Equipamentos!A:A,0),10)) -> 78.0846 | H41: 1.30141
A42: E9256 | B42: =VLOOKUP(A42,Equipamentos!$A:$K,2,FALSE) -> Equipamento para pintura com cal rebocável com dois bicos aplicadores e capacidade de 2.200 l | C42: =IFERROR(INDEX('Tabelas 2 e 3 mob'!A:K,MATCH(A42,'Tabelas 2 e 3 mob'!A:A,0),9),"ERRO") -> Veículo(s) da própria frota. | D42: 1 | E42: 2 | F42: 0 | G42: =IF(C42="Veículo(s) da própria frota.",0,INDEX(Equipamentos!B:K,MATCH(C42,Equipamentos!A:A,0),10)) -> 0 | H42: 0
A43: E9156 | B43: =VLOOKUP(A43,Equipamentos!$A:$K,2,FALSE) -> Soprador de ar costal - 2,6 kW | C43: =IFERROR(INDEX('Tabelas 2 e 3 mob'!A:K,MATCH(A43,'Tabelas 2 e 3 mob'!A:A,0),9),"ERRO") -> Veículo(s) da própria frota. | D43: 1 | E43: 2 | F43: 0 | G43: =IF(C43="Veículo(s) da própria frota.",0,INDEX(Equipamentos!B:K,MATCH(C43,Equipamentos!A:A,0),10)) -> 0 | H43: 0
A44: E9146 | B44: =VLOOKUP(A44,Equipamentos!$A:$K,2,FALSE) -> Caminhão silo com capacidade de 30 m³ - 368 kW | C44: =IFERROR(INDEX('Tabelas 2 e 3 mob'!A:K,MATCH(A44,'Tabelas 2 e 3 mob'!A:A,0),9),"ERRO") -> E9146 | D44: 1 | E44: 1 | F44: 1 | G44: =IF(C44="Veículo(s) da própria frota.",0,INDEX(Equipamentos!B:K,MATCH(C44,Equipamentos!A:A,0),10)) -> 138.837 | H44: 2.31395
A45: E9599 | B45: =VLOOKUP(A45,Equipamentos!$A:$K,2,FALSE) -> Central de concreto com capacidade de 30 m³/h - dosadora RS | C45: =IFERROR(INDEX('Tabelas 2 e 3 mob'!A:K,MATCH(A45,'Tabelas 2 e 3 mob'!A:A,0),9),"ERRO") -> E9018 | D45: 1 | E45: 2 | F45: 1 | G45: =IF(C45="Veículo(s) da própria frota.",0,INDEX(Equipamentos!B:K,MATCH(C45,Equipamentos!A:A,0),10)) -> 162.4111 | H45: 5.413703333
A46: E9103 | B46: =VLOOKUP(A46,Equipamentos!$A:$K,2,FALSE) -> Extrusora para meio-fio de concreto - 10,44 kW | C46: =IFERROR(INDEX('Tabelas 2 e 3 mob'!A:K,MATCH(A46,'Tabelas 2 e 3 mob'!A:A,0),9),"ERRO") -> Veículo(s) da própria frota. | D46: 1 | E46: 2 | F46: 0 | G46: =IF(C46="Veículo(s) da própria frota.",0,INDEX(Equipamentos!B:K,MATCH(C46,Equipamentos!A:A,0),10)) -> 0 | H46: 0
A47: E9071 | B47: =VLOOKUP(A47,Equipamentos!$A:$K,2,FALSE) -> Transportador manual carrinho de mão com capacidade de 80 l | C47: =IFERROR(INDEX('Tabelas 2 e 3 mob'!A:K,MATCH(A47,'Tabelas 2 e 3 mob'!A:A,0),9),"ERRO") -> Veículo(s) da própria frota. | D47: 0 | E47: 2 | F47: 0 | G47: =IF(C47="Veículo(s) da própria frota.",0,INDEX(Equipamentos!B:K,MATCH(C47,Equipamentos!A:A,0),10)) -> 0 | H47: 0
A48: E9064 | B48: =VLOOKUP(A48,Equipamentos!$A:$K,2,FALSE) -> Transportador manual gerica com capacidade de 180 l | C48: =IFERROR(INDEX('Tabelas 2 e 3 mob'!A:K,MATCH(A48,'Tabelas 2 e 3 mob'!A:A,0),9),"ERRO") -> Veículo(s) da própria frota. | D48: 0 | E48: 2 | F48: 0 | G48: =IF(C48="Veículo(s) da própria frota.",0,INDEX(Equipamentos!B:K,MATCH(C48,Equipamentos!A:A,0),10)) -> 0 | H48: 0
A49: E9066 | B49: =VLOOKUP(A49,Equipamentos!$A:$K,2,FALSE) -> Grupo gerador - 14 kVA | C49: =IFERROR(INDEX('Tabelas 2 e 3 mob'!A:K,MATCH(A49,'Tabelas 2 e 3 mob'!A:A,0),9),"ERRO") -> Veículo(s) da própria frota. | D49: 0 | E49: 2 | F49: 0 | G49: =IF(C49="Veículo(s) da própria frota.",0,INDEX(Equipamentos!B:K,MATCH(C49,Equipamentos!A:A,0),10)) -> 0 | H49: 0
A50: E9535 | B50: =VLOOKUP(A50,Equipamentos!$A:$K,2,FALSE) -> Serra circular com bancada - D = 30 cm - 4 kW | C50: =IFERROR(INDEX('Tabelas 2 e 3 mob'!A:K,MATCH(A50,'Tabelas 2 e 3 mob'!A:A,0),9),"ERRO") -> Veículo(s) da própria frota. | D50: 0 | E50: 2 | F50: 0 | G50: =IF(C50="Veículo(s) da própria frota.",0,INDEX(Equipamentos!B:K,MATCH(C50,Equipamentos!A:A,0),10)) -> 0 | H50: 0
A51: E9507 | B51: =VLOOKUP(A51,Equipamentos!$A:$K,2,FALSE) -> Plotadora de recorte com computador e programa computacional | C51: =IFERROR(INDEX('Tabelas 2 e 3 mob'!A:K,MATCH(A51,'Tabelas 2 e 3 mob'!A:A,0),9),"ERRO") -> Veículo(s) da própria frota. | D51: 0 | E51: 2 | F51: 0 | G51: =IF(C51="Veículo(s) da própria frota.",0,INDEX(Equipamentos!B:K,MATCH(C51,Equipamentos!A:A,0),10)) -> 0 | H51: 0
A52: E9568 | B52: =VLOOKUP(A52,Equipamentos!$A:$K,2,FALSE) -> Furadeira de impacto de 12,5 mm - 0,80 kW | C52: =IFERROR(INDEX('Tabelas 2 e 3 mob'!A:K,MATCH(A52,'Tabelas 2 e 3 mob'!A:A,0),9),"ERRO") -> Veículo(s) da própria frota. | D52: 0 | E52: 2 | F52: 0 | G52: =IF(C52="Veículo(s) da própria frota.",0,INDEX(Equipamentos!B:K,MATCH(C52,Equipamentos!A:A,0),10)) -> 0 | H52: 0
A53: E9753 | B53: =VLOOKUP(A53,Equipamentos!$A:$K,2,FALSE) -> Grupo gerador - 23 kVA | C53: =IFERROR(INDEX('Tabelas 2 e 3 mob'!A:K,MATCH(A53,'Tabelas 2 e 3 mob'!A:A,0),9),"ERRO") -> Veículo(s) da própria frota. | D53: 0 | E53: 2 | F53: 0 | G53: =IF(C53="Veículo(s) da própria frota.",0,INDEX(Equipamentos!B:K,MATCH(C53,Equipamentos!A:A,0),10)) -> 0 | H53: 0
A54: E9623 | B54: =VLOOKUP(A54,Equipamentos!$A:$K,2,FALSE) -> Máquina de bancada guilhotina - 4,00 kW | C54: =IFERROR(INDEX('Tabelas 2 e 3 mob'!A:K,MATCH(A54,'Tabelas 2 e 3 mob'!A:A,0),9),"ERRO") -> Veículo(s) da própria frota. | D54: 0 | E54: 2 | F54: 0 | G54: =IF(C54="Veículo(s) da própria frota.",0,INDEX(Equipamentos!B:K,MATCH(C54,Equipamentos!A:A,0),10)) -> 0 | H54: 0
A55: E9622 | B55: =VLOOKUP(A55,Equipamentos!$A:$K,2,FALSE) -> Máquina de bancada universal para corte de chapa - 1,50 kW | C55: =IFERROR(INDEX('Tabelas 2 e 3 mob'!A:K,MATCH(A55,'Tabelas 2 e 3 mob'!A:A,0),9),"ERRO") -> Veículo(s) da própria frota. | D55: 0 | E55: 2 | F55: 0 | G55: =IF(C55="Veículo(s) da própria frota.",0,INDEX(Equipamentos!B:K,MATCH(C55,Equipamentos!A:A,0),10)) -> 0 | H55: 0
A56: E9678 | B56: =VLOOKUP(A56,Equipamentos!$A:$K,2,FALSE) -> Fresadora a frio - 455 kW | C56: =IFERROR(INDEX('Tabelas 2 e 3 mob'!A:K,MATCH(A56,'Tabelas 2 e 3 mob'!A:A,0),9),"ERRO") -> E9666 | D56: 0 | E56: 2 | F56: 1 | G56: =IF(C56="Veículo(s) da própria frota.",0,INDEX(Equipamentos!B:K,MATCH(C56,Equipamentos!A:A,0),10)) -> 140.9733 | H56: 0
G57: TOTAL | H57: =SUM(H13:H56) -> 88.894705
A60: CUSTO TOTAL MOBILIZAÇÃO E DESMOBILIZAÇÃO
A61: DESCRIÇÃO | B61: VALOR
A62: Custo Mobilização (km) | B62: =H57 -> 88.894705
A63: BDI (%) | B63: =BDI!C13 -> 0.2206
A64: Custo Mobilização (R$/km) com BDI | B64: =B62+(B62*B63) -> 108.5048769
A65: Total de Frentes | B65: ='Memória de Cálculo'!G1 -> 19
A66: Custo Mobilização (frentes x distancia) | B66: =B64*H6*B65 -> 395825.791

Sheet Canteiro
A4: CANTEIRO DE OBRAS PARA CONSTRUÇAO RODOVIÁRIA
A5: Descrição dos serviços | B5: Tipo de container | C5: Unidade | D5: Quantidade | E5: Preço unitário (R$) | F5: Total (R$)
A6: Escritório e seção técnica
A7: =VLOOKUP(B7,'INSUMOS SINAPI'!$B:$F,2,0) -> LOCACAO DE CONTAINER 2,30 X 6,00 M, ALT. 2,50 M, PARA ESCRITORIO, SEM DIVISORIAS INTERNAS E SEM SANITARIO (NAO INCLUI MOBILIZACAO/DESMOBILIZACAO) | B7: 10776 | C7: und | D7: 1 | E7: =VLOOKUP(B7,'INSUMOS SINAPI'!$B:$F,5,0) -> 1171.87 | F7: =TRUNC(D7*E7,2) -> 1171.87
A8: Banheiro e vestiário
A9: =VLOOKUP(B9,'INSUMOS SINAPI'!$B:$F,2,0) -> LOCACAO DE CONTAINER 2,30 X 4,30 M, ALT. 2,50 M, PARA SANITARIO, COM 3 BACIAS, 4 CHUVEIROS, 1 LAVATORIO E 1 MICTORIO (NAO INCLUI MOBILIZACAO/DESMOBILIZACAO) | B9: 10777 | C9: und | D9: 1 | E9: =VLOOKUP(B9,'INSUMOS SINAPI'!$B:$F,5,0) -> 1703.12 | F9: =TRUNC(D9*E9,2) -> 1703.12
D10: TOTAL DO CANTEIRO | F10: =SUM(F7:F9) -> 2874.99
D11: DURAÇÃO (MESES) | E11: 12 | F11: =F10*E11 -> 34499.88
D12: BDI | F12: =BDI!C13 -> 0.2206
D13: TOTAL DO CANTEIRO (com BDI) | F13: =F11+(F11*F12) -> 42110.55353

Sheet Adm Local
A4: parcela fixa da administração local (mão de obra)
A5: Código | B5: Discriminação | C5: Unidade | D5: Quantidade | F5: Custo Unitário (R$) | H5: Custo Total (R$)
B6: Mão de Obra
B7: Gerência Técnica
B8: Geral
A9: P9955 | B9: Engenheiro chefe | C9: mês | D9: 0.5 | F9: =VLOOKUP(A9,'Pessoal Sicro'!A:D,4,0) -> 31581.5059 | H9: =F9*D9 -> 15790.75295
A10: P9840 | B10: Encarregado geral | C10: mês | D10: 0.5 | F10: =VLOOKUP(A10,'Pessoal Sicro'!A:D,4,0) -> 11842.5433 | H10: =F10*D10 -> 5921.27165
A11: P9897 | B11: Técnico de meio ambiente | C11: mês | D11: 0 | F11: =VLOOKUP(A11,'Pessoal Sicro'!A:D,4,0) -> 7967.5844 | H11: =F11*D11 -> 0
A12: P9948 | B12: Motorista | C12: mês | D12: 0 | F12: =VLOOKUP(A12,'Pessoal Sicro'!A:D,4,0) -> 5700.4662 | H12: =F12*D12 -> 0
A13: P9878 | B13: Secretária | C13: mês | D13: 0 | F13: =VLOOKUP(A13,'Pessoal Sicro'!A:D,4,0) -> 6804.0415 | H13: =F13*D13 -> 0
F14: Subtotal do Item 1.1 | H14: =SUM(H9:I13) -> 21712.0246
B15: Auxiliar
A16: P9946 | B16: Engenheiro auxiliar | C16: mês | D16: 1 | F16: =VLOOKUP(A16,'Pessoal Sicro'!A:D,4,0) -> 23596.8902 | H16: =D16*F16 -> 23596.8902
A17: P9903 | B17: Auxiliar técnico | C17: mês | D17: 0 | F17: =VLOOKUP(A17,'Pessoal Sicro'!A:D,4,0) -> 4770.2828 | H17: =D17*F17 -> 0
F18: Subtotal do Item 1.2 | H18: =SUM(H16:I17) -> 23596.8902
B19: Gerência Administrativa
B20: Geral
A21: P9883 | B21: Chefe do setor administrativo | C21: mês | D21: 1 | F21: =VLOOKUP(A21,'Pessoal Sicro'!A:D,4,0) -> 7661.4187 | H21: =F21*D21 -> 7661.4187
A22: P9809 | B22: Encarregado administrativo | C22: mês | D22: 0 | F22: =VLOOKUP(A22,'Pessoal Sicro'!A:D,4,0) -> 7661.3137 | H22: =F22*D22 -> 0
A23: P9896 | B23: Porteiro | C23: mês | D23: 0 | F23: =VLOOKUP(A23,'Pessoal Sicro'!A:D,4,0) -> 4111.7836 | H23: =F23*D23 -> 0
A24: P9827 | B24: Vigia | C24: mês | D24: 0 | F24: =VLOOKUP(A24,'Pessoal Sicro'!A:D,4,0) -> 5270.4444 | H24: =F24*D24 -> 0
A25: P9948 | B25: Motorista | C25: mês | D25: 0 | F25: =VLOOKUP(A25,'Pessoal Sicro'!A:D,4,0) -> 5700.4662 | H25: =F25*D25 -> 0
F26: Subtotal do Item 1.3 | H26: =SUM(H21:I25) -> 7661.4187
B27: Auxiliar
A28: P9806 | B28: Auxiliar administrativo | C28: mês | D28: 1 | F28: =VLOOKUP(A28,'Pessoal Sicro'!A:D,4,0) -> 4450.8519 | H28: =F28*D28 -> 4450.8519
A29: P9842 | B29: Faxineiro | C29: mês | D29: 0 | F29: =VLOOKUP(A29,'Pessoal Sicro'!A:D,4,0) -> 4119.051 | H29: =F29*D29 -> 0
F30: Subtotal do Item 1.4 | H30: =SUM(H28:I29) -> 4450.8519
H31: Total da Mão de Obra da Parcela Fixa | I31: =H30+H26+H18+H14 -> 57421.1854
A33: parcela fixa da administração local (veículos)
A34: Código | B34: Discriminação | C34: Unidade | D34: Quantidade | E34: Utilização Produtiva | F34: Utilização Improdutiva | G34: Custo Horário Produtivo (R$) | H34: Custo Horário Improdutivo (R$) | I34: Custo Total (R$)
A35: 2 | B35: Veículos
B36: Gerência Técnica
A37: 2.1 | B37: Geral
A38: E9093 | B38: Veículo Leve 53 kw | C38: mês | D38: 1 | E38: 44 | F38: 176 | G38: =VLOOKUP(A38,Equipamentos!$A$4:$K$541,10,0) -> 37.7869 | H38: =VLOOKUP(A38,Equipamentos!$A$4:$K$541,11,0) -> 6.661 | I38: =((E38*G38)+(F38*H38))*D38 -> 2834.9596
A39: E9560 | B39: Ônibus coletivo - 175 kw | C39: mês | D39: 0 | E39: 44 | F39: 176 | G39: =VLOOKUP(A39,Equipamentos!$A$4:$K$541,10,0) -> 362.7329 | H39: =VLOOKUP(A39,Equipamentos!$A$4:$K$541,11,0) -> 107.9028 | I39: =((E39*G39)+(F39*H39))*D39 -> 0
H40: Subtotal do Item 2 | I40: =SUM(I38:I39) -> 2834.9596
A41: 2.2 | B41: Auxiliar
A42: E9093 | B42: Veículo Leve 53 kw | C42: mês | D42: 0 | E42: 44 | F42: 176 | G42: =G38 -> 37.7869 | H42: =H38 -> 6.661 | I42: =((E42*G42)+(F42*H42))*D42 -> 0
H43: Subtotal do Item 2 | I43: =SUM(I42) -> 0
A44: 2.3 | B44: Gerência Administrativa
A45: E9093 | B45: Veículo Leve 53 kw | C45: mês | D45: 0 | E45: 44 | F45: 176 | G45: =G38 -> 37.7869 | H45: =H38 -> 6.661 | I45: =((E45*G45)+(F45*H45))*D45 -> 0
H46: Subtotal do Item 2 | I46: =I45 -> 0
H47: Total dos Veículos da Parcela Fixa | I47: =I46+I43+I40 -> 2834.9596
A49: Composição de custo da equipe de produção de terraplenagem
A50: Código | B50: Discriminação | C50: Unidade | D50: Quantidade | F50: Custo Unitário (R$) | H50: Custo Total (R$)
B51: Equipe de Produção de Terraplenagem
A52: 3.1 | B52: Mão de Obra
A53: P9893 | B53: Encarregado de produção | C53: mês | D53: 1 | F53: =VLOOKUP(A53,'Pessoal Sicro'!A:G,4,0) -> 8326.019 | H53: =F53*D53 -> 8326.019
F54: Subtotal do Item 3.1 | H54: =SUM(H53:H53) -> 8326.019
A55: Código | B55: Discriminação | C55: Unidade | D55: Quantidade | E55: Utilização Produtiva | F55: Utilização Improdutiva | G55: Custo Horário Produtivo (R$) | H55: Custo Horário Improdutivo (R$) | I55: Custo Total (R$)
A56: 3.2 | B56: Veículos
B57: Veículo Leve 53 kw | C57: mês | D57: 1 | E57: 44 | F57: 176 | G57: =G38 -> 37.7869 | H57: =H38 -> 6.661 | I57: =((E57*G57)+(F57*H57))*D57 -> 2834.9596
H58: Subtotal do Item 3.2 | I58: =SUM(I57:I57) -> 2834.9596
H59: Total da Equipe de Produção de Terraplenagem | I59: =I58+H54 -> 11160.9786
A61: Composição de custo da equipe de produção de pavimentação
A62: Código | B62: Discriminação | C62: Unidade | D62: Quantidade | F62: Custo Unitário (R$) | H62: Custo Total (R$)
B63: Equipe de Produção de Pavimentação
A64: 3.1 | B64: Mão de Obra
A65: P9893 | B65: Encarregado de produção | C65: mês | D65: 1 | F65: =VLOOKUP(A65,'Pessoal Sicro'!A:G,4,0) -> 8326.019 | H65: =F65*D65 -> 8326.019
F66: Subtotal do Item 3.1 | H66: =SUM(H65:H65) -> 8326.019
A67: Código | B67: Discriminação | C67: Unidade | D67: Quantidade | E67: Utilização Produtiva | F67: Utilização Improdutiva | G67: Custo Horário Produtivo (R$) | H67: Custo Horário Improdutivo (R$) | I67: Custo Total (R$)
A68: 3.2 | B68: Veículos
B69: Veículo Leve 53 kw | C69: mês | D69: 1 | E69: 44 | F69: 176 | G69: =$G$38 -> 37.7869 | H69: =$H$38 -> 6.661 | I69: =((E69*G69)+(F69*H69))*D69 -> 2834.9596
H70: Subtotal do Item 3.2 | I70: =SUM(I69:I69) -> 2834.9596
H71: Total da Equipe de Produção de Pavimentação | I71: =I70+H66 -> 11160.9786
A73: Composição de custo da equipe de produção de drenagem
A74: Código | B74: Discriminação | C74: Unidade | D74: Quantidade | F74: Custo Unitário (R$) | H74: Custo Total (R$)
B75: Equipe de Produção de Pavimentação
A76: 3.1 | B76: Mão de Obra
A77: P9893 | B77: Encarregado de produção | C77: mês | D77: 1 | F77: =VLOOKUP(A77,'Pessoal Sicro'!A:G,4,0) -> 8326.019 | H77: =F77*D77 -> 8326.019
F78: Subtotal do Item 3.1 | H78: =SUM(H77:H77) -> 8326.019
A79: Código | B79: Discriminação | C79: Unidade | D79: Quantidade | E79: Utilização Produtiva | F79: Utilização Improdutiva | G79: Custo Horário Produtivo (R$) | H79: Custo Horário Improdutivo (R$) | I79: Custo Total (R$)
A80: 3.2 | B80: Veículos
B81: Veículo Leve 53 kw | C81: mês | D81: 1 | E81: 44 | F81: 176 | G81: =$G$38 -> 37.7869 | H81: =$H$38 -> 6.661 | I81: =((E81*G81)+(F81*H81))*D81 -> 2834.9596
H82: Subtotal do Item 3.2 | I82: =SUM(I81:I81) -> 2834.9596
H83: Total da Equipe de Produção de Pavimentação | I83: =I82+H78 -> 11160.9786
A85: Composição de custo da equipe de produção de sinalização
A86: Código | B86: Discriminação | C86: Unidade | D86: Quantidade | F86: Custo Unitário (R$) | H86: Custo Total (R$)
B87: Equipe de Produção de Pavimentação
A88: 3.1 | B88: Mão de Obra
A89: P9893 | B89: Encarregado de produção | C89: mês | D89: 1 | F89: =VLOOKUP(A89,'Pessoal Sicro'!A:G,4,0) -> 8326.019 | H89: =F89*D89 -> 8326.019
F90: Subtotal do Item 3.1 | H90: =SUM(H89:H89) -> 8326.019
A91: Código | B91: Discriminação | C91: Unidade | D91: Quantidade | E91: Utilização Produtiva | F91: Utilização Improdutiva | G91: Custo Horário Produtivo (R$) | H91: Custo Horário Improdutivo (R$) | I91: Custo Total (R$)
A92: 3.2 | B92: Veículos
B93: Veículo Leve 53 kw | C93: mês | D93: 1 | E93: 44 | F93: 176 | G93: =$G$38 -> 37.7869 | H93: =$H$38 -> 6.661 | I93: =((E93*G93)+(F93*H93))*D93 -> 2834.9596
H94: Subtotal do Item 3.2 | I94: =SUM(I93:I93) -> 2834.9596
H95: Total da Equipe de Produção de Pavimentação | I95: =I94+H90 -> 11160.9786
A97: Composição de custo da equipe topografia
A98: Código | B98: Discriminação | C98: Unidade | D98: Quantidade | F98: Custo Unitário (R$) | H98: Custo Total (R$)
B99: Equipe de Topografia
A100: 3.1 | B100: Mão de Obra
A101: P9949 | B101: Topográfo | C101: mês | D101: 1 | F101: =VLOOKUP(A101,'Pessoal Sicro'!A:G,4,0) -> 8842.8627 | H101: =F101*D101 -> 8842.8627
A102: P9950 | B102: Auxiliar de topografia | C102: mês | D102: 1 | F102: =VLOOKUP(A102,'Pessoal Sicro'!A:G,4,0) -> 5752.7159 | H102: =F102*D102 -> 5752.7159
F103: Subtotal do Item 3.1 | H103: =SUM(H101:I102) -> 14595.5786
A104: Código | B104: Discriminação | C104: Unidade | D104: Quantidade | E104: Utilização Produtiva | F104: Utilização Improdutiva | G104: Custo Horário Produtivo (R$) | H104: Custo Horário Improdutivo (R$) | I104: Custo Total (R$)
A105: 3.2 | B105: Veículos
B106: Veículo Leve 53 kw | C106: mês | D106: 1 | E106: 44 | F106: 176 | G106: =G38 -> 37.7869 | H106: =H38 -> 6.661 | I106: =((E106*G106)+(F106*H106))*D106 -> 2834.9596
H107: Subtotal do Item 3.2 | I107: =SUM(I106:I106) -> 2834.9596
H108: Total da Equipe de Produção de Topografia | I108: =I107+H103 -> 17430.5382
A110: Composição de custo do setor de medicina e segurança do trabalho
A111: Código | B111: Discriminação | C111: Unidade | D111: Quantidade | F111: Custo Unitário (R$) | H111: Custo Total (R$)
A112: 4 | B112: Setor de Medicina e Segurança do Trabalho
A113: P9876 | B113: Técnico de segurança do trabalho | C113: mês | D113: 1 | F113: =VLOOKUP(A113,'Pessoal Sicro'!A:G,4,0) -> 7384.0628 | H113: =F113*D113 -> 7384.0628
A114: P9864 | B114: Engenheiro de segurança do trabalho | C114: mês | D114: 0 | F114: =VLOOKUP(A114,'Pessoal Sicro'!A:G,4,0) -> 24424.838 | H114: =F114*D114 -> 0
A115: P9851 | B115: Médico do trabalho | C115: mês | D115: 0 | F115: =VLOOKUP(A115,'Pessoal Sicro'!A:G,4,0) -> 18579.8422 | H115: =F115*D115 -> 0
A116: P9951 | B116: Médico de câmara hiperbárica | C116: mês | D116: 0 | F116: =VLOOKUP(A116,'Pessoal Sicro'!A:G,4,0) -> 21152.0773 | H116: =F116*D116 -> 0
F117: Subtotal do Item 4 | H117: =SUM(H113:I116) -> 7384.0628
A119: Parcela Variável - Composição de custo da equipe de frente de serviço
A120: Código | B120: Discriminação | C120: Unidade | D120: Quantidade | F120: Custo Unitário (R$) | H120: Custo Total (R$)
A121: 5 | B121: Equipe de Frente de Serviço | C121: equipexmês
A122: P9875 | B122: Encarregado de Turma | C122: mês | D122: 1 | F122: =VLOOKUP(A122,'Pessoal Sicro'!A:G,4,0) -> 7431.4238 | H122: =F122*D122 -> 7431.4238
A123: P9804 | B123: Apontador | C123: mês | D123: 0.5 | F123: =VLOOKUP(A123,'Pessoal Sicro'!A:G,4,0) -> 5564.5409 | H123: =F123*D123 -> 2782.27045
F124: Subtotal do Item 5 | H124: =SUM(H122:I123) -> 10213.69425
A126: Parcela Variável - Composição de custo da equipe de frente de serviço (Terraplenagem) - Somente Compactação
A127: Código | B127: Discriminação | C127: Unidade | D127: Quantidade | F127: Produção Horária (und/h) | H127: Efs
A128: 5.1 | B128: Equipe de Frente de Serviço | C128: equipexmês
C129: mês | H129: =(D129)/(F129*182.49) -> 
C130: mês | H130: =(D130)/(F130*182.49) -> 
C131: mês | H131: =(D131)/(F131*182.49) -> 
F132: Total de Equipes para Terraplenagem | H132: =SUM(H131:I131) -> 
A134: Parcela Variável - Composição de custo da acompanhamento das frentes de serviço de pavimentação
A135: Código | B135: Discriminação | C135: Unidade | D135: Quantidade | F135: Produção Horária (und/h) | H135: Efs
A136: 5.2 | B136: Equipe de Frente de Serviço | C136: equipe x mês
A137: 4915637 | B137: =VLOOKUP(A137,'SINTÉTICO SICRO'!$A$4:$D$6373,2,0) -> Capa selante - areia comercial | C137: m² | D137: ='RESUMO MODULO TOTAL'!H23 -> 133000 | F137: 1350 | H137: =(D137)/(F137*182.49) -> 0.5398570799
A138: 4011370 | B138: =VLOOKUP(A138,'SINTÉTICO SICRO'!$A$4:$D$6373,2,0) -> Tratamento superficial duplo com emulsão - brita comercial | C138: m² | D138: ='RESUMO MODULO TOTAL'!H24 -> 133000 | F138: 1125 | H138: 0.6478284959
A139: 4011352 | B139: =VLOOKUP(A139,'SINTÉTICO SICRO'!$A$4:$D$6373,2,0) -> Imprimação com emulsão asfáltica | C139: m² | D139: ='RESUMO MODULO TOTAL'!H25 -> 133000 | F139: 1500 | H139: 0.4858713719
A140: 4011318 | B140: =VLOOKUP(A140,'SINTÉTICO SICRO'!$A$4:$D$6373,2,0) -> Base ou sub-base estabilizada granulometricamente com mistura solo brita (70% - 30%) em usina com material de jazida e brita comercial - 100% Proctor modificado | C140: m³ | D140: ='RESUMO MODULO TOTAL'!H26 -> 19950 | F140: 120.7 | H140: 0.9057254241
A141: 4011209 | B141: =VLOOKUP(A141,'SINTÉTICO SICRO'!$A$4:$D$6373,2,0) -> Regularização do subleito - 100% Proctor intermediário | C141: m² | D141: ='RESUMO MODULO TOTAL'!H27 -> 19950 | F141: 1121.33 | H141: 0.09749231599
F142: Total de Equipes para Pavimentação | H142: =SUM(H137:I141) -> 2.676774688
A144: Parcela Variável - Composição de custo da acompanhamento das frentes de serviço de drenagem
A145: Código | B145: Discriminação | C145: Unidade | D145: Quantidade | F145: Efsdu | H145: Efs
A146: 5.3 | B146: Frentes de Serviço para Drenagem | C146: equipe x mês
A147: 2003943 | B147: =VLOOKUP(A147,'SINTÉTICO SICRO'!$A$4:$D$6373,2,0) -> Meio-fio de concreto - MFC 03 moldado no local com extrusora e concreto usinado - areia e brita comerciais | C147: m | D147: ='RESUMO MODULO TOTAL'!H40 -> 38000 | F147: 0.00021 | H147: =D147*F147 -> 7.98
F148: Total de Equipes para Drenagem | H148: =H147 -> 7.98
A150: Parcela Variável - Composição de custo da acompanhamento das frentes de serviço de sinalização
A151: Código | B151: Discriminação | C151: Unidade | D151: Quantidade | F151: Produção Horária (und/h) | H151: Efs
A152: 5.4 | B152: Frentes de Serviço para Sinalização | C152: equipe x mês
A153: 5213440 | B153: =VLOOKUP(A153,'SINTÉTICO SICRO'!$A$4:$D$6373,2,0) -> Placa de regulamentação em aço D = 0,60 m - película retrorrefletiva tipo I + SI - fornecimento e implantação | D153: ='RESUMO MODULO TOTAL'!H35 -> 57 | F153: 3 | H153: =0.2*((D153)/(F153*182.49)) -> 0.0208230588
A154: 5213464 | B154: =VLOOKUP(A154,'SINTÉTICO SICRO'!$A$4:$D$6373,2,0) -> Placa de advertência em aço, lado de 0,60 m - película retrorrefletiva tipo I + SI - fornecimento e implantação | D154: ='RESUMO MODULO TOTAL'!H36 -> 57 | F154: 4.1 | H154: =0.2*((D154)/(F154*182.49)) -> 0.01523638449
A155: 5213863 | B155: =VLOOKUP(A155,'SINTÉTICO SICRO'!$A$4:$D$6373,2,0) -> Suporte metálico galvanizado para placa de advertência ou regulamentação - lado ou diâmetro de 0,60 m - fornecimento e implantação | D155: ='RESUMO MODULO TOTAL'!H37 -> 114 | F155: 4.1 | H155: =0.2*((D155)/(F155*182.49)) -> 0.03047276897
A156: 5213400 | B156: =VLOOKUP(A156,'SINTÉTICO SICRO'!$A$4:$D$6373,2,0) -> Pintura de faixa com tinta acrílica - espessura de 0,4 mm | D156: ='RESUMO MODULO TOTAL'!H38 -> 4560 | F156: 177.07 | H156: 0.02822349416
F157: Total de Equipes para Sinalização | H157: =SUM(H153:I156) -> 0.09475570642 | J157: =H157+H148 -> 8.074755706
A159: 3. PARCELA VARIÁVEL - EQUIPE DE CONTROLE TECNOLÓGICO
A160: LABORATÓRIO DE SOLOS
A161: Item | B161: Discriminação | F161: Unidade | G161: Quantidade | H161: Custo Unitário (R$) | I161: Custo Total (R$)
B162: Laboratório de Solos (equipe x mês)
B163: Mão de Obra
A164: P9858 | B164: Laboratorista | F164: func./mês | G164: 1 | H164: =VLOOKUP(A164,'Pessoal Sicro'!A:D,4,0) -> 7485.1279 | I164: =TRUNC(G164*H164,2) -> 7485.12
A165: P9833 | B165: Auxiliar de laboratório | F165: func./mês | G165: 1 | H165: =VLOOKUP(A165,'Pessoal Sicro'!A:D,4,0) -> 5732.5326 | I165: =TRUNC(G165*H165,2) -> 5732.53
H166: Subtotal do Item | I166: =SUM(I164:I165) -> 13217.65
A167: Item | B167: Discriminação | C167: Und | D167: Quant | E167: Utilização Produtiva | F167: Utilização Improdutiva | G167: Horário Produtivo (R$) | H167: Horário Improdutivo (R$) | I167: Total (R$)
B168: Equipe de Controle Tecnológico
B169: Veículos
A170: E9125 | B170: Van furgão a diesel - 93 kW | C170: veic./mês | D170: 0.5 | E170: 44 | F170: 176 | G170: =VLOOKUP(A170,Equipamentos!$A$4:$K$533,10,0) -> 87.9809 | H170: =VLOOKUP(A170,Equipamentos!A:K,11,0) -> 48.2864 | I170: =D170*((E170*G170)+(F170*H170)) -> 6184.783
H171: Subtotal do Item | I171: =SUM(I170:I170) -> 6184.783
H172: Total da Equipe do Laboratório de Solos | I172: =I166+I171 -> 19402.433
A174: 3. PARCELA VARIÁVEL - EQUIPE DE CONTROLE TECNOLÓGICO
A175: LABORATÓRIO DE ASFALTOS
A176: Item | B176: Discriminação | F176: Unidade | G176: Quantidade | H176: Custo Unitário (R$) | I176: Custo Total (R$)
B177: Laboratório de Solos (equipe x mês)
B178: Mão de Obra
A179: P9858 | B179: Laboratorista | F179: func./mês | G179: 1 | H179: =VLOOKUP(A179,'Pessoal Sicro'!A:D,4,0) -> 7485.1279 | I179: =TRUNC(G179*H179,2) -> 7485.12
A180: P9833 | B180: Auxiliar de laboratório | F180: func./mês | G180: 1 | H180: =VLOOKUP(A180,'Pessoal Sicro'!A:D,4,0) -> 5732.5326 | I180: =TRUNC(G180*H180,2) -> 5732.53
H181: Subtotal do Item | I181: =SUM(I179:I180) -> 13217.65
A182: Item | B182: Discriminação | C182: Und | D182: Quant | E182: Utilização Produtiva | F182: Utilização Improdutiva | G182: Horário Produtivo (R$) | H182: Horário Improdutivo (R$) | I182: Total (R$)
B183: Equipe de Controle Tecnológico
B184: Veículos
A185: E9125 | B185: Van furgão a diesel - 93 kW | C185: veic./mês | D185: 0.5 | E185: 44 | F185: 176 | G185: =VLOOKUP(A185,Equipamentos!$A$4:$K$533,10,0) -> 87.9809 | H185: =VLOOKUP(A185,Equipamentos!A:K,11,0) -> 48.2864 | I185: =D185*((E185*G185)+(F185*H185)) -> 6184.783
H186: Subtotal do Item | I186: =SUM(I185:I185) -> 6184.783
H187: Total da Equipe do Laboratório de Asfaltos | I187: =I181+I186 -> 19402.433
A189: Equipes de laboratório de solos para pavimentação
A190: Item | B190: Discriminação | F190: Und | G190: Quant | H190: QE | I190: Els
A191: 4011318 | B191: =VLOOKUP(A191,'SINTÉTICO SICRO'!A:D,2,0) -> Base ou sub-base estabilizada granulometricamente com mistura solo brita (70% - 30%) em usina com material de jazida e brita comercial - 100% Proctor modificado | F191: =VLOOKUP(A191,'SINTÉTICO SICRO'!A:D,3,0) -> m³ | G191: ='RESUMO MODULO TOTAL'!H26+'RESUMO MODULO TOTAL'!H27 -> 39900 | H191: 21900 | I191: =G191/H191 -> 1.821917808
H192: Total de equipes de Laboratório de Solos para Pavimentação | I192: =SUM(I191:I191) -> 1.821917808
A194: Equipes de laboratório de Asfalto
A195: Item | B195: Discriminação | F195: Und | G195: Quant | H195: QE | I195: Ela
A196: 4011370 | B196: =VLOOKUP(A196,'SINTÉTICO SICRO'!A:D,2,0) -> Tratamento superficial duplo com emulsão - brita comercial | F196: =VLOOKUP(A196,'SINTÉTICO SICRO'!A:D,3,0) -> m² | G196: ='RESUMO MODULO TOTAL'!H24 -> 133000 | H196: 1610000 | I196: =G196/H196 -> 0.08260869565
A197: 4011352 | B197: =VLOOKUP(A197,'SINTÉTICO SICRO'!A:D,2,0) -> Imprimação com emulsão asfáltica | F197: =VLOOKUP(A197,'SINTÉTICO SICRO'!A:D,3,0) -> m² | G197: ='RESUMO MODULO TOTAL'!H25 -> 133000 | H197: 3610000 | I197: =G197/H197 -> 0.03684210526
H198: Total de equipes de Laboratório de Asfaltos | I198: =SUM(I196:I197) -> 0.1194508009
A200: manutenção do canteiro de obras e acampamentos
A201: Código | B201: Discriminação | C201: Unidade | D201: Quantidade | F201: Custo Unitário (R$) | H201: Custo Total (R$)
B202: Manutenção do Canteiro de Obras e Acampamentos
A203: 6.1 | B203: Mão de Obra
A204: P9952 | B204: Pedreiro | C204: mês | D204: 0 | F204: =VLOOKUP(A204,'Pessoal Sicro'!A:G,4,0) -> 5575.4161 | H204: =F204*D204 -> 0
A205: P9954 | B205: Servente | C205: mês | D205: 0 | F205: =VLOOKUP(A205,'Pessoal Sicro'!A:G,4,0) -> 4148.4864 | H205: =F205*D205 -> 0
A206: P9953 | B206: Eletricista | C206: mês | D206: 0 | F206: =VLOOKUP(A206,'Pessoal Sicro'!A:G,4,0) -> 5792.8074 | H206: =F206*D206 -> 0
F207: Subtotal do Item 6.1 | H207: =SUM(H204:I206) -> 0
A209: Código | B209: Discriminação | C209: Unidade | D209: Quantidade | F209: Custo Produtivo (R$) | H209: Custo Total (R$)
A210: 6.2 | B210: Equipamentos
B211: Caminhão guindauto de 6 toneladas | C211: h/mês | D211: 0 | H211: =F211*D211 -> 0
B212: Caminhão tanque de 8.000 litros | C212: h/mês | D212: 0 | H212: =F212*D212 -> 0
A213: E9524 | B213: Motoniveladora | C213: h/mês | D213: 0 | F213: =Equipamentos!J168 -> 298.3018 | H213: =F213*D213 -> 0
F214: Subtotal do Item 6.2 | H214: =SUM(H211:I213) -> 0
G215: Total da Manutenção do Canteiro de Obras e Acampamentos | H215: =H214+H207 -> 0
A219: Resumo das parcelas de administração local
A220: Código | B220: Discriminação | C220: Unidade | D220: Quantidade | F220: Custo Unitário (R$) | H220: Custo Total (R$)
B221: Parcela Fixa
B222: Mão de Obra | C222: mês | D222: 5 | F222: =H14+H18+H26+H30 -> 57421.1854 | H222: =F222*D222 -> 287105.927
B223: Veículos | C223: mês | D223: 5 | F223: =I47 -> 2834.9596 | H223: =F223*D223 -> 14174.798
F224: Subtotal do Item 1 | H224: =SUM(H222:I223) -> 301280.725
... 25 more rows

Sheet Projeto Executivo
A4: COMPOSIÇAO PREÇO PROJETO EXECUTIVO
A6: DISCRIMINAÇAO | F6: Pr. Unit. | G6: Pr. Total
A8: A· EOUIPE TECNICA | G8: =G9+G12 -> 15384.30892
B9: A. 1 - Pessoal de Nível Superior | C9: Unidade | D9: Quantitativo | E9: SICRO e Rel.Custos Gerais | G9: =G10+G11 -> 12280.07804
B10: Engenheiro | C10: mês | D10: 0.4 | E10: P9812 | F10: =VLOOKUP(E10,'Pessoal Sicro'!A:G,4,0) -> 25173.4059 | G10: =F10*D10 -> 10069.36236
B11: Topógrafo | C11: mês | D11: 0.25 | E11: P9949 | F11: =VLOOKUP(E11,'Pessoal Sicro'!A:G,4,0) -> 8842.8627 | G11: =F11*D11 -> 2210.715675
B12: A.2 - Pessoal de Nível Técnico e Aux. | G12: =G13+G14 -> 3104.230887
B13: Auxiliar de topógrafo | C13: mês | D13: 0.125 | E13: P9950 | F13: =VLOOKUP(E13,'Pessoal Sicro'!A:G,4,0) -> 5752.7159 | G13: =F13*D13 -> 719.0894875
B14: Auxiliar Técnico/Assistente de Engenharia | C14: mês | D14: 0.5 | E14: P9903 | F14: =VLOOKUP(E14,'Pessoal Sicro'!A:G,4,0) -> 4770.2828 | G14: =F14*D14 -> 2385.1414
A15: B - ENCARGOS SOCIAIS | G15: =G16 -> 0
B16: =CONCATENATE("Taxas ",'ENC. SOCIAIS'!E48,"%") -> Taxas 115,1% | C16: JÁ INCLUSAS EM "A"
A17: C - DESPESAS GERAIS | G17: =G18+G20+G19 -> 5221.985121
B18: C.1 - MATERIAIS DE CONSUMO | C18: Estimativa % como referência de equipe técnica com encargos sociais | D18: 0.03 | F18: =G8+G16 -> 15384.30892 | G18: =F18*D18 -> 461.5292677
B19: C.2 - VEÍCULOS (Veículo leve picape 4 x 4 com capacidade de 1,10 t - 147 kW) | C19: h | D19: 40 | E19: E9684 | F19: =VLOOKUP(E19,Equipamentos!A:K,10,0) -> 111.5778 | G19: =F19*D19 -> 4463.112
B20: C.3 - Estação total eletrônica com alcance máximo de 3.000 m | C20: h | D20: 38.12393948 | E20: E9553 | F20: =VLOOKUP(E20,Equipamentos!A:K,10,0) -> 7.7994 | G20: =F20*D20 -> 297.3438535
A21: D - ENSAIOS | G21: =SUM(G22:G25) -> 3771.95855
B22: Laboratorista | C22: mês | D22: =1/4 -> 0.25 | E22: P9858 | F22: =VLOOKUP(E22,'Pessoal Sicro'!A:G,4,0) -> 7485.1279 | G22: =F22*D22 -> 1871.281975
B23: Auxiliar de Laboratório | C23: mês | D23: =1/8 -> 0.125 | E23: P9833 | F23: =VLOOKUP(E23,'Pessoal Sicro'!A:G,4,0) -> 5732.5326 | G23: =F23*D23 -> 716.566575
B24: Laboratório de solos | C24: mês | D24: =1/8 -> 0.125 | E24: B8957 | F24: =VLOOKUP(E24,'Tabelas 1 e 2'!C14:G23,5,0) -> 3520.5 | G24: =F24*D24 -> 440.0625
B25: Laboratório de asfalto | C25: mês | D25: 0.125 | E25: B8955 | F25: =VLOOKUP(E25,'Tabelas 1 e 2'!C15:G24,5,0) -> 5952.38 | G25: =F25*D25 -> 744.0475
A26: I - SOMA (A+B+C+D) | G26: =G8+G15+G17+G21 -> 24378.25259
A27: II - CUSTOS ADMINISTRATIVOS | D27: =BDI!C13 -> 0.2206 | G27: =D27*G26 -> 5377.842522
A28: TOTAL | G28: =G26+G27 -> 29756.09512
F29: Por m²: | G29: =G28/('Memória de Cálculo'!C1*'Memória de Cálculo'!C2) -> 4.250870731

Sheet CPU CODEVASF
A4: ='RESUMO MODULO TOTAL'!B62 -> SERVIÇOS DE IMPLANTAÇÃO DE PAVIMENTAÇÃO EM TRATAMENTO SUPERFICIAL DUPLO (TSD), EM VIAS URBANAS E RURAIS INSERIDAS NA ÁREA DE ATUAÇÃO DA CODEVASF, NO ESTADO DO CEARÁ
F5: BDI %: | G5: =BDI!$C$13 -> 0.2206
E6: Encargos Sociais: | G6: Horista | H6: Mensalista
G7: ='ENC. SOCIAIS'!E48/100 -> 1.151 | H7: ='ENC. SOCIAIS'!F48/100 -> 0.7184
A8: COMPOSIÇÕES DE CUSTO UNITARIO
A9: CPU-12 | B9: CODEVASF | D9: Correção de vazamentos no ramal na rua sem pavimento com fornecimento do material hidráulico | E9: m | F9: COEF. | G9: PRECO UNITÁRIO (R$) | H9: TOTAL (R$)
A11: SICRO | B11: SICRO | C11: P9824 | D11: =VLOOKUP(C11,'Pessoal Sicro'!$A$5:$G$1048576,2,0) -> Servente | E11: H | F11: 0.2 | G11: =VLOOKUP(C11,'Pessoal Sicro'!A:G,4,0) -> 22.4008 | H11: =F11*G11 -> 4.48016
A12: SICRO | B12: SICRO | C12: P9807 | D12: =VLOOKUP(C12,'Pessoal Sicro'!$A$5:$G$1048576,2,0) -> Bombeiro hidráulico | E12: H | F12: 0.1 | G12: =VLOOKUP(C12,'Pessoal Sicro'!A:G,4,0) -> 31.8033 | H12: 3.18033
A13: INS. SINAPI | B13: SINAPI | C13: 9867 | D13: TUBO PVC, SOLDAVEL, DN 20 MM, AGUA FRIA (NBR-5648) | E13: m | F13: 1 | G13: =IFERROR(VLOOKUP(C13,'INSUMOS SINAPI'!B:F,5,FALSE),VLOOKUP(C13,'COMP Sint. Sinapi'!$A:$E,4,FALSE)) -> 3.44 | H13: 3.44
A14: INSUMO | B14: ORSE | C14: 10585 | D14: Arco de serra | E14: un | F14: 0.1 | G14: 19.9 | H14: 1.99
A15: INS. SINAPI | B15: SINAPI | C15: 3859 | D15: LUVA SOLDAVEL COM ROSCA, PVC, 20 MM X 1/2", PARA AGUA FRIA PREDIAL | E15: un | F15: 2 | G15: =IFERROR(VLOOKUP(C15,'INSUMOS SINAPI'!B:F,5,FALSE),VLOOKUP(C15,'COMP Sint. Sinapi'!$A:$E,4,FALSE)) -> 1.24 | H15: 2.48
E16: Sub total: | H16: =SUM(H11:H15) -> 15.57049
F17: BDI | G17: =BDI!$C$13 -> 0.2206 | H17: =H16*G17 -> 3.434850094
G18: Total Serviços: | H18: =H16+H17 -> 19.00534009
E19: =A9 -> CPU-12 | F19: PREÇO UNITÁRIO TOTAL: | H19: =H18 -> 19.00534009 | I19: =H16 -> 15.57049
A21: CPU-14 | B21: CODEVASF | E21: t | F21: COEF. | G21: PRECO UNITÁRIO (R$) | H21: TOTAL (R$)
D23: EAI | E23: t | F23: 1 | G23: =RESUMO_Transp!$V$17 -> 2811.545353 | H23: =F23*G23 -> 2811.545353
E24: Sub total: | H24: =SUM(H23) -> 2811.545353
F25: BDI | G25: 0.15 | H25: =H24*G25 -> 421.7318029
G26: Total Serviços: | H26: =H24+H25 -> 3233.277155
E27: =A21 -> CPU-14 | F27: PREÇO UNITÁRIO TOTAL: | H27: =H26 -> 3233.277155 | I27: =H24 -> 2811.545353
A29: CPU-15 | B29: CODEVASF | D29: AQUISIÇÃO DE EMULSÃO ASFÁLTICA RR-2C | E29: t | F29: COEF. | G29: PRECO UNITÁRIO (R$) | H29: TOTAL (R$)
D31: EMULSÃO ASFÁLTICA RR-2C | E31: t | F31: 1 | G31: =RESUMO_Transp!$V$24 -> 3778.762422 | H31: =F31*G31 -> 3778.762422
E32: Sub total: | H32: =SUM(H31) -> 3778.762422
F33: BDI | G33: 0.15 | H33: =H32*G33 -> 566.8143633
G34: Total Serviços: | H34: =H32+H33 -> 4345.576786
E35: =A29 -> CPU-15 | F35: PREÇO UNITÁRIO TOTAL: | H35: =H34 -> 4345.576786 | I35: =H32 -> 3778.762422
A37: CPU-18 | B37: CODEVASF | D37: TRANSPORTE DE EAI | E37: t | F37: COEF. | G37: PRECO UNITÁRIO (R$) | H37: TOTAL (R$)
D39: TRANSPORTE DE EAI | E39: t | F39: 1 | G39: =RESUMO_Transp!$U$17 -> 1388.146692 | H39: =F39*G39 -> 1388.146692
E40: Sub total: | H40: =SUM(H39) -> 1388.146692
F41: BDI | G41: 0.15 | H41: =H40*G41 -> 208.2220038
G42: Total Serviços: | H42: =H40+H41 -> 1596.368695
E43: =A37 -> CPU-18 | F43: PREÇO UNITÁRIO TOTAL: | H43: =H42 -> 1596.368695 | I43: =H40 -> 1388.146692
A45: CPU-19 | B45: CODEVASF | D45: TRANSPORTE DE EMULSÃO ASFÁLTICA RR-2C | E45: t | F45: COEF. | G45: PRECO UNITÁRIO (R$) | H45: TOTAL (R$)
D47: TRANSPORTE DE EMULSÃO ASFÁLTICA RR-2C | E47: t | F47: 1 | G47: =RESUMO_Transp!$U$24 -> 1016.61 | H47: =F47*G47 -> 1016.61
E48: Sub total: | H48: =SUM(H47) -> 1016.61
F49: BDI | G49: 0.15 | H49: =H48*G49 -> 152.4915
G50: Total Serviços: | H50: =H48+H49 -> 1169.1015
E51: =A45 -> CPU-19 | F51: PREÇO UNITÁRIO TOTAL: | H51: =H50 -> 1169.1015 | I51: =H48 -> 1016.61
A53: CPU-20 | B53: CODEVASF | D53: CONTROLE TECNOLÓGICO - PROJETO | E53: m² | F53: COEF. | G53: PRECO UNITÁRIO (R$) | H53: TOTAL (R$)
A55: Insumo | B55: SICRO | C55: P9858 | D55: Laboratorista | E55: mês | F55: =0.15/14000 -> 1.071428571e-05 | G55: =VLOOKUP(C55,'Pessoal Sicro'!A:G,4,0) -> 7485.1279 | H55: =F55*G55 -> 0.08019779893
A56: Composição | B56: SICRO | C56: P9833 | D56: Auxiliar de Laboratório | E56: mês | F56: =0.15/14000 -> 1.071428571e-05 | G56: =VLOOKUP(C56,'Pessoal Sicro'!A:G,4,0) -> 5732.5326 | H56: 0.06141999214
A57: Composição | B57: SICRO | C57: *B8957 | D57: Laboratório de Solos | E57: mês | F57: 1.071428571e-05 | G57: ='Tabelas 1 e 2'!G20 -> 3520.5 | H57: =F57*G57 -> 0.03771964286
A58: Composição | B58: SICRO | C58: *B8955 | D58: Laboratório de Asfalto | E58: mês | F58: 1.071428571e-05 | G58: ='Tabelas 1 e 2'!G18 -> 5952.38 | H58: 0.0637755
B59: *Relatório de Custos Gerais do DNIT, página 1 | E59: Sub total: | H59: =SUM(H55:H58) -> 0.2431129339
F60: BDI | G60: =BDI!$C$13 -> 0.2206 | H60: =H59*G60 -> 0.05363071322
E61: CPU-20 | F61: PREÇO UNITÁRIO TOTAL: | H61: =H59+H60 -> 0.2967436472 | I61: =H59 -> 0.2431129339

Sheet BDI
A2: ='RESUMO MODULO TOTAL'!B62 -> SERVIÇOS DE IMPLANTAÇÃO DE PAVIMENTAÇÃO EM TRATAMENTO SUPERFICIAL DUPLO (TSD), EM VIAS URBANAS E RURAIS INSERIDAS NA ÁREA DE ATUAÇÃO DA CODEVASF, NO ESTADO DO CEARÁ
A3: Descrição dos serviços | B3: Preço de Venda (%) | C3: Custo Direto (%)
A4: ADMINISTRAÇÃO CENTRAL | C4: 0.06
A5: CUSTOS FINANCEIROS | B5: 0.0102
A6: RISCOS | B6: 0.0025
A7: SEGUROS E GARANTIAS CONTRATUAIS | B7: 0.005
A8: LUCRO OPERACIONAL | C8: 0.07
A9: PIS | B9: 0.0065
A10: COFINS | B10: 0.03
A11: ISSQN | B11: 0.02
A12: Contribuição Previdenciaria | B12: 0
B13: BDI | C13: =ROUND((1+(C4+C8))/(1-(B5+B6+B7+B9+B10+B11+B12))-1,4) -> 0.2206
A14: Observação: O percentual de ISSQN aqui utilizado consiste apenas em um referencial médio.
A15: O valor real do ISSQN a ser adotado deve ser aquele proveniente das alíquotas dos municípios situados na área de
A16: influência das obras.
A51: DETALHAMENTO DO BDI DIFERENCIADO - SEM DESONERAÇÃO
A52: ='RESUMO MODULO TOTAL'!B62 -> SERVIÇOS DE IMPLANTAÇÃO DE PAVIMENTAÇÃO EM TRATAMENTO SUPERFICIAL DUPLO (TSD), EM VIAS URBANAS E RURAIS INSERIDAS NA ÁREA DE ATUAÇÃO DA CODEVASF, NO ESTADO DO CEARÁ
A54: DESCRIÇÃO DOS SERVIÇOS | B54: PREÇO DE VENDA (%) | C54: CUSTO DIRETO (%)
A55: ADMINISTRAÇÃO CENTRAL | C55: 0.0377
A56: DESPESA FINANCEIRAS | B56: 0.0102
A57: SEGUROS E GARANTIAS CONTRATUAIS | B57: 0.0025
A58: RISCOS | B58: 0.005
A59: LUCRO OPERACIONAL | C59: 0.05
A60: PIS | B60: 0.0065
A61: COFINS | B61: 0.03
A62: ISSQN | B62: 0
A63: Contribuição Previdenciaria | B63: 0
B64: BDI | C64: =ROUND((1+(C55+C59))/(1-(B56+B57+B58+B60+B61+B62+B63))-1,4) -> 0.15
A65: Fonte da composição, valores de referência e fórmula do BDI: Instrução Normativa N° 62/DNIT SEDE

Sheet ENC. SOCIAIS
A6: ='[242]RESUMO MODULO TOTAL'!B62 -> SERVIÇOS DE IMPLANTAÇÃO DE PAVIMENTAÇÃO EM TRATAMENTO SUPERFICIAL DUPLO (TSD), EM VIAS URBANAS E RURAIS INSERIDAS NA ÁREA DE ATUAÇÃO DA CODEVASF, NO ESTADO DO CEARÁ
A8: DETALHAMENTO DOS ENCARGOS SOCIAIS (%)
A9: VIGÊNCIA A PARTIR DE 01/2025 | C9: COM DESONERAÇÃO | E9: SEM DESONERAÇÃO
C11: HORISTA | D11: MENSALISTA | E11: HORISTA | F11: MENSALISTA
A13: GRUPO A
A14: A1 | B14: INSS | C14: 0 | D14: 0 | E14: 20 | F14: 20
A15: A2 | B15: SESI | C15: 1.5 | D15: 1.5 | E15: 1.5 | F15: 1.5
A16: A3 | B16: SENAI | C16: 1 | D16: 1 | E16: 1 | F16: 1
A17: A4 | B17: INCRA | C17: 0.2 | D17: 0.2 | E17: 0.2 | F17: 0.2
A18: A5 | B18: SEBRAE | C18: 0.6 | D18: 0.6 | E18: 0.6 | F18: 0.6
A19: A6 | B19: Salário Educação | C19: 2.5 | D19: 2.5 | E19: 2.5 | F19: 2.5
A20: A7 | B20: Seguro Contra Acidentes de Trabalho | C20: 3 | D20: 3 | E20: 3 | F20: 3
A21: A8 | B21: FGTS | C21: 8 | D21: 8 | E21: 8 | F21: 8
A22: A9 | B22: SECONCI | C22: 1 | D22: 1 | E22: 0
A23: A | B23: Total | C23: =SUM(C14:C22) -> 17.8 | D23: =SUM(D14:D22) -> 17.8 | E23: =SUM(E14:E22) -> 36.8 | F23: =SUM(F14:F22) -> 36.8
A24: GRUPO B
A25: B1 | B25: Repouso Semanal Remunerado | C25: 17.88 | D25: - | E25: 17.86 | F25: -
A26: B2 | B26: Feriados | C26: 3.94 | D26: - | E26: 3.71 | F26: -
A27: B3 | B27: Auxílio-enfermidade | C27: 0.91 | D27: 0.69 | E27: 0.86 | F27: 0.65
A28: B4 | B28: 13° salário | C28: 10.98 | D28: 8.33 | E28: 11.07 | F28: 8.33
A29: B5 | B29: Licença-paternidade | C29: 0.07 | D29: 0.06 | E29: 0.07 | F29: 0.05
A30: B6 | B30: Faltas Justificadas | C30: 0.73 | D30: 0.56 | E30: 0.74 | F30: 0.56
A31: B7 | B31: Dias de chuva | C31: 1.45 | D31: - | E31: 1.64 | F31: -
A32: B8 | B32: Auxílio Acidente de Trabalho | C32: 0.11 | D32: 0.09 | E32: 0.1 | F32: 0.07
A33: B9 | B33: Férias Gozadas | C33: 11.35 | D33: 8.62 | E33: 12.98 | F33: 9.77
A34: B10 | B34: Salário Maternidade | C34: 0.03 | D34: 0.03 | E34: 0.03 | F34: 0.03
A35: B | B35: Total | C35: =SUM(C25:C34) -> 47.45 | D35: =SUM(D25:D34) -> 18.38 | E35: =SUM(E25:E34) -> 49.06 | F35: =SUM(F25:F34) -> 19.46
A36: GRUPO C
A37: C1 | B37: Aviso Prévio Indenizado | C37: 6.76 | D37: 5.14 | E37: 5.54 | F37: 4.17
A38: C2 | B38: Aviso Prévio Trabalhado | C38: 0.16 | D38: 0.12 | E38: 0.13 | F38: 0.1
A39: C3 | B39: Férias Indenizadas | C39: 2.28 | D39: 1.73 | E39: 1.81 | F39: 1.36
A40: C4 | B40: Depósito Rescisão Sem Justa Causa | C40: 3.81 | D40: 2.89 | E40: 2.75 | F40: 2.07
A41: C5 | B41: Indenização Adicional | C41: 0.57 | D41: 0.43 | E41: 0.47 | F41: 0.35
A42: C | B42: Total | C42: =SUM(C37:C41) -> 13.58 | D42: =SUM(D37:D41) -> 10.31 | E42: =SUM(E37:E41) -> 10.7 | F42: =SUM(F37:F41) -> 8.05
A43: GRUPO D
A44: D1 | B44: Reincidência de A sobre B | C44: 8.45 | D44: 3.27 | E44: 18.05 | F44: 7.16
A45: D2 | B45: Reincidência de Grupo A sobre Aviso Prévio Trabalhado e Reincidência do FGTS sobre Aviso Prévio Indenizado | C45: 0.57 | D45: 0.43 | E45: 0.49 | F45: 0.37
A46: D | B46: Total | C46: =SUM(C44:C45) -> 9.02 | D46: =SUM(D44:D45) -> 3.7 | E46: =SUM(E44:E45) -> 18.54 | F46: =SUM(F44:F45) -> 7.53
A48: T O T A L (%) | C48: =C23+C35+C42+C46 -> 87.85 | D48: =D23+D35+D42+D46 -> 50.19 | E48: =E23+E35+E42+E46 -> 115.1 | F48: =F23+F35+F42+F46 -> 71.84
H53: Fonte: Sinapi Cálculos e Parâmetros 5ª Edição - Atualizada em Agosto 2023

Sheet CONSUMO DE MAT. B TOTAL
B5: CONSUMO DO MATERIAL BETUMINOSO TOTAL
B7: TRECHO | D7: QUANTIDADES | M7: MAT. BETUMINOSO
B8: Inicio (km) | C8: Fim (km) | D8: Extensão (m) | E8: Largura (m) | F8: Espess. (m) | G8: Área (m2) | H8: Volume (m3) | I8: Densidade (t/m3) | J8: Massa (t) | K8: Unid | L8: Quant. | M8: Tipo | N8: Consumo Taxa de Aplicação | O8: Unid. | P8: Quant.
B9: IMPRIMAÇÃO
F11: 1 | G11: ='Memória de Cálculo'!H63 -> 133000 | H11: =G11*F11 -> 133000 | M11: CM-30 | N11: 1,2 l/m2 | O11: t | P11: =ROUND((G11*1.2)/1000,2) -> 159.6
B12: CAPA SELANTE
F13: 1 | G13: ='Memória de Cálculo'!H51 -> 133000 | H13: =G13*F13 -> 133000 | M13: RR-2C | N13: 0,5 l/m2 | O13: t | P13: =ROUND((G13*0.5)/1000,2) -> 66.5
B14: TRATAMENTO SUPERFICIAL DUPLO - 1ª CAMADA
F15: 1 | G15: ='Memória de Cálculo'!H57 -> 133000 | H15: =G15*F15 -> 133000 | M15: RR-2C | N15: 1,5 l/m² | O15: t | P15: =ROUND((G15*1.5)/1000,2) -> 199.5
B16: TRATAMENTO SUPERFICIAL DUPLO - 2ª CAMADA
F17: 1 | G17: ='Memória de Cálculo'!H57 -> 133000 | H17: =G17*F17 -> 133000 | M17: RR-2C | N17: 1,0 l/m² | O17: t | P17: =ROUND((G17*1)/1000,2) -> 133
H19: =G19*F19 -> 0

Sheet Transporte EAI
C3: MEMÓRIA DE CÁLCULO
C8: REAJUSTE | F8: TIPOLOGIA DO MATERIAL | I8: EMULSÃO ASFÁLTICA PARA SERVIÇO DE IMPRIMAÇÃO | M8: IMPOSTOS | N8: COFINS | O8: 0.0065 | P8: 0.0065
G9: ÍNDICE DE PAVIMENTAÇÃO DNIT | H9: 2014-07-01 | I9: ÍNDICE INICIAL | J9: 270.237 | N9: PIS | O9: 0.03 | P9: 0.03 | T9: LEGENDA | AC9: As empresas tributadas pelo Lucro Presumido pagam 0,65% de PIS e 3% de COFINS
H10: 2025-05-01 | I10: ÍNDICE FINAL | J10: 587.552 | N10: ICMS | O10: 0.18 | P10: 0.18 | Q10: =1-(O10/1) -> 0.82 | R10: =1-(P10/1) -> 0.82 | S10: =1-(Q10/1) -> 0.18 | T10: ENTRADA DE DADOS | AC10: As empresas tributadas pelo Lucro Real pagam 1,65% de PIS e 7,60% de COFINS
G11: Data ANP | H11: ='ANP ESTADO'!A106901 -> 2025-05-01
C12: DATA-BASE | D12: PRODUTOS | E12: LOCALIDADES | J12: CUSTO ANP (R$/Kg) | L12: CUSTO ANP | M12: IMPOSTOS DO PRODUTO | N12: CUSTO DO PRODUTO COM IMPOSTOS | O12: DMT's | P12: DMT'S FLUVIAL | Q12: CUSTO DO TRANSPORTE RODOVIA PAVIMENTADA | R12: CUSTO DO TRANSPORTE FLUVIAL | S12: CUSTO DO TRANSPORTE TOTAL | T12: ICMS | U12: ATUALIZAÇÃO DO CUSTO DE TRANSPORTE | V12: CUSTO DO TRANSPORTE RODOVIA PAVIMENTADA COM IMPOSTOS E ATUALIZAÇÃO MONETÁRIA | W12: PEDÁGIO | Y12: TOTAL TRANSPORTE | Z12: AQUISIÇÃO DO PRODUTO | AA12: TOTAL GERAL ( TRANSP + AQUISIÇÃO) | AC12: 1 | AD12: 2 | AE12: 3
C13: =H10 -> 2025-05-01 | E13: REFINARIAS | F13: ENDEREÇO | G13: ESTADO | H13: CIDADE | I13: DESTINO | J13: ESTADO | K13: REGIÃO | L13: R$/t | M13: R$/t | N13: R$/t | O13: KM | P13: KM | Q13: R$/t | R13: R$/t | S13: R$/t | T13: R$/t | U13: R$/t | V13: R$/t | W13: CUSTO | X13: R$/t | Y13: R$/t | Z13: R$/t | AA13: R$/t | AC13: TOTAL GERAL ( TRANSP + AQUISIÇÃO) | AD13: TOTAL TRANSPORTE | AE13: AQUISIÇÃO DO PRODUTO
B14: =AA14 -> 4597.108837 | C14: 1 | D14: =I8 -> EMULSÃO ASFÁLTICA PARA SERVIÇO DE IMPRIMAÇÃO | E14: 'CENTRO OESTE ASFALTOS LTDA. | F14: SETOR DE INFLAMÁVEIS, S/N TRECHO 02 - LOTE 1.100 - GUARÁ - CEP:71225-000 | G14: Distrito Federal | H14: BRASÍLIA - DF | I14: Juazeiro do Norte - CE | J14: =VLOOKUP(G14,OFFSET('ANP ESTADO'!$A$1,MATCH($I$8,'ANP ESTADO'!B:B,0)+MATCH($H$11,OFFSET('ANP ESTADO'!$A$1,MATCH($I$8,'ANP ESTADO'!B:B,0),0,100000,1),0),2,100000,2),2,FALSE) -> - | K14: =VLOOKUP($H$11,OFFSET('ANP REGIÃO'!$A$9,MATCH('Transporte EAI'!$I$8,'ANP REGIÃO'!A:A,0),1,10000,10000),MATCH('Transporte EAI'!AH14,'ANP REGIÃO'!$B$8:$G$8,0),FALSE) -> 2.586745228 | L14: =IF(AND(J14="-",K14="-"),"",IF(AND(J14<>0,K14="-"),J14*1000,IF(AND(J14="-",K14<>0),K14*1000,IF(AND(J14<>0,K14<>0),J14*1000,"")))) -> 2586.745228 | M14: =ROUND(((L14/(1-$O$8-$O$9-$O$10))-L14),2) -> 714.78 | N14: =L14+M14 -> 3301.525228 | O14: 1817 | P14: 0 | Q14: =ROUND((26.939+0.253*O14),2) -> 486.64 | S14: =ROUND((26.939+0.253*Q14),2) -> 150.06 | T14: =TRUNC(Q14*($O$10/(1-$O$10)),2) -> 106.82 | U14: =TRUNC(IF($J$9="","",(($J$10-$J$9)/$J$9)*(Q14+T14)),2) -> 696.84 | V14: =Q14+T14+U14 -> 1290.3 | W14: 73.2 | X14: =EVEN((' CONSUMO DE MAT. B TOTAL'!$P$15+' CONSUMO DE MAT. B TOTAL'!P17)*2/28)*W14/(' CONSUMO DE MAT. B TOTAL'!$P$15+' CONSUMO DE MAT. B TOTAL'!P17) -> 5.283609023 | Y14: =IF(AND(Q14="",T14=""),"",V14+X14) -> 1295.583609 | Z14: =IF(OR(L14="",M14=""),"",L14+M14) -> 3301.525228 | AA14: =IF(OR(Y14="",Z14=""),"",Y14+Z14) -> 4597.108837 | AC14: =AA14 -> 4597.108837 | AD14: =Y14 -> 1295.583609 | AE14: =Z14 -> 3301.525228 | AH14: =IF(OR(G14=$D$59,G14=$D$60,G14=$D$62,G14=$D$68,G14=$D$52,G14=$D$48,G14=$D$44,G14=$D$57,G14=$D$47),"NORDESTE",IF(OR(G14=$D$43,G14=$D$45,G14=$D$46,G14=$D$56,G14=$D$64,G14=$D$65,G14=$D$69),"NORTE",IF(OR(G14=$D$49,G14=$D$51,G14=$D$53,G14=$D$54),"CENTRO-OESTE",IF(OR(G14=$D$67,G14=$D$61,G14=$D$55,G14=$D$50),"SUDESTE",IF(OR(G14=$D$66,G14=$D$58,G14=$D$63),"SUL",""))))) -> CENTRO-OESTE
B15: =AA15 -> 4293.471649 | C15: 2 | E15: STRATURA ASFALTOS S/A | F15: AVENIDA PRESIDENTE WILSON, 08 - JUNDIAÍ - CEP:75115-100 | G15: Goiás | H15: ANÁPOLIS - GO | I15: Juazeiro do Norte - CE | J15: =VLOOKUP(G15,OFFSET('ANP ESTADO'!$A$1,MATCH($I$8,'ANP ESTADO'!B:B,0)+MATCH($H$11,OFFSET('ANP ESTADO'!$A$1,MATCH($I$8,'ANP ESTADO'!B:B,0),0,100000,1),0),2,100000,2),2,FALSE) -> 2.270100671 | K15: =VLOOKUP($H$11,OFFSET('ANP REGIÃO'!$A$9,MATCH('Transporte EAI'!$I$8,'ANP REGIÃO'!A:A,0),1,10000,10000),MATCH('Transporte EAI'!AH15,'ANP REGIÃO'!$B$8:$G$8,0),FALSE) -> 2.586745228 | L15: =IF(AND(J15="-",K15="-"),"",IF(AND(J15<>0,K15="-"),J15*1000,IF(AND(J15="-",K15<>0),K15*1000,IF(AND(J15<>0,K15<>0),J15*1000,"")))) -> 2270.100671 | M15: =ROUND(((L15/(1-$O$8-$O$9-$O$10))-L15),2) -> 627.28 | N15: =L15+M15 -> 2897.380671 | O15: 1961 | P15: 0 | Q15: =ROUND((26.939+0.253*O15),2) -> 523.07 | S15: 159.28 | T15: =TRUNC(Q15*($O$10/(1-$O$10)),2) -> 114.82 | U15: =TRUNC(IF($J$9="","",(($J$10-$J$9)/$J$9)*(Q15+T15)),2) -> 749.01 | V15: =Q15+T15+U15 -> 1386.9 | W15: 114.6 | X15: =EVEN((' CONSUMO DE MAT. B TOTAL'!$P$15+' CONSUMO DE MAT. B TOTAL'!P19)*2/28)*W15/(' CONSUMO DE MAT. B TOTAL'!$P$15+' CONSUMO DE MAT. B TOTAL'!P19) -> 9.190977444 | Y15: 1396.090977 | Z15: 2897.380671 | AA15: =IF(OR(Y15="",Z15=""),"",Y15+Z15) -> 4293.471649 | AC15: =AA15 -> 4293.471649 | AD15: =Y15 -> 1396.090977 | AE15: 2897.380671 | AH15: =IF(OR(G15=$D$59,G15=$D$60,G15=$D$62,G15=$D$68,G15=$D$52,G15=$D$48,G15=$D$44,G15=$D$57,G15=$D$47),"NORDESTE",IF(OR(G15=$D$43,G15=$D$45,G15=$D$46,G15=$D$56,G15=$D$64,G15=$D$65,G15=$D$69),"NORTE",IF(OR(G15=$D$49,G15=$D$51,G15=$D$53,G15=$D$54),"CENTRO-OESTE",IF(OR(G15=$D$67,G15=$D$61,G15=$D$55,G15=$D$50),"SUDESTE",IF(OR(G15=$D$66,G15=$D$58,G15=$D$63),"SUL",""))))) -> CENTRO-OESTE
B16: 4342.865784 | C16: 3 | E16: DISTRIBUIDORA BRASILEIRA DE ASFALTO SA - DISBRAL | F16: VIA PRIMARIA 8, S/N QD-18, MODS. 24/47 - DAIAG - CEP:74980-970 | G16: Goiás | H16: APARECIDA DE GOIANIA - GO | I16: Juazeiro do Norte - CE | J16: =VLOOKUP(G16,OFFSET('ANP ESTADO'!$A$1,MATCH($I$8,'ANP ESTADO'!B:B,0)+MATCH($H$11,OFFSET('ANP ESTADO'!$A$1,MATCH($I$8,'ANP ESTADO'!B:B,0),0,100000,1),0),2,100000,2),2,FALSE) -> 2.270100671 | K16: =VLOOKUP($H$11,OFFSET('ANP REGIÃO'!$A$9,MATCH('Transporte EAI'!$I$8,'ANP REGIÃO'!A:A,0),1,10000,10000),MATCH('Transporte EAI'!AH16,'ANP REGIÃO'!$B$8:$G$8,0),FALSE) -> 2.586745228 | L16: 2270.100671 | M16: 627.28 | N16: 2897.380671 | O16: 2031 | P16: 0 | Q16: 540.78 | S16: 163.76 | T16: 118.7 | U16: 774.36 | V16: 1433.84 | W16: 145.2 | X16: =EVEN((' CONSUMO DE MAT. B TOTAL'!$P$15+' CONSUMO DE MAT. B TOTAL'!P20)*2/28)*W16/(' CONSUMO DE MAT. B TOTAL'!$P$15+' CONSUMO DE MAT. B TOTAL'!P20) -> 11.64511278 | Y16: 1445.485113 | Z16: 2897.380671 | AA16: 4342.865784 | AC16: 4342.865784 | AD16: 1445.485113 | AE16: 2897.380671 | AH16: CENTRO-OESTE
A17: 2403 | B17: 4344.461649 | C17: 4 | E17: INDÚSTRIA NACIONAL DE ASFALTOS LTDA. | F17: VIA PRIMEIRA E SEGUNDA 3, S/N.º LOTES 01 A 10 - DISTRITO AGROINDUSTRIAL - CEP:75370-000 | G17: Goiás | H17: GOIANIRA - GO | I17: Juazeiro do Norte - CE | J17: =VLOOKUP(G17,OFFSET('ANP ESTADO'!$A$1,MATCH($I$8,'ANP ESTADO'!B:B,0)+MATCH($H$11,OFFSET('ANP ESTADO'!$A$1,MATCH($I$8,'ANP ESTADO'!B:B,0),0,100000,1),0),2,100000,2),2,FALSE) -> 2.270100671 | K17: =VLOOKUP($H$11,OFFSET('ANP REGIÃO'!$A$9,MATCH('Transporte EAI'!$I$8,'ANP REGIÃO'!A:A,0),1,10000,10000),MATCH('Transporte EAI'!AH17,'ANP REGIÃO'!$B$8:$G$8,0),FALSE) -> 2.586745228 | L17: 2270.100671 | M17: 627.28 | N17: 2897.380671 | O17: 2037 | P17: 0 | Q17: 542.3 | S17: 164.14 | T17: 119.04 | U17: 776.55 | V17: 1437.89 | W17: 114.6 | X17: =EVEN((' CONSUMO DE MAT. B TOTAL'!$P$15+' CONSUMO DE MAT. B TOTAL'!P21)*2/28)*W17/(' CONSUMO DE MAT. B TOTAL'!$P$15+' CONSUMO DE MAT. B TOTAL'!P21) -> 9.190977444 | Y17: 1447.080977 | Z17: 2897.380671 | AA17: 4344.461649 | AC17: 4344.461649 | AD17: 1447.080977 | AE17: 2897.380671 | AH17: CENTRO-OESTE
B18: 4341.384601 | C18: 5 | E18: STRATURA ASFALTOS S/A | F18: RUA VICTOR RODRIGUES RESENDE, 333 - DISTRITO IND. DE UBERLÂNDIA - CEP:38405-440 | G18: Minas Gerais | H18: UBERLANDIA - MG | I18: Juazeiro do Norte - CE | J18: =VLOOKUP(G18,OFFSET('ANP ESTADO'!$A$1,MATCH($I$8,'ANP ESTADO'!B:B,0)+MATCH($H$11,OFFSET('ANP ESTADO'!$A$1,MATCH($I$8,'ANP ESTADO'!B:B,0),0,100000,1),0),2,100000,2),2,FALSE) -> 2.202845353 | K18: =VLOOKUP($H$11,OFFSET('ANP REGIÃO'!$A$9,MATCH('Transporte EAI'!$I$8,'ANP REGIÃO'!A:A,0),1,10000,10000),MATCH('Transporte EAI'!AH18,'ANP REGIÃO'!$B$8:$G$8,0),FALSE) -> 2.380082902 | L18: 2202.845353 | M18: 608.7 | N18: 2811.545353 | O18: 2134 | P18: 0 | Q18: 566.84 | S18: 170.35 | T18: 124.42 | U18: 811.68 | V18: 1502.94 | W18: 335.4 | X18: =EVEN((' CONSUMO DE MAT. B TOTAL'!$P$15+' CONSUMO DE MAT. B TOTAL'!P22)*2/28)*W18/(' CONSUMO DE MAT. B TOTAL'!$P$15+' CONSUMO DE MAT. B TOTAL'!P22) -> 26.89924812 | Y18: 1529.839248 | Z18: 2811.545353 | AA18: 4341.384601 | AC18: 4341.384601 | AD18: 1529.839248 | AE18: 2811.545353 | AH18: SUDESTE
B19: 4341.384601 | C19: 6 | E19: BETUNEL INDÚSTRIA E COMÉRCIO LTDA. | F19: RUA VICTOR RODRIGUES DE REZENDE, 185 - DISTRITO INDUSTRIAL - CEP:38402-334 | G19: Minas Gerais | H19: UBERLANDIA - MG | I19: Juazeiro do Norte - CE | J19: =VLOOKUP(G19,OFFSET('ANP ESTADO'!$A$1,MATCH($I$8,'ANP ESTADO'!B:B,0)+MATCH($H$11,OFFSET('ANP ESTADO'!$A$1,MATCH($I$8,'ANP ESTADO'!B:B,0),0,100000,1),0),2,100000,2),2,FALSE) -> 2.202845353 | K19: =VLOOKUP($H$11,OFFSET('ANP REGIÃO'!$A$9,MATCH('Transporte EAI'!$I$8,'ANP REGIÃO'!A:A,0),1,10000,10000),MATCH('Transporte EAI'!AH19,'ANP REGIÃO'!$B$8:$G$8,0),FALSE) -> 2.380082902 | L19: 2202.845353 | M19: 608.7 | N19: 2811.545353 | O19: 2134 | P19: 0 | Q19: 566.84 | S19: 170.35 | T19: 124.42 | U19: 811.68 | V19: 1502.94 | W19: 335.4 | X19: =EVEN((' CONSUMO DE MAT. B TOTAL'!$P$15+' CONSUMO DE MAT. B TOTAL'!P23)*2/28)*W19/(' CONSUMO DE MAT. B TOTAL'!$P$15+' CONSUMO DE MAT. B TOTAL'!P23) -> 26.89924812 | Y19: 1529.839248 | Z19: 2811.545353 | AA19: 4341.384601 | AC19: 4341.384601 | AD19: 1529.839248 | AE19: 2811.545353 | AH19: SUDESTE
B20: 5197.097182 | C20: 7 | E20: ARAPETRO DISTRIBUIDORA DE PETRÓLEO LTDA. | F20: RUA 04, S/N° LOTES 17 A 20. - DISTRITO INDUSTRIAL 1/8 - CEP:78600-000 | G20: Mato grosso | H20: BARRA DO GARCAS - MT | I20: Juazeiro do Norte - CE | J20: =VLOOKUP(G20,OFFSET('ANP ESTADO'!$A$1,MATCH($I$8,'ANP ESTADO'!B:B,0)+MATCH($H$11,OFFSET('ANP ESTADO'!$A$1,MATCH($I$8,'ANP ESTADO'!B:B,0),0,100000,1),0),2,100000,2),2,FALSE) -> 2.771006204 | K20: =VLOOKUP($H$11,OFFSET('ANP REGIÃO'!$A$9,MATCH('Transporte EAI'!$I$8,'ANP REGIÃO'!A:A,0),1,10000,10000),MATCH('Transporte EAI'!AH20,'ANP REGIÃO'!$B$8:$G$8,0),FALSE) -> 2.586745228 | L20: =IF(AND(J20="-",K20="-"),"",IF(AND(J20<>0,K20="-"),J20*1000,IF(AND(J20="-",K20<>0),K20*1000,IF(AND(J20<>0,K20<>0),J20*1000,"")))) -> 2771.006204 | M20: =ROUND(((L20/(1-$O$8-$O$9-$O$10))-L20),2) -> 765.7 | N20: 3536.706204 | O20: 2355 | P20: 0 | Q20: 622.75 | S20: 184.49 | T20: 136.7 | U20: 891.75 | V20: 1651.2 | W20: 114.6 | X20: =EVEN((' CONSUMO DE MAT. B TOTAL'!$P$15+' CONSUMO DE MAT. B TOTAL'!P24)*2/28)*W20/(' CONSUMO DE MAT. B TOTAL'!$P$15+' CONSUMO DE MAT. B TOTAL'!P24) -> 9.190977444 | Y20: 1660.390977 | Z20: 3536.706204 | AA20: 5197.097182 | AH20: CENTRO-OESTE
B21: 4199.692044 | C21: 8 | E21: DISTRIBUIDORA BRASILEIRA DE ASFALTO SA - DISBRAL | F21: SÃO JUDAS TADEU, 288 - DISTRITO INDUSTRIAL - CEP:32450-000 | G21: Minas Gerais | H21: SARZEDO - MG | I21: Juazeiro do Norte - CE | J21: =VLOOKUP(G21,OFFSET('ANP ESTADO'!$A$1,MATCH($I$8,'ANP ESTADO'!B:B,0)+MATCH($H$11,OFFSET('ANP ESTADO'!$A$1,MATCH($I$8,'ANP ESTADO'!B:B,0),0,100000,1),0),2,100000,2),2,FALSE) -> 2.202845353 | K21: =VLOOKUP($H$11,OFFSET('ANP REGIÃO'!$A$9,MATCH('Transporte EAI'!$I$8,'ANP REGIÃO'!A:A,0),1,10000,10000),MATCH('Transporte EAI'!AH21,'ANP REGIÃO'!$B$8:$G$8,0),FALSE) -> 2.380082902 | L21: 2202.845353 | M21: 608.7 | N21: 2811.545353 | O21: 1941 | P21: 0 | Q21: 518.01 | S21: 158 | T21: 113.7 | U21: 741.76 | V21: 1373.47 | W21: 183 | X21: =EVEN((' CONSUMO DE MAT. B TOTAL'!$P$15+' CONSUMO DE MAT. B TOTAL'!P25)*2/28)*W21/(' CONSUMO DE MAT. B TOTAL'!$P$15+' CONSUMO DE MAT. B TOTAL'!P25) -> 14.67669173 | Y21: 1388.146692 | Z21: 2811.545353 | AA21: 4199.692044 | AH21: SUDESTE
B22: 4827.772641 | C22: 9 | E22: 'INDÚSTRIA NACIONAL DE ASFALTOS LTDA. | F22: INDÚSTRIA NACIONAL DE ASFALTOS LTDA - CEP:77053-080 | G22: Tocantins | H22: PALMAS - TO | I22: Juazeiro do Norte - CE | J22: =VLOOKUP(G22,OFFSET('ANP ESTADO'!$A$1,MATCH($I$8,'ANP ESTADO'!B:B,0)+MATCH($H$11,OFFSET('ANP ESTADO'!$A$1,MATCH($I$8,'ANP ESTADO'!B:B,0),0,100000,1),0),2,100000,2),2,FALSE) -> - | K22: =VLOOKUP($H$11,OFFSET('ANP REGIÃO'!$A$9,MATCH('Transporte EAI'!$I$8,'ANP REGIÃO'!A:A,0),1,10000,10000),MATCH('Transporte EAI'!AH22,'ANP REGIÃO'!$B$8:$G$8,0),FALSE) -> 2.986042641 | L22: 2986.042641 | M22: 825.12 | N22: 3811.162641 | O22: 1409 | P22: 0 | Q22: 383.42 | S22: 123.94 | T22: 84.16 | U22: 549.03 | V22: 1016.61 | W22: 0 | X22: =EVEN((' CONSUMO DE MAT. B TOTAL'!$P$15+' CONSUMO DE MAT. B TOTAL'!P26)*2/28)*W22/(' CONSUMO DE MAT. B TOTAL'!$P$15+' CONSUMO DE MAT. B TOTAL'!P26) -> 0 | Y22: 1016.61 | Z22: 3811.162641 | AA22: 4827.772641 | AH22: NORTE
B23: 5160.137268 | C23: 10 | E23: 'NTA - NOVAS TÉCNICAS DE ASFALTOS S/A | F23: RUA SOFIA ATAURI FADIN, 150 SALA A - B. SANTA TEREZINHA - CEP:13140-000 | G23: São Paulo | H23: PAULINIA - SP | I23: Juazeiro do Norte - CE | J23: =VLOOKUP(G23,OFFSET('ANP ESTADO'!$A$1,MATCH($I$8,'ANP ESTADO'!B:B,0)+MATCH($H$11,OFFSET('ANP ESTADO'!$A$1,MATCH($I$8,'ANP ESTADO'!B:B,0),0,100000,1),0),2,100000,2),2,FALSE) -> 2.644417644 | K23: =VLOOKUP($H$11,OFFSET('ANP REGIÃO'!$A$9,MATCH('Transporte EAI'!$I$8,'ANP REGIÃO'!A:A,0),1,10000,10000),MATCH('Transporte EAI'!AH23,'ANP REGIÃO'!$B$8:$G$8,0),FALSE) -> 2.380082902 | L23: 2644.417644 | M23: =ROUND(((L23/(1-$O$8-$O$9-$O$10))-L23),2) -> 730.72 | N23: 3375.137644 | O23: 2501 | P23: 0 | Q23: 659.69 | S23: 193.84 | T23: 144.81 | U23: 944.65 | V23: 1749.15 | W23: 447 | X23: =EVEN((' CONSUMO DE MAT. B TOTAL'!$P$15+' CONSUMO DE MAT. B TOTAL'!P27)*2/28)*W23/(' CONSUMO DE MAT. B TOTAL'!$P$15+' CONSUMO DE MAT. B TOTAL'!P27) -> 35.84962406 | Y23: 1784.999624 | Z23: 3375.137644 | AA23: 5160.137268 | AC23: 5160.137268 | AD23: 1784.999624 | AE23: 3375.137644 | AH23: SUDESTE
B24: 5128.592757 | C24: 11 | E24: COMPANHIA BRASILEIRA DE ASFALTOS DA AMAZÔNIA - IMPORTAÇÃO E EXPORTAÇÃO | F24: Avenida Doutor Olindo Dártora 2451, Galpão 02, Morro Grande - CEP:07726-555 | G24: São Paulo | H24: CAIEIRAS - SP | I24: Juazeiro do Norte - CE | J24: =VLOOKUP(G24,OFFSET('ANP ESTADO'!$A$1,MATCH($I$8,'ANP ESTADO'!B:B,0)+MATCH($H$11,OFFSET('ANP ESTADO'!$A$1,MATCH($I$8,'ANP ESTADO'!B:B,0),0,100000,1),0),2,100000,2),2,FALSE) -> 2.644417644 | K24: =VLOOKUP($H$11,OFFSET('ANP REGIÃO'!$A$9,MATCH('Transporte EAI'!$I$8,'ANP REGIÃO'!A:A,0),1,10000,10000),MATCH('Transporte EAI'!AH24,'ANP REGIÃO'!$B$8:$G$8,0),FALSE) -> 2.380082902 | L24: 2644.417644 | M24: =ROUND(((L24/(1-$O$8-$O$9-$O$10))-L24),2) -> 730.72 | N24: 3375.137644 | O24: 2471 | P24: 0 | Q24: 652.1 | S24: 191.92 | T24: 143.14 | U24: 933.77 | V24: 1729.01 | W24: 304.8 | X24: =EVEN((' CONSUMO DE MAT. B TOTAL'!$P$15+' CONSUMO DE MAT. B TOTAL'!P28)*2/28)*W24/(' CONSUMO DE MAT. B TOTAL'!$P$15+' CONSUMO DE MAT. B TOTAL'!P28) -> 24.44511278 | Y24: 1753.455113 | Z24: 3375.137644 | AA24: 5128.592757 | AH24: SUDESTE
B25: 5317.034476 | C25: 12 | E25: BETUNEL INDÚSTRIA E COMÉRCIO LTDA. | F25: R 16 , 82, Vila Nova Campo Grande - CEP:79.103-834 | G25: Mato Grosso do Sul | H25: CAMPO GRANDE - MS | I25: Juazeiro do Norte - CE | J25: =VLOOKUP(G25,OFFSET('ANP ESTADO'!$A$1,MATCH($I$8,'ANP ESTADO'!B:B,0)+MATCH($H$11,OFFSET('ANP ESTADO'!$A$1,MATCH($I$8,'ANP ESTADO'!B:B,0),0,100000,1),0),2,100000,2),2,FALSE) -> - | K25: =VLOOKUP($H$11,OFFSET('ANP REGIÃO'!$A$9,MATCH('Transporte EAI'!$I$8,'ANP REGIÃO'!A:A,0),1,10000,10000),MATCH('Transporte EAI'!AH25,'ANP REGIÃO'!$B$8:$G$8,0),FALSE) -> 2.586745228 | L25: 2586.745228 | M25: =ROUND(((L25/(1-$O$8-$O$9-$O$10))-L25),2) -> 714.78 | N25: 3301.525228 | O25: 2858 | P25: 0 | Q25: 750.01 | S25: 216.69 | T25: 164.63 | U25: 1073.97 | V25: 1988.61 | W25: 335.4 | X25: =EVEN((' CONSUMO DE MAT. B TOTAL'!$P$15+' CONSUMO DE MAT. B TOTAL'!P29)*2/28)*W25/(' CONSUMO DE MAT. B TOTAL'!$P$15+' CONSUMO DE MAT. B TOTAL'!P29) -> 26.89924812 | Y25: 2015.509248 | Z25: 3301.525228 | AA25: 5317.034476 | AH25: CENTRO-OESTE
B26: 5551.311693 | C26: 13 | E26: CENTRO OESTE ASFALTOS LTDA. | F26: RUA N, S/N.º LOTES 39/43 E LOTES 129/133 - DISTRITO INDUSTRIAL - CEP:78098-400 | G26: Mato Grosso | H26: CUIABA - MT | I26: Juazeiro do Norte - CE | J26: =VLOOKUP(G26,OFFSET('ANP ESTADO'!$A$1,MATCH($I$8,'ANP ESTADO'!B:B,0)+MATCH($H$11,OFFSET('ANP ESTADO'!$A$1,MATCH($I$8,'ANP ESTADO'!B:B,0),0,100000,1),0),2,100000,2),2,FALSE) -> 2.771006204 | K26: =VLOOKUP($H$11,OFFSET('ANP REGIÃO'!$A$9,MATCH('Transporte EAI'!$I$8,'ANP REGIÃO'!A:A,0),1,10000,10000),MATCH('Transporte EAI'!AH26,'ANP REGIÃO'!$B$8:$G$8,0),FALSE) -> 2.586745228 | L26: 2771.006204 | M26: 765.7 | N26: 3536.706204 | O26: 2866 | P26: 0 | Q26: 752.04 | S26: 217.21 | T26: 165.08 | U26: 1076.89 | V26: 1994.01 | W26: 256.8 | X26: =EVEN((' CONSUMO DE MAT. B TOTAL'!$P$15+' CONSUMO DE MAT. B TOTAL'!P30)*2/28)*W26/(' CONSUMO DE MAT. B TOTAL'!$P$15+' CONSUMO DE MAT. B TOTAL'!P30) -> 20.59548872 | Y26: 2014.605489 | Z26: 3536.706204 | AA26: 5551.311693 | AH26: CENTRO-OESTE
B27: 5551.311693 | C27: 14 | E27: BETUNEL INDÚSTRIA E COMÉRCIO LTDA. | F27: RUA N ESQUINA COM RUA X, S/N QD. IND. 7 L 01/08 - DIST. IND. - CEP:78015-285 | G27: Mato Grosso | H27: CUIABA - MT | I27: Juazeiro do Norte - CE | J27: =VLOOKUP(G27,OFFSET('ANP ESTADO'!$A$1,MATCH($I$8,'ANP ESTADO'!B:B,0)+MATCH($H$11,OFFSET('ANP ESTADO'!$A$1,MATCH($I$8,'ANP ESTADO'!B:B,0),0,100000,1),0),2,100000,2),2,FALSE) -> 2.771006204 | K27: =VLOOKUP($H$11,OFFSET('ANP REGIÃO'!$A$9,MATCH('Transporte EAI'!$I$8,'ANP REGIÃO'!A:A,0),1,10000,10000),MATCH('Transporte EAI'!AH27,'ANP REGIÃO'!$B$8:$G$8,0),FALSE) -> 2.586745228 | L27: 2771.006204 | M27: 765.7 | N27: 3536.706204 | O27: 2866 | P27: 0 | Q27: 752.04 | S27: 217.21 | T27: 165.08 | U27: 1076.89 | V27: 1994.01 | W27: 256.8 | X27: =EVEN((' CONSUMO DE MAT. B TOTAL'!$P$15+' CONSUMO DE MAT. B TOTAL'!P31)*2/28)*W27/(' CONSUMO DE MAT. B TOTAL'!$P$15+' CONSUMO DE MAT. B TOTAL'!P31) -> 20.59548872 | Y27: 2014.605489 | Z27: 3536.706204 | AA27: 5551.311693 | AH27: CENTRO-OESTE
B28: 5555.331693 | C28: 15 | E28: EMAM - EMULSÕES E TRANSPORTES LTDA. | F28: RODOVIA DOS IMIGRANTES, S/Nº KM 8,6 - - CEP:60035-351 | G28: Mato Grosso | H28: VARZEA GRANDE - MT | I28: Juazeiro do Norte - CE | J28: =VLOOKUP(G28,OFFSET('ANP ESTADO'!$A$1,MATCH($I$8,'ANP ESTADO'!B:B,0)+MATCH($H$11,OFFSET('ANP ESTADO'!$A$1,MATCH($I$8,'ANP ESTADO'!B:B,0),0,100000,1),0),2,100000,2),2,FALSE) -> 2.771006204 | K28: =VLOOKUP($H$11,OFFSET('ANP REGIÃO'!$A$9,MATCH('Transporte EAI'!$I$8,'ANP REGIÃO'!A:A,0),1,10000,10000),MATCH('Transporte EAI'!AH28,'ANP REGIÃO'!$B$8:$G$8,0),FALSE) -> 2.586745228 | L28: 2771.006204 | M28: 765.7 | N28: 3536.706204 | O28: 2872 | P28: 0 | Q28: 753.56 | S28: 217.59 | T28: 165.41 | U28: 1079.06 | V28: 1998.03 | W28: 256.8 | X28: =EVEN((' CONSUMO DE MAT. B TOTAL'!$P$15+' CONSUMO DE MAT. B TOTAL'!P32)*2/28)*W28/(' CONSUMO DE MAT. B TOTAL'!$P$15+' CONSUMO DE MAT. B TOTAL'!P32) -> 20.59548872 | Y28: 2018.625489 | Z28: 3536.706204 | AA28: 5555.331693 | AC28: 5555.331693 | AD28: 2018.625489 | AE28: 3536.706204 | AH28: CENTRO-OESTE
B29: 5097.913133 | C29: 16 | E29: VIAPOL LTDA. | F29: VITO ARDITO, 6401 KM 118,5 - JARDIM CAMPO GRANDE - CEP:12282-535 | G29: São Paulo | H29: CACAPAVA - SP | I29: Juazeiro do Norte - CE | J29: =VLOOKUP(G29,OFFSET('ANP ESTADO'!$A$1,MATCH($I$8,'ANP ESTADO'!B:B,0)+MATCH($H$11,OFFSET('ANP ESTADO'!$A$1,MATCH($I$8,'ANP ESTADO'!B:B,0),0,100000,1),0),2,100000,2),2,FALSE) -> 2.644417644 | K29: =VLOOKUP($H$11,OFFSET('ANP REGIÃO'!$A$9,MATCH('Transporte EAI'!$I$8,'ANP REGIÃO'!A:A,0),1,10000,10000),MATCH('Transporte EAI'!AH29,'ANP REGIÃO'!$B$8:$G$8,0),FALSE) -> 2.380082902 | L29: 2644.417644 | M29: 730.72 | N29: 3375.137644 | O29: 2431 | P29: 0 | Q29: 641.98 | S29: 189.36 | T29: 140.92 | U29: 919.28 | V29: 1702.18 | W29: 256.8 | X29: =EVEN((' CONSUMO DE MAT. B TOTAL'!$P$15+' CONSUMO DE MAT. B TOTAL'!P33)*2/28)*W29/(' CONSUMO DE MAT. B TOTAL'!$P$15+' CONSUMO DE MAT. B TOTAL'!P33) -> 20.59548872 | Y29: 1722.775489 | Z29: 3375.137644 | AA29: 5097.913133 | AC29: 5097.913133 | AD29: 1722.775489 | AE29: 3375.137644 | AH29: SUDESTE
B30: 4572.505985 | C30: 17 | E30: STRATURA ASFALTOS S/A | F30: RUA LUIS DE CAMÕES, 26 - CAMPOS ELÍSEOS - CEP:25225-030 | G30: Rio de Janeiro | H30: DUQUE DE CAXIAS - RJ | I30: Juazeiro do Norte - CE | J30: =VLOOKUP(G30,OFFSET('ANP ESTADO'!$A$1,MATCH($I$8,'ANP ESTADO'!B:B,0)+MATCH($H$11,OFFSET('ANP ESTADO'!$A$1,MATCH($I$8,'ANP ESTADO'!B:B,0),0,100000,1),0),2,100000,2),2,FALSE) -> - | K30: =VLOOKUP($H$11,OFFSET('ANP REGIÃO'!$A$9,MATCH('Transporte EAI'!$I$8,'ANP REGIÃO'!A:A,0),1,10000,10000),MATCH('Transporte EAI'!AH30,'ANP REGIÃO'!$B$8:$G$8,0),FALSE) -> 2.380082902 | L30: 2380.082902 | M30: 657.67 | N30: 3037.752902 | O30: 2114 | P30: 0 | Q30: 561.78 | S30: 169.07 | T30: 123.31 | U30: 804.43 | V30: 1489.52 | W30: 564 | X30: =EVEN((' CONSUMO DE MAT. B TOTAL'!$P$15+' CONSUMO DE MAT. B TOTAL'!P34)*2/28)*W30/(' CONSUMO DE MAT. B TOTAL'!$P$15+' CONSUMO DE MAT. B TOTAL'!P34) -> 45.23308271 | Y30: 1534.753083 | Z30: 3037.752902 | AA30: 4572.505985 | AC30: 4572.505985 | AD30: 1534.753083 | AE30: 3037.752902 | AH30: SUDESTE
B31: 4583.925985 | C31: 18 | E31: PROBITEC - PRODUTOS BETUMINOSOS E TECNOLOGIA DE APLICAÇÃO LTDA. | F31: AVENIDA CANAL DA PAVUNA, 620 - PAVUNA - CEP:21535-630 | G31: Rio de Janeiro | H31: RIO DE JANEIRO - RJ | I31: Juazeiro do Norte - CE | J31: =VLOOKUP(G31,OFFSET('ANP ESTADO'!$A$1,MATCH($I$8,'ANP ESTADO'!B:B,0)+MATCH($H$11,OFFSET('ANP ESTADO'!$A$1,MATCH($I$8,'ANP ESTADO'!B:B,0),0,100000,1),0),2,100000,2),2,FALSE) -> - | K31: =VLOOKUP($H$11,OFFSET('ANP REGIÃO'!$A$9,MATCH('Transporte EAI'!$I$8,'ANP REGIÃO'!A:A,0),1,10000,10000),MATCH('Transporte EAI'!AH31,'ANP REGIÃO'!$B$8:$G$8,0),FALSE) -> 2.380082902 | L31: 2380.082902 | M31: 657.67 | N31: 3037.752902 | O31: 2131 | P31: 0 | Q31: 566.08 | S31: 170.16 | T31: 124.26 | U31: 810.6 | V31: 1500.94 | W31: 564 | X31: =EVEN((' CONSUMO DE MAT. B TOTAL'!$P$15+' CONSUMO DE MAT. B TOTAL'!P35)*2/28)*W31/(' CONSUMO DE MAT. B TOTAL'!$P$15+' CONSUMO DE MAT. B TOTAL'!P35) -> 45.23308271 | Y31: 1546.173083 | Z31: 3037.752902 | AA31: 4583.925985 | AC31: 4583.925985 | AD31: 1546.173083 | AE31: 3037.752902 | AH31: SUDESTE
B32: 5493.644841 | C32: 19 | E32: CASA DO ASFALTO DISTRIBUIDORA, INDÚSTRIA E COMÉRCIO DE ASFALTO LTDA. | F32: BR 376, PARQUE INDUSTRIAL, S/N LOTE 6/7/7-A-3-1 - GL.PATR.MARIALVA - CEP:86990-000 | G32: Paraná | H32: MARIALVA - PR | I32: Juazeiro do Norte - CE | J32: =VLOOKUP(G32,OFFSET('ANP ESTADO'!$A$1,MATCH($I$8,'ANP ESTADO'!B:B,0)+MATCH($H$11,OFFSET('ANP ESTADO'!$A$1,MATCH($I$8,'ANP ESTADO'!B:B,0),0,100000,1),0),2,100000,2),2,FALSE) -> 2.700638902 | K32: =VLOOKUP($H$11,OFFSET('ANP REGIÃO'!$A$9,MATCH('Transporte EAI'!$I$8,'ANP REGIÃO'!A:A,0),1,10000,10000),MATCH('Transporte EAI'!AH32,'ANP REGIÃO'!$B$8:$G$8,0),FALSE) -> 2.70024386 | L32: 2700.638902 | M32: 746.25 | N32: 3446.888902 | O32: 2835 | P32: 0 | Q32: 744.19 | S32: 215.22 | T32: 163.35 | U32: 1065.64 | V32: 1973.18 | W32: 917.4 | X32: =EVEN((' CONSUMO DE MAT. B TOTAL'!$P$15+' CONSUMO DE MAT. B TOTAL'!P36)*2/28)*W32/(' CONSUMO DE MAT. B TOTAL'!$P$15+' CONSUMO DE MAT. B TOTAL'!P36) -> 73.57593985 | Y32: 2046.75594 | Z32: 3446.888902 | AA32: 5493.644841 | AC32: 5493.644841 | AD32: 2046.75594 | AE32: 3446.888902 | AH32: SUL
B33: 5598.092661 | C33: 20 | E33: PETROBRAS DISTRIBUIDORA S.A. | F33: RUA MAQUINISTA ELEODORO JACINTO, 100 - OFICINAS - CEP:84045-170 | G33: Paraná | H33: PONTA GROSSA - PR | I33: Juazeiro do Norte - CE | J33: =VLOOKUP(G33,OFFSET('ANP ESTADO'!$A$1,MATCH($I$8,'ANP ESTADO'!B:B,0)+MATCH($H$11,OFFSET('ANP ESTADO'!$A$1,MATCH($I$8,'ANP ESTADO'!B:B,0),0,100000,1),0),2,100000,2),2,FALSE) -> 2.700638902 | K33: =VLOOKUP($H$11,OFFSET('ANP REGIÃO'!$A$9,MATCH('Transporte EAI'!$I$8,'ANP REGIÃO'!A:A,0),1,10000,10000),MATCH('Transporte EAI'!AH33,'ANP REGIÃO'!$B$8:$G$8,0),FALSE) -> 2.70024386 | L33: 2700.638902 | M33: 746.25 | N33: 3446.888902 | O33: 2986 | P33: 0 | Q33: 782.4 | S33: 224.89 | T33: 171.74 | U33: 1120.36 | V33: 2074.5 | W33: 956.4 | X33: =EVEN((' CONSUMO DE MAT. B TOTAL'!$P$15+' CONSUMO DE MAT. B TOTAL'!P37)*2/28)*W33/(' CONSUMO DE MAT. B TOTAL'!$P$15+' CONSUMO DE MAT. B TOTAL'!P37) -> 76.7037594 | Y33: 2151.203759 | Z33: 3446.888902 | AA33: 5598.092661 | AC33: 5598.092661 | AD33: 2151.203759 | AE33: 3446.888902 | AH33: SUL
D43: Acre
D44: Alagoas
D45: Amapá
D46: Amazonas
D47: Bahia
D48: Ceará
D49: Distrito Federal
D50: Espírito Santo
D51: Goiás
D52: Maranhão
D53: Mato Grosso
D54: Mato Grosso do Sul
D55: Minas Gerais
D56: Pará
D57: Paraíba
D58: Paraná
D59: Pernambuco
D60: Piauí
D61: Rio de Janeiro
D62: Rio Grande do Norte
D63: Rio Grande do Sul
D64: Rondônia
D65: Roraima
D66: Santa Catarina
D67: São Paulo
D68: Sergipe
D69: Tocantins
D73: ASFALTOS DILUÍDOS CM-30
D74: ASFALTOS DILUÍDOS CM-70
D75: ASFALTOS DILUÍDOS CR-250
D76: ASFALTOS DILUÍDOS CR-70
D77: CAP MODIFICADO POR BORRACHA DE PNEU AB22
D78: CAP MODIFICADO POR BORRACHA DE PNEU AB8
D79: CAP MODIFICADO POR POLÍMERO 55-75-E
D80: CAP MODIFICADO POR POLÍMERO 60-85-E
D81: CAP MODIFICADO POR POLÍMERO 65-90-E
D82: CIMENTOS ASFÁLTICOS CAP-150-200
D83: CIMENTOS ASFÁLTICOS CAP-30-45
D84: CIMENTOS ASFÁLTICOS CAP-50-70
D85: CIMENTOS ASFÁLTICOS CAP-85-100
D86: EMULSÃO ASFÁLTICA CATIÔNICA DE RUPTURA CONTROLADA PARA SERVIÇO DE LAMA ASFÁLTICA
D87: EMULSÃO ASFÁLTICA DE RUPTURA LENTA CATIÔNICA PARA SERVIÇO DE LAMA ASFÁLTICA
D88: EMULSÃO ASFÁLTICA DE RUPTURA LENTA DE CARGA NEUTRA PARA SERVIÇO DE LAMA ASFÁLTICA
D89: EMULSÃO ASFÁLTICA PARA SERVIÇO DE IMPRIMAÇÃO
D90: EMULSÕES ASF. MOD. POR POLÍMEROS RC1C-E
D91: EMULSÕES ASF. MOD. POR POLÍMEROS RL1C-E
D92: EMULSÕES ASF. MOD. POR POLÍMEROS RM1C-E
D93: EMULSÕES ASF. MOD. POR POLÍMEROS RR1C-E
D94: EMULSÕES ASF. MOD. POR POLÍMEROS RR2C-E
D95: EMULSÕES ASFÁLTICAS RL-1C
D96: EMULSÕES ASFÁLTICAS RM-1C
D97: EMULSÕES ASFÁLTICAS RM-2C
D98: EMULSÕES ASFÁLTICAS RR-1C
D99: EMULSÕES ASFÁLTICAS RR-2C

Sheet Transporte RR-2C
C3: MEMÓRIA DE CÁLCULO
C8: REAJUSTE | F8: TIPOLOGIA DO MATERIAL | I8: EMULSÕES ASFÁLTICAS RR-2C | M8: IMPOSTOS | N8: COFINS | O8: 0.0065 | P8: 0.0065
G9: ÍNDICE DE PAVIMENTAÇÃO DNIT | H9: 2014-07-01 | I9: ÍNDICE INICIAL | J9: 270.237 | N9: PIS | O9: 0.03 | P9: 0.03 | T9: LEGENDA | AC9: As empresas tributadas pelo Lucro Presumido pagam 0,65% de PIS e 3% de COFINS
H10: ='Transporte EAI'!H10 -> 2025-05-01 | I10: ÍNDICE FINAL | J10: ='Transporte EAI'!J10 -> 587.552 | N10: ICMS | O10: 0.18 | P10: 0.18 | Q10: =1-(O10/1) -> 0.82 | R10: =1-(P10/1) -> 0.82 | S10: =1-(Q10/1) -> 0.18 | T10: ENTRADA DE DADOS | AC10: As empresas tributadas pelo Lucro Real pagam 1,65% de PIS e 7,60% de COFINS
G11: Data ANP | H11: ='Transporte EAI'!H11 -> 2025-05-01
C12: DATA-BASE | D12: PRODUTOS | E12: LOCALIDADES | J12: CUSTO ANP (R$/Kg) | L12: CUSTO ANP | M12: IMPOSTOS DO PRODUTO | N12: CUSTO DO PRODUTO COM IMPOSTOS | O12: DMT's | P12: DMT'S FLUVIAL | Q12: CUSTO DO TRANSPORTE RODOVIA PAVIMENTADA | R12: CUSTO DO TRANSPORTE FLUVIAL | S12: CUSTO DO TRANSPORTE TOTAL | T12: ICMS | U12: ATUALIZAÇÃO DO CUSTO DE TRANSPORTE | V12: CUSTO DO TRANSPORTE RODOVIA PAVIMENTADA COM IMPOSTOS E ATUALIZAÇÃO MONETÁRIA | W12: PEDÁGIO | Y12: TOTAL TRANSPORTE | Z12: AQUISIÇÃO DO PRODUTO | AA12: TOTAL GERAL ( TRANSP + AQUISIÇÃO) | AC12: 1 | AD12: 2 | AE12: 3
C13: =H10 -> 2025-05-01 | E13: REFINARIAS | F13: ENDEREÇO | G13: ESTADO | H13: CIDADE | I13: DESTINO | J13: ESTADO | K13: REGIÃO | L13: R$/t | M13: R$/t | N13: R$/t | O13: KM | P13: KM | Q13: R$/t | R13: R$/t | S13: R$/t | T13: R$/t | U13: R$/t | V13: R$/t | W13: CUSTO | X13: R$/t | Y13: R$/t | Z13: R$/t | AA13: R$/t | AC13: TOTAL GERAL ( TRANSP + AQUISIÇÃO) | AD13: TOTAL TRANSPORTE | AE13: AQUISIÇÃO DO PRODUTO
B14: =AA14 -> 5223.680358 | C14: 1 | D14: =I8 -> EMULSÕES ASFÁLTICAS RR-2C | E14: 'CENTRO OESTE ASFALTOS LTDA. | F14: SETOR DE INFLAMÁVEIS, S/N TRECHO 02 - LOTE 1.100 - GUARÁ - CEP:71225-000 | G14: Distrito Federal | H14: BRASÍLIA - DF | I14: ='Transporte EAI'!I14 -> Juazeiro do Norte - CE | J14: =VLOOKUP(G14,OFFSET('ANP ESTADO'!$A$1,MATCH($I$8,'ANP ESTADO'!B:B,0)+MATCH($H$11,OFFSET('ANP ESTADO'!$A$1,MATCH($I$8,'ANP ESTADO'!B:B,0),0,100000,1),0),2,100000,2),2,FALSE) -> 3.077666749 | K14: =VLOOKUP($H$11,OFFSET('ANP REGIÃO'!$A$9,MATCH('Transporte RR-2C'!$I$8,'ANP REGIÃO'!A:A,0),1,10000,10000),MATCH('Transporte RR-2C'!AH14,'ANP REGIÃO'!$B$8:$G$8,0),FALSE) -> 3.261745309 | L14: =IF(AND(J14="-",K14="-"),"",IF(AND(J14<>0,K14="-"),J14*1000,IF(AND(J14="-",K14<>0),K14*1000,IF(AND(J14<>0,K14<>0),J14*1000,"")))) -> 3077.666749 | M14: =ROUND(((L14/(1-$O$8-$O$9-$O$10))-L14),2) -> 850.43 | N14: =L14+M14 -> 3928.096749 | O14: ='Transporte EAI'!O14 -> 1817 | P14: ='Transporte EAI'!P14 -> 0 | Q14: =ROUND((26.939+0.253*O14),2) -> 486.64 | S14: =ROUND((26.939+0.253*Q14),2) -> 150.06 | T14: =TRUNC(Q14*($O$10/(1-$O$10)),2) -> 106.82 | U14: =TRUNC(IF($J$9="","",(($J$10-$J$9)/$J$9)*(Q14+T14)),2) -> 696.84 | V14: =Q14+T14+U14 -> 1290.3 | W14: ='Transporte EAI'!W14 -> 73.2 | X14: =EVEN((' CONSUMO DE MAT. B TOTAL'!$P$15+' CONSUMO DE MAT. B TOTAL'!P17)*2/28)*W14/(' CONSUMO DE MAT. B TOTAL'!$P$15+' CONSUMO DE MAT. B TOTAL'!P17) -> 5.283609023 | Y14: =IF(AND(Q14="",T14=""),"",V14+X14) -> 1295.583609 | Z14: =IF(OR(L14="",M14=""),"",L14+M14) -> 3928.096749 | AA14: =IF(OR(Y14="",Z14=""),"",Y14+Z14) -> 5223.680358 | AC14: =AA14 -> 5223.680358 | AD14: =Y14 -> 1295.583609 | AE14: =Z14 -> 3928.096749 | AH14: =IF(OR(G14=$D$59,G14=$D$60,G14=$D$62,G14=$D$68,G14=$D$52,G14=$D$48,G14=$D$44,G14=$D$57,G14=$D$47),"NORDESTE",IF(OR(G14=$D$43,G14=$D$45,G14=$D$46,G14=$D$56,G14=$D$64,G14=$D$65,G14=$D$69),"NORTE",IF(OR(G14=$D$49,G14=$D$51,G14=$D$53,G14=$D$54),"CENTRO-OESTE",IF(OR(G14=$D$67,G14=$D$61,G14=$D$55,G14=$D$50),"SUDESTE",IF(OR(G14=$D$66,G14=$D$58,G14=$D$63),"SUL",""))))) -> CENTRO-OESTE
B15: =AA15 -> 5253.59413 | C15: 2 | E15: STRATURA ASFALTOS S/A | F15: AVENIDA PRESIDENTE WILSON, 08 - JUNDIAÍ - CEP:75115-100 | G15: Goiás | H15: ANÁPOLIS - GO | I15: ='Transporte EAI'!I15 -> Juazeiro do Norte - CE | J15: =VLOOKUP(G15,OFFSET('ANP ESTADO'!$A$1,MATCH($I$8,'ANP ESTADO'!B:B,0)+MATCH($H$11,OFFSET('ANP ESTADO'!$A$1,MATCH($I$8,'ANP ESTADO'!B:B,0),0,100000,1),0),2,100000,2),2,FALSE) -> 3.022353152 | K15: =VLOOKUP($H$11,OFFSET('ANP REGIÃO'!$A$9,MATCH('Transporte RR-2C'!$I$8,'ANP REGIÃO'!A:A,0),1,10000,10000),MATCH('Transporte RR-2C'!AH15,'ANP REGIÃO'!$B$8:$G$8,0),FALSE) -> 3.261745309 | L15: =IF(AND(J15="-",K15="-"),"",IF(AND(J15<>0,K15="-"),J15*1000,IF(AND(J15="-",K15<>0),K15*1000,IF(AND(J15<>0,K15<>0),J15*1000,"")))) -> 3022.353152 | M15: =ROUND(((L15/(1-$O$8-$O$9-$O$10))-L15),2) -> 835.15 | N15: =L15+M15 -> 3857.503152 | O15: ='Transporte EAI'!O15 -> 1961 | P15: ='Transporte EAI'!P15 -> 0 | Q15: =ROUND((26.939+0.253*O15),2) -> 523.07 | S15: 159.28 | T15: =TRUNC(Q15*($O$10/(1-$O$10)),2) -> 114.82 | U15: =TRUNC(IF($J$9="","",(($J$10-$J$9)/$J$9)*(Q15+T15)),2) -> 749.01 | V15: =Q15+T15+U15 -> 1386.9 | W15: ='Transporte EAI'!W15 -> 114.6 | X15: =EVEN((' CONSUMO DE MAT. B TOTAL'!$P$15+' CONSUMO DE MAT. B TOTAL'!P19)*2/28)*W15/(' CONSUMO DE MAT. B TOTAL'!$P$15+' CONSUMO DE MAT. B TOTAL'!P19) -> 9.190977444 | Y15: 1396.090977 | Z15: 3857.503152 | AA15: =IF(OR(Y15="",Z15=""),"",Y15+Z15) -> 5253.59413 | AC15: =AA15 -> 5253.59413 | AD15: =Y15 -> 1396.090977 | AE15: 3857.503152 | AH15: =IF(OR(G15=$D$59,G15=$D$60,G15=$D$62,G15=$D$68,G15=$D$52,G15=$D$48,G15=$D$44,G15=$D$57,G15=$D$47),"NORDESTE",IF(OR(G15=$D$43,G15=$D$45,G15=$D$46,G15=$D$56,G15=$D$64,G15=$D$65,G15=$D$69),"NORTE",IF(OR(G15=$D$49,G15=$D$51,G15=$D$53,G15=$D$54),"CENTRO-OESTE",IF(OR(G15=$D$67,G15=$D$61,G15=$D$55,G15=$D$50),"SUDESTE",IF(OR(G15=$D$66,G15=$D$58,G15=$D$63),"SUL",""))))) -> CENTRO-OESTE
B16: 5302.988265 | C16: 3 | E16: DISTRIBUIDORA BRASILEIRA DE ASFALTO SA - DISBRAL | F16: VIA PRIMARIA 8, S/N QD-18, MODS. 24/47 - DAIAG - CEP:74980-970 | G16: Goiás | H16: APARECIDA DE GOIANIA - GO | I16: ='Transporte EAI'!I16 -> Juazeiro do Norte - CE | J16: =VLOOKUP(G16,OFFSET('ANP ESTADO'!$A$1,MATCH($I$8,'ANP ESTADO'!B:B,0)+MATCH($H$11,OFFSET('ANP ESTADO'!$A$1,MATCH($I$8,'ANP ESTADO'!B:B,0),0,100000,1),0),2,100000,2),2,FALSE) -> 3.022353152 | K16: =VLOOKUP($H$11,OFFSET('ANP REGIÃO'!$A$9,MATCH('Transporte RR-2C'!$I$8,'ANP REGIÃO'!A:A,0),1,10000,10000),MATCH('Transporte RR-2C'!AH16,'ANP REGIÃO'!$B$8:$G$8,0),FALSE) -> 3.261745309 | L16: 3022.353152 | M16: 835.15 | N16: 3857.503152 | O16: ='Transporte EAI'!O16 -> 2031 | P16: ='Transporte EAI'!P16 -> 0 | Q16: 540.78 | S16: 163.76 | T16: 118.7 | U16: 774.36 | V16: 1433.84 | W16: ='Transporte EAI'!W16 -> 145.2 | X16: =EVEN((' CONSUMO DE MAT. B TOTAL'!$P$15+' CONSUMO DE MAT. B TOTAL'!P20)*2/28)*W16/(' CONSUMO DE MAT. B TOTAL'!$P$15+' CONSUMO DE MAT. B TOTAL'!P20) -> 11.64511278 | Y16: 1445.485113 | Z16: 3857.503152 | AA16: 5302.988265 | AC16: 5302.988265 | AD16: 1445.485113 | AE16: 3857.503152 | AH16: CENTRO-OESTE
A17: 2403 | B17: 5304.58413 | C17: 4 | E17: INDÚSTRIA NACIONAL DE ASFALTOS LTDA. | F17: VIA PRIMEIRA E SEGUNDA 3, S/N.º LOTES 01 A 10 - DISTRITO AGROINDUSTRIAL - CEP:75370-000 | G17: Goiás | H17: GOIANIRA - GO | I17: ='Transporte EAI'!I17 -> Juazeiro do Norte - CE | J17: =VLOOKUP(G17,OFFSET('ANP ESTADO'!$A$1,MATCH($I$8,'ANP ESTADO'!B:B,0)+MATCH($H$11,OFFSET('ANP ESTADO'!$A$1,MATCH($I$8,'ANP ESTADO'!B:B,0),0,100000,1),0),2,100000,2),2,FALSE) -> 3.022353152 | K17: =VLOOKUP($H$11,OFFSET('ANP REGIÃO'!$A$9,MATCH('Transporte RR-2C'!$I$8,'ANP REGIÃO'!A:A,0),1,10000,10000),MATCH('Transporte RR-2C'!AH17,'ANP REGIÃO'!$B$8:$G$8,0),FALSE) -> 3.261745309 | L17: 3022.353152 | M17: 835.15 | N17: 3857.503152 | O17: ='Transporte EAI'!O17 -> 2037 | P17: ='Transporte EAI'!P17 -> 0 | Q17: 542.3 | S17: 164.14 | T17: 119.04 | U17: 776.55 | V17: 1437.89 | W17: ='Transporte EAI'!W17 -> 114.6 | X17: =EVEN((' CONSUMO DE MAT. B TOTAL'!$P$15+' CONSUMO DE MAT. B TOTAL'!P21)*2/28)*W17/(' CONSUMO DE MAT. B TOTAL'!$P$15+' CONSUMO DE MAT. B TOTAL'!P21) -> 9.190977444 | Y17: 1447.080977 | Z17: 3857.503152 | AA17: 5304.58413 | AC17: 5304.58413 | AD17: 1447.080977 | AE17: 3857.503152 | AH17: CENTRO-OESTE
B18: 5577.90841 | C18: 5 | E18: STRATURA ASFALTOS S/A | F18: RUA VICTOR RODRIGUES RESENDE, 333 - DISTRITO IND. DE UBERLÂNDIA - CEP:38405-440 | G18: Minas Gerais | H18: UBERLANDIA - MG | I18: ='Transporte EAI'!I18 -> Juazeiro do Norte - CE | J18: =VLOOKUP(G18,OFFSET('ANP ESTADO'!$A$1,MATCH($I$8,'ANP ESTADO'!B:B,0)+MATCH($H$11,OFFSET('ANP ESTADO'!$A$1,MATCH($I$8,'ANP ESTADO'!B:B,0),0,100000,1),0),2,100000,2),2,FALSE) -> 3.171659162 | K18: =VLOOKUP($H$11,OFFSET('ANP REGIÃO'!$A$9,MATCH('Transporte RR-2C'!$I$8,'ANP REGIÃO'!A:A,0),1,10000,10000),MATCH('Transporte RR-2C'!AH18,'ANP REGIÃO'!$B$8:$G$8,0),FALSE) -> 3.044994528 | L18: 3171.659162 | M18: 876.41 | N18: 4048.069162 | O18: ='Transporte EAI'!O18 -> 2134 | P18: ='Transporte EAI'!P18 -> 0 | Q18: 566.84 | S18: 170.35 | T18: 124.42 | U18: 811.68 | V18: 1502.94 | W18: ='Transporte EAI'!W18 -> 335.4 | X18: =EVEN((' CONSUMO DE MAT. B TOTAL'!$P$15+' CONSUMO DE MAT. B TOTAL'!P22)*2/28)*W18/(' CONSUMO DE MAT. B TOTAL'!$P$15+' CONSUMO DE MAT. B TOTAL'!P22) -> 26.89924812 | Y18: 1529.839248 | Z18: 4048.069162 | AA18: 5577.90841 | AC18: 5577.90841 | AD18: 1529.839248 | AE18: 4048.069162 | AH18: SUDESTE
B19: 5577.90841 | C19: 6 | E19: BETUNEL INDÚSTRIA E COMÉRCIO LTDA. | F19: RUA VICTOR RODRIGUES DE REZENDE, 185 - DISTRITO INDUSTRIAL - CEP:38402-334 | G19: Minas Gerais | H19: UBERLANDIA - MG | I19: ='Transporte EAI'!I19 -> Juazeiro do Norte - CE | J19: =VLOOKUP(G19,OFFSET('ANP ESTADO'!$A$1,MATCH($I$8,'ANP ESTADO'!B:B,0)+MATCH($H$11,OFFSET('ANP ESTADO'!$A$1,MATCH($I$8,'ANP ESTADO'!B:B,0),0,100000,1),0),2,100000,2),2,FALSE) -> 3.171659162 | K19: =VLOOKUP($H$11,OFFSET('ANP REGIÃO'!$A$9,MATCH('Transporte RR-2C'!$I$8,'ANP REGIÃO'!A:A,0),1,10000,10000),MATCH('Transporte RR-2C'!AH19,'ANP REGIÃO'!$B$8:$G$8,0),FALSE) -> 3.044994528 | L19: 3171.659162 | M19: 876.41 | N19: 4048.069162 | O19: ='Transporte EAI'!O19 -> 2134 | P19: ='Transporte EAI'!P19 -> 0 | Q19: 566.84 | S19: 170.35 | T19: 124.42 | U19: 811.68 | V19: 1502.94 | W19: ='Transporte EAI'!W19 -> 335.4 | X19: =EVEN((' CONSUMO DE MAT. B TOTAL'!$P$15+' CONSUMO DE MAT. B TOTAL'!P23)*2/28)*W19/(' CONSUMO DE MAT. B TOTAL'!$P$15+' CONSUMO DE MAT. B TOTAL'!P23) -> 26.89924812 | Y19: 1529.839248 | Z19: 4048.069162 | AA19: 5577.90841 | AC19: 5577.90841 | AD19: 1529.839248 | AE19: 4048.069162 | AH19: SUDESTE
B20: 6331.233447 | C20: 7 | E20: ARAPETRO DISTRIBUIDORA DE PETRÓLEO LTDA. | F20: RUA 04, S/N° LOTES 17 A 20. - DISTRITO INDUSTRIAL 1/8 - CEP:78600-000 | G20: Mato grosso | H20: BARRA DO GARCAS - MT | I20: ='Transporte EAI'!I20 -> Juazeiro do Norte - CE | J20: =VLOOKUP(G20,OFFSET('ANP ESTADO'!$A$1,MATCH($I$8,'ANP ESTADO'!B:B,0)+MATCH($H$11,OFFSET('ANP ESTADO'!$A$1,MATCH($I$8,'ANP ESTADO'!B:B,0),0,100000,1),0),2,100000,2),2,FALSE) -> 3.65960247 | K20: =VLOOKUP($H$11,OFFSET('ANP REGIÃO'!$A$9,MATCH('Transporte RR-2C'!$I$8,'ANP REGIÃO'!A:A,0),1,10000,10000),MATCH('Transporte RR-2C'!AH20,'ANP REGIÃO'!$B$8:$G$8,0),FALSE) -> 3.261745309 | L20: =IF(AND(J20="-",K20="-"),"",IF(AND(J20<>0,K20="-"),J20*1000,IF(AND(J20="-",K20<>0),K20*1000,IF(AND(J20<>0,K20<>0),J20*1000,"")))) -> 3659.60247 | M20: =ROUND(((L20/(1-$O$8-$O$9-$O$10))-L20),2) -> 1011.24 | N20: 4670.84247 | O20: ='Transporte EAI'!O20 -> 2355 | P20: ='Transporte EAI'!P20 -> 0 | Q20: 622.75 | S20: 184.49 | T20: 136.7 | U20: 891.75 | V20: 1651.2 | W20: ='Transporte EAI'!W20 -> 114.6 | X20: =EVEN((' CONSUMO DE MAT. B TOTAL'!$P$15+' CONSUMO DE MAT. B TOTAL'!P24)*2/28)*W20/(' CONSUMO DE MAT. B TOTAL'!$P$15+' CONSUMO DE MAT. B TOTAL'!P24) -> 9.190977444 | Y20: 1660.390977 | Z20: 4670.84247 | AA20: 6331.233447 | AH20: CENTRO-OESTE
B21: 5436.215853 | C21: 8 | E21: DISTRIBUIDORA BRASILEIRA DE ASFALTO SA - DISBRAL | F21: SÃO JUDAS TADEU, 288 - DISTRITO INDUSTRIAL - CEP:32450-000 | G21: Minas Gerais | H21: SARZEDO - MG | I21: ='Transporte EAI'!I21 -> Juazeiro do Norte - CE | J21: =VLOOKUP(G21,OFFSET('ANP ESTADO'!$A$1,MATCH($I$8,'ANP ESTADO'!B:B,0)+MATCH($H$11,OFFSET('ANP ESTADO'!$A$1,MATCH($I$8,'ANP ESTADO'!B:B,0),0,100000,1),0),2,100000,2),2,FALSE) -> 3.171659162 | K21: =VLOOKUP($H$11,OFFSET('ANP REGIÃO'!$A$9,MATCH('Transporte RR-2C'!$I$8,'ANP REGIÃO'!A:A,0),1,10000,10000),MATCH('Transporte RR-2C'!AH21,'ANP REGIÃO'!$B$8:$G$8,0),FALSE) -> 3.044994528 | L21: 3171.659162 | M21: 876.41 | N21: 4048.069162 | O21: ='Transporte EAI'!O21 -> 1941 | P21: ='Transporte EAI'!P21 -> 0 | Q21: 518.01 | S21: 158 | T21: 113.7 | U21: 741.76 | V21: 1373.47 | W21: ='Transporte EAI'!W21 -> 183 | X21: =EVEN((' CONSUMO DE MAT. B TOTAL'!$P$15+' CONSUMO DE MAT. B TOTAL'!P25)*2/28)*W21/(' CONSUMO DE MAT. B TOTAL'!$P$15+' CONSUMO DE MAT. B TOTAL'!P25) -> 14.67669173 | Y21: 1388.146692 | Z21: 4048.069162 | AA21: 5436.215853 | AH21: SUDESTE
B22: 4795.372422 | C22: 9 | E22: 'INDÚSTRIA NACIONAL DE ASFALTOS LTDA. | F22: INDÚSTRIA NACIONAL DE ASFALTOS LTDA - CEP:77053-080 | G22: Tocantins | H22: PALMAS - TO | I22: ='Transporte EAI'!I22 -> Juazeiro do Norte - CE | J22: =VLOOKUP(G22,OFFSET('ANP ESTADO'!$A$1,MATCH($I$8,'ANP ESTADO'!B:B,0)+MATCH($H$11,OFFSET('ANP ESTADO'!$A$1,MATCH($I$8,'ANP ESTADO'!B:B,0),0,100000,1),0),2,100000,2),2,FALSE) -> 2.960662422 | K22: =VLOOKUP($H$11,OFFSET('ANP REGIÃO'!$A$9,MATCH('Transporte RR-2C'!$I$8,'ANP REGIÃO'!A:A,0),1,10000,10000),MATCH('Transporte RR-2C'!AH22,'ANP REGIÃO'!$B$8:$G$8,0),FALSE) -> 3.283919195 | L22: 2960.662422 | M22: 818.1 | N22: 3778.762422 | O22: ='Transporte EAI'!O22 -> 1409 | P22: ='Transporte EAI'!P22 -> 0 | Q22: 383.42 | S22: 123.94 | T22: 84.16 | U22: =TRUNC(IF($J$9="","",(($J$10-$J$9)/$J$9)*(Q22+T22)),2) -> 549.03 | V22: 1016.61 | W22: ='Transporte EAI'!W22 -> 0 | X22: =EVEN((' CONSUMO DE MAT. B TOTAL'!$P$15+' CONSUMO DE MAT. B TOTAL'!P26)*2/28)*W22/(' CONSUMO DE MAT. B TOTAL'!$P$15+' CONSUMO DE MAT. B TOTAL'!P26) -> 0 | Y22: 1016.61 | Z22: 3778.762422 | AA22: 4795.372422 | AH22: NORTE
B23: 5569.680931 | C23: 10 | E23: 'NTA - NOVAS TÉCNICAS DE ASFALTOS S/A | F23: RUA SOFIA ATAURI FADIN, 150 SALA A - B. SANTA TEREZINHA - CEP:13140-000 | G23: São Paulo | H23: PAULINIA - SP | I23: ='Transporte EAI'!I23 -> Juazeiro do Norte - CE | J23: =VLOOKUP(G23,OFFSET('ANP ESTADO'!$A$1,MATCH($I$8,'ANP ESTADO'!B:B,0)+MATCH($H$11,OFFSET('ANP ESTADO'!$A$1,MATCH($I$8,'ANP ESTADO'!B:B,0),0,100000,1),0),2,100000,2),2,FALSE) -> 2.965301306 | K23: =VLOOKUP($H$11,OFFSET('ANP REGIÃO'!$A$9,MATCH('Transporte RR-2C'!$I$8,'ANP REGIÃO'!A:A,0),1,10000,10000),MATCH('Transporte RR-2C'!AH23,'ANP REGIÃO'!$B$8:$G$8,0),FALSE) -> 3.044994528 | L23: 2965.301306 | M23: =ROUND(((L23/(1-$O$8-$O$9-$O$10))-L23),2) -> 819.38 | N23: 3784.681306 | O23: ='Transporte EAI'!O23 -> 2501 | P23: ='Transporte EAI'!P23 -> 0 | Q23: 659.69 | S23: 193.84 | T23: 144.81 | U23: 944.65 | V23: 1749.15 | W23: ='Transporte EAI'!W23 -> 447 | X23: =EVEN((' CONSUMO DE MAT. B TOTAL'!$P$15+' CONSUMO DE MAT. B TOTAL'!P27)*2/28)*W23/(' CONSUMO DE MAT. B TOTAL'!$P$15+' CONSUMO DE MAT. B TOTAL'!P27) -> 35.84962406 | Y23: 1784.999624 | Z23: 3784.681306 | AA23: 5569.680931 | AC23: 5569.680931 | AD23: 1784.999624 | AE23: 3784.681306 | AH23: SUDESTE
B24: 5538.136419 | C24: 11 | E24: COMPANHIA BRASILEIRA DE ASFALTOS DA AMAZÔNIA - IMPORTAÇÃO E EXPORTAÇÃO | F24: Avenida Doutor Olindo Dártora 2451, Galpão 02, Morro Grande - CEP:07726-555 | G24: São Paulo | H24: CAIEIRAS - SP | I24: ='Transporte EAI'!I24 -> Juazeiro do Norte - CE | J24: =VLOOKUP(G24,OFFSET('ANP ESTADO'!$A$1,MATCH($I$8,'ANP ESTADO'!B:B,0)+MATCH($H$11,OFFSET('ANP ESTADO'!$A$1,MATCH($I$8,'ANP ESTADO'!B:B,0),0,100000,1),0),2,100000,2),2,FALSE) -> 2.965301306 | K24: =VLOOKUP($H$11,OFFSET('ANP REGIÃO'!$A$9,MATCH('Transporte RR-2C'!$I$8,'ANP REGIÃO'!A:A,0),1,10000,10000),MATCH('Transporte RR-2C'!AH24,'ANP REGIÃO'!$B$8:$G$8,0),FALSE) -> 3.044994528 | L24: 2965.301306 | M24: =ROUND(((L24/(1-$O$8-$O$9-$O$10))-L24),2) -> 819.38 | N24: 3784.681306 | O24: ='Transporte EAI'!O24 -> 2471 | P24: ='Transporte EAI'!P24 -> 0 | Q24: 652.1 | S24: 191.92 | T24: 143.14 | U24: 933.77 | V24: 1729.01 | W24: ='Transporte EAI'!W24 -> 304.8 | X24: =EVEN((' CONSUMO DE MAT. B TOTAL'!$P$15+' CONSUMO DE MAT. B TOTAL'!P28)*2/28)*W24/(' CONSUMO DE MAT. B TOTAL'!$P$15+' CONSUMO DE MAT. B TOTAL'!P28) -> 24.44511278 | Y24: 1753.455113 | Z24: 3784.681306 | AA24: 5538.136419 | AH24: SUDESTE
B25: 5965.54125 | C25: 12 | E25: BETUNEL INDÚSTRIA E COMÉRCIO LTDA. | F25: R 16 , 82, Vila Nova Campo Grande - CEP:79.103-834 | G25: Mato Grosso do Sul | H25: CAMPO GRANDE - MS | I25: ='Transporte EAI'!I25 -> Juazeiro do Norte - CE | J25: =VLOOKUP(G25,OFFSET('ANP ESTADO'!$A$1,MATCH($I$8,'ANP ESTADO'!B:B,0)+MATCH($H$11,OFFSET('ANP ESTADO'!$A$1,MATCH($I$8,'ANP ESTADO'!B:B,0),0,100000,1),0),2,100000,2),2,FALSE) -> 3.094852002 | K25: =VLOOKUP($H$11,OFFSET('ANP REGIÃO'!$A$9,MATCH('Transporte RR-2C'!$I$8,'ANP REGIÃO'!A:A,0),1,10000,10000),MATCH('Transporte RR-2C'!AH25,'ANP REGIÃO'!$B$8:$G$8,0),FALSE) -> 3.261745309 | L25: 3094.852002 | M25: =ROUND(((L25/(1-$O$8-$O$9-$O$10))-L25),2) -> 855.18 | N25: 3950.032002 | O25: ='Transporte EAI'!O25 -> 2858 | P25: ='Transporte EAI'!P25 -> 0 | Q25: 750.01 | S25: 216.69 | T25: 164.63 | U25: 1073.97 | V25: 1988.61 | W25: ='Transporte EAI'!W25 -> 335.4 | X25: =EVEN((' CONSUMO DE MAT. B TOTAL'!$P$15+' CONSUMO DE MAT. B TOTAL'!P29)*2/28)*W25/(' CONSUMO DE MAT. B TOTAL'!$P$15+' CONSUMO DE MAT. B TOTAL'!P29) -> 26.89924812 | Y25: 2015.509248 | Z25: 3950.032002 | AA25: 5965.54125 | AH25: CENTRO-OESTE
B26: 6685.447958 | C26: 13 | E26: CENTRO OESTE ASFALTOS LTDA. | F26: RUA N, S/N.º LOTES 39/43 E LOTES 129/133 - DISTRITO INDUSTRIAL - CEP:78098-400 | G26: Mato Grosso | H26: CUIABA - MT | I26: ='Transporte EAI'!I26 -> Juazeiro do Norte - CE | J26: =VLOOKUP(G26,OFFSET('ANP ESTADO'!$A$1,MATCH($I$8,'ANP ESTADO'!B:B,0)+MATCH($H$11,OFFSET('ANP ESTADO'!$A$1,MATCH($I$8,'ANP ESTADO'!B:B,0),0,100000,1),0),2,100000,2),2,FALSE) -> 3.65960247 | K26: =VLOOKUP($H$11,OFFSET('ANP REGIÃO'!$A$9,MATCH('Transporte RR-2C'!$I$8,'ANP REGIÃO'!A:A,0),1,10000,10000),MATCH('Transporte RR-2C'!AH26,'ANP REGIÃO'!$B$8:$G$8,0),FALSE) -> 3.261745309 | L26: 3659.60247 | M26: 1011.24 | N26: 4670.84247 | O26: ='Transporte EAI'!O26 -> 2866 | P26: ='Transporte EAI'!P26 -> 0 | Q26: 752.04 | S26: 217.21 | T26: 165.08 | U26: 1076.89 | V26: 1994.01 | W26: ='Transporte EAI'!W26 -> 256.8 | X26: =EVEN((' CONSUMO DE MAT. B TOTAL'!$P$15+' CONSUMO DE MAT. B TOTAL'!P30)*2/28)*W26/(' CONSUMO DE MAT. B TOTAL'!$P$15+' CONSUMO DE MAT. B TOTAL'!P30) -> 20.59548872 | Y26: 2014.605489 | Z26: 4670.84247 | AA26: 6685.447958 | AH26: CENTRO-OESTE
B27: 6685.447958 | C27: 14 | E27: BETUNEL INDÚSTRIA E COMÉRCIO LTDA. | F27: RUA N ESQUINA COM RUA X, S/N QD. IND. 7 L 01/08 - DIST. IND. - CEP:78015-285 | G27: Mato Grosso | H27: CUIABA - MT | I27: ='Transporte EAI'!I27 -> Juazeiro do Norte - CE | J27: =VLOOKUP(G27,OFFSET('ANP ESTADO'!$A$1,MATCH($I$8,'ANP ESTADO'!B:B,0)+MATCH($H$11,OFFSET('ANP ESTADO'!$A$1,MATCH($I$8,'ANP ESTADO'!B:B,0),0,100000,1),0),2,100000,2),2,FALSE) -> 3.65960247 | K27: =VLOOKUP($H$11,OFFSET('ANP REGIÃO'!$A$9,MATCH('Transporte RR-2C'!$I$8,'ANP REGIÃO'!A:A,0),1,10000,10000),MATCH('Transporte RR-2C'!AH27,'ANP REGIÃO'!$B$8:$G$8,0),FALSE) -> 3.261745309 | L27: 3659.60247 | M27: 1011.24 | N27: 4670.84247 | O27: ='Transporte EAI'!O27 -> 2866 | P27: ='Transporte EAI'!P27 -> 0 | Q27: 752.04 | S27: 217.21 | T27: 165.08 | U27: 1076.89 | V27: 1994.01 | W27: ='Transporte EAI'!W27 -> 256.8 | X27: =EVEN((' CONSUMO DE MAT. B TOTAL'!$P$15+' CONSUMO DE MAT. B TOTAL'!P31)*2/28)*W27/(' CONSUMO DE MAT. B TOTAL'!$P$15+' CONSUMO DE MAT. B TOTAL'!P31) -> 20.59548872 | Y27: 2014.605489 | Z27: 4670.84247 | AA27: 6685.447958 | AH27: CENTRO-OESTE
B28: 6689.467958 | C28: 15 | E28: EMAM - EMULSÕES E TRANSPORTES LTDA. | F28: RODOVIA DOS IMIGRANTES, S/Nº KM 8,6 - - CEP:60035-351 | G28: Mato Grosso | H28: VARZEA GRANDE - MT | I28: ='Transporte EAI'!I28 -> Juazeiro do Norte - CE | J28: =VLOOKUP(G28,OFFSET('ANP ESTADO'!$A$1,MATCH($I$8,'ANP ESTADO'!B:B,0)+MATCH($H$11,OFFSET('ANP ESTADO'!$A$1,MATCH($I$8,'ANP ESTADO'!B:B,0),0,100000,1),0),2,100000,2),2,FALSE) -> 3.65960247 | K28: =VLOOKUP($H$11,OFFSET('ANP REGIÃO'!$A$9,MATCH('Transporte RR-2C'!$I$8,'ANP REGIÃO'!A:A,0),1,10000,10000),MATCH('Transporte RR-2C'!AH28,'ANP REGIÃO'!$B$8:$G$8,0),FALSE) -> 3.261745309 | L28: 3659.60247 | M28: =ROUND(((L28/(1-$O$8-$O$9-$O$10))-L28),2) -> 1011.24 | N28: 4670.84247 | O28: ='Transporte EAI'!O28 -> 2872 | P28: ='Transporte EAI'!P28 -> 0 | Q28: 753.56 | S28: 217.59 | T28: 165.41 | U28: 1079.06 | V28: 1998.03 | W28: ='Transporte EAI'!W28 -> 256.8 | X28: =EVEN((' CONSUMO DE MAT. B TOTAL'!$P$15+' CONSUMO DE MAT. B TOTAL'!P32)*2/28)*W28/(' CONSUMO DE MAT. B TOTAL'!$P$15+' CONSUMO DE MAT. B TOTAL'!P32) -> 20.59548872 | Y28: 2018.625489 | Z28: 4670.84247 | AA28: 6689.467958 | AC28: 6689.467958 | AD28: 2018.625489 | AE28: 4670.84247 | AH28: CENTRO-OESTE
B29: 5507.456795 | C29: 16 | E29: VIAPOL LTDA. | F29: VITO ARDITO, 6401 KM 118,5 - JARDIM CAMPO GRANDE - CEP:12282-535 | G29: São Paulo | H29: CACAPAVA - SP | I29: ='Transporte EAI'!I29 -> Juazeiro do Norte - CE | J29: =VLOOKUP(G29,OFFSET('ANP ESTADO'!$A$1,MATCH($I$8,'ANP ESTADO'!B:B,0)+MATCH($H$11,OFFSET('ANP ESTADO'!$A$1,MATCH($I$8,'ANP ESTADO'!B:B,0),0,100000,1),0),2,100000,2),2,FALSE) -> 2.965301306 | K29: =VLOOKUP($H$11,OFFSET('ANP REGIÃO'!$A$9,MATCH('Transporte RR-2C'!$I$8,'ANP REGIÃO'!A:A,0),1,10000,10000),MATCH('Transporte RR-2C'!AH29,'ANP REGIÃO'!$B$8:$G$8,0),FALSE) -> 3.044994528 | L29: 2965.301306 | M29: 819.38 | N29: 3784.681306 | O29: ='Transporte EAI'!O29 -> 2431 | P29: ='Transporte EAI'!P29 -> 0 | Q29: 641.98 | S29: 189.36 | T29: 140.92 | U29: 919.28 | V29: 1702.18 | W29: ='Transporte EAI'!W29 -> 256.8 | X29: =EVEN((' CONSUMO DE MAT. B TOTAL'!$P$15+' CONSUMO DE MAT. B TOTAL'!P33)*2/28)*W29/(' CONSUMO DE MAT. B TOTAL'!$P$15+' CONSUMO DE MAT. B TOTAL'!P33) -> 20.59548872 | Y29: 1722.775489 | Z29: 3784.681306 | AA29: 5507.456795 | AC29: 5507.456795 | AD29: 1722.775489 | AE29: 3784.681306 | AH29: SUDESTE
B30: 5421.157611 | C30: 17 | E30: STRATURA ASFALTOS S/A | F30: RUA LUIS DE CAMÕES, 26 - CAMPOS ELÍSEOS - CEP:25225-030 | G30: Rio de Janeiro | H30: DUQUE DE CAXIAS - RJ | I30: ='Transporte EAI'!I30 -> Juazeiro do Norte - CE | J30: =VLOOKUP(G30,OFFSET('ANP ESTADO'!$A$1,MATCH($I$8,'ANP ESTADO'!B:B,0)+MATCH($H$11,OFFSET('ANP ESTADO'!$A$1,MATCH($I$8,'ANP ESTADO'!B:B,0),0,100000,1),0),2,100000,2),2,FALSE) -> - | K30: =VLOOKUP($H$11,OFFSET('ANP REGIÃO'!$A$9,MATCH('Transporte RR-2C'!$I$8,'ANP REGIÃO'!A:A,0),1,10000,10000),MATCH('Transporte RR-2C'!AH30,'ANP REGIÃO'!$B$8:$G$8,0),FALSE) -> 3.044994528 | L30: 3044.994528 | M30: 841.41 | N30: 3886.404528 | O30: ='Transporte EAI'!O30 -> 2114 | P30: ='Transporte EAI'!P30 -> 0 | Q30: 561.78 | S30: 169.07 | T30: 123.31 | U30: 804.43 | V30: 1489.52 | W30: ='Transporte EAI'!W30 -> 564 | X30: =EVEN((' CONSUMO DE MAT. B TOTAL'!$P$15+' CONSUMO DE MAT. B TOTAL'!P34)*2/28)*W30/(' CONSUMO DE MAT. B TOTAL'!$P$15+' CONSUMO DE MAT. B TOTAL'!P34) -> 45.23308271 | Y30: 1534.753083 | Z30: 3886.404528 | AA30: 5421.157611 | AC30: 5421.157611 | AD30: 1534.753083 | AE30: 3886.404528 | AH30: SUDESTE
B31: 5432.577611 | C31: 18 | E31: PROBITEC - PRODUTOS BETUMINOSOS E TECNOLOGIA DE APLICAÇÃO LTDA. | F31: AVENIDA CANAL DA PAVUNA, 620 - PAVUNA - CEP:21535-630 | G31: Rio de Janeiro | H31: RIO DE JANEIRO - RJ | I31: ='Transporte EAI'!I31 -> Juazeiro do Norte - CE | J31: =VLOOKUP(G31,OFFSET('ANP ESTADO'!$A$1,MATCH($I$8,'ANP ESTADO'!B:B,0)+MATCH($H$11,OFFSET('ANP ESTADO'!$A$1,MATCH($I$8,'ANP ESTADO'!B:B,0),0,100000,1),0),2,100000,2),2,FALSE) -> - | K31: =VLOOKUP($H$11,OFFSET('ANP REGIÃO'!$A$9,MATCH('Transporte RR-2C'!$I$8,'ANP REGIÃO'!A:A,0),1,10000,10000),MATCH('Transporte RR-2C'!AH31,'ANP REGIÃO'!$B$8:$G$8,0),FALSE) -> 3.044994528 | L31: 3044.994528 | M31: 841.41 | N31: 3886.404528 | O31: ='Transporte EAI'!O31 -> 2131 | P31: ='Transporte EAI'!P31 -> 0 | Q31: 566.08 | S31: 170.16 | T31: 124.26 | U31: 810.6 | V31: 1500.94 | W31: ='Transporte EAI'!W31 -> 564 | X31: =EVEN((' CONSUMO DE MAT. B TOTAL'!$P$15+' CONSUMO DE MAT. B TOTAL'!P35)*2/28)*W31/(' CONSUMO DE MAT. B TOTAL'!$P$15+' CONSUMO DE MAT. B TOTAL'!P35) -> 45.23308271 | Y31: 1546.173083 | Z31: 3886.404528 | AA31: 5432.577611 | AC31: 5432.577611 | AD31: 1546.173083 | AE31: 3886.404528 | AH31: SUDESTE
B32: 5823.489687 | C32: 19 | E32: CASA DO ASFALTO DISTRIBUIDORA, INDÚSTRIA E COMÉRCIO DE ASFALTO LTDA. | F32: BR 376, PARQUE INDUSTRIAL, S/N LOTE 6/7/7-A-3-1 - GL.PATR.MARIALVA - CEP:86990-000 | G32: Paraná | H32: MARIALVA - PR | I32: ='Transporte EAI'!I32 -> Juazeiro do Norte - CE | J32: =VLOOKUP(G32,OFFSET('ANP ESTADO'!$A$1,MATCH($I$8,'ANP ESTADO'!B:B,0)+MATCH($H$11,OFFSET('ANP ESTADO'!$A$1,MATCH($I$8,'ANP ESTADO'!B:B,0),0,100000,1),0),2,100000,2),2,FALSE) -> 2.959073747 | K32: =VLOOKUP($H$11,OFFSET('ANP REGIÃO'!$A$9,MATCH('Transporte RR-2C'!$I$8,'ANP REGIÃO'!A:A,0),1,10000,10000),MATCH('Transporte RR-2C'!AH32,'ANP REGIÃO'!$B$8:$G$8,0),FALSE) -> 2.991794973 | L32: 2959.073747 | M32: 817.66 | N32: 3776.733747 | O32: ='Transporte EAI'!O32 -> 2835 | P32: ='Transporte EAI'!P32 -> 0 | Q32: 744.19 | S32: 215.22 | T32: 163.35 | U32: 1065.64 | V32: 1973.18 | W32: ='Transporte EAI'!W32 -> 917.4 | X32: =EVEN((' CONSUMO DE MAT. B TOTAL'!$P$15+' CONSUMO DE MAT. B TOTAL'!P36)*2/28)*W32/(' CONSUMO DE MAT. B TOTAL'!$P$15+' CONSUMO DE MAT. B TOTAL'!P36) -> 73.57593985 | Y32: 2046.75594 | Z32: 3776.733747 | AA32: 5823.489687 | AC32: 5823.489687 | AD32: 2046.75594 | AE32: 3776.733747 | AH32: SUL
B33: 5927.937506 | C33: 20 | E33: PETROBRAS DISTRIBUIDORA S.A. | F33: RUA MAQUINISTA ELEODORO JACINTO, 100 - OFICINAS - CEP:84045-170 | G33: Paraná | H33: PONTA GROSSA - PR | I33: ='Transporte EAI'!I33 -> Juazeiro do Norte - CE | J33: =VLOOKUP(G33,OFFSET('ANP ESTADO'!$A$1,MATCH($I$8,'ANP ESTADO'!B:B,0)+MATCH($H$11,OFFSET('ANP ESTADO'!$A$1,MATCH($I$8,'ANP ESTADO'!B:B,0),0,100000,1),0),2,100000,2),2,FALSE) -> 2.959073747 | K33: =VLOOKUP($H$11,OFFSET('ANP REGIÃO'!$A$9,MATCH('Transporte RR-2C'!$I$8,'ANP REGIÃO'!A:A,0),1,10000,10000),MATCH('Transporte RR-2C'!AH33,'ANP REGIÃO'!$B$8:$G$8,0),FALSE) -> 2.991794973 | L33: 2959.073747 | M33: 817.66 | N33: 3776.733747 | O33: ='Transporte EAI'!O33 -> 2986 | P33: ='Transporte EAI'!P33 -> 0 | Q33: 782.4 | S33: 224.89 | T33: 171.74 | U33: 1120.36 | V33: 2074.5 | W33: ='Transporte EAI'!W33 -> 956.4 | X33: =EVEN((' CONSUMO DE MAT. B TOTAL'!$P$15+' CONSUMO DE MAT. B TOTAL'!P37)*2/28)*W33/(' CONSUMO DE MAT. B TOTAL'!$P$15+' CONSUMO DE MAT. B TOTAL'!P37) -> 76.7037594 | Y33: 2151.203759 | Z33: 3776.733747 | AA33: 5927.937506 | AC33: 5927.937506 | AD33: 2151.203759 | AE33: 3776.733747 | AH33: SUL
D43: Acre
D44: Alagoas
D45: Amapá
D46: Amazonas
D47: Bahia
D48: Ceará
D49: Distrito Federal
D50: Espírito Santo
D51: Goiás
D52: Maranhão
D53: Mato Grosso
D54: Mato Grosso do Sul
D55: Minas Gerais
D56: Pará
D57: Paraíba
D58: Paraná
D59: Pernambuco
D60: Piauí
D61: Rio de Janeiro
D62: Rio Grande do Norte
D63: Rio Grande do Sul
D64: Rondônia
D65: Roraima
D66: Santa Catarina
D67: São Paulo
D68: Sergipe
D69: Tocantins
D73: ASFALTOS DILUÍDOS CM-30
D74: ASFALTOS DILUÍDOS CM-70
D75: ASFALTOS DILUÍDOS CR-250
D76: ASFALTOS DILUÍDOS CR-70
D77: CAP MODIFICADO POR BORRACHA DE PNEU AB22
D78: CAP MODIFICADO POR BORRACHA DE PNEU AB8
D79: CAP MODIFICADO POR POLÍMERO 55-75-E
D80: CAP MODIFICADO POR POLÍMERO 60-85-E
D81: CAP MODIFICADO POR POLÍMERO 65-90-E
D82: CIMENTOS ASFÁLTICOS CAP-150-200
D83: CIMENTOS ASFÁLTICOS CAP-30-45
D84: CIMENTOS ASFÁLTICOS CAP-50-70
D85: CIMENTOS ASFÁLTICOS CAP-85-100
D86: EMULSÃO ASFÁLTICA CATIÔNICA DE RUPTURA CONTROLADA PARA SERVIÇO DE LAMA ASFÁLTICA
D87: EMULSÃO ASFÁLTICA DE RUPTURA LENTA CATIÔNICA PARA SERVIÇO DE LAMA ASFÁLTICA
D88: EMULSÃO ASFÁLTICA DE RUPTURA LENTA DE CARGA NEUTRA PARA SERVIÇO DE LAMA ASFÁLTICA
D89: EMULSÃO ASFÁLTICA PARA SERVIÇO DE IMPRIMAÇÃO
D90: EMULSÕES ASF. MOD. POR POLÍMEROS RC1C-E
D91: EMULSÕES ASF. MOD. POR POLÍMEROS RL1C-E
D92: EMULSÕES ASF. MOD. POR POLÍMEROS RM1C-E
D93: EMULSÕES ASF. MOD. POR POLÍMEROS RR1C-E
D94: EMULSÕES ASF. MOD. POR POLÍMEROS RR2C-E
D95: EMULSÕES ASFÁLTICAS RL-1C
D96: EMULSÕES ASFÁLTICAS RM-1C
D97: EMULSÕES ASFÁLTICAS RM-2C
D98: EMULSÕES ASFÁLTICAS RR-1C
D99: EMULSÕES ASFÁLTICAS RR-2C

Sheet RESUMO_Transp
B11: ÍNDICE DE PAVIMENTAÇÃO DNIT | E11: TIPOLOGIA DO MATERIAL | G11: LIGANTE BETUMINOSO | K11: IMPOSTOS | L11: COFINS | M11: ='Transporte RR-2C'!O8 -> 0.0065 | N11: ='Transporte RR-2C'!P8 -> 0.0065
C12: DATA INICIAL | F12: 2014-07-01 | G12: ÍNDICE INICIAL | H12: ='Transporte RR-2C'!J9 -> 270.237 | L12: PIS | M12: ='Transporte RR-2C'!O9 -> 0.03 | N12: ='Transporte RR-2C'!P9 -> 0.03 | P12: LEGENDA
C13: DATA FINAL | F13: ='Transporte EAI'!H11 -> 2025-05-01 | G13: ÍNDICE FINAL | H13: ='Transporte RR-2C'!J10 -> 587.552 | L13: ICMS | M13: ='Transporte RR-2C'!O10 -> 0.18 | N13: ='Transporte RR-2C'!P10 -> 0.18 | P13: ENTRADA DE DADOS
B15: DATA-BASE | C15: PRODUTOS | D15: LOCALIDADES | H15: CUSTO ANP (R$/Kg) | J15: CUSTO ANP | K15: IMPOSTOS DO PRODUTO | L15: CUSTO DO PRODUTO COM IMPOSTOS | M15: DMT's | N15: DMT's | O15: CUSTO DO TRANSPORTE TOTAL | P15: ICMS | Q15: ATUALIZAÇÃO DO CUSTO DE TRANSPORTE | R15: CUSTO DO TRANSPORTE RODOVIA PAVIMENTADA COM IMPOSTOS E ATUALIZAÇÃO MONETÁRIA | S15: PEDÁGIO | U15: TOTAL TRANSPORTE | V15: TOTAL PRODUTO | W15: TOTAL GERAL
B16: =F13 -> 2025-05-01 | D16: REFINARIAS | E16: ENDEREÇO | F16: ORIGEM REFINARIAS / DISTRIBUIDORAS | G16: DESTINO | H16: ESTADO | I16: REGIÃO | J16: R$/t | K16: R$/t | L16: R$/t | M16: KM | N16: KM | O16: R$/t | P16: R$/t | Q16: R$/t | R16: R$/t | S16: CUSTO POR EIXO | T16: R$/t | U16: R$/t | V16: R$/t | W16: R$/t
B17: 1 | C17: EAI | D17: Refinaria Abreu e Lima | E17: Rodovia PE 60, Km 10 - Ipojuca - PE CEP:55590-000 | F17: =VLOOKUP($W17,'Transporte EAI'!$B:$AA,7,FALSE) -> SARZEDO - MG | G17: =VLOOKUP($W17,'Transporte EAI'!$B:$AA,8,FALSE) -> Juazeiro do Norte - CE | H17: =VLOOKUP($W17,'Transporte EAI'!$B:$AA,9,FALSE) -> 2.202845353 | I17: =VLOOKUP($W17,'Transporte EAI'!$B:$AA,10,FALSE) -> 2.380082902 | J17: =VLOOKUP($W17,'Transporte EAI'!$B:$AA,11,FALSE) -> 2202.845353 | K17: =VLOOKUP($W17,'Transporte EAI'!$B:$AA,12,FALSE) -> 608.7 | L17: =VLOOKUP($W17,'Transporte EAI'!$B:$AA,13,FALSE) -> 2811.545353 | M17: =VLOOKUP($W17,'Transporte EAI'!$B:$AA,14,FALSE) -> 1941 | N17: =VLOOKUP($W17,'Transporte EAI'!$B:$AA,15,FALSE) -> 0 | O17: =VLOOKUP($W17,'Transporte EAI'!$B:$AA,18,FALSE) -> 158 | P17: =VLOOKUP($W17,'Transporte EAI'!$B:$AA,19,FALSE) -> 113.7 | Q17: =VLOOKUP($W17,'Transporte EAI'!$B:$AA,20,FALSE) -> 741.76 | R17: =VLOOKUP($W17,'Transporte EAI'!$B:$AA,21,FALSE) -> 1373.47 | S17: =VLOOKUP($W17,'Transporte EAI'!$B:$AA,22,FALSE) -> 183 | T17: =VLOOKUP($W17,'Transporte EAI'!$B:$AA,23,FALSE) -> 14.67669173 | U17: =VLOOKUP($W17,'Transporte EAI'!$B:$AA,24,FALSE) -> 1388.146692 | V17: =VLOOKUP($W17,'Transporte EAI'!$B:$AA,25,FALSE) -> 2811.545353 | W17: =SMALL('Transporte EAI'!$AA$14:$AA$33,1) -> 4199.692044
B18: 2 | D18: Refinaria Potiguar Clara Camarão | E18: Rodovia RN 221, KM 25 - Guamaré - RN CEP:59598-000 | F18: =VLOOKUP($W18,'Transporte EAI'!$B:$AA,7,FALSE) -> ANÁPOLIS - GO | G18: =VLOOKUP($W18,'Transporte EAI'!$B:$AA,8,FALSE) -> Juazeiro do Norte - CE | H18: =VLOOKUP($W18,'Transporte EAI'!$B:$AA,9,FALSE) -> 2.270100671 | I18: =VLOOKUP($W18,'Transporte EAI'!$B:$AA,10,FALSE) -> 2.586745228 | J18: =VLOOKUP($W18,'Transporte EAI'!$B:$AA,11,FALSE) -> 2270.100671 | K18: =VLOOKUP($W18,'Transporte EAI'!$B:$AA,12,FALSE) -> 627.28 | L18: =VLOOKUP($W18,'Transporte EAI'!$B:$AA,13,FALSE) -> 2897.380671 | M18: =VLOOKUP($W18,'Transporte EAI'!$B:$AA,14,FALSE) -> 1961 | N18: =VLOOKUP($W18,'Transporte EAI'!$B:$AA,15,FALSE) -> 0 | O18: =VLOOKUP($W18,'Transporte EAI'!$B:$AA,18,FALSE) -> 159.28 | P18: =VLOOKUP($W18,'Transporte EAI'!$B:$AA,19,FALSE) -> 114.82 | Q18: =VLOOKUP($W18,'Transporte EAI'!$B:$AA,20,FALSE) -> 749.01 | R18: =VLOOKUP($W18,'Transporte EAI'!$B:$AA,21,FALSE) -> 1386.9 | S18: =VLOOKUP($W18,'Transporte EAI'!$B:$AA,22,FALSE) -> 114.6 | T18: =VLOOKUP($W18,'Transporte EAI'!$B:$AA,23,FALSE) -> 9.190977444 | U18: =VLOOKUP($W18,'Transporte EAI'!$B:$AA,24,FALSE) -> 1396.090977 | V18: =VLOOKUP($W18,'Transporte EAI'!$B:$AA,25,FALSE) -> 2897.380671 | W18: =SMALL('Transporte EAI'!$AA$14:$AA$33,2) -> 4293.471649
B19: 3 | D19: Complexo Petroquímico do Rio de Janeiro (Comperj) | E19: Rodovia Estadual RJ-116 - Km 5,2 - Acesso A-1, s/n, Complemento Sambaetiba - Zona Urbana do 4º Distrito de Itaboraí - RJ CEP:24841-203 | F19: =VLOOKUP($W19,'Transporte EAI'!$B:$AA,7,FALSE) -> UBERLANDIA - MG | G19: =VLOOKUP($W19,'Transporte EAI'!$B:$AA,8,FALSE) -> Juazeiro do Norte - CE | H19: =VLOOKUP($W19,'Transporte EAI'!$B:$AA,9,FALSE) -> 2.202845353 | I19: =VLOOKUP($W19,'Transporte EAI'!$B:$AA,10,FALSE) -> 2.380082902 | J19: =VLOOKUP($W19,'Transporte EAI'!$B:$AA,11,FALSE) -> 2202.845353 | K19: =VLOOKUP($W19,'Transporte EAI'!$B:$AA,12,FALSE) -> 608.7 | L19: =VLOOKUP($W19,'Transporte EAI'!$B:$AA,13,FALSE) -> 2811.545353 | M19: =VLOOKUP($W19,'Transporte EAI'!$B:$AA,14,FALSE) -> 2134 | N19: =VLOOKUP($W19,'Transporte EAI'!$B:$AA,15,FALSE) -> 0 | O19: =VLOOKUP($W19,'Transporte EAI'!$B:$AA,18,FALSE) -> 170.35 | P19: =VLOOKUP($W19,'Transporte EAI'!$B:$AA,19,FALSE) -> 124.42 | Q19: =VLOOKUP($W19,'Transporte EAI'!$B:$AA,20,FALSE) -> 811.68 | R19: =VLOOKUP($W19,'Transporte EAI'!$B:$AA,21,FALSE) -> 1502.94 | S19: =VLOOKUP($W19,'Transporte EAI'!$B:$AA,22,FALSE) -> 335.4 | T19: =VLOOKUP($W19,'Transporte EAI'!$B:$AA,23,FALSE) -> 26.89924812 | U19: =VLOOKUP($W19,'Transporte EAI'!$B:$AA,24,FALSE) -> 1529.839248 | V19: =VLOOKUP($W19,'Transporte EAI'!$B:$AA,25,FALSE) -> 2811.545353 | W19: =SMALL('Transporte EAI'!$AA$14:$AA$33,3) -> 4341.384601
B20: 4 | F20: =VLOOKUP($W20,'Transporte EAI'!$B:$AA,7,FALSE) -> UBERLANDIA - MG | G20: =VLOOKUP($W20,'Transporte EAI'!$B:$AA,8,FALSE) -> Juazeiro do Norte - CE | H20: =VLOOKUP($W20,'Transporte EAI'!$B:$AA,9,FALSE) -> 2.202845353 | I20: =VLOOKUP($W20,'Transporte EAI'!$B:$AA,10,FALSE) -> 2.380082902 | J20: =VLOOKUP($W20,'Transporte EAI'!$B:$AA,11,FALSE) -> 2202.845353 | K20: =VLOOKUP($W20,'Transporte EAI'!$B:$AA,12,FALSE) -> 608.7 | L20: =VLOOKUP($W20,'Transporte EAI'!$B:$AA,13,FALSE) -> 2811.545353 | M20: =VLOOKUP($W20,'Transporte EAI'!$B:$AA,14,FALSE) -> 2134 | N20: =VLOOKUP($W20,'Transporte EAI'!$B:$AA,15,FALSE) -> 0 | O20: =VLOOKUP($W20,'Transporte EAI'!$B:$AA,18,FALSE) -> 170.35 | P20: =VLOOKUP($W20,'Transporte EAI'!$B:$AA,19,FALSE) -> 124.42 | Q20: =VLOOKUP($W20,'Transporte EAI'!$B:$AA,20,FALSE) -> 811.68 | R20: =VLOOKUP($W20,'Transporte EAI'!$B:$AA,21,FALSE) -> 1502.94 | S20: =VLOOKUP($W20,'Transporte EAI'!$B:$AA,22,FALSE) -> 335.4 | T20: =VLOOKUP($W20,'Transporte EAI'!$B:$AA,23,FALSE) -> 26.89924812 | U20: =VLOOKUP($W20,'Transporte EAI'!$B:$AA,24,FALSE) -> 1529.839248 | V20: =VLOOKUP($W20,'Transporte EAI'!$B:$AA,25,FALSE) -> 2811.545353 | W20: =SMALL('Transporte EAI'!$AA$14:$AA$33,4) -> 4341.384601
B21: 5 | F21: =VLOOKUP($W21,'Transporte EAI'!$B:$AA,7,FALSE) -> APARECIDA DE GOIANIA - GO | G21: =VLOOKUP($W21,'Transporte EAI'!$B:$AA,8,FALSE) -> Juazeiro do Norte - CE | H21: =VLOOKUP($W21,'Transporte EAI'!$B:$AA,9,FALSE) -> 2.270100671 | I21: =VLOOKUP($W21,'Transporte EAI'!$B:$AA,10,FALSE) -> 2.586745228 | J21: =VLOOKUP($W21,'Transporte EAI'!$B:$AA,11,FALSE) -> 2270.100671 | K21: =VLOOKUP($W21,'Transporte EAI'!$B:$AA,12,FALSE) -> 627.28 | L21: =VLOOKUP($W21,'Transporte EAI'!$B:$AA,13,FALSE) -> 2897.380671 | M21: =VLOOKUP($W21,'Transporte EAI'!$B:$AA,14,FALSE) -> 2031 | N21: =VLOOKUP($W21,'Transporte EAI'!$B:$AA,15,FALSE) -> 0 | O21: =VLOOKUP($W21,'Transporte EAI'!$B:$AA,18,FALSE) -> 163.76 | P21: =VLOOKUP($W21,'Transporte EAI'!$B:$AA,19,FALSE) -> 118.7 | Q21: =VLOOKUP($W21,'Transporte EAI'!$B:$AA,20,FALSE) -> 774.36 | R21: =VLOOKUP($W21,'Transporte EAI'!$B:$AA,21,FALSE) -> 1433.84 | S21: =VLOOKUP($W21,'Transporte EAI'!$B:$AA,22,FALSE) -> 145.2 | T21: =VLOOKUP($W21,'Transporte EAI'!$B:$AA,23,FALSE) -> 11.64511278 | U21: =VLOOKUP($W21,'Transporte EAI'!$B:$AA,24,FALSE) -> 1445.485113 | V21: =VLOOKUP($W21,'Transporte EAI'!$B:$AA,25,FALSE) -> 2897.380671 | W21: =SMALL('Transporte EAI'!$AA$14:$AA$33,5) -> 4342.865784
B22: 6 | F22: =VLOOKUP($W22,'Transporte EAI'!$B:$AA,7,FALSE) -> GOIANIRA - GO | G22: =VLOOKUP($W22,'Transporte EAI'!$B:$AA,8,FALSE) -> Juazeiro do Norte - CE | H22: =VLOOKUP($W22,'Transporte EAI'!$B:$AA,9,FALSE) -> 2.270100671 | I22: =VLOOKUP($W22,'Transporte EAI'!$B:$AA,10,FALSE) -> 2.586745228 | J22: =VLOOKUP($W22,'Transporte EAI'!$B:$AA,11,FALSE) -> 2270.100671 | K22: =VLOOKUP($W22,'Transporte EAI'!$B:$AA,12,FALSE) -> 627.28 | L22: =VLOOKUP($W22,'Transporte EAI'!$B:$AA,13,FALSE) -> 2897.380671 | M22: =VLOOKUP($W22,'Transporte EAI'!$B:$AA,14,FALSE) -> 2037 | N22: =VLOOKUP($W22,'Transporte EAI'!$B:$AA,15,FALSE) -> 0 | O22: =VLOOKUP($W22,'Transporte EAI'!$B:$AA,18,FALSE) -> 164.14 | P22: =VLOOKUP($W22,'Transporte EAI'!$B:$AA,19,FALSE) -> 119.04 | Q22: =VLOOKUP($W22,'Transporte EAI'!$B:$AA,20,FALSE) -> 776.55 | R22: =VLOOKUP($W22,'Transporte EAI'!$B:$AA,21,FALSE) -> 1437.89 | S22: =VLOOKUP($W22,'Transporte EAI'!$B:$AA,22,FALSE) -> 114.6 | T22: =VLOOKUP($W22,'Transporte EAI'!$B:$AA,23,FALSE) -> 9.190977444 | U22: =VLOOKUP($W22,'Transporte EAI'!$B:$AA,24,FALSE) -> 1447.080977 | V22: =VLOOKUP($W22,'Transporte EAI'!$B:$AA,25,FALSE) -> 2897.380671 | W22: =SMALL('Transporte EAI'!$AA$14:$AA$33,6) -> 4344.461649
B24: 1 | C24: RR2-C | D24: Refinaria Abreu e Lima | E24: Rodovia PE 60, Km 10 - Ipojuca - PE CEP:55590-000 | F24: =VLOOKUP($W24,'Transporte RR-2C'!$B:$AA,7,FALSE) -> PALMAS - TO | G24: =VLOOKUP($W24,'Transporte RR-2C'!$B:$AA,8,FALSE) -> Juazeiro do Norte - CE | H24: =VLOOKUP($W24,'Transporte RR-2C'!$B:$AA,9,FALSE) -> 2.960662422 | I24: =VLOOKUP($W24,'Transporte RR-2C'!$B:$AA,10,FALSE) -> 3.283919195 | J24: =VLOOKUP($W24,'Transporte RR-2C'!$B:$AA,11,FALSE) -> 2960.662422 | K24: =VLOOKUP($W24,'Transporte RR-2C'!$B:$AA,12,FALSE) -> 818.1 | L24: =VLOOKUP($W24,'Transporte RR-2C'!$B:$AA,13,FALSE) -> 3778.762422 | M24: =VLOOKUP($W24,'Transporte RR-2C'!$B:$AA,14,FALSE) -> 1409 | N24: =VLOOKUP($W24,'Transporte RR-2C'!$B:$AA,15,FALSE) -> 0 | O24: =VLOOKUP($W24,'Transporte RR-2C'!$B:$AA,18,FALSE) -> 123.94 | P24: =VLOOKUP($W24,'Transporte RR-2C'!$B:$AA,19,FALSE) -> 84.16 | Q24: =VLOOKUP($W24,'Transporte RR-2C'!$B:$AA,20,FALSE) -> 549.03 | R24: =VLOOKUP($W24,'Transporte RR-2C'!$B:$AA,21,FALSE) -> 1016.61 | S24: =VLOOKUP($W24,'Transporte RR-2C'!$B:$AA,22,FALSE) -> 0 | T24: =VLOOKUP($W24,'Transporte RR-2C'!$B:$AA,23,FALSE) -> 0 | U24: =VLOOKUP($W24,'Transporte RR-2C'!$B:$AA,24,FALSE) -> 1016.61 | V24: =VLOOKUP($W24,'Transporte RR-2C'!$B:$AA,25,FALSE) -> 3778.762422 | W24: =SMALL('Transporte RR-2C'!$AA$14:$AA$33,1) -> 4795.372422
B25: 2 | D25: Refinaria Potiguar Clara Camarão | E25: Rodovia RN 221, KM 25 - Guamaré - RN CEP:59598-000 | F25: =VLOOKUP($W25,'Transporte RR-2C'!$B:$AA,7,FALSE) -> BRASÍLIA - DF | G25: =VLOOKUP($W25,'Transporte RR-2C'!$B:$AA,8,FALSE) -> Juazeiro do Norte - CE | H25: =VLOOKUP($W25,'Transporte RR-2C'!$B:$AA,9,FALSE) -> 3.077666749 | I25: =VLOOKUP($W25,'Transporte RR-2C'!$B:$AA,10,FALSE) -> 3.261745309 | J25: =VLOOKUP($W25,'Transporte RR-2C'!$B:$AA,11,FALSE) -> 3077.666749 | K25: =VLOOKUP($W25,'Transporte RR-2C'!$B:$AA,12,FALSE) -> 850.43 | L25: =VLOOKUP($W25,'Transporte RR-2C'!$B:$AA,13,FALSE) -> 3928.096749 | M25: =VLOOKUP($W25,'Transporte RR-2C'!$B:$AA,14,FALSE) -> 1817 | N25: =VLOOKUP($W25,'Transporte RR-2C'!$B:$AA,15,FALSE) -> 0 | O25: =VLOOKUP($W25,'Transporte RR-2C'!$B:$AA,18,FALSE) -> 150.06 | P25: =VLOOKUP($W25,'Transporte RR-2C'!$B:$AA,19,FALSE) -> 106.82 | Q25: =VLOOKUP($W25,'Transporte RR-2C'!$B:$AA,20,FALSE) -> 696.84 | R25: =VLOOKUP($W25,'Transporte RR-2C'!$B:$AA,21,FALSE) -> 1290.3 | S25: =VLOOKUP($W25,'Transporte RR-2C'!$B:$AA,22,FALSE) -> 73.2 | T25: =VLOOKUP($W25,'Transporte RR-2C'!$B:$AA,23,FALSE) -> 5.283609023 | U25: =VLOOKUP($W25,'Transporte RR-2C'!$B:$AA,24,FALSE) -> 1295.583609 | V25: =VLOOKUP($W25,'Transporte RR-2C'!$B:$AA,25,FALSE) -> 3928.096749 | W25: =SMALL('Transporte RR-2C'!$AA$14:$AA$33,2) -> 5223.680358
B26: 3 | D26: Complexo Petroquímico do Rio de Janeiro (Comperj) | E26: Rodovia Estadual RJ-116 - Km 5,2 - Acesso A-1, s/n, Complemento Sambaetiba - Zona Urbana do 4º Distrito de Itaboraí - RJ CEP:24841-203 | F26: =VLOOKUP($W26,'Transporte RR-2C'!$B:$AA,7,FALSE) -> ANÁPOLIS - GO | G26: =VLOOKUP($W26,'Transporte RR-2C'!$B:$AA,8,FALSE) -> Juazeiro do Norte - CE | H26: =VLOOKUP($W26,'Transporte RR-2C'!$B:$AA,9,FALSE) -> 3.022353152 | I26: =VLOOKUP($W26,'Transporte RR-2C'!$B:$AA,10,FALSE) -> 3.261745309 | J26: =VLOOKUP($W26,'Transporte RR-2C'!$B:$AA,11,FALSE) -> 3022.353152 | K26: =VLOOKUP($W26,'Transporte RR-2C'!$B:$AA,12,FALSE) -> 835.15 | L26: =VLOOKUP($W26,'Transporte RR-2C'!$B:$AA,13,FALSE) -> 3857.503152 | M26: =VLOOKUP($W26,'Transporte RR-2C'!$B:$AA,14,FALSE) -> 1961 | N26: =VLOOKUP($W26,'Transporte RR-2C'!$B:$AA,15,FALSE) -> 0 | O26: =VLOOKUP($W26,'Transporte RR-2C'!$B:$AA,18,FALSE) -> 159.28 | P26: =VLOOKUP($W26,'Transporte RR-2C'!$B:$AA,19,FALSE) -> 114.82 | Q26: =VLOOKUP($W26,'Transporte RR-2C'!$B:$AA,20,FALSE) -> 749.01 | R26: =VLOOKUP($W26,'Transporte RR-2C'!$B:$AA,21,FALSE) -> 1386.9 | S26: =VLOOKUP($W26,'Transporte RR-2C'!$B:$AA,22,FALSE) -> 114.6 | T26: =VLOOKUP($W26,'Transporte RR-2C'!$B:$AA,23,FALSE) -> 9.190977444 | U26: =VLOOKUP($W26,'Transporte RR-2C'!$B:$AA,24,FALSE) -> 1396.090977 | V26: =VLOOKUP($W26,'Transporte RR-2C'!$B:$AA,25,FALSE) -> 3857.503152 | W26: =SMALL('Transporte RR-2C'!$AA$14:$AA$33,3) -> 5253.59413
B27: 4 | D27: Refinaria Abreu e Lima | E27: Rodovia PE 60, Km 10 - Ipojuca - PE CEP:55590-000 | F27: =VLOOKUP($W27,'Transporte RR-2C'!$B:$AA,7,FALSE) -> APARECIDA DE GOIANIA - GO | G27: =VLOOKUP($W27,'Transporte RR-2C'!$B:$AA,8,FALSE) -> Juazeiro do Norte - CE | H27: =VLOOKUP($W27,'Transporte RR-2C'!$B:$AA,9,FALSE) -> 3.022353152 | I27: =VLOOKUP($W27,'Transporte RR-2C'!$B:$AA,10,FALSE) -> 3.261745309 | J27: =VLOOKUP($W27,'Transporte RR-2C'!$B:$AA,11,FALSE) -> 3022.353152 | K27: =VLOOKUP($W27,'Transporte RR-2C'!$B:$AA,12,FALSE) -> 835.15 | L27: =VLOOKUP($W27,'Transporte RR-2C'!$B:$AA,13,FALSE) -> 3857.503152 | M27: =VLOOKUP($W27,'Transporte RR-2C'!$B:$AA,14,FALSE) -> 2031 | N27: =VLOOKUP($W27,'Transporte RR-2C'!$B:$AA,15,FALSE) -> 0 | O27: =VLOOKUP($W27,'Transporte RR-2C'!$B:$AA,18,FALSE) -> 163.76 | P27: =VLOOKUP($W27,'Transporte RR-2C'!$B:$AA,19,FALSE) -> 118.7 | Q27: =VLOOKUP($W27,'Transporte RR-2C'!$B:$AA,20,FALSE) -> 774.36 | R27: =VLOOKUP($W27,'Transporte RR-2C'!$B:$AA,21,FALSE) -> 1433.84 | S27: =VLOOKUP($W27,'Transporte RR-2C'!$B:$AA,22,FALSE) -> 145.2 | T27: =VLOOKUP($W27,'Transporte RR-2C'!$B:$AA,23,FALSE) -> 11.64511278 | U27: =VLOOKUP($W27,'Transporte RR-2C'!$B:$AA,24,FALSE) -> 1445.485113 | V27: =VLOOKUP($W27,'Transporte RR-2C'!$B:$AA,25,FALSE) -> 3857.503152 | W27: =SMALL('Transporte RR-2C'!$AA$14:$AA$33,4) -> 5302.988265
B28: 5 | D28: Refinaria Potiguar Clara Camarão | E28: Rodovia RN 221, KM 25 - Guamaré - RN CEP:59598-000 | F28: =VLOOKUP($W28,'Transporte RR-2C'!$B:$AA,7,FALSE) -> GOIANIRA - GO | G28: =VLOOKUP($W28,'Transporte RR-2C'!$B:$AA,8,FALSE) -> Juazeiro do Norte - CE | H28: =VLOOKUP($W28,'Transporte RR-2C'!$B:$AA,9,FALSE) -> 3.022353152 | I28: =VLOOKUP($W28,'Transporte RR-2C'!$B:$AA,10,FALSE) -> 3.261745309 | J28: =VLOOKUP($W28,'Transporte RR-2C'!$B:$AA,11,FALSE) -> 3022.353152 | K28: =VLOOKUP($W28,'Transporte RR-2C'!$B:$AA,12,FALSE) -> 835.15 | L28: =VLOOKUP($W28,'Transporte RR-2C'!$B:$AA,13,FALSE) -> 3857.503152 | M28: =VLOOKUP($W28,'Transporte RR-2C'!$B:$AA,14,FALSE) -> 2037 | N28: =VLOOKUP($W28,'Transporte RR-2C'!$B:$AA,15,FALSE) -> 0 | O28: =VLOOKUP($W28,'Transporte RR-2C'!$B:$AA,18,FALSE) -> 164.14 | P28: =VLOOKUP($W28,'Transporte RR-2C'!$B:$AA,19,FALSE) -> 119.04 | Q28: =VLOOKUP($W28,'Transporte RR-2C'!$B:$AA,20,FALSE) -> 776.55 | R28: =VLOOKUP($W28,'Transporte RR-2C'!$B:$AA,21,FALSE) -> 1437.89 | S28: =VLOOKUP($W28,'Transporte RR-2C'!$B:$AA,22,FALSE) -> 114.6 | T28: =VLOOKUP($W28,'Transporte RR-2C'!$B:$AA,23,FALSE) -> 9.190977444 | U28: =VLOOKUP($W28,'Transporte RR-2C'!$B:$AA,24,FALSE) -> 1447.080977 | V28: =VLOOKUP($W28,'Transporte RR-2C'!$B:$AA,25,FALSE) -> 3857.503152 | W28: =SMALL('Transporte RR-2C'!$AA$14:$AA$33,5) -> 5304.58413
B29: 6 | D29: Complexo Petroquímico do Rio de Janeiro (Comperj) | E29: Rodovia Estadual RJ-116 - Km 5,2 - Acesso A-1, s/n, Complemento Sambaetiba - Zona Urbana do 4º Distrito de Itaboraí - RJ CEP:24841-203 | F29: =VLOOKUP($W29,'Transporte RR-2C'!$B:$AA,7,FALSE) -> DUQUE DE CAXIAS - RJ | G29: =VLOOKUP($W29,'Transporte RR-2C'!$B:$AA,8,FALSE) -> Juazeiro do Norte - CE | H29: =VLOOKUP($W29,'Transporte RR-2C'!$B:$AA,9,FALSE) -> - | I29: =VLOOKUP($W29,'Transporte RR-2C'!$B:$AA,10,FALSE) -> 3.044994528 | J29: =VLOOKUP($W29,'Transporte RR-2C'!$B:$AA,11,FALSE) -> 3044.994528 | K29: =VLOOKUP($W29,'Transporte RR-2C'!$B:$AA,12,FALSE) -> 841.41 | L29: =VLOOKUP($W29,'Transporte RR-2C'!$B:$AA,13,FALSE) -> 3886.404528 | M29: =VLOOKUP($W29,'Transporte RR-2C'!$B:$AA,14,FALSE) -> 2114 | N29: =VLOOKUP($W29,'Transporte RR-2C'!$B:$AA,15,FALSE) -> 0 | O29: =VLOOKUP($W29,'Transporte RR-2C'!$B:$AA,18,FALSE) -> 169.07 | P29: =VLOOKUP($W29,'Transporte RR-2C'!$B:$AA,19,FALSE) -> 123.31 | Q29: =VLOOKUP($W29,'Transporte RR-2C'!$B:$AA,20,FALSE) -> 804.43 | R29: =VLOOKUP($W29,'Transporte RR-2C'!$B:$AA,21,FALSE) -> 1489.52 | S29: =VLOOKUP($W29,'Transporte RR-2C'!$B:$AA,22,FALSE) -> 564 | T29: =VLOOKUP($W29,'Transporte RR-2C'!$B:$AA,23,FALSE) -> 45.23308271 | U29: =VLOOKUP($W29,'Transporte RR-2C'!$B:$AA,24,FALSE) -> 1534.753083 | V29: =VLOOKUP($W29,'Transporte RR-2C'!$B:$AA,25,FALSE) -> 3886.404528 | W29: =SMALL('Transporte RR-2C'!$AA$14:$AA$33,6) -> 5421.157611

Sheet MEDICAO EM TKM
A5: PLANILHA DE MEDIÇAO DE TKM
A6: 903808 | B6: =VLOOKUP(A6,'SINTÉTICO SICRO'!A:D,2,0) -> Instalação da usina misturadora de solos com capacidade de 300 t/h
A7: MOMENTO DE TRANSPORTE | D7: Quantidade (tkm) | E7: quantidade medida(un.)
E8: 1
A9: 5914479 | B9: =VLOOKUP(A9,'SINTÉTICO SICRO'!A:D,2,0) -> Transporte com caminhão carroceria de 15 t - rodovia pavimentada | D9: =SUMIF('MOMENTO DE TRANSPORTE - AUX'!$A$28:$A$31,'MEDICAO EM TKM'!A9,'MOMENTO DE TRANSPORTE - AUX'!$K$28:$K$31) -> 2908.47744 | E9: =D9*$E$8 -> 2908.47744
A10: 5914389 | B10: =VLOOKUP(A10,'SINTÉTICO SICRO'!A:D,2,0) -> Transporte com caminhão basculante de 10 m³ - rodovia pavimentada | D10: ='MOMENTO DE TRANSPORTE - AUX'!K40+'MOMENTO DE TRANSPORTE - AUX'!K49 -> 4861199.82 | E10: 4861199.82
A11: 5914449 | B11: =VLOOKUP(A11,'SINTÉTICO SICRO'!A:D,2,0) -> Transporte com caminhão carroceria de 15 t - rodovia em leito natural | D11: =SUMIF('MOMENTO DE TRANSPORTE - AUX'!$A$91:$A$94,'MEDICAO EM TKM'!A11,'MOMENTO DE TRANSPORTE - AUX'!$K$91:$K$94) -> 90.88992 | E11: 90.88992
A12: 5914359 | B12: =VLOOKUP(A12,'SINTÉTICO SICRO'!A:D,2,0) -> Transporte com caminhão basculante de 10 m³ - rodovia em leito natural | D12: ='MOMENTO DE TRANSPORTE - AUX'!K103+'MOMENTO DE TRANSPORTE - AUX'!K112 -> 94235.86218 | E12: 94235.86218
A13: 5914464 | B13: =VLOOKUP(A13,'SINTÉTICO SICRO'!A:D,2,0) -> Transporte com caminhão carroceria de 15 t - rodovia em revestimento primário | D13: =SUMIF('MOMENTO DE TRANSPORTE - AUX'!$A$152:$A$155,'MEDICAO EM TKM'!A13,'MOMENTO DE TRANSPORTE - AUX'!$K$152:$K$155) -> 136.33488 | E13: 136.33488
A14: 5914374 | B14: =VLOOKUP(A14,'SINTÉTICO SICRO'!A:D,2,0) -> Transporte com caminhão basculante de 10 m³ - rodovia em revestimento primário | D14: ='MOMENTO DE TRANSPORTE - AUX'!K164+'MOMENTO DE TRANSPORTE - AUX'!K173 -> 141353.7933 | E14: 141353.7933
A16: 5502114 | B16: =VLOOKUP(A16,'SINTÉTICO SICRO'!A:D,2,0) -> Escavação, carga e transporte de material de 1ª categoria - DMT de 1.000 a 1.200 m - caminho de serviço em leito natural - com escavadeira e caminhão basculante de 14 m³
A17: MOMENTO DE TRANSPORTE | D17: Quantidade (tkm) | E17: -
E18: -
A21: 4413942 | B21: =VLOOKUP(A21,'SINTÉTICO SICRO'!A:D,2,0) -> Espalhamento de material em bota-fora
A22: MOMENTO DE TRANSPORTE | D22: Quantidade (tkm) | E22: -
E23: -
A26: 4915637 | B26: =VLOOKUP(A26,'SINTÉTICO SICRO'!A:D,2,0) -> Capa selante - areia comercial
A27: MOMENTO DE TRANSPORTE | C27: Quantidade (tkm) | D27: Area executada (m2) | E27: 7000
F28: ='Memória de Cálculo'!C1*'Memória de Cálculo'!C2 -> 7000
A29: 5914344 | B29: =VLOOKUP(A29,'SINTÉTICO SICRO'!A:D,2,0) -> Transporte com caminhão basculante de 6 m³ - rodovia pavimentada | C29: ='MOMENTO DE TRANSPORTE - PRINC'!K45 -> 4628.4 | D29: =C29*$F$28 -> 32398800
A30: 5914329 | B30: =VLOOKUP(A30,'SINTÉTICO SICRO'!A:D,2,0) -> Transporte com caminhão basculante de 6 m³ - rodovia em revestimento primário | C30: ='MOMENTO DE TRANSPORTE - PRINC'!K170 -> 578.55 | D30: 4049850
A31: 5914314 | B31: =VLOOKUP(A31,'SINTÉTICO SICRO'!A:D,2,0) -> Transporte com caminhão basculante de 6 m³ - rodovia em leito natural | C31: ='MOMENTO DE TRANSPORTE - PRINC'!K108 -> 578.55 | D31: 4049850
A33: 4011370 | B33: =VLOOKUP(A33,'SINTÉTICO SICRO'!A:D,2,0) -> Tratamento superficial duplo com emulsão - brita comercial
A34: MOMENTO DE TRANSPORTE | C34: Quantidade (tkm) | D34: Area executada (m2) | E34: 7000
F35: ='Memória de Cálculo'!C1*'Memória de Cálculo'!C2 -> 7000
A36: 5914389 | B36: =VLOOKUP(A36,'SINTÉTICO SICRO'!A:D,2,0) -> Transporte com caminhão basculante de 10 m³ - rodovia pavimentada | C36: ='MOMENTO DE TRANSPORTE - PRINC'!K53+'MOMENTO DE TRANSPORTE - PRINC'!K54 -> 35644 | D36: =C36*$F$35 -> 249508000
A37: 5914374 | B37: =VLOOKUP(A37,'SINTÉTICO SICRO'!A:D,2,0) -> Transporte com caminhão basculante de 10 m³ - rodovia em revestimento primário | C37: ='MOMENTO DE TRANSPORTE - PRINC'!K178+'MOMENTO DE TRANSPORTE - PRINC'!K179 -> 4455.5 | D37: =C37*$F$35 -> 31188500
A38: 5914359 | B38: =VLOOKUP(A38,'SINTÉTICO SICRO'!A:D,2,0) -> Transporte com caminhão basculante de 10 m³ - rodovia em leito natural | C38: ='MOMENTO DE TRANSPORTE - PRINC'!K116+'MOMENTO DE TRANSPORTE - PRINC'!K117 -> 4455.5 | D38: 31188500
A40: 4011352 | B40: =VLOOKUP(A40,'SINTÉTICO SICRO'!A:D,2,0) -> Imprimação com emulsão asfáltica
A41: MOMENTO DE TRANSPORTE | C41: Quantidade (tkm)
A44: 4011318 | B44: =VLOOKUP(A44,'SINTÉTICO SICRO'!A:D,2,0) -> Base ou sub-base estabilizada granulometricamente com mistura solo brita (70% - 30%) em usina com material de jazida e brita comercial - 100% Proctor modificado
A45: MOMENTO DE TRANSPORTE | C45: Quantidade (tkm) | D45: Área Executada (m2) | E45: =E27 -> 7000
D46: espessura (m) | E46: 0.15 | F46: =(E45*E46)/('RESUMO MODULO TOTAL'!H26+'RESUMO MODULO TOTAL'!H27) -> 0.02631578947
A47: 5914389 | B47: =VLOOKUP(A47,'SINTÉTICO SICRO'!A:D,2,0) -> Transporte com caminhão basculante de 10 m³ - rodovia pavimentada | C47: ='MOMENTO DE TRANSPORTE - PRINC'!K66+SUMIF('MOMENTO DE TRANSPORTE - AUX'!A58:A59,'MEDICAO EM TKM'!A47,'MOMENTO DE TRANSPORTE - AUX'!K58:K59) -> 3292560.768 | D47: =C47*$F$46 -> 86646.336
A48: 5914359 | B48: =VLOOKUP(A48,'SINTÉTICO SICRO'!A:D,2,0) -> Transporte com caminhão basculante de 10 m³ - rodovia em leito natural | C48: ='MOMENTO DE TRANSPORTE - PRINC'!K128+SUMIF('MOMENTO DE TRANSPORTE - AUX'!A120:A121,'MEDICAO EM TKM'!A48,'MOMENTO DE TRANSPORTE - AUX'!K120:K121) -> 164627.799 | D48: =C48*$F$46 -> 4332.3105
A49: 5914374 | B49: =VLOOKUP(A49,'SINTÉTICO SICRO'!A:D,2,0) -> Transporte com caminhão basculante de 10 m³ - rodovia em revestimento primário | C49: ='MOMENTO DE TRANSPORTE - PRINC'!K190+SUMIF('MOMENTO DE TRANSPORTE - AUX'!A181:A182,'MEDICAO EM TKM'!A49,'MOMENTO DE TRANSPORTE - AUX'!K181:K182) -> 205784.8485 | D49: =C49*$F$46 -> 5415.39075
A51: 4011209 | B51: =VLOOKUP(A51,'SINTÉTICO SICRO'!A:D,2,0) -> Regularização do subleito - 100% Proctor intermediário
A52: MOMENTO DE TRANSPORTE | D52: Quantidade (tkm)
A56: 5213440 | B56: Placa de regulamentação em aço D = 0,60 m - película retrorrefletiva tipo I + SI - fornecimento e implantação
A57: MOMENTO DE TRANSPORTE | D57: Quantidade (tkm)
A61: 5213464 | B61: =VLOOKUP(A61,'SINTÉTICO SICRO'!A:D,2,0) -> Placa de advertência em aço, lado de 0,60 m - película retrorrefletiva tipo I + SI - fornecimento e implantação
A62: MOMENTO DE TRANSPORTE | D62: Quantidade (tkm)
A66: 5213863 | B66: =VLOOKUP(A66,'SINTÉTICO SICRO'!A:D,2,0) -> Suporte metálico galvanizado para placa de advertência ou regulamentação - lado ou diâmetro de 0,60 m - fornecimento e implantação
A67: MOMENTO DE TRANSPORTE | D67: Quantidade (tkm)
A71: 5213400 | B71: =VLOOKUP(A71,'SINTÉTICO SICRO'!A:D,2,0) -> Pintura de faixa com tinta acrílica - espessura de 0,4 mm
A72: MOMENTO DE TRANSPORTE | D72: Quantidade (tkm)
A76: 2003943 | B76: =VLOOKUP(A76,'SINTÉTICO SICRO'!A:D,2,0) -> Meio-fio de concreto - MFC 03 moldado no local com extrusora e concreto usinado - areia e brita comerciais
A77: MOMENTO DE TRANSPORTE | D77: Quantidade (tkm) | E77: Extensao executada (m)
E78: 1000 | F78: =E78/('Memória de Cálculo'!C1*2) -> 0.5
A79: 5914569 | B79: =VLOOKUP(A79,'SINTÉTICO SICRO'!A:D,2,0) -> Transporte com caminhão betoneira - rodovia pavimentada | D79: ='MOMENTO DE TRANSPORTE - PRINC'!K80 -> 30643.2 | E79: =D79*$F$78 -> 15321.6
A80: 5914539 | B80: =VLOOKUP(A80,'SINTÉTICO SICRO'!A:D,2,0) -> Transporte com caminhão betoneira - rodovia em leito natural | D80: ='MOMENTO DE TRANSPORTE - PRINC'!K142 -> 3830.4 | E80: 1915.2
A81: 5914554 | B81: =VLOOKUP(A81,'SINTÉTICO SICRO'!A:D,2,0) -> Transporte com caminhão betoneira - rodovia em revestimento primário | D81: ='MOMENTO DE TRANSPORTE - PRINC'!K203 -> 3830.4 | E81: 1915.2
A82: 5914479 | B82: =VLOOKUP(A82,'SINTÉTICO SICRO'!A:D,2,0) -> Transporte com caminhão carroceria de 15 t - rodovia pavimentada | D82: =SUMIF('MOMENTO DE TRANSPORTE - AUX'!$A$67:$A$71,'MEDICAO EM TKM'!A82,'MOMENTO DE TRANSPORTE - AUX'!$K$67:$K$71)+'MOMENTO DE TRANSPORTE - AUX'!K79 -> 28281.29024 | E82: 14140.64512
A83: 5914389 | B83: =VLOOKUP(A83,'SINTÉTICO SICRO'!A:D,2,0) -> Transporte com caminhão basculante de 10 m³ - rodovia pavimentada | D83: =SUMIF('MOMENTO DE TRANSPORTE - AUX'!$A$67:$A$71,'MEDICAO EM TKM'!A83,'MOMENTO DE TRANSPORTE - AUX'!$K$67:$K$71) -> 210315.5174 | E83: 105157.7587
A84: 5914449 | B84: =VLOOKUP(A84,'SINTÉTICO SICRO'!A:D,2,0) -> Transporte com caminhão carroceria de 15 t - rodovia em leito natural | D84: =SUMIF('MOMENTO DE TRANSPORTE - AUX'!$A$129:$A$133,'MEDICAO EM TKM'!A84,'MOMENTO DE TRANSPORTE - AUX'!$K$129:$K$133)+'MOMENTO DE TRANSPORTE - AUX'!K141 -> 883.79032 | E84: 441.89516
A85: 5914359 | B85: =VLOOKUP(A85,'SINTÉTICO SICRO'!A:D,2,0) -> Transporte com caminhão basculante de 10 m³ - rodovia em leito natural | D85: =SUMIF('MOMENTO DE TRANSPORTE - AUX'!$A$129:$A$133,'MEDICAO EM TKM'!A85,'MOMENTO DE TRANSPORTE - AUX'!$K$129:$K$133) -> 6572.35992 | E85: 3286.17996
A86: 5914464 | B86: =VLOOKUP(A86,'SINTÉTICO SICRO'!A:D,2,0) -> Transporte com caminhão carroceria de 15 t - rodovia em revestimento primário | D86: =SUMIF('MOMENTO DE TRANSPORTE - AUX'!$A$190:$A$194,'MEDICAO EM TKM'!A86,'MOMENTO DE TRANSPORTE - AUX'!$K$190:$K$194)+'MOMENTO DE TRANSPORTE - AUX'!K202 -> 1325.68548 | E86: 662.84274
A87: 5914374 | B87: =VLOOKUP(A87,'SINTÉTICO SICRO'!A:D,2,0) -> Transporte com caminhão basculante de 10 m³ - rodovia em revestimento primário | D87: =SUMIF('MOMENTO DE TRANSPORTE - AUX'!$A$190:$A$194,'MEDICAO EM TKM'!A87,'MOMENTO DE TRANSPORTE - AUX'!$K$190:$K$194) -> 9858.53988 | E87: 4929.26994
A89: 4915724 | B89: =VLOOKUP(A89,'SINTÉTICO SICRO'!A:D,2,0) -> Caiação mecanizada com fixador de cal
A90: MOMENTO DE TRANSPORTE | D90: Quantidade (tkm)

Sheet Memória de Cálculo
A1: Extensão | B1: = | C1: 1000 | D1: m | F1: QUANTIDADE DE MODULOS | G1: 19
A2: Largura | B2: = | C2: 7 | D2: m
A4: Extensão | B4: = | C4: 1 | D4: km
B6: MOBUILIZAÇÃO
A7: 1 | B7: Implantação da obra
B9: Módulos(un) | D9: Módulos(un)
B10: =G1 -> 19 | C10: = | D10: =B10 -> 19
A12: 2 | B12: Administração da obra
B14: Módulos(un) | D14: Módulos(un)
B15: =G1 -> 19 | C15: = | D15: =B15 -> 19
A17: 3 | B17: Canteiro de Obras e Almoxarifado
B19: Módulos(un) | D19: Módulos(un)
B20: =G1 -> 19 | C20: = | D20: =B20 -> 19
A22: 4 | B22: Placa de Obra em Chapa de Aço Galvanizado
B24: Módulos(un) | C24: Comprimento(m) | D24: Largura (m) | H24: Total de Area de placa (m²)
B25: =G1 -> 19 | C25: 2 | D25: 4 | H25: =C25*D25*B25*2 -> 304
B27: TERRAPLENAGEM
A29: 5 | B29: serviços topográficos para pavimentação, inclusive notas de serviços, acompanhamento e greide
B31: Extensão (m) | D31: Largura (m) | H31: area (m2)
B32: =C1*$G$1 -> 19000 | C32: x | D32: =$C$2 -> 7 | G32: = | H32: =B32*D32 -> 133000
A34: 6 | B34: Escavação, carga e transporte de material de 1ª categoria - DMT de 1.000 a 1.200 m - caminho de serviço em leito natural - com escavadeira e caminhão basculante de 14 m³
B36: Extensão (m) | D36: Largura (m) | F36: Espessura (m) | H36: Volume (m3)
B37: =C1*$G$1 -> 19000 | C37: x | D37: =$C$2 -> 7 | E37: x | F37: 0.325 | G37: = | H37: =B37*D37*F37 -> 43225
A41: 7 | B41: Espalhamento de material em bota-fora
B43: Extensão (m) | D43: Largura (m) | F43: Espessura (m) | H43: Volume (m3)
B44: =C1*$G$1 -> 19000 | C44: x | D44: =$C$2 -> 7 | E44: x | F44: 0.325 | G44: = | H44: =B44*D44*F44 -> 43225
B46: PAVIMENTAÇÃO
A48: 8 | B48: Capa Selante
B50: Extensão (m) | C50: Largura (m) | H50: area (m2)
B51: =$C$1*G1 -> 19000 | C51: =$C$2 -> 7 | G51: = | H51: =B51*C51 -> 133000
A54: 9 | B54: Tratamento Superficial Duplo com Emulsão - Brita Comercial
B56: Extensão (m) | D56: Largura (m) | H56: area (m2)
B57: =$C$1*G1 -> 19000 | C57: x | D57: =$C$2 -> 7 | G57: = | H57: =B57*D57 -> 133000
A60: 10 | B60: Imprimação com asfalto diluído
B62: Extensão (m) | D62: Largura (m) | H62: area (m2)
B63: =$C$1*G1 -> 19000 | C63: x | D63: =$C$2 -> 7 | G63: = | H63: =B63*D63 -> 133000
A65: 11 | B65: Base estabilizada granulometricamente com mistura solo brita (70% - 30%) em usina com material de jazida e brita comercial
B67: Extensão (m) | D67: Largura (m) | F67: Espessura (m) | H67: Volume (m3)
B68: =C1*$G$1 -> 19000 | C68: x | D68: =$C$2 -> 7 | E68: x | F68: 0.15 | G68: = | H68: =B68*D68*F68 -> 19950
A71: 12 | B71: Sub-base estabilizada granulometricamente com mistura solo brita (70% - 30%) em usina com material de jazida e brita comercial
B73: Extensão (m) | D73: Largura (m) | F73: Espessura (m) | H73: Volume (m3)
B74: =C1*$G$1 -> 19000 | C74: x | D74: =$C$2 -> 7 | E74: x | F74: 0.15 | G74: = | H74: =B74*D74*F74 -> 19950
A77: 13 | B77: Regularização do subleito
B79: Extensão (m) | D79: Largura (m) | H79: area (m2)
B80: =C1*$G$1 -> 19000 | C80: x | D80: =$C$2 -> 7 | G80: = | H80: =B80*D80 -> 133000
B82: SINALIZAÇÃO
A84: 20 | B84: Fornecimento e implantação de placa de regulamentação em aço D = 0,60 m - película retrorrefletiva tipo I + SI
B86: Extensão (km) | D86: Quant. (un) | H86: Quant. (un)
B87: =$C$4*$G$1 -> 19 | C87: x | D87: 3 | G87: = | H87: =B87*D87 -> 57
A89: 20 | B89: Fornecimento e implantação de placa de advertencia
B91: Extensão (km) | D91: Quant. (un) | H91: Quant. (un)
B92: =$C$4*$G$1 -> 19 | C92: x | D92: 3 | G92: = | H92: =B92*D92 -> 57
A95: 21 | B95: Fornecimento e implantação de suporte metálico galvanizado para placa de regulamentação - D = 0,60 m
B97: Extensão (km) | D97: Quant. (un) | H97: Quant. (un)
B98: =$C$4*$G$1 -> 19 | C98: x | D98: 0.5 | G98: = | H98: =H87+H92 -> 114
A100: 22 | B100: Pintura de faixa com tinta acrílica - espessura de 0,4 mm (bordos)
B102: Extensão (m) | D102: Espessura (m) | H102: Quant. (m²)
B103: =C1*G1 -> 19000 | C103: x | D103: 0.1 | G103: = | H103: =B103*D103*2 -> 3800
B105: Pintura de faixa com tinta acrílica - espessura de 0,4 mm (faixa central)
H107: Quant. (m²)
H108: =B103*D103*0.4 -> 760
B110: SINALIZAÇÃO DE OBRAS
A112: 20 | B112: Placa para sinalização de obras montada em cavalete metálico - 1,00 x 1,00 m - utilização de 600 ciclos - fornecimento, 01 implantação e 01 retirada diária
B114: Extensão (m) | C114: Extensão (Km) | D114: Placa | E114: Dias | H114: Quant. (Un.DIA)
B115: =C1*G1 -> 19000 | C115: =B115/1000 -> 19 | D115: 1 | E115: 360 | G115: = | H115: =D115*C115*E115 -> 6840
A118: 21 | B118: Placa de advertência para sinalização de obras montada em suporte metálico móvel, lado 1,00 m - utilização de 600 ciclos - fornecimento, 01 implantação e 01 retirada diária
B120: Extensão (m) | C120: Extensão (Km) | D120: Placa | E120: Dias | H120: Quant. (Un.DIA)
B121: =C1*G1 -> 19000 | C121: =B121/1000 -> 19 | D121: 1 | E121: 360 | G121: = | H121: =D121*C121*E121 -> 6840
A123: 22 | B123: Cone plástico para canalização de trânsito - utilização de 150 ciclos - fornecimento, 01 implantação e 01 retirada diária
B124: 4 cones a cada 2km x 360 dias
B125: Extensão (m) | C125: Extensão (Km) | D125: Cone | E125: Dias | H125: Quant. (Un.DIA)
B126: =C1*D10 -> 19000 | C126: =B126/1000 -> 19 | D126: 4 | E126: 360 | G126: = | H126: =((C126*D126)/2)*E126 -> 13680
B128: DRENAGEM
A129: 23 | B129: Meio-fio de concreto - MFC 03 - areia e brita comerciais - fôrma de madeira
B131: Extensão (m) | D131: Quant. (un) | H131: Extensão(m)
B132: =$C$1*$G$1 -> 19000 | C132: x | D132: 2 | G132: = | H132: =B132*D132 -> 38000
A134: 19 | B134: Caiação mecanizada com fixador de cal
B136: Extensão (m) | D136: Perimetro (m) | H136: Area (m²)
B137: =$C$1*$G$1 -> 19000 | C137: x | D137: =0.24 -> 0.24 | G137: = | H137: =B137*D137 -> 4560
B140: SERVIÇOS COMPLEMENTARES
A141: 24
B143: Extensão (m) | D143: Largura (m) | G143: 0.1 | H143: extensão (m)
B144: =$C$1*G1 -> 19000 | C144: x | D144: 1 | E144: x | G144: = | H144: =G143*B144 -> 1900
B147: PROJETO EXECUTIVO
A148: 25 | B148: Projeto Executivo
B150: Extensão (m) | D150: Largura (m) | F150: Quant. (un) | H150: Área (m²)
B151: =$C$1*G1 -> 19000 | C151: x | D151: =C2 -> 7 | E151: x | F151: 1 | G151: = | H151: =B151*D151 -> 133000
B153: CONTROLE TECNOLOGICO - OBRA
A154: 26 | B154: Projeto Executivo
B156: Extensão (m) | D156: Largura (m) | F156: Quant. (un) | H156: meses
G157: = | H157: =0.5*G1 -> 9.5
F160: Perímetro caiação = 0,09 + 0,15

Sheet ANP ESTADO (hidden)
A1: Agência Nacional do Petróleo, Gás Natural e Biocombustíveis
A2: Superintendência de Defesa da Concorrência
A5: PREÇO MÉDIO MENSAL PONDERADO PRATICADO PELOS DISTRIBUIDORES DE PRODUTOS ASFÁLTICOS (R$/KG)
A7: Importante: | B7: Quando não houver declaração de venda do produto selecionado, ou quando a declaração de venda do produto ocorrer por menos de 03 (três) distribuidoras, a tabela indicará campo vazio.
A8: Mês | B8: Produto | C8: Estado | D8: Preço
A9: 2013-01-01 | B9: ASFALTOS DILUÍDOS CM-30 | C9: Acre | D9: -
A10: 2013-01-01 | B10: ASFALTOS DILUÍDOS CM-30 | C10: Alagoas | D10: -
A11: 2013-01-01 | B11: ASFALTOS DILUÍDOS CM-30 | C11: Amapá | D11: -
A12: 2013-01-01 | B12: ASFALTOS DILUÍDOS CM-30 | C12: Amazonas | D12: 1.453527021
A13: 2013-01-01 | B13: ASFALTOS DILUÍDOS CM-30 | C13: Bahia | D13: 1.464044142
A14: 2013-01-01 | B14: ASFALTOS DILUÍDOS CM-30 | C14: Ceará | D14: 1.447997934
A15: 2013-01-01 | B15: ASFALTOS DILUÍDOS CM-30 | C15: Distrito Federal | D15: -
A16: 2013-01-01 | B16: ASFALTOS DILUÍDOS CM-30 | C16: Espírito Santo | D16: -
A17: 2013-01-01 | B17: ASFALTOS DILUÍDOS CM-30 | C17: Goiás | D17: 1.686383065
A18: 2013-01-01 | B18: ASFALTOS DILUÍDOS CM-30 | C18: Maranhão | D18: -
A19: 2013-01-01 | B19: ASFALTOS DILUÍDOS CM-30 | C19: Mato Grosso | D19: -
A20: 2013-01-01 | B20: ASFALTOS DILUÍDOS CM-30 | C20: Mato Grosso do Sul | D20: -
A21: 2013-01-01 | B21: ASFALTOS DILUÍDOS CM-30 | C21: Minas Gerais | D21: 1.451106114
A22: 2013-01-01 | B22: ASFALTOS DILUÍDOS CM-30 | C22: Pará | D22: -
A23: 2013-01-01 | B23: ASFALTOS DILUÍDOS CM-30 | C23: Paraíba | D23: -
A24: 2013-01-01 | B24: ASFALTOS DILUÍDOS CM-30 | C24: Paraná | D24: 1.520125031
A25: 2013-01-01 | B25: ASFALTOS DILUÍDOS CM-30 | C25: Pernambuco | D25: -
A26: 2013-01-01 | B26: ASFALTOS DILUÍDOS CM-30 | C26: Piauí | D26: -
A27: 2013-01-01 | B27: ASFALTOS DILUÍDOS CM-30 | C27: Rio de Janeiro | D27: 1.330475106
A28: 2013-01-01 | B28: ASFALTOS DILUÍDOS CM-30 | C28: Rio Grande do Norte | D28: -
A29: 2013-01-01 | B29: ASFALTOS DILUÍDOS CM-30 | C29: Rio Grande do Sul | D29: 1.598611074
A30: 2013-01-01 | B30: ASFALTOS DILUÍDOS CM-30 | C30: Rondônia | D30: -
A31: 2013-01-01 | B31: ASFALTOS DILUÍDOS CM-30 | C31: Roraima | D31: -
A32: 2013-01-01 | B32: ASFALTOS DILUÍDOS CM-30 | C32: Santa Catarina | D32: -
A33: 2013-01-01 | B33: ASFALTOS DILUÍDOS CM-30 | C33: São Paulo | D33: 1.471008423
A34: 2013-01-01 | B34: ASFALTOS DILUÍDOS CM-30 | C34: Sergipe | D34: -
A35: 2013-01-01 | B35: ASFALTOS DILUÍDOS CM-30 | C35: Tocantins | D35: -
A36: 2013-02-01 | B36: ASFALTOS DILUÍDOS CM-30 | C36: Acre | D36: -
A37: 2013-02-01 | B37: ASFALTOS DILUÍDOS CM-30 | C37: Alagoas | D37: -
A38: 2013-02-01 | B38: ASFALTOS DILUÍDOS CM-30 | C38: Amapá | D38: -
A39: 2013-02-01 | B39: ASFALTOS DILUÍDOS CM-30 | C39: Amazonas | D39: 1.485578179
A40: 2013-02-01 | B40: ASFALTOS DILUÍDOS CM-30 | C40: Bahia | D40: 1.457014101
A41: 2013-02-01 | B41: ASFALTOS DILUÍDOS CM-30 | C41: Ceará | D41: 1.413192336
A42: 2013-02-01 | B42: ASFALTOS DILUÍDOS CM-30 | C42: Distrito Federal | D42: -
A43: 2013-02-01 | B43: ASFALTOS DILUÍDOS CM-30 | C43: Espírito Santo | D43: -
A44: 2013-02-01 | B44: ASFALTOS DILUÍDOS CM-30 | C44: Goiás | D44: 1.667459711
A45: 2013-02-01 | B45: ASFALTOS DILUÍDOS CM-30 | C45: Maranhão | D45: -
A46: 2013-02-01 | B46: ASFALTOS DILUÍDOS CM-30 | C46: Mato Grosso | D46: -
A47: 2013-02-01 | B47: ASFALTOS DILUÍDOS CM-30 | C47: Mato Grosso do Sul | D47: -
A48: 2013-02-01 | B48: ASFALTOS DILUÍDOS CM-30 | C48: Minas Gerais | D48: 1.452121117
A49: 2013-02-01 | B49: ASFALTOS DILUÍDOS CM-30 | C49: Pará | D49: -
A50: 2013-02-01 | B50: ASFALTOS DILUÍDOS CM-30 | C50: Paraíba | D50: -
A51: 2013-02-01 | B51: ASFALTOS DILUÍDOS CM-30 | C51: Paraná | D51: 1.493783173
A52: 2013-02-01 | B52: ASFALTOS DILUÍDOS CM-30 | C52: Pernambuco | D52: -
A53: 2013-02-01 | B53: ASFALTOS DILUÍDOS CM-30 | C53: Piauí | D53: -
A54: 2013-02-01 | B54: ASFALTOS DILUÍDOS CM-30 | C54: Rio de Janeiro | D54: 1.418234901
A55: 2013-02-01 | B55: ASFALTOS DILUÍDOS CM-30 | C55: Rio Grande do Norte | D55: -
A56: 2013-02-01 | B56: ASFALTOS DILUÍDOS CM-30 | C56: Rio Grande do Sul | D56: 1.435861782
A57: 2013-02-01 | B57: ASFALTOS DILUÍDOS CM-30 | C57: Rondônia | D57: -
A58: 2013-02-01 | B58: ASFALTOS DILUÍDOS CM-30 | C58: Roraima | D58: -
A59: 2013-02-01 | B59: ASFALTOS DILUÍDOS CM-30 | C59: Santa Catarina | D59: -
A60: 2013-02-01 | B60: ASFALTOS DILUÍDOS CM-30 | C60: São Paulo | D60: 1.434190204
A61: 2013-02-01 | B61: ASFALTOS DILUÍDOS CM-30 | C61: Sergipe | D61: -
A62: 2013-02-01 | B62: ASFALTOS DILUÍDOS CM-30 | C62: Tocantins | D62: -
A63: 2013-03-01 | B63: ASFALTOS DILUÍDOS CM-30 | C63: Acre | D63: -
A64: 2013-03-01 | B64: ASFALTOS DILUÍDOS CM-30 | C64: Alagoas | D64: -
A65: 2013-03-01 | B65: ASFALTOS DILUÍDOS CM-30 | C65: Amapá | D65: -
A66: 2013-03-01 | B66: ASFALTOS DILUÍDOS CM-30 | C66: Amazonas | D66: 1.507923921
A67: 2013-03-01 | B67: ASFALTOS DILUÍDOS CM-30 | C67: Bahia | D67: 1.449440325
A68: 2013-03-01 | B68: ASFALTOS DILUÍDOS CM-30 | C68: Ceará | D68: 1.401607485
A69: 2013-03-01 | B69: ASFALTOS DILUÍDOS CM-30 | C69: Distrito Federal | D69: -
A70: 2013-03-01 | B70: ASFALTOS DILUÍDOS CM-30 | C70: Espírito Santo | D70: -
A71: 2013-03-01 | B71: ASFALTOS DILUÍDOS CM-30 | C71: Goiás | D71: 1.661758701
A72: 2013-03-01 | B72: ASFALTOS DILUÍDOS CM-30 | C72: Maranhão | D72: -
A73: 2013-03-01 | B73: ASFALTOS DILUÍDOS CM-30 | C73: Mato Grosso | D73: -
A74: 2013-03-01 | B74: ASFALTOS DILUÍDOS CM-30 | C74: Mato Grosso do Sul | D74: -
A75: 2013-03-01 | B75: ASFALTOS DILUÍDOS CM-30 | C75: Minas Gerais | D75: 1.44324333
A76: 2013-03-01 | B76: ASFALTOS DILUÍDOS CM-30 | C76: Pará | D76: -
A77: 2013-03-01 | B77: ASFALTOS DILUÍDOS CM-30 | C77: Paraíba | D77: -
A78: 2013-03-01 | B78: ASFALTOS DILUÍDOS CM-30 | C78: Paraná | D78: 1.468995996
A79: 2013-03-01 | B79: ASFALTOS DILUÍDOS CM-30 | C79: Pernambuco | D79: -
A80: 2013-03-01 | B80: ASFALTOS DILUÍDOS CM-30 | C80: Piauí | D80: -
A81: 2013-03-01 | B81: ASFALTOS DILUÍDOS CM-30 | C81: Rio de Janeiro | D81: 1.438055574
A82: 2013-03-01 | B82: ASFALTOS DILUÍDOS CM-30 | C82: Rio Grande do Norte | D82: -
A83: 2013-03-01 | B83: ASFALTOS DILUÍDOS CM-30 | C83: Rio Grande do Sul | D83: 1.581425878
A84: 2013-03-01 | B84: ASFALTOS DILUÍDOS CM-30 | C84: Rondônia | D84: -
A85: 2013-03-01 | B85: ASFALTOS DILUÍDOS CM-30 | C85: Roraima | D85: -
A86: 2013-03-01 | B86: ASFALTOS DILUÍDOS CM-30 | C86: Santa Catarina | D86: -
A87: 2013-03-01 | B87: ASFALTOS DILUÍDOS CM-30 | C87: São Paulo | D87: 1.466061702
A88: 2013-03-01 | B88: ASFALTOS DILUÍDOS CM-30 | C88: Sergipe | D88: -
A89: 2013-03-01 | B89: ASFALTOS DILUÍDOS CM-30 | C89: Tocantins | D89: -
A90: 2013-04-01 | B90: ASFALTOS DILUÍDOS CM-30 | C90: Acre | D90: -
A91: 2013-04-01 | B91: ASFALTOS DILUÍDOS CM-30 | C91: Alagoas | D91: -
A92: 2013-04-01 | B92: ASFALTOS DILUÍDOS CM-30 | C92: Amapá | D92: -
A93: 2013-04-01 | B93: ASFALTOS DILUÍDOS CM-30 | C93: Amazonas | D93: 1.484796656
A94: 2013-04-01 | B94: ASFALTOS DILUÍDOS CM-30 | C94: Bahia | D94: 1.454836546
A95: 2013-04-01 | B95: ASFALTOS DILUÍDOS CM-30 | C95: Ceará | D95: 1.387073962
A96: 2013-04-01 | B96: ASFALTOS DILUÍDOS CM-30 | C96: Distrito Federal | D96: -
A97: 2013-04-01 | B97: ASFALTOS DILUÍDOS CM-30 | C97: Espírito Santo | D97: -
A98: 2013-04-01 | B98: ASFALTOS DILUÍDOS CM-30 | C98: Goiás | D98: 1.673481836
A99: 2013-04-01 | B99: ASFALTOS DILUÍDOS CM-30 | C99: Maranhão | D99: -
A100: 2013-04-01 | B100: ASFALTOS DILUÍDOS CM-30 | C100: Mato Grosso | D100: 1.921938422
A101: 2013-04-01 | B101: ASFALTOS DILUÍDOS CM-30 | C101: Mato Grosso do Sul | D101: -
A102: 2013-04-01 | B102: ASFALTOS DILUÍDOS CM-30 | C102: Minas Gerais | D102: 1.456556683
A103: 2013-04-01 | B103: ASFALTOS DILUÍDOS CM-30 | C103: Pará | D103: -
A104: 2013-04-01 | B104: ASFALTOS DILUÍDOS CM-30 | C104: Paraíba | D104: -
A105: 2013-04-01 | B105: ASFALTOS DILUÍDOS CM-30 | C105: Paraná | D105: 1.534419498
A106: 2013-04-01 | B106: ASFALTOS DILUÍDOS CM-30 | C106: Pernambuco | D106: -
A107: 2013-04-01 | B107: ASFALTOS DILUÍDOS CM-30 | C107: Piauí | D107: -
A108: 2013-04-01 | B108: ASFALTOS DILUÍDOS CM-30 | C108: Rio de Janeiro | D108: 1.418419516
A109: 2013-04-01 | B109: ASFALTOS DILUÍDOS CM-30 | C109: Rio Grande do Norte | D109: -
A110: 2013-04-01 | B110: ASFALTOS DILUÍDOS CM-30 | C110: Rio Grande do Sul | D110: 1.572582456
A111: 2013-04-01 | B111: ASFALTOS DILUÍDOS CM-30 | C111: Rondônia | D111: -
A112: 2013-04-01 | B112: ASFALTOS DILUÍDOS CM-30 | C112: Roraima | D112: -
A113: 2013-04-01 | B113: ASFALTOS DILUÍDOS CM-30 | C113: Santa Catarina | D113: -
A114: 2013-04-01 | B114: ASFALTOS DILUÍDOS CM-30 | C114: São Paulo | D114: 1.475764348
A115: 2013-04-01 | B115: ASFALTOS DILUÍDOS CM-30 | C115: Sergipe | D115: -
A116: 2013-04-01 | B116: ASFALTOS DILUÍDOS CM-30 | C116: Tocantins | D116: -
A117: 2013-05-01 | B117: ASFALTOS DILUÍDOS CM-30 | C117: Acre | D117: -
A118: 2013-05-01 | B118: ASFALTOS DILUÍDOS CM-30 | C118: Alagoas | D118: -
A119: 2013-05-01 | B119: ASFALTOS DILUÍDOS CM-30 | C119: Amapá | D119: -
A120: 2013-05-01 | B120: ASFALTOS DILUÍDOS CM-30 | C120: Amazonas | D120: -
A121: 2013-05-01 | B121: ASFALTOS DILUÍDOS CM-30 | C121: Bahia | D121: 1.492587424
A122: 2013-05-01 | B122: ASFALTOS DILUÍDOS CM-30 | C122: Ceará | D122: 1.376263021
A123: 2013-05-01 | B123: ASFALTOS DILUÍDOS CM-30 | C123: Distrito Federal | D123: -
A124: 2013-05-01 | B124: ASFALTOS DILUÍDOS CM-30 | C124: Espírito Santo | D124: -
A125: 2013-05-01 | B125: ASFALTOS DILUÍDOS CM-30 | C125: Goiás | D125: 1.668214819
A126: 2013-05-01 | B126: ASFALTOS DILUÍDOS CM-30 | C126: Maranhão | D126: -
A127: 2013-05-01 | B127: ASFALTOS DILUÍDOS CM-30 | C127: Mato Grosso | D127: 1.903098159
A128: 2013-05-01 | B128: ASFALTOS DILUÍDOS CM-30 | C128: Mato Grosso do Sul | D128: -
A129: 2013-05-01 | B129: ASFALTOS DILUÍDOS CM-30 | C129: Minas Gerais | D129: 1.464709716
A130: 2013-05-01 | B130: ASFALTOS DILUÍDOS CM-30 | C130: Pará | D130: -
A131: 2013-05-01 | B131: ASFALTOS DILUÍDOS CM-30 | C131: Paraíba | D131: -
A132: 2013-05-01 | B132: ASFALTOS DILUÍDOS CM-30 | C132: Paraná | D132: 1.489027849
A133: 2013-05-01 | B133: ASFALTOS DILUÍDOS CM-30 | C133: Pernambuco | D133: -
A134: 2013-05-01 | B134: ASFALTOS DILUÍDOS CM-30 | C134: Piauí | D134: -
A135: 2013-05-01 | B135: ASFALTOS DILUÍDOS CM-30 | C135: Rio de Janeiro | D135: 1.399256048
A136: 2013-05-01 | B136: ASFALTOS DILUÍDOS CM-30 | C136: Rio Grande do Norte | D136: -
A137: 2013-05-01 | B137: ASFALTOS DILUÍDOS CM-30 | C137: Rio Grande do Sul | D137: 1.539636961
A138: 2013-05-01 | B138: ASFALTOS DILUÍDOS CM-30 | C138: Rondônia | D138: -
A139: 2013-05-01 | B139: ASFALTOS DILUÍDOS CM-30 | C139: Roraima | D139: -
A140: 2013-05-01 | B140: ASFALTOS DILUÍDOS CM-30 | C140: Santa Catarina | D140: -
A141: 2013-05-01 | B141: ASFALTOS DILUÍDOS CM-30 | C141: São Paulo | D141: 1.451215936
A142: 2013-05-01 | B142: ASFALTOS DILUÍDOS CM-30 | C142: Sergipe | D142: -
A143: 2013-05-01 | B143: ASFALTOS DILUÍDOS CM-30 | C143: Tocantins | D143: -
A144: 2013-06-01 | B144: ASFALTOS DILUÍDOS CM-30 | C144: Acre | D144: -
A145: 2013-06-01 | B145: ASFALTOS DILUÍDOS CM-30 | C145: Alagoas | D145: -
A146: 2013-06-01 | B146: ASFALTOS DILUÍDOS CM-30 | C146: Amapá | D146: -
A147: 2013-06-01 | B147: ASFALTOS DILUÍDOS CM-30 | C147: Amazonas | D147: 1.586325818
A148: 2013-06-01 | B148: ASFALTOS DILUÍDOS CM-30 | C148: Bahia | D148: 1.44812907
A149: 2013-06-01 | B149: ASFALTOS DILUÍDOS CM-30 | C149: Ceará | D149: 1.382700989
A150: 2013-06-01 | B150: ASFALTOS DILUÍDOS CM-30 | C150: Distrito Federal | D150: -
A151: 2013-06-01 | B151: ASFALTOS DILUÍDOS CM-30 | C151: Espírito Santo | D151: -
A152: 2013-06-01 | B152: ASFALTOS DILUÍDOS CM-30 | C152: Goiás | D152: 1.699613867
A153: 2013-06-01 | B153: ASFALTOS DILUÍDOS CM-30 | C153: Maranhão | D153: -
A154: 2013-06-01 | B154: ASFALTOS DILUÍDOS CM-30 | C154: Mato Grosso | D154: 1.915975658
A155: 2013-06-01 | B155: ASFALTOS DILUÍDOS CM-30 | C155: Mato Grosso do Sul | D155: -
A156: 2013-06-01 | B156: ASFALTOS DILUÍDOS CM-30 | C156: Minas Gerais | D156: 1.475366896
A157: 2013-06-01 | B157: ASFALTOS DILUÍDOS CM-30 | C157: Pará | D157: -
A158: 2013-06-01 | B158: ASFALTOS DILUÍDOS CM-30 | C158: Paraíba | D158: -
A159: 2013-06-01 | B159: ASFALTOS DILUÍDOS CM-30 | C159: Paraná | D159: 1.432166974
A160: 2013-06-01 | B160: ASFALTOS DILUÍDOS CM-30 | C160: Pernambuco | D160: -
A161: 2013-06-01 | B161: ASFALTOS DILUÍDOS CM-30 | C161: Piauí | D161: -
A162: 2013-06-01 | B162: ASFALTOS DILUÍDOS CM-30 | C162: Rio de Janeiro | D162: 1.527420226
A163: 2013-06-01 | B163: ASFALTOS DILUÍDOS CM-30 | C163: Rio Grande do Norte | D163: -
A164: 2013-06-01 | B164: ASFALTOS DILUÍDOS CM-30 | C164: Rio Grande do Sul | D164: 1.59868349
A165: 2013-06-01 | B165: ASFALTOS DILUÍDOS CM-30 | C165: Rondônia | D165: -
A166: 2013-06-01 | B166: ASFALTOS DILUÍDOS CM-30 | C166: Roraima | D166: -
A167: 2013-06-01 | B167: ASFALTOS DILUÍDOS CM-30 | C167: Santa Catarina | D167: -
A168: 2013-06-01 | B168: ASFALTOS DILUÍDOS CM-30 | C168: São Paulo | D168: 1.432748187
A169: 2013-06-01 | B169: ASFALTOS DILUÍDOS CM-30 | C169: Sergipe | D169: -
A170: 2013-06-01 | B170: ASFALTOS DILUÍDOS CM-30 | C170: Tocantins | D170: -
A171: 2013-07-01 | B171: ASFALTOS DILUÍDOS CM-30 | C171: Acre | D171: -
A172: 2013-07-01 | B172: ASFALTOS DILUÍDOS CM-30 | C172: Alagoas | D172: -
A173: 2013-07-01 | B173: ASFALTOS DILUÍDOS CM-30 | C173: Amapá | D173: -
A174: 2013-07-01 | B174: ASFALTOS DILUÍDOS CM-30 | C174: Amazonas | D174: 1.509890931
A175: 2013-07-01 | B175: ASFALTOS DILUÍDOS CM-30 | C175: Bahia | D175: 1.436150016
A176: 2013-07-01 | B176: ASFALTOS DILUÍDOS CM-30 | C176: Ceará | D176: 1.424835845
A177: 2013-07-01 | B177: ASFALTOS DILUÍDOS CM-30 | C177: Distrito Federal | D177: -
A178: 2013-07-01 | B178: ASFALTOS DILUÍDOS CM-30 | C178: Espírito Santo | D178: -
A179: 2013-07-01 | B179: ASFALTOS DILUÍDOS CM-30 | C179: Goiás | D179: 1.663778454
A180: 2013-07-01 | B180: ASFALTOS DILUÍDOS CM-30 | C180: Maranhão | D180: -
A181: 2013-07-01 | B181: ASFALTOS DILUÍDOS CM-30 | C181: Mato Grosso | D181: 1.930589551
A182: 2013-07-01 | B182: ASFALTOS DILUÍDOS CM-30 | C182: Mato Grosso do Sul | D182: -
A183: 2013-07-01 | B183: ASFALTOS DILUÍDOS CM-30 | C183: Minas Gerais | D183: 1.476572352
A184: 2013-07-01 | B184: ASFALTOS DILUÍDOS CM-30 | C184: Pará | D184: -
A185: 2013-07-01 | B185: ASFALTOS DILUÍDOS CM-30 | C185: Paraíba | D185: -
A186: 2013-07-01 | B186: ASFALTOS DILUÍDOS CM-30 | C186: Paraná | D186: 1.477167274
A187: 2013-07-01 | B187: ASFALTOS DILUÍDOS CM-30 | C187: Pernambuco | D187: -
A188: 2013-07-01 | B188: ASFALTOS DILUÍDOS CM-30 | C188: Piauí | D188: -
A189: 2013-07-01 | B189: ASFALTOS DILUÍDOS CM-30 | C189: Rio de Janeiro | D189: 1.584464713
A190: 2013-07-01 | B190: ASFALTOS DILUÍDOS CM-30 | C190: Rio Grande do Norte | D190: -
A191: 2013-07-01 | B191: ASFALTOS DILUÍDOS CM-30 | C191: Rio Grande do Sul | D191: 1.612487925
A192: 2013-07-01 | B192: ASFALTOS DILUÍDOS CM-30 | C192: Rondônia | D192: -
A193: 2013-07-01 | B193: ASFALTOS DILUÍDOS CM-30 | C193: Roraima | D193: -
A194: 2013-07-01 | B194: ASFALTOS DILUÍDOS CM-30 | C194: Santa Catarina | D194: -
A195: 2013-07-01 | B195: ASFALTOS DILUÍDOS CM-30 | C195: São Paulo | D195: 1.507844909
A196: 2013-07-01 | B196: ASFALTOS DILUÍDOS CM-30 | C196: Sergipe | D196: -
A197: 2013-07-01 | B197: ASFALTOS DILUÍDOS CM-30 | C197: Tocantins | D197: -
A198: 2013-08-01 | B198: ASFALTOS DILUÍDOS CM-30 | C198: Acre | D198: -
A199: 2013-08-01 | B199: ASFALTOS DILUÍDOS CM-30 | C199: Alagoas | D199: -
A200: 2013-08-01 | B200: ASFALTOS DILUÍDOS CM-30 | C200: Amapá | D200: -
A201: 2013-08-01 | B201: ASFALTOS DILUÍDOS CM-30 | C201: Amazonas | D201: 1.509275641
A202: 2013-08-01 | B202: ASFALTOS DILUÍDOS CM-30 | C202: Bahia | D202: 1.416699323
A203: 2013-08-01 | B203: ASFALTOS DILUÍDOS CM-30 | C203: Ceará | D203: 1.447403364
... 4297 more rows

Sheet ANP REGIÃO (hidden)
A1: Agência Nacional do Petróleo, Gás Natural e Biocombustíveis
A2: Superintendência de Defesa da Concorrência
A6: PREÇO MÉDIO MENSAL PONDERADO PRATICADO PELOS DISTRIBUIDORES DE PRODUTOS ASFÁLTICOS (R$/KG)
A8: Produto | B8: Mês | C8: Norte | D8: Nordeste | E8: Centro-Oeste | F8: Sudeste | G8: Sul | H8: Brasil
A9: ASFALTOS DILUÍDOS CM-30 | B9: 2008-11-01 | C9: 1.775468292 | D9: 1.55087853 | E9: 2.022143291 | F9: 1.55449367 | G9: 1.584532899 | H9: 1.64286837
A10: ASFALTOS DILUÍDOS CM-30 | B10: 2008-12-01 | C10: 1.806837667 | D10: 1.509118192 | E10: 2.013020124 | F10: 1.610902223 | G10: 1.607187591 | H10: 1.637581471
A11: ASFALTOS DILUÍDOS CM-30 | B11: 2009-01-01 | C11: 1.497052858 | D11: 1.504296346 | E11: 1.963097671 | F11: 1.524672247 | G11: 1.585137209 | H11: 1.564945876
A12: ASFALTOS DILUÍDOS CM-30 | B12: 2009-02-01 | C12: 1.42787112 | D12: 1.497693283 | E12: 1.981065098 | F12: 1.583490231 | G12: 1.595924062 | H12: 1.565451036
A13: ASFALTOS DILUÍDOS CM-30 | B13: 2009-03-01 | C13: 1.404941405 | D13: 1.497647987 | E13: 1.893430263 | F13: 1.52754782 | G13: 1.588720029 | H13: 1.532713147
A14: ASFALTOS DILUÍDOS CM-30 | B14: 2009-04-01 | C14: 1.410510748 | D14: 1.484826261 | E14: 1.909226429 | F14: 1.464149371 | G14: 1.553831928 | H14: 1.516717648
A15: ASFALTOS DILUÍDOS CM-30 | B15: 2009-05-01 | C15: 1.480355678 | D15: 1.466898928 | E15: 1.891590435 | F15: 1.435443718 | G15: 1.54161118 | H15: 1.537574371
A16: ASFALTOS DILUÍDOS CM-30 | B16: 2009-06-01 | C16: 1.580751039 | D16: 1.444888837 | E16: 1.842074119 | F16: 1.424264315 | G16: 1.501526696 | H16: 1.541315575
A17: ASFALTOS DILUÍDOS CM-30 | B17: 2009-07-01 | C17: 1.905432476 | D17: 1.482618211 | E17: 1.949046345 | F17: 1.584435299 | G17: 1.610310436 | H17: 1.651032523
A18: ASFALTOS DILUÍDOS CM-30 | B18: 2009-08-01 | C18: 1.716995184 | D18: 1.423854915 | E18: 1.712385478 | F18: 1.418000805 | G18: 1.520643497 | H18: 1.504911469
A19: ASFALTOS DILUÍDOS CM-30 | B19: 2009-09-01 | C19: 1.64329494 | D19: 1.445317761 | E19: 1.731518803 | F19: 1.419374251 | G19: 1.500735895 | H19: 1.50552312
A20: ASFALTOS DILUÍDOS CM-30 | B20: 2009-10-01 | C20: 1.588031924 | D20: 1.458932649 | E20: 1.762015056 | F20: 1.429024419 | G20: 1.513753831 | H20: 1.511681904
A21: ASFALTOS DILUÍDOS CM-30 | B21: 2009-11-01 | C21: 1.639348604 | D21: 1.449059777 | E21: 1.772650817 | F21: 1.434122677 | G21: 1.526043188 | H21: 1.499657392
A22: ASFALTOS DILUÍDOS CM-30 | B22: 2009-12-01 | C22: 1.664266853 | D22: 1.441966636 | E22: 1.890574802 | F22: 1.429077727 | G22: 1.520539334 | H22: 1.508864598
A23: ASFALTOS DILUÍDOS CM-30 | B23: 2010-01-01 | C23: 1.842506144 | D23: 1.454977129 | E23: 1.865022447 | F23: 1.414817608 | G23: 1.474450765 | H23: 1.497735227
A24: ASFALTOS DILUÍDOS CM-30 | B24: 2010-02-01 | C24: 1.709886915 | D24: 1.442956487 | E24: 1.919844741 | F24: 1.433146251 | G24: 1.500882448 | H24: 1.496542251
A25: ASFALTOS DILUÍDOS CM-30 | B25: 2010-03-01 | C25: 1.535743416 | D25: 1.448880499 | E25: 1.935062728 | F25: 1.435026116 | G25: 1.480618635 | H25: 1.486789802
A26: ASFALTOS DILUÍDOS CM-30 | B26: 2010-04-01 | C26: 1.710046479 | D26: 1.440300254 | E26: 1.911935961 | F26: 1.421102153 | G26: 1.481270937 | H26: 1.511086431
A27: ASFALTOS DILUÍDOS CM-30 | B27: 2010-05-01 | C27: 1.755610465 | D27: 1.435277221 | E27: 1.873293889 | F27: 1.406944432 | G27: 1.48177605 | H27: 1.537170565
A28: ASFALTOS DILUÍDOS CM-30 | B28: 2010-06-01 | C28: 1.602224314 | D28: 1.396004336 | E28: 1.731734721 | F28: 1.399996227 | G28: 1.49193962 | H28: 1.498073418
A29: ASFALTOS DILUÍDOS CM-30 | B29: 2010-07-01 | C29: 1.559901627 | D29: 1.381016708 | E29: 1.732688214 | F29: 1.402904856 | G29: 1.473854427 | H29: 1.490075269
A30: ASFALTOS DILUÍDOS CM-30 | B30: 2010-08-01 | C30: 1.526639389 | D30: 1.38817836 | E30: 1.738946087 | F30: 1.398751236 | G30: 1.455749849 | H30: 1.495828516
A31: ASFALTOS DILUÍDOS CM-30 | B31: 2010-09-01 | C31: 1.565378829 | D31: 1.408204664 | E31: 1.757027378 | F31: 1.411642875 | G31: 1.487257745 | H31: 1.512257128
A32: ASFALTOS DILUÍDOS CM-30 | B32: 2010-10-01 | C32: 1.481711294 | D32: 1.404357715 | E32: 1.751159947 | F32: 1.403489437 | G32: 1.469340847 | H32: 1.49988826
A33: ASFALTOS DILUÍDOS CM-30 | B33: 2010-11-01 | C33: 1.519267672 | D33: 1.410130904 | E33: 1.779405625 | F33: 1.421283822 | G33: 1.458559112 | H33: 1.481658635
A34: ASFALTOS DILUÍDOS CM-30 | B34: 2010-12-01 | C34: 1.559287556 | D34: 1.40982051 | E34: 1.825185618 | F34: 1.417673572 | G34: 1.473243884 | H34: 1.469113031
A35: ASFALTOS DILUÍDOS CM-30 | B35: 2011-01-01 | C35: 1.525923305 | D35: 1.445794092 | E35: 1.774600924 | F35: 1.403274235 | G35: 1.466002814 | H35: 1.457256066
A36: ASFALTOS DILUÍDOS CM-30 | B36: 2011-02-01 | C36: 1.552825112 | D36: 1.392094259 | E36: 1.763836123 | F36: 1.385194937 | G36: 1.44955884 | H36: 1.426250478
A37: ASFALTOS DILUÍDOS CM-30 | B37: 2011-03-01 | C37: 1.469219693 | D37: 1.369442916 | E37: 1.696017922 | F37: 1.353812804 | G37: 1.435170694 | H37: 1.400130249
A38: ASFALTOS DILUÍDOS CM-30 | B38: 2011-04-01 | C38: 1.470570262 | D38: 1.373220492 | E38: 1.650829394 | F38: 1.345928103 | G38: 1.42199894 | H38: 1.400493522
A39: ASFALTOS DILUÍDOS CM-30 | B39: 2011-05-01 | C39: 1.428528955 | D39: 1.322646267 | E39: 1.700380913 | F39: 1.345068163 | G39: 1.439361431 | H39: 1.428058019
A40: ASFALTOS DILUÍDOS CM-30 | B40: 2011-06-01 | C40: 1.407622163 | D40: 1.305708657 | E40: 1.741843669 | F40: 1.354620495 | G40: 1.399501693 | H40: 1.44029982
A41: ASFALTOS DILUÍDOS CM-30 | B41: 2011-07-01 | C41: 1.259234065 | D41: 1.312033305 | E41: 1.737489696 | F41: 1.33656388 | G41: 1.422474887 | H41: 1.420839252
A42: ASFALTOS DILUÍDOS CM-30 | B42: 2011-08-01 | C42: 1.470680061 | D42: 1.299778765 | E42: 1.727443485 | F42: 1.341477821 | G42: 1.353018352 | H42: 1.425675534
A43: ASFALTOS DILUÍDOS CM-30 | B43: 2011-09-01 | C43: 1.56132872 | D43: 1.321196084 | E43: 1.729821548 | F43: 1.357451483 | G43: 1.395684798 | H43: 1.455202413
A44: ASFALTOS DILUÍDOS CM-30 | B44: 2011-10-01 | C44: 1.520569722 | D44: 1.326218736 | E44: 1.71738046 | F44: 1.332691392 | G44: 1.3577774 | H44: 1.442295871
A45: ASFALTOS DILUÍDOS CM-30 | B45: 2011-11-01 | C45: 1.465886334 | D45: 1.337041154 | E45: 1.741004886 | F45: 1.345486103 | G45: 1.447580565 | H45: 1.445354137
A46: ASFALTOS DILUÍDOS CM-30 | B46: 2011-12-01 | C46: 1.470883899 | D46: 1.335587636 | E46: 1.778724141 | F46: 1.408293068 | G46: 1.428112306 | H46: 1.422418604
A47: ASFALTOS DILUÍDOS CM-30 | B47: 2012-01-01 | C47: 1.384955015 | D47: 1.350130156 | E47: 1.780783883 | F47: 1.421354107 | G47: 1.430352474 | H47: 1.394658167
A48: ASFALTOS DILUÍDOS CM-30 | B48: 2012-02-01 | C48: 1.332181678 | D48: 1.368143891 | E48: 1.741020394 | F48: 1.400200985 | G48: 1.425400986 | H48: 1.410605707
A49: ASFALTOS DILUÍDOS CM-30 | B49: 2012-03-01 | C49: 1.411621867 | D49: 1.349122214 | E49: 1.620096006 | F49: 1.393295764 | G49: 1.406130569 | H49: 1.409768786
A50: ASFALTOS DILUÍDOS CM-30 | B50: 2012-04-01 | C50: 1.549007912 | D50: 1.383976456 | E50: 1.640712752 | F50: 1.404716397 | G50: 1.440617793 | H50: 1.45608482
A51: ASFALTOS DILUÍDOS CM-30 | B51: 2012-05-01 | C51: 1.596178941 | D51: 1.386362272 | E51: 1.712061183 | F51: 1.39923955 | G51: 1.448350887 | H51: 1.498461969
A52: ASFALTOS DILUÍDOS CM-30 | B52: 2012-06-01 | C52: 1.701432576 | D52: 1.388053518 | E52: 1.740352007 | F52: 1.422118749 | G52: 1.449196072 | H52: 1.527722717
A53: ASFALTOS DILUÍDOS CM-30 | B53: 2012-07-01 | C53: 1.652026742 | D53: 1.39436857 | E53: 1.718644846 | F53: 1.439670261 | G53: 1.46187567 | H53: 1.523069159
A54: ASFALTOS DILUÍDOS CM-30 | B54: 2012-08-01 | C54: 1.689998835 | D54: 1.40333785 | E54: 1.741895041 | F54: 1.421723369 | G54: 1.445685799 | H54: 1.536533078
A55: ASFALTOS DILUÍDOS CM-30 | B55: 2012-09-01 | C55: 1.690177972 | D55: 1.421500003 | E55: 1.780920724 | F55: 1.445180432 | G55: 1.483645866 | H55: 1.549410653
A56: ASFALTOS DILUÍDOS CM-30 | B56: 2012-10-01 | C56: 1.574840342 | D56: 1.417066109 | E56: 1.794832036 | F56: 1.451304526 | G56: 1.482037109 | H56: 1.550631802
A57: ASFALTOS DILUÍDOS CM-30 | B57: 2012-11-01 | C57: 1.655163526 | D57: 1.455878748 | E57: 1.840129766 | F57: 1.461204615 | G57: 1.483499722 | H57: 1.552500776
A58: ASFALTOS DILUÍDOS CM-30 | B58: 2012-12-01 | C58: 1.714876125 | D58: 1.435854741 | E58: 1.804066573 | F58: 1.45222765 | G58: 1.509417648 | H58: 1.523411999
A59: ASFALTOS DILUÍDOS CM-30 | B59: 2013-01-01 | C59: 1.495776335 | D59: 1.449494588 | E59: 1.854050525 | F59: 1.44638752 | G59: 1.563753675 | H59: 1.502137259
A60: ASFALTOS DILUÍDOS CM-30 | B60: 2013-02-01 | C60: 1.635067666 | D60: 1.420609638 | E60: 1.731071498 | F60: 1.442746356 | G60: 1.461828405 | H60: 1.4739561
A61: ASFALTOS DILUÍDOS CM-30 | B61: 2013-03-01 | C61: 1.646229098 | D61: 1.413299983 | E61: 1.83828087 | F61: 1.450015152 | G61: 1.525760413 | H61: 1.506542904
A62: ASFALTOS DILUÍDOS CM-30 | B62: 2013-04-01 | C62: 1.581864474 | D62: 1.399189564 | E62: 1.793825113 | F62: 1.458704755 | G62: 1.551913702 | H62: 1.523623636
A63: ASFALTOS DILUÍDOS CM-30 | B63: 2013-05-01 | C63: 1.815646773 | D63: 1.390143517 | E63: 1.812783313 | F63: 1.44951052 | G63: 1.504233457 | H63: 1.549918592
A64: ASFALTOS DILUÍDOS CM-30 | B64: 2013-06-01 | C64: 1.631101583 | D64: 1.383186536 | E64: 1.816642105 | F64: 1.474232641 | G64: 1.503043689 | H64: 1.581049429
A65: ASFALTOS DILUÍDOS CM-30 | B65: 2013-07-01 | C65: 1.86596563 | D65: 1.422051117 | E65: 1.793072753 | F65: 1.498018808 | G65: 1.533391901 | H65: 1.59880513
A66: ASFALTOS DILUÍDOS CM-30 | B66: 2013-08-01 | C66: 1.700325546 | D66: 1.435094415 | E66: 1.821452614 | F66: 1.511722868 | G66: 1.530793596 | H66: 1.606176585
A67: ASFALTOS DILUÍDOS CM-30 | B67: 2013-09-01 | C67: 1.562873733 | D67: 1.472197748 | E67: 1.879842712 | F67: 1.542652867 | G67: 1.490667543 | H67: 1.627945893
A68: ASFALTOS DILUÍDOS CM-30 | B68: 2013-10-01 | C68: 1.648504013 | D68: 1.472152345 | E68: 1.825494997 | F68: 1.501177682 | G68: 1.48378912 | H68: 1.597538775
A69: ASFALTOS DILUÍDOS CM-30 | B69: 2013-11-01 | C69: 1.619179062 | D69: 1.486413317 | E69: 1.844012679 | F69: 1.496326809 | G69: 1.506096878 | H69: 1.581665844
A70: ASFALTOS DILUÍDOS CM-30 | B70: 2013-12-01 | C70: 1.633358293 | D70: 1.494818097 | E70: 1.897197176 | F70: 1.502864538 | G70: 1.517074296 | H70: 1.572475244
A71: ASFALTOS DILUÍDOS CM-30 | B71: 2014-01-01 | C71: 1.688311265 | D71: 1.494181305 | E71: 1.798355903 | F71: 1.484202293 | G71: 1.533353813 | H71: 1.542909737
A72: ASFALTOS DILUÍDOS CM-30 | B72: 2014-02-01 | C72: 1.598304434 | D72: 1.479706587 | E72: 1.814390215 | F72: 1.514829392 | G72: 1.522800588 | H72: 1.528970287
A73: ASFALTOS DILUÍDOS CM-30 | B73: 2014-03-01 | C73: 1.648287687 | D73: 1.472852501 | E73: 1.76657319 | F73: 1.513020673 | G73: 1.506185248 | H73: 1.530181178
A74: ASFALTOS DILUÍDOS CM-30 | B74: 2014-04-01 | C74: 1.534459987 | D74: 1.493898767 | E74: 1.757271278 | F74: 1.533021309 | G74: 1.524275274 | H74: 1.550566305
A75: ASFALTOS DILUÍDOS CM-30 | B75: 2014-05-01 | C75: 1.58658327 | D75: 1.490834685 | E75: 1.804339251 | F75: 1.501138131 | G75: 1.567043824 | H75: 1.586452272
A76: ASFALTOS DILUÍDOS CM-30 | B76: 2014-06-01 | C76: 1.658277164 | D76: 1.505801121 | E76: 1.839593445 | F76: 1.5068632 | G76: 1.523776953 | H76: 1.636070702
A77: ASFALTOS DILUÍDOS CM-30 | B77: 2014-07-01 | C77: 1.890299542 | D77: 1.500730514 | E77: 1.708277865 | F77: 1.487293964 | G77: 1.505956069 | H77: 1.587065158
A78: ASFALTOS DILUÍDOS CM-30 | B78: 2014-08-01 | C78: 1.632741832 | D78: 1.501945324 | E78: 1.671203189 | F78: 1.482359341 | G78: 1.506327366 | H78: 1.557910377
A79: ASFALTOS DILUÍDOS CM-30 | B79: 2014-09-01 | C79: 1.66956717 | D79: 1.546830427 | E79: 1.864797016 | F79: 1.496764585 | G79: 1.570533242 | H79: 1.639281057
A80: ASFALTOS DILUÍDOS CM-30 | B80: 2014-10-01 | C80: 1.742876916 | D80: 1.508978569 | E80: 1.746650466 | F80: 1.470773645 | G80: 1.454273462 | H80: 1.57912022
A81: ASFALTOS DILUÍDOS CM-30 | B81: 2014-11-01 | C81: 1.864723419 | D81: 1.57943059 | E81: 1.749156218 | F81: 1.465084479 | G81: 1.529147988 | H81: 1.601359821
A82: ASFALTOS DILUÍDOS CM-30 | B82: 2014-12-01 | C82: 1.812671914 | D82: 1.704844348 | E82: 1.963310066 | F82: 1.623676702 | G82: 1.649644659 | H82: 1.718826981
A83: ASFALTOS DILUÍDOS CM-30 | B83: 2015-01-01 | C83: 2.154807062 | D83: 2.023760447 | E83: 2.318863736 | F83: 1.866588967 | G83: 1.898380434 | H83: 2.007792032
A84: ASFALTOS DILUÍDOS CM-30 | B84: 2015-02-01 | C84: 2.260238625 | D84: 2.005673765 | E84: 2.393875762 | F84: 1.854519766 | G84: 1.927395107 | H84: 2.007653781
A85: ASFALTOS DILUÍDOS CM-30 | B85: 2015-03-01 | C85: 2.124176462 | D85: 1.968822849 | E85: 2.279643254 | F85: 1.887760911 | G85: 1.930217145 | H85: 1.984816916
A86: ASFALTOS DILUÍDOS CM-30 | B86: 2015-04-01 | C86: 2.030049505 | D86: 2.001506448 | E86: 2.379118903 | F86: 1.85245167 | G86: 1.949025254 | H86: 1.98064321
A87: ASFALTOS DILUÍDOS CM-30 | B87: 2015-05-01 | C87: 2.507271651 | D87: 1.946869908 | E87: 2.254758192 | F87: 1.807470001 | G87: 2.016929536 | H87: 2.005474234
A88: ASFALTOS DILUÍDOS CM-30 | B88: 2015-06-01 | C88: 2.248320042 | D88: 1.944259736 | E88: 2.314331796 | F88: 1.846998595 | G88: 1.968565125 | H88: 2.042581344
A89: ASFALTOS DILUÍDOS CM-30 | B89: 2015-07-01 | C89: 1.992222758 | D89: 1.992791635 | E89: 2.046769953 | F89: 1.782648603 | G89: 1.931671385 | H89: 1.942627362
A90: ASFALTOS DILUÍDOS CM-30 | B90: 2015-08-01 | C90: 2.307605931 | D90: 2.038089127 | E90: 2.252748105 | F90: 1.828097705 | G90: 1.939824481 | H90: 2.08193616
A91: ASFALTOS DILUÍDOS CM-30 | B91: 2015-09-01 | C91: 2.314289704 | D91: 2.095307531 | E91: 2.344561987 | F91: 1.942551091 | G91: 2.005352614 | H91: 2.168175541
A92: ASFALTOS DILUÍDOS CM-30 | B92: 2015-10-01 | C92: 2.329456663 | D92: 2.170570012 | E92: 2.43273012 | F92: 2.035624751 | G92: 2.110261148 | H92: 2.237533782
A93: ASFALTOS DILUÍDOS CM-30 | B93: 2015-11-01 | C93: 2.606056566 | D93: 2.437098304 | E93: 2.711612141 | F93: 2.280113896 | G93: 2.326446297 | H93: 2.474998781
A94: ASFALTOS DILUÍDOS CM-30 | B94: 2015-12-01 | C94: 2.635374006 | D94: 2.395920309 | E94: 2.693528386 | F94: 2.272528129 | G94: 2.330740659 | H94: 2.452848156
A95: ASFALTOS DILUÍDOS CM-30 | B95: 2016-01-01 | C95: 2.715863993 | D95: 2.373861647 | E95: 2.844670602 | F95: 2.263650658 | G95: 2.232631691 | H95: 2.400563394
A96: ASFALTOS DILUÍDOS CM-30 | B96: 2016-02-01 | C96: 2.80468316 | D96: 2.466846816 | E96: 2.791787007 | F96: 2.295637115 | G96: 2.346556173 | H96: 2.464348548
A97: ASFALTOS DILUÍDOS CM-30 | B97: 2016-03-01 | C97: 2.5805021 | D97: 2.470678753 | E97: 2.707688025 | F97: 2.235301999 | G97: 2.383115972 | H97: 2.423563924
A98: ASFALTOS DILUÍDOS CM-30 | B98: 2016-04-01 | C98: 2.942006312 | D98: 2.740742032 | E98: 2.759071855 | F98: 2.544439178 | G98: 2.710751632 | H98: 2.680274833
A99: ASFALTOS DILUÍDOS CM-30 | B99: 2016-05-01 | C99: 3.010579472 | D99: 2.650277047 | E99: 2.857121361 | F99: 2.575583152 | G99: 2.770413362 | H99: 2.70973327
A100: ASFALTOS DILUÍDOS CM-30 | B100: 2016-06-01 | C100: 2.909179844 | D100: 2.621385041 | E100: 2.943487281 | F100: 2.659109515 | G100: 2.684759555 | H100: 2.743619517
A101: ASFALTOS DILUÍDOS CM-30 | B101: 2016-07-01 | C101: 2.985740381 | D101: 2.591644045 | E101: 2.98927803 | F101: 2.604396599 | G101: 2.660884423 | H101: 2.745135539
A102: ASFALTOS DILUÍDOS CM-30 | B102: 2016-08-01 | C102: 2.935243919 | D102: 2.623917329 | E102: 2.970490854 | F102: 2.679486504 | G102: 2.727025649 | H102: 2.781385962
A103: ASFALTOS DILUÍDOS CM-30 | B103: 2016-09-01 | C103: 2.649136821 | D103: 2.521054851 | E103: 2.781583925 | F103: 2.51393313 | G103: 2.371271501 | H103: 2.595617128
A104: ASFALTOS DILUÍDOS CM-30 | B104: 2016-10-01 | C104: 2.626109257 | D104: 2.444469093 | E104: 2.781617873 | F104: 2.507383127 | G104: 2.38325399 | H104: 2.566999037
A105: ASFALTOS DILUÍDOS CM-30 | B105: 2016-11-01 | C105: 2.535087408 | D105: 2.374145527 | E105: 2.952768674 | F105: 2.481263765 | G105: 2.382206771 | H105: 2.542842366
A106: ASFALTOS DILUÍDOS CM-30 | B106: 2016-12-01 | C106: 2.50039107 | D106: 2.253413483 | E106: 3.038519458 | F106: 2.589438892 | G106: 2.395593424 | H106: 2.476439295
A107: ASFALTOS DILUÍDOS CM-30 | B107: 2017-01-01 | C107: 2.392875504 | D107: 2.232695674 | E107: 3.089080971 | F107: 2.535744039 | G107: 2.378694833 | H107: 2.374216192
A108: ASFALTOS DILUÍDOS CM-30 | B108: 2017-02-01 | C108: 2.68039414 | D108: 2.271897225 | E108: 2.764408032 | F108: 2.573933685 | G108: 2.384644398 | H108: 2.470721466
A109: ASFALTOS DILUÍDOS CM-30 | B109: 2017-03-01 | C109: 2.23884121 | D109: 2.386958079 | E109: 2.667220252 | F109: 2.372165947 | G109: 2.30121887 | H109: 2.378796986
A110: ASFALTOS DILUÍDOS CM-30 | B110: 2017-04-01 | C110: 2.420191398 | D110: 2.307969596 | E110: 2.794093014 | F110: 2.258409912 | G110: 2.256434297 | H110: 2.380268484
A111: ASFALTOS DILUÍDOS CM-30 | B111: 2017-05-01 | C111: 2.432106692 | D111: 2.167919128 | E111: 2.699836936 | F111: 2.255387192 | G111: 2.204026958 | H111: 2.361515909
A112: ASFALTOS DILUÍDOS CM-30 | B112: 2017-06-01 | C112: 2.428301776 | D112: 2.181938689 | E112: 2.756672055 | F112: 2.234549022 | G112: 2.305778546 | H112: 2.44553453
A113: ASFALTOS DILUÍDOS CM-30 | B113: 2017-07-01 | C113: 2.453752061 | D113: 2.218075334 | E113: 2.694625022 | F113: 2.414329247 | G113: 2.269601102 | H113: 2.473436106
A114: ASFALTOS DILUÍDOS CM-30 | B114: 2017-08-01 | C114: 2.447930976 | D114: 2.153112031 | E114: 2.595349952 | F114: 2.302919065 | G114: 2.170148667 | H114: 2.380876423
A115: ASFALTOS DILUÍDOS CM-30 | B115: 2017-09-01 | C115: 2.494551504 | D115: 2.14243989 | E115: 2.623166503 | F115: 2.371308095 | G115: 2.303698507 | H115: 2.393542204
A116: ASFALTOS DILUÍDOS CM-30 | B116: 2017-10-01 | C116: 2.349953944 | D116: 2.18056004 | E116: 2.614160957 | F116: 2.415254962 | G116: 2.20079573 | H116: 2.367947121
A117: ASFALTOS DILUÍDOS CM-30 | B117: 2017-11-01 | C117: 2.670126991 | D117: 2.433169195 | E117: 2.908627464 | F117: 2.58469482 | G117: 2.415192709 | H117: 2.602101348
A118: ASFALTOS DILUÍDOS CM-30 | B118: 2017-12-01 | C118: 2.587352645 | D118: 2.425358882 | E118: 2.906633765 | F118: 2.602890298 | G118: 2.42288976 | H118: 2.531764464
A119: ASFALTOS DILUÍDOS CM-30 | B119: 2018-01-01 | C119: 2.950360755 | D119: 2.662862923 | E119: 2.875953993 | F119: 2.620738484 | G119: 2.646955252 | H119: 2.735956369
A120: ASFALTOS DILUÍDOS CM-30 | B120: 2018-02-01 | C120: 2.677899567 | D120: 2.672498164 | E120: 2.942595474 | F120: 2.62043113 | G120: 2.567885662 | H120: 2.668369933
A121: ASFALTOS DILUÍDOS CM-30 | B121: 2018-03-01 | C121: 2.733363025 | D121: 2.589050022 | E121: 2.809172556 | F121: 2.561928393 | G121: 2.575946067 | H121: 2.634876584
A122: ASFALTOS DILUÍDOS CM-30 | B122: 2018-04-01 | C122: 2.75780112 | D122: 2.669553602 | E122: 2.773908242 | F122: 2.59547006 | G122: 2.556042394 | H122: 2.6643302
A123: ASFALTOS DILUÍDOS CM-30 | B123: 2018-05-01 | C123: 2.841213362 | D123: 2.672025877 | E123: 2.884501482 | F123: 2.686718021 | G123: 2.736485103 | H123: 2.77737896
A124: ASFALTOS DILUÍDOS CM-30 | B124: 2018-06-01 | C124: 3.008444789 | D124: 2.919605178 | E124: 3.158454886 | F124: 2.84673108 | G124: 2.953523993 | H124: 2.982291635
A125: ASFALTOS DILUÍDOS CM-30 | B125: 2018-07-01 | C125: 3.268237549 | D125: 3.036524094 | E125: 3.399360399 | F125: 3.026467598 | G125: 3.19779631 | H125: 3.164126546
A126: ASFALTOS DILUÍDOS CM-30 | B126: 2018-08-01 | C126: 3.56441315 | D126: 3.415193769 | E126: 3.707706206 | F126: 3.425079349 | G126: 3.356722461 | H126: 3.515558112
A127: ASFALTOS DILUÍDOS CM-30 | B127: 2018-09-01 | C127: 3.173913778 | D127: 3.445064118 | E127: 3.73526324 | F127: 3.385816186 | G127: 3.607309454 | H127: 3.483238429
A128: ASFALTOS DILUÍDOS CM-30 | B128: 2018-10-01 | C128: 3.487778119 | D128: 3.460508804 | E128: 3.721444057 | F128: 3.432525565 | G128: 3.60602088 | H128: 3.545390344
A129: ASFALTOS DILUÍDOS CM-30 | B129: 2018-11-01 | C129: 4.047272484 | D129: 3.814893312 | E129: 4.280131586 | F129: 4.178126777 | G129: 3.967681367 | H129: 3.990147183
A130: ASFALTOS DILUÍDOS CM-30 | B130: 2018-12-01 | C130: 3.951491146 | D130: 3.967113195 | E130: 4.341144202 | F130: 3.916766066 | G130: 3.911993357 | H130: 3.999742654
A131: ASFALTOS DILUÍDOS CM-30 | B131: 2019-01-01 | C131: 3.796855325 | D131: 3.870018889 | E131: 4.201901762 | F131: 3.954196997 | G131: 3.976786028 | H131: 3.933951911
A132: ASFALTOS DILUÍDOS CM-30 | B132: 2019-02-01 | C132: 3.516584073 | D132: 4.090361178 | E132: 4.498422953 | F132: 4.469942475 | G132: 4.254590254 | H132: 4.188544679
A133: ASFALTOS DILUÍDOS CM-30 | B133: 2019-03-01 | C133: 4.216758117 | D133: 4.361910728 | E133: 4.907194889 | F133: 4.398717729 | G133: 4.290823922 | H133: 4.360295279
A134: ASFALTOS DILUÍDOS CM-30 | B134: 2019-04-01 | C134: 4.281648205 | D134: 4.234661428 | E134: 4.531627215 | F134: 4.43722653 | G134: 4.466881471 | H134: 4.38082044
A135: ASFALTOS DILUÍDOS CM-30 | B135: 2019-05-01 | C135: 4.287644659 | D135: 4.190699738 | E135: 4.857910872 | F135: 4.267461963 | G135: 4.633806379 | H135: 4.366402151
A136: ASFALTOS DILUÍDOS CM-30 | B136: 2019-06-01 | C136: 4.475609892 | D136: 3.965052934 | E136: 4.66272934 | F136: 4.350600604 | G136: 4.211229921 | H136: 4.319323669
A137: ASFALTOS DILUÍDOS CM-30 | B137: 2019-07-01 | C137: 4.394498989 | D137: 4.058039305 | E137: 4.834221945 | F137: 4.094659414 | G137: 4.233003281 | H137: 4.346977757
A138: ASFALTOS DILUÍDOS CM-30 | B138: 2019-08-01 | C138: 4.48173504 | D138: 3.910662496 | E138: 4.576329081 | F138: 4.11161654 | G138: 4.255419985 | H138: 4.258345083
A139: ASFALTOS DILUÍDOS CM-30 | B139: 2019-09-01 | C139: 4.439578796 | D139: 3.859904896 | E139: 4.495256968 | F139: 4.111321475 | G139: 4.117359152 | H139: 4.251607085
A140: ASFALTOS DILUÍDOS CM-30 | B140: 2019-10-01 | C140: 4.335888631 | D140: 3.772324962 | E140: 4.459242357 | F140: 4.056084115 | G140: 3.942458011 | H140: 4.07740702
A141: ASFALTOS DILUÍDOS CM-30 | B141: 2019-11-01 | C141: 4.316238692 | D141: 3.910245509 | E141: 4.581841077 | F141: 4.07902404 | G141: 4.106621274 | H141: 4.094561212
A142: ASFALTOS DILUÍDOS CM-30 | B142: 2019-12-01 | C142: 4.199435972 | D142: 3.980119663 | E142: 4.673774805 | F142: 4.434268142 | G142: 3.986410312 | H142: 4.164691616
A143: ASFALTOS DILUÍDOS CM-30 | B143: 2020-01-01 | C143: 3.59298003 | D143: 3.895320617 | E143: 4.685420623 | F143: 4.387074674 | G143: 4.124467668 | H143: 4.053338937
A144: ASFALTOS DILUÍDOS CM-30 | B144: 2020-02-01 | C144: 3.642667016 | D144: 3.877395187 | E144: 4.438194543 | F144: 3.699944607 | G144: 3.778164011 | H144: 3.839010438
A145: ASFALTOS DILUÍDOS CM-30 | B145: 2020-03-01 | C145: 4.676668339 | D145: 3.791138977 | E145: 4.289222343 | F145: 3.718402734 | G145: 3.60908619 | H145: 3.93117068
A146: ASFALTOS DILUÍDOS CM-30 | B146: 2020-04-01 | C146: 4.313362837 | D146: 3.6957655 | E146: 4.255395321 | F146: 3.865895531 | G146: 3.732253382 | H146: 3.964125211
A147: ASFALTOS DILUÍDOS CM-30 | B147: 2020-05-01 | C147: 3.249134658 | D147: 3.637769912 | E147: 4.113544882 | F147: 3.760550026 | G147: 3.710618099 | H147: 3.65617504
A148: ASFALTOS DILUÍDOS CM-30 | B148: 2020-06-01 | C148: 4.017903076 | D148: 3.567031492 | E148: 4.277369171 | F148: 3.937886485 | G148: 3.625830069 | H148: 3.924524506
A149: ASFALTOS DILUÍDOS CM-30 | B149: 2020-07-01 | C149: 3.840497509 | D149: 3.51327048 | E149: 4.21549069 | F149: 3.954223886 | G149: 3.688841275 | H149: 3.843774448
A150: ASFALTOS DILUÍDOS CM-30 | B150: 2020-08-01 | C150: 4.174467203 | D150: 3.465394219 | E150: 4.277710211 | F150: 4.06746494 | G150: 3.62858863 | H150: 3.947166917
A151: ASFALTOS DILUÍDOS CM-30 | B151: 2020-09-01 | C151: 4.167371331 | D151: 3.746360816 | E151: 4.167424356 | F151: 3.795621791 | G151: 3.627729935 | H151: 3.973129945
A152: ASFALTOS DILUÍDOS CM-30 | B152: 2020-10-01 | C152: 4.408099527 | D152: 3.718989878 | E152: 4.278979192 | F152: 4.008746906 | G152: 3.591048183 | H152: 4.03964377
A153: ASFALTOS DILUÍDOS CM-30 | B153: 2020-11-01 | C153: 4.056306006 | D153: 3.969209281 | E153: 4.547900893 | F153: 4.27945542 | G153: 3.973347244 | H153: 4.175826149
A154: ASFALTOS DILUÍDOS CM-30 | B154: 2020-12-01 | C154: 4.132064138 | D154: 3.851632751 | E154: 4.426704386 | F154: 3.906236422 | G154: 3.8709398 | H154: 4.035347374
A155: ASFALTOS DILUÍDOS CM-30 | B155: 2021-01-01 | C155: 3.489836333 | D155: 3.951525937 | E155: 4.628269702 | F155: 4.011577011 | G155: 3.935136638 | H155: 3.917092391
A156: ASFALTOS DILUÍDOS CM-30 | B156: 2021-02-01 | C156: 4.099318116 | D156: 4.267109523 | E156: 4.832061615 | F156: 4.414202706 | G156: 4.149048932 | H156: 4.26819704
A157: ASFALTOS DILUÍDOS CM-30 | B157: 2021-03-01 | C157: 4.528355792 | D157: 4.239831731 | E157: 4.926314562 | F157: 4.269697839 | G157: 4.130655409 | H157: 4.377833785
A158: ASFALTOS DILUÍDOS CM-30 | B158: 2021-04-01 | C158: 4.349271867 | D158: 4.086995154 | E158: 4.477597522 | F158: 4.156113398 | G158: 4.044189822 | H158: 4.253361798
A159: ASFALTOS DILUÍDOS CM-30 | B159: 2021-05-01 | C159: 4.488889413 | D159: 4.707945815 | E159: 5.101489686 | F159: 4.784034896 | G159: 4.523986615 | H159: 4.790548085
A160: ASFALTOS DILUÍDOS CM-30 | B160: 2021-06-01 | C160: 4.010467711 | D160: 4.479592126 | E160: 5.113041212 | F160: 4.779739905 | G160: 4.721214307 | H160: 4.764890884
A161: ASFALTOS DILUÍDOS CM-30 | B161: 2021-07-01 | C161: 4.752234128 | D161: 4.559350506 | E161: 5.004758283 | F161: 4.80272972 | G161: 4.748550678 | H161: 4.817586047
A162: ASFALTOS DILUÍDOS CM-30 | B162: 2021-08-01 | C162: 5.085284532 | D162: 4.772501255 | E162: 5.198537142 | F162: 5.244735259 | G162: 4.76131175 | H162: 5.0981692
A163: ASFALTOS DILUÍDOS CM-30 | B163: 2021-09-01 | C163: 5.110300267 | D163: 4.538072365 | E163: 5.241721185 | F163: 5.017144197 | G163: 4.862861245 | H163: 5.016958886
A164: ASFALTOS DILUÍDOS CM-30 | B164: 2021-10-01 | C164: 5.080697261 | D164: 4.66826742 | E164: 5.119544199 | F164: 5.384779065 | G164: 4.658516432 | H164: 5.021294312
A165: ASFALTOS DILUÍDOS CM-30 | B165: 2021-11-01 | C165: 5.436518753 | D165: 5.08776781 | E165: 5.150063985 | F165: 5.634257884 | G165: 5.174530131 | H165: 5.228141289
A166: ASFALTOS DILUÍDOS CM-30 | B166: 2021-12-01 | C166: 5.184291386 | D166: 4.975486975 | E166: 5.572122251 | F166: 6.135655205 | G166: 5.01180992 | H166: 5.339565801
A167: ASFALTOS DILUÍDOS CM-30 | B167: 2022-01-01 | C167: 4.928191974 | D167: 5.023555623 | E167: 6.018407512 | F167: 5.214773026 | G167: 5.481979244 | H167: 5.250789679
A168: ASFALTOS DILUÍDOS CM-30 | B168: 2022-02-01 | C168: 5.545684189 | D168: 5.708628413 | E168: 6.011065894 | F168: 4.8651 | G168: 5.763367147 | H168: 5.736057428
A169: ASFALTOS DILUÍDOS CM-30 | B169: 2022-03-01 | C169: 6.326844735 | D169: 5.644687904 | E169: 5.930807225 | F169: 6.181141143 | G169: 5.498041682 | H169: 5.922781038
A170: ASFALTOS DILUÍDOS CM-30 | B170: 2022-04-01 | C170: 5.974220681 | D170: 5.832747324 | E170: 6.206692615 | F170: 5.720329997 | G170: 6.17800291 | H170: 6.012354229
A171: ASFALTOS DILUÍDOS CM-30 | B171: 2022-05-01 | C171: 5.354015586 | D171: 5.464335309 | E171: 6.007611639 | F171: 5.995095583 | G171: 5.49095009 | H171: 5.670722744
A172: ASFALTOS DILUÍDOS CM-30 | B172: 2022-06-01 | C172: 5.802443798 | D172: 5.316964203 | E172: 5.25267889 | F172: 5.813931518 | G172: 5.644996328 | H172: 5.469498687
A173: ASFALTOS DILUÍDOS CM-30 | B173: 2022-07-01 | C173: 5.965614765 | D173: 5.829314879 | E173: 5.919099711 | F173: 5.742484775 | G173: 5.674430543 | H173: 5.862020702
A174: ASFALTOS DILUÍDOS CM-30 | B174: 2022-08-01 | C174: 6.424230463 | D174: 5.758256878 | E174: 5.752352843 | F174: 5.791905352 | G174: 5.31271724 | H174: 5.823186051
A175: ASFALTOS DILUÍDOS CM-30 | B175: 2022-09-01 | C175: 5.540097074 | D175: 5.609921619 | E175: 5.963592489 | F175: 5.302181194 | G175: 4.977929161 | H175: 5.699429921
A176: ASFALTOS DILUÍDOS CM-30 | B176: 2022-10-01 | C176: 4.785670999 | D176: 4.727521094 | E176: 5.339105147 | F176: 4.851160007 | G176: 4.532580513 | H176: 5.041661715
A177: ASFALTOS DILUÍDOS CM-30 | B177: 2022-11-01 | C177: 7.765855923 | D177: 4.775654982 | E177: 5.237626127 | F177: 4.636383138 | G177: 4.460593179 | H177: 5.074993862
A178: ASFALTOS DILUÍDOS CM-30 | B178: 2022-12-01 | C178: 4.65725 | D178: 4.966905362 | E178: 5.655161554 | F178: 4.840935672 | G178: 4.661007861 | H178: 5.11324949
A179: ASFALTOS DILUÍDOS CM-30 | B179: 2023-01-01 | C179: 4.948950319 | D179: 5.056264922 | E179: 5.359597966 | F179: 4.426497959 | G179: 4.103267888 | H179: 4.715605129
A180: ASFALTOS DILUÍDOS CM-30 | B180: 2023-02-01 | C180: 5.407494667 | D180: 4.335771195 | E180: 4.746646601 | F180: 4.674884727 | G180: 4.014547173 | H180: 4.417800736
A181: ASFALTOS DILUÍDOS CM-30 | B181: 2023-03-01 | C181: 4.99131 | D181: 4.01354912 | E181: 4.74625028 | F181: 4.08071937 | G181: 4.082484954 | H181: 4.270345723
A182: ASFALTOS DILUÍDOS CM-30 | B182: 2023-04-01 | C182: 4.438479015 | D182: 4.094201354 | E182: 5.135816186 | F182: 4.368265095 | G182: 3.859308149 | H182: 4.153818797
A183: ASFALTOS DILUÍDOS CM-30 | B183: 2023-05-01 | C183: 5.018589297 | D183: 4.506282643 | E183: 5.616638293 | F183: 4.034756925 | G183: 4.063701717 | H183: 4.686492725
A184: ASFALTOS DILUÍDOS CM-30 | B184: 2023-06-01 | C184: 4.439644526 | D184: 4.495805354 | E184: 5.228174524 | F184: 3.772028745 | G184: 4.009042073 | H184: 4.588045148
A185: ASFALTOS DILUÍDOS CM-30 | B185: 2023-07-01 | C185: 4.360399352 | D185: 4.250187634 | E185: 6.188049155 | F185: 3.699216781 | G185: 4.315773768 | H185: 4.790717553
A186: ASFALTOS DILUÍDOS CM-30 | B186: 2023-08-01 | C186: 4.043215999 | D186: 4.100901709 | E186: 5.414198228 | F186: 3.964297949 | G186: 4.055989778 | H186: 4.607810697
A187: ASFALTOS DILUÍDOS CM-30 | B187: 2023-09-01 | C187: 5.69501625 | D187: 4.358586276 | E187: 5.187252517 | F187: 4.112508656 | G187: 4.211646236 | H187: 4.748640211
A188: ASFALTOS DILUÍDOS CM-30 | B188: 2023-10-01 | C188: 5.685185 | D188: 4.294075647 | E188: 4.912919476 | F188: 4.365095101 | G188: 4.257370162 | H188: 4.609445905
A189: ASFALTOS DILUÍDOS CM-30 | B189: 2023-11-01 | C189: 4.815085397 | D189: 4.345599447 | E189: 5.404502747 | F189: 4.045271104 | G189: 4.164697405 | H189: 4.781498943
A190: ASFALTOS DILUÍDOS CM-30 | B190: 2023-12-01 | C190: 5.411492308 | D190: 4.700043896 | E190: 5.306415734 | F190: 4.313216862 | G190: 4.188732062 | H190: 4.664845353
A191: ASFALTOS DILUÍDOS CM-30 | B191: 2024-01-01 | C191: 3.716178391 | D191: 4.395163811 | E191: 4.888126947 | F191: 3.977196797 | G191: 4.057095331 | H191: 4.290228903
A192: ASFALTOS DILUÍDOS CM-30 | B192: 2024-02-01 | C192: 5.349588571 | D192: 4.281881871 | E192: 5.36118056 | F192: 4.287786155 | G192: 4.151112946 | H192: 4.366194996
A193: ASFALTOS DILUÍDOS CM-30 | B193: 2024-03-01 | C193: 6.437624165 | D193: 4.512948358 | E193: 4.994035932 | F193: 4.680610304 | G193: 4.197388123 | H193: 4.725137967
A194: ASFALTOS DILUÍDOS CM-30 | B194: 2024-04-01 | C194: 6.524010018 | D194: 5.333668875 | E194: 5.011370357 | F194: 3.991999626 | G194: 4.15116124 | H194: 4.439406986
A195: ASFALTOS DILUÍDOS CM-30 | B195: 2024-05-01 | C195: 6.61993633 | D195: *** | E195: 5.21538288 | F195: 4.24855796 | G195: 4.478170767 | H195: 4.960078568
A196: ASFALTOS DILUÍDOS CM-30 | B196: 2024-06-01 | C196: 6.461820806 | D196: 4.288169263 | E196: 4.921606124 | F196: 4.517339741 | G196: 4.897585787 | H196: 4.922850803
A197: ASFALTOS DILUÍDOS CM-30 | B197: 2024-07-01 | C197: 6.120612239 | D197: 4.599255433 | E197: 5.497451069 | F197: 4.667838533 | G197: 4.514452653 | H197: 4.962740397
A198: ASFALTOS DILUÍDOS CM-30 | B198: 2024-08-01 | C198: 4.993225349 | D198: 4.428025283 | E198: 5.661947528 | F198: 4.958688154 | G198: 4.60903985 | H198: 5.143625042
A199: ASFALTOS DILUÍDOS CM-30 | B199: 2024-09-01 | C199: 6.554494856 | D199: 4.508326987 | E199: 5.819155159 | F199: 5.012107159 | G199: 4.596016256 | H199: 5.205694528
A200: ASFALTOS DILUÍDOS CM-30 | B200: 2024-10-01 | C200: 4.99217156 | D200: 4.867223371 | E200: 5.762705278 | F200: 4.908511444 | G200: 4.687758332 | H200: 5.077992426
A201: ASFALTOS DILUÍDOS CM-30 | B201: 2024-11-01 | C201: 6.103818377 | D201: 4.655198914 | E201: 5.505517561 | F201: 4.665170771 | G201: 4.558090866 | H201: 4.839804883
A202: ASFALTOS DILUÍDOS CM-30 | B202: 2024-12-01 | C202: 5.653116406 | D202: 4.621474651 | E202: 5.960894123 | F202: 4.849592977 | G202: 4.601260181 | H202: 4.838978355
A203: ASFALTOS DILUÍDOS CM-30 | B203: 2025-01-01 | C203: 6.087525 | D203: 5.336506141 | E203: 5.738529982 | F203: 5.60387 | G203: 4.653549092 | H203: 4.948881966
A204: ASFALTOS DILUÍDOS CM-30 | B204: 2025-02-01 | C204: 4.577817305 | D204: 4.987171059 | E204: 5.962615967 | F204: 5.074821011 | G204: 4.766997534 | H204: 4.911084425
... 4870 more rows

Sheet Material Sicro (hidden)
A1: CGCIT | B1: SISTEMA DE CUSTOS REFERENCIAIS DE OBRAS - SICRO | D1: DNIT
B2: Ceará - Abril/2025
A3: Código | B3: Descrição | C3: Unidade | D3: Preço Unitário (R$)
A4: M0003 | B4: Aço CA 25 | C4: kg | D4: 7.0192
A5: M0004 | B5: Aço CA 50 | C5: kg | D5: 6.8266
A6: M0005 | B6: Brita 0 | C6: m³ | D6: 154.8413
A7: M0006 | B7: Fibra de poliamida para concreto | C7: kg | D7: 27.9881
A8: M0007 | B8: Fibra de aço para concreto | C8: kg | D8: 17.4433
A9: M0008 | B9: Detergente líquido neutro | C9: l | D9: 4.2947
A10: M0009 | B10: Aço CP 175 RB | C10: kg | D10: 9.5704
A11: M0010 | B11: Aditivo superplastificante para concreto e argamassa | C11: kg | D11: 15.9422
A12: M0011 | B12: Aditivo modificador de viscosidade para concreto e argamassa | C12: kg | D12: 10.6951
A13: M0012 | B13: Silicato de alumínio | C13: kg | D13: 2.3542
A14: M0013 | B14: Grampo de ancoragem em aço CA 50 - D = 12,5 mm | C14: kg | D14: 6.8266
A15: M0014 | B15: Aço CA 60 | C15: kg | D15: 7.82
A16: M0015 | B16: Espoleta elétrica Nº 8 - D = 6,0 mm | C16: un | D16: 19.9299
A17: M0016 | B17: Grampo sargento em ferro fundido tipo C com abertura útil de 105 mm (4") | C17: un | D17: 42.9172
A18: M0017 | B18: Saco de aniagem ou de ráfia de 50 kg - C = 95 cm e L = 65 cm | C18: un | D18: 2.665
A19: M0018 | B19: Grampo pesado em aço-carbono para cabo de aço - D = 13 mm (1/2") | C19: un | D19: 17.9775
A20: M0019 | B20: Esticador em aço tipo olhal x olhal para cabo de aço - D = 13 mm | C20: un | D20: 144.6872
A21: M0020 | B21: Grampo de ancoragem em aço CA 50 - D = 6,3 mm | C21: kg | D21: 6.95
A22: M0021 | B22: Herbicida glifosato para áreas contínuas | C22: l | D22: 25.607
A23: M0025 | B23: Adesivo plástico para tubos de PVC | C23: kg | D23: 52.0351
A24: M0026 | B24: Aditivo aglutinante para argamassa | C24: l | D24: 9.1648
A25: M0028 | B25: Areia média | C25: m³ | D25: 120.816
A26: M0029 | B26: Sílica ativa para concreto e argamassa (microssílica) | C26: kg | D26: 2.3196
